Workbook

Sheet CBA Tool details (hidden)
A1: Greater Manchester Cost Benefit Analysis Tool
A3: Version | B3: 4.5.1
A5: Release date | B5: 2019-11-15
A7: Release notes | B7: Updated unit costs to match 2019 Unit Cost Database update Updated GDP deflators N.B. This is an interim update. Version 5 is currently in testing and due to be published in early 2020. This update will include an updated methodology to apply alternative discount rates to health related social outcomes, to align with the revised HMT Green book and additional modules for low carbon and energy projects.
A13: Supporting documents | B13: Supporting Public Service Transformation: Cost Benefit Analysis Guidance for Local Partnerships - April 2014 Unit Cost Database version 2.0 - April 2019
A16: Workbook structure | B16: Blue tab | D16: Input
B17: Green tab | D17: Reference
B18: Orange tab | D18: Outputs/charts
B19: Purple tab | D19: User changeable assumptions
A22: User Support | B22: User support and guidance can be provided by the GM Cost Benefit Analysis team at the Grearter Manchester Combined Authority. Please contact
B25: cba@greatermanchester-ca.gov.uk

Sheet Proposition Summary (hidden)
A1: Summary Sheet
A4: Title | B4: Northern Bone Health Alliance
A6: Outline description
A17: Intervention start financial year (price base) | B17: 2021-22
A19: Analysis time frame (years) | B19: 10
A23: Comments
A34: Caveats
A45: Next steps

Sheet Agency list (hidden)
A1: Drop down lists
B3: Agencies | C3: Included | E3: Shortlisted agencies
A4: 1 | B4: Local Authority | C4: No | D4: =INDEX($B$4:$B$23,SMALL(IF($C$4:$C$23="Yes",ROW($B$4:$B$23)-ROW($B$4)+1),ROWS(D$4:D4)),COLUMNS($D4:D4)) -> NHS | E4: =IF(ISERR(D4),"",D4) -> NHS | H4: Instructions:
A5: 2 | B5: NHS | C5: Yes | D5: =INDEX($B$4:$B$23,SMALL(IF($C$4:$C$23="Yes",ROW($B$4:$B$23)-ROW($B$4)+1),ROWS(D$4:D5)),COLUMNS($D5:D5)) -> Amgen | E5: =IF(ISERR(D5),"",D5) -> Amgen
A6: 3 | B6: Police | C6: No | D6: =INDEX($B$4:$B$23,SMALL(IF($C$4:$C$23="Yes",ROW($B$4:$B$23)-ROW($B$4)+1),ROWS(D$4:D6)),COLUMNS($D6:D6)) -> NHSA | E6: NHSA | H6: 1. Select which agencies in the green column are important either in the delivery of the project or receive benefits from improved outcomes
A7: 4 | B7: Probation | C7: No | D7: =INDEX($B$4:$B$23,SMALL(IF($C$4:$C$23="Yes",ROW($B$4:$B$23)-ROW($B$4)+1),ROWS(D$4:D7)),COLUMNS($D7:D7)) -> AHSN | E7: AHSN
A8: 5 | B8: Courts/Legal aid | C8: No | D8: =INDEX($B$4:$B$23,SMALL(IF($C$4:$C$23="Yes",ROW($B$4:$B$23)-ROW($B$4)+1),ROWS(D$4:D8)),COLUMNS($D8:D8)) -> Social Care | E8: Social Care | H8: 2. For those included use the Yes flag, which will allow the drop downs, graphs, agency split calculations and cashability calculations to work
A9: 6 | B9: Prisons | C9: No | D9: =INDEX($B$4:$B$23,SMALL(IF($C$4:$C$23="Yes",ROW($B$4:$B$23)-ROW($B$4)+1),ROWS(D$4:D9)),COLUMNS($D9:D9)) -> Pharmacy | E9: Pharmacy
A10: 7 | B10: Other CJS | C10: No | D10: =INDEX($B$4:$B$23,SMALL(IF($C$4:$C$23="Yes",ROW($B$4:$B$23)-ROW($B$4)+1),ROWS(D$4:D10)),COLUMNS($D10:D10)) ->  | H10: 3. It is possible to give more specific names to the agencies (e.g. Change local authority to "Stockport MBC"), but don't change the type of agency, otherwise the lookups will work incorrectly.
A11: 8 | B11: DWP (AME) | C11: No | D11: =INDEX($B$4:$B$23,SMALL(IF($C$4:$C$23="Yes",ROW($B$4:$B$23)-ROW($B$4)+1),ROWS(D$4:D11)),COLUMNS($D11:D11)) -> 
A12: 9 | B12: HMRC | C12: No | D12: =INDEX($B$4:$B$23,SMALL(IF($C$4:$C$23="Yes",ROW($B$4:$B$23)-ROW($B$4)+1),ROWS(D$4:D12)),COLUMNS($D12:D12)) ->  | H12: 4. If there are more agencies that are delivery partners, then use the Spare categories and overwrite these.
A13: 10 | B13: Schools | C13: No | D13: =INDEX($B$4:$B$23,SMALL(IF($C$4:$C$23="Yes",ROW($B$4:$B$23)-ROW($B$4)+1),ROWS(D$4:D13)),COLUMNS($D13:D13)) -> 
A14: 11 | B14: Housing providers | C14: No | D14: =INDEX($B$4:$B$23,SMALL(IF($C$4:$C$23="Yes",ROW($B$4:$B$23)-ROW($B$4)+1),ROWS(D$4:D14)),COLUMNS($D14:D14)) ->  | H14: 5.If new outcomes are added in the Spare Outcomes rows on the benefits tab, resulting in other beneficiaries, the agency percentages and cashability tabs should also be updated to reflect the split to these agencies
A15: 12 | B15: Victims Services | C15: No | D15: =INDEX($B$4:$B$23,SMALL(IF($C$4:$C$23="Yes",ROW($B$4:$B$23)-ROW($B$4)+1),ROWS(D$4:D15)),COLUMNS($D15:D15)) -> 
A16: 13 | B16: Amgen | C16: Yes | D16: =INDEX($B$4:$B$23,SMALL(IF($C$4:$C$23="Yes",ROW($B$4:$B$23)-ROW($B$4)+1),ROWS(D$4:D16)),COLUMNS($D16:D16)) -> 
A17: 14 | B17: NHSA | C17: Yes | D17: =INDEX($B$4:$B$23,SMALL(IF($C$4:$C$23="Yes",ROW($B$4:$B$23)-ROW($B$4)+1),ROWS(D$4:D17)),COLUMNS($D17:D17)) -> 
A18: 15 | B18: AHSN | C18: Yes | D18: =INDEX($B$4:$B$23,SMALL(IF($C$4:$C$23="Yes",ROW($B$4:$B$23)-ROW($B$4)+1),ROWS(D$4:D18)),COLUMNS($D18:D18)) -> 
A19: 16 | B19: Social Care | C19: Yes | D19: =INDEX($B$4:$B$23,SMALL(IF($C$4:$C$23="Yes",ROW($B$4:$B$23)-ROW($B$4)+1),ROWS(D$4:D19)),COLUMNS($D19:D19)) -> 
A20: 17 | B20: Pharmacy | C20: Yes | D20: =INDEX($B$4:$B$23,SMALL(IF($C$4:$C$23="Yes",ROW($B$4:$B$23)-ROW($B$4)+1),ROWS(D$4:D20)),COLUMNS($D20:D20)) -> 
A21: 18 | B21: Spare6 | C21: No | D21: =INDEX($B$4:$B$23,SMALL(IF($C$4:$C$23="Yes",ROW($B$4:$B$23)-ROW($B$4)+1),ROWS(D$4:D21)),COLUMNS($D21:D21)) -> 
A22: 19 | B22: Spare7 | C22: No | D22: =INDEX($B$4:$B$23,SMALL(IF($C$4:$C$23="Yes",ROW($B$4:$B$23)-ROW($B$4)+1),ROWS(D$4:D22)),COLUMNS($D22:D22)) -> 
A23: 20 | B23: Spare8 | C23: No | D23: =INDEX($B$4:$B$23,SMALL(IF($C$4:$C$23="Yes",ROW($B$4:$B$23)-ROW($B$4)+1),ROWS(D$4:D23)),COLUMNS($D23:D23)) -> 

Sheet Summary
B2: Northern Bone Health Project - Cost-Benefit Analysis Model
B4: Financial Summary | D4: Yes | E4: Ten Year Net Financial Position
B5: Number of GP practices | C5: 100 | D5: No | E5: =SUM('Output metrics'!C14:L14) -> 612014.7884 | G5: ='Output metrics'!AB14 -> 3.529982206
B6: Number of patients within NICE CG146 criteria | C6: =(158946/71)*C5 -> 223867.6056
B7: Time taken to complete search (hours per practice) | C7: 2
B8: Time taken to complete reviews (minutes per review) | C8: 7
B9: Staff member completing medication reviews | C9: Pharmacist specialist (Band 7)
B10: Proportion of those contacted actioned | C10: 54
B11: Apply optimism bias correction? | C11: No
B13: Search Breakdown
B14: Please input the proportion of searches being completed by each role type in the "percentage" column below. This should be entered as a proportion of the overall number of practices above. The total should not be greater than 100%.
B15: Role Type | C15: Percentage | D15: Practice Count | E15: =IF(SUM(C16:C24)>1,"Invalid entry - please review percentage figures","") -> 
B16: General practitioner - per hour of GMS | C16: 0 | D16: =C16*$C$5 -> 0 | E16: =D16*$C$7 -> 0 | F16: =VLOOKUP(B16,'Model Parameters'!$B$191:$J$199,7,FALSE)*E16 -> 0
B17: Practice manager | C17: 0 | D17: =C17*$C$5 -> 0 | E17: =D17*$C$7 -> 0 | F17: =VLOOKUP(B17,'Model Parameters'!$B$191:$J$199,7,FALSE)*E17 -> 0
B18: Healthcare assistant | C18: 0 | D18: 0 | E18: 0 | F18: =VLOOKUP(B18,'Model Parameters'!$B$191:$J$199,7,FALSE)*E18 -> 0
B19: Pharmacy technician (Band 4) | C19: 0 | D19: 0 | E19: 0 | F19: =VLOOKUP(B19,'Model Parameters'!$B$191:$J$199,7,FALSE)*E19 -> 0
B20: Pharmacist (band 6) | C20: 1 | D20: 100 | E20: 200 | F20: =VLOOKUP(B20,'Model Parameters'!$B$191:$J$199,7,FALSE)*E20 -> 9000
B21: Pharmacist specialist (Band 7) | C21: 0 | D21: 0 | E21: 0 | F21: =VLOOKUP(B21,'Model Parameters'!$B$191:$J$199,7,FALSE)*E21 -> 0
B22: Pharmacist advanced (Band 8a-b) | C22: 0 | D22: 0 | E22: 0 | F22: =VLOOKUP(B22,'Model Parameters'!$B$191:$J$199,7,FALSE)*E22 -> 0
B23: Pharmacist team manager (Band 8b-c) | C23: 0 | D23: 0 | E23: 0 | F23: =VLOOKUP(B23,'Model Parameters'!$B$191:$J$199,7,FALSE)*E23 -> 0
B24: Pharmacist consultant (Band 8b-d) | C24: 0 | D24: 0 | E24: 0 | F24: =VLOOKUP(B24,'Model Parameters'!$B$191:$J$199,7,FALSE)*E24 -> 0
B26: Year of Delivery | C26: 2021/22 | D26: 2022/23 | E26: 2023/24 | F26: 2024/25 | G26: 2025/26
B27: Non-hip fractures avoided | C27: =(Calculations!$B$91+Calculations!$B$171)*Benefits!AE45 -> 5.818291809 | D27: =(Calculations!$B$91+Calculations!$B$171)*Benefits!AF45 -> 6.600711102 | E27: =(Calculations!$B$91+Calculations!$B$171)*Benefits!AG45 -> 7.439534624 | F27: =(Calculations!$B$91+Calculations!$B$171)*Benefits!AH45 -> 8.31577273 | G27: =(Calculations!$B$91+Calculations!$B$171)*Benefits!AI45 -> 9.212975714
B28: Hip fractures avoided | C28: =(Calculations!$B$92+Calculations!$B$172)*Benefits!AE45 -> 1.368546901 | D28: =(Calculations!$B$92+Calculations!$B$172)*Benefits!AF45 -> 1.552583304 | E28: =(Calculations!$B$92+Calculations!$B$172)*Benefits!AG45 -> 1.749886803 | F28: =(Calculations!$B$92+Calculations!$B$172)*Benefits!AH45 -> 1.955990756 | G28: =(Calculations!$B$92+Calculations!$B$172)*Benefits!AI45 -> 2.167025954
B29: Medication holidays initiated | C29: =Benefits!$H$49*Benefits!AE49 -> 88.61022637 | D29: =Benefits!$H$49*Benefits!AF49 -> 76.54578887 | E29: =Benefits!$H$49*Benefits!AG49 -> 0.08398476174 | F29: =Benefits!$H$49*Benefits!AH49 -> 0 | G29: =Benefits!$H$49*Benefits!AI49 -> 0
B30: Net financial impact | C30: ='Output metrics'!C11-'Output metrics'!C10 -> -86900.84988 | D30: ='Output metrics'!D11-'Output metrics'!D10 -> 41260.79092 | E30: ='Output metrics'!E11-'Output metrics'!E10 -> 47988.51688 | F30: ='Output metrics'!F11-'Output metrics'!F10 -> 54564.10773 | G30: ='Output metrics'!G11-'Output metrics'!G10 -> 60829.61682
G31: Yes
E32: MRI & CT | F32: Fully costed | G32: No

Sheet Benefits
A1: Project title: | B1: =Title -> Northern Bone Health Alliance
AE2: 1 | AF2: 2 | AG2: 3 | AH2: 4 | AI2: 5 | AJ2: 6 | AK2: 7 | AL2: 8 | AM2: 9 | AN2: 10 | AO2: 11 | AP2: 12 | AQ2: 13 | AR2: 14 | AS2: 15 | AT2: 16 | AU2: 17 | AV2: 18 | AW2: 19 | AX2: 20 | AY2: 21 | AZ2: 22 | BA2: 23 | BB2: 24 | BC2: 25 | BE2: 1 | BF2: 2 | BG2: 3 | BH2: 4 | BI2: 5 | BJ2: 6 | BK2: 7 | BL2: 8 | BM2: 9 | BN2: 10 | BO2: 11 | BP2: 12 | BQ2: 13 | BR2: 14 | BS2: 15 | BT2: 16 | BU2: 17 | BV2: 18 | BW2: 19 | BX2: 20 | BY2: 21 | BZ2: 22 | CA2: 23 | CB2: 24 | CC2: 25 | CF2: 1 | CG2: 2 | CH2: 3 | CI2: 4 | CJ2: 5 | CK2: 6 | CL2: 7 | CM2: 8 | CN2: 9 | CO2: 10 | CP2: 11 | CQ2: 12 | CR2: 13 | CS2: 14 | CT2: 15 | CU2: 16 | CV2: 17 | CW2: 18 | CX2: 19 | CY2: 20 | CZ2: 21 | DA2: 22 | DB2: 23 | DC2: 24 | DD2: 25 | DG2: Agencies benefiting - % split | EB2: Agencies - % short term cashability | EW2: Agencies benefiting - % long term cashability | FR2: Agencies benefiting - £ - Overall gross total | GM2: Agencies benefiting - £ - Overall short term cashable savings | HJ2: Agencies benefiting - £ - Overall at scale cashable savings total
A3: Benefits | S3: Public Value | BE3: Fiscal | CF3: Public Value | DG3: 1 | DH3: =IF((20-COUNTIF(Agencieslist,""))>DG3,DG3+1,"") -> 2 | DI3: 3 | DJ3: 4 | DK3: 5 | DL3: 6 | EB3: 1 | EC3: =IF((20-COUNTIF(Agencieslist,""))>EB3,EB3+1,"") -> 2 | ED3: 3 | EE3: 4 | EF3: 5 | EG3: 6 | EW3: 1 | EX3: =IF((20-COUNTIF(Agencieslist,""))>EW3,EW3+1,"") -> 2 | EY3: 3 | EZ3: 4 | FA3: 5 | FB3: 6 | FR3: 1 | FS3: =IF((20-COUNTIF(Agencieslist,""))>FR3,FR3+1,"") -> 2 | FT3: 3 | FU3: 4 | FV3: 5 | FW3: 6 | GM3: 1 | GN3: =IF((20-COUNTIF(Agencieslist,""))>GM3,GM3+1,"") -> 2 | GO3: 3 | GP3: 4 | GQ3: 5 | GR3: 6 | HJ3: 1 | HK3: =IF((20-COUNTIF(Agencieslist,""))>HJ3,HJ3+1,"") -> 2 | HL3: 3 | HM3: 4 | HN3: 5 | HO3: 6
A4: Ref. | B4: Outcomes | C4: Included outcome? | D4: Benefits | E4: Who does benefit accrue to? | F4: Target population | G4: Pop notes/ assumptions | H4: Affected population / Predicted incidents | I4: Affected pop notes/ assumptions | J4: Level of engagement with the affected population (%) | K4: % engagement notes / assumptions | L4: Retention rate (%) | M4: % retention notes / assumptions | N4: % impact (effectiveness of changing skills / attitudes / behaviours) | O4: % impact notes / assumptions / sources | P4: % deadweight | Q4: % deadweight notes / assumptions | R4: Unit fiscal benefit (£) | S4: Unit public value (fiscal) benefit (£) | T4: Unit public value (economic) benefit (£) | U4: Unit public value (social) benefit (£) | V4: Unit public value (total) benefit (£) | W4: Monetisation evidence financial year | X4: GDP deflator compared to price base year | Y4: Unit cost notes /assumptions | Z4: Optimism bias correction | AA4: Fiscal benefit | AB4: Public value benefit | AC4: Assumptions on impact lag and drop-off | AE4: % Impact year 1 | AF4: % Impact year 2 | AG4: % Impact year 3 | AH4: % Impact year 4 | AI4: % Impact year 5 | AJ4: % Impact year 6 | AK4: % Impact year 7 | AL4: % Impact year 8 | AM4: % Impact year 9 | AN4: % Impact year 10 | AO4: % Impact year 11 | AP4: % Impact year 12 | AQ4: % Impact year 13 | AR4: % Impact year 14 | AS4: % Impact year 15 | AT4: % Impact year 16 | AU4: % Impact year 17 | AV4: % Impact year 18 | AW4: % Impact year 19 | AX4: % Impact year 20 | AY4: % Impact year 21 | AZ4: % Impact year 22 | BA4: % Impact year 23 | BB4: % Impact year 24 | BC4: % Impact year 25 | BE4: Impact year 1 | BF4: Impact year 2 | BG4: Impact year 3 | BH4: Impact year 4 | BI4: Impact year 5 | BJ4: Impact year 6 | BK4: Impact year 7 | BL4: Impact year 8 | BM4: Impact year 9 | BN4: Impact year 10 | BO4: Impact year 11 | BP4: Impact year 12 | BQ4: Impact year 13 | BR4: Impact year 14 | BS4: Impact year 15 | BT4: Impact year 16 | BU4: Impact year 17 | BV4: Impact year 18 | BW4: Impact year 19 | BX4: Impact year 20 | BY4: Impact year 21 | BZ4: Impact year 22 | CA4: Impact year 23 | CB4: Impact year 24 | CC4: Impact year 25 | CD4: Overall gross fiscal benefit | CF4: Impact year 1 | CG4: Impact year 2 | CH4: Impact year 3 | CI4: Impact year 4 | CJ4: Impact year 5 | CK4: Impact year 6 | CL4: Impact year 7 | CM4: Impact year 8 | CN4: Impact year 9 | CO4: Impact year 10 | CP4: Impact year 11 | CQ4: Impact year 12 | CR4: Impact year 13 | CS4: Impact year 14 | CT4: Impact year 15 | CU4: Impact year 16 | CV4: Impact year 17 | CW4: Impact year 18 | CX4: Impact year 19 | CY4: Impact year 20 | CZ4: Impact year 21 | DA4: Impact year 22 | DB4: Impact year 23 | DC4: Impact year 24 | DD4: Impact year 25 | DE4: Overall public value benefit | DG4: =IF(DG$3<>"",INDEX(Agencieslist,DG$3),"") -> NHS | DH4: Amgen | DI4: NHSA | DJ4: AHSN | DK4: Social Care | DL4: Pharmacy | EB4: NHS | EC4: Amgen | ED4: NHSA | EE4: AHSN | EF4: Social Care | EG4: Pharmacy | EW4: NHS | EX4: Amgen | EY4: NHSA | EZ4: AHSN | FA4: Social Care | FB4: Pharmacy | FR4: =IF(FR$3<>0,INDEX(Agencieslist,FR$3),"") -> NHS | FS4: =IF(FS$3<>"",INDEX(Agencieslist,FS$3),"") -> Amgen | FT4: NHSA | FU4: AHSN | FV4: Social Care | FW4: Pharmacy | GM4: =IF(GM$3<>0,INDEX(Agencieslist,GM$3),"") -> NHS | GN4: =IF(GN$3<>"",INDEX(Agencieslist,GN$3),"") -> Amgen | GO4: NHSA | GP4: AHSN | GQ4: Social Care | GR4: Pharmacy | HH4: Overall Short term cashability | HJ4: =IF(HJ$3<>0,INDEX(Agencieslist,HJ$3),"") -> NHS | HK4: =IF(HK$3<>"",INDEX(Agencieslist,HK$3),"") -> Amgen | HL4: NHSA | HM4: AHSN | HN4: Social Care | HO4: Pharmacy | IE4: Overall long term/large scale cashability
A5: B1 | B5: Increased employment (reduced benefits payments and health impact) | C5: No | D5: 1) Fiscal benefit of moving people off benefits and into work 2) Improved health outcomes 3) Increased income | E5: 1) DWP/HMT 2) DH 3) Individuals | I5: JSA | R5: 12657 | S5: =1148+585 -> 1733 | T5: 17420 | V5: =S5+T5+U5 -> 19153 | W5: 2017-18 | X5: =VLOOKUP(W5,'GDP Deflators'!$B$8:$C$76,2,0)*100/VLOOKUP('Model constants'!$B$3,'GDP Deflators'!$B$8:$C$76,2,0) -> 92.73492394 | Y5: DWP response to parliamentary questions (HC Deb 6 February 2013, vol 558, col 352W) | AA5: =IF($C5="Yes",($H5*$J5*$L5*($N5-$P5)*R5*100*(1+$Z5)/$X5),0) -> 0 | AB5: =IF($C5="Yes",($H5*$J5*$L5*($N5-$P5)*V5*100*(1+$Z5)/$X5),0) -> 0 | BE5: =IF(BE$2<=time_frame,$AA5*AE5,"") -> 0 | BF5: =IF(BF$2<=time_frame,$AA5*AF5,"") -> 0 | BG5: =IF(BG$2<=time_frame,$AA5*AG5,"") -> 0 | BH5: =IF(BH$2<=time_frame,$AA5*AH5,"") -> 0 | BI5: =IF(BI$2<=time_frame,$AA5*AI5,"") -> 0 | BJ5: =IF(BJ$2<=time_frame,$AA5*AJ5,"") -> 0 | BK5: =IF(BK$2<=time_frame,$AA5*AK5,"") -> 0 | BL5: =IF(BL$2<=time_frame,$AA5*AL5,"") -> 0 | BM5: =IF(BM$2<=time_frame,$AA5*AM5,"") -> 0 | BN5: =IF(BN$2<=time_frame,$AA5*AN5,"") -> 0 | BO5: =IF(BO$2<=time_frame,$AA5*AO5,"") ->  | BP5: =IF(BP$2<=time_frame,$AA5*AP5,"") ->  | BQ5: =IF(BQ$2<=time_frame,$AA5*AQ5,"") ->  | BR5: =IF(BR$2<=time_frame,$AA5*AR5,"") ->  | BS5: =IF(BS$2<=time_frame,$AA5*AS5,"") ->  | BT5: =IF(BT$2<=time_frame,$AA5*AT5,"") ->  | BU5: =IF(BU$2<=time_frame,$AA5*AU5,"") ->  | BV5: =IF(BV$2<=time_frame,$AA5*AV5,"") ->  | BW5: =IF(BW$2<=time_frame,$AA5*AW5,"") ->  | BX5: =IF(BX$2<=time_frame,$AA5*AX5,"") ->  | BY5: =IF(BY$2<=time_frame,$AA5*AY5,"") ->  | BZ5: =IF(BZ$2<=time_frame,$AA5*AZ5,"") ->  | CA5: =IF(CA$2<=time_frame,$AA5*BA5,"") ->  | CB5: =IF(CB$2<=time_frame,$AA5*BB5,"") ->  | CC5: =IF(CC$2<=time_frame,$AA5*BC5,"") ->  | CD5: =SUM(BE5:CC5) -> 0 | CF5: =IF(CF$2<=time_frame,$AB5*AE5,"") -> 0 | CG5: =IF(CG$2<=time_frame,$AB5*AF5,"") -> 0 | CH5: =IF(CH$2<=time_frame,$AB5*AG5,"") -> 0 | CI5: =IF(CI$2<=time_frame,$AB5*AH5,"") -> 0 | CJ5: =IF(CJ$2<=time_frame,$AB5*AI5,"") -> 0 | CK5: =IF(CK$2<=time_frame,$AB5*AJ5,"") -> 0 | CL5: =IF(CL$2<=time_frame,$AB5*AK5,"") -> 0 | CM5: =IF(CM$2<=time_frame,$AB5*AL5,"") -> 0 | CN5: =IF(CN$2<=time_frame,$AB5*AM5,"") -> 0 | CO5: =IF(CO$2<=time_frame,$AB5*AN5,"") -> 0 | CP5: =IF(CP$2<=time_frame,$AB5*AO5,"") ->  | CQ5: =IF(CQ$2<=time_frame,$AB5*AP5,"") ->  | CR5: =IF(CR$2<=time_frame,$AB5*AQ5,"") ->  | CS5: =IF(CS$2<=time_frame,$AB5*AR5,"") ->  | CT5: =IF(CT$2<=time_frame,$AB5*AS5,"") ->  | CU5: =IF(CU$2<=time_frame,$AB5*AT5,"") ->  | CV5: =IF(CV$2<=time_frame,$AB5*AU5,"") ->  | CW5: =IF(CW$2<=time_frame,$AB5*AV5,"") ->  | CX5: =IF(CX$2<=time_frame,$AB5*AW5,"") ->  | CY5: =IF(CY$2<=time_frame,$AB5*AX5,"") ->  | CZ5: =IF(CZ$2<=time_frame,$AB5*AY5,"") ->  | DA5: =IF(DA$2<=time_frame,$AB5*AZ5,"") ->  | DB5: =IF(DB$2<=time_frame,$AB5*BA5,"") ->  | DC5: =IF(DC$2<=time_frame,$AB5*BB5,"") ->  | DD5: =IF(DD$2<=time_frame,$AB5*BC5,"") ->  | DE5: =SUM(CF5:DD5) -> 0 | DG5: =IF(DG$3<>"",VLOOKUP($A5,'Agency percentages'!$A$5:$X$70,(3+MATCH(DG$4,'Agency percentages'!$D$4:$W$4,0)),FALSE),"") -> 0.04621948329 | DH5: =IF(DH$3<>"",VLOOKUP($A5,'Agency percentages'!$A$5:$X$70,(3+MATCH(DH$4,'Agency percentages'!$D$4:$W$4,0)),FALSE),"") -> 0 | DI5: =IF(DI$3<>"",VLOOKUP($A5,'Agency percentages'!$A$5:$X$70,(3+MATCH(DI$4,'Agency percentages'!$D$4:$W$4,0)),FALSE),"") -> 0 | DJ5: =IF(DJ$3<>"",VLOOKUP($A5,'Agency percentages'!$A$5:$X$70,(3+MATCH(DJ$4,'Agency percentages'!$D$4:$W$4,0)),FALSE),"") -> 0 | DK5: =IF(DK$3<>"",VLOOKUP($A5,'Agency percentages'!$A$5:$X$70,(3+MATCH(DK$4,'Agency percentages'!$D$4:$W$4,0)),FALSE),"") -> 0 | DL5: =IF(DL$3<>"",VLOOKUP($A5,'Agency percentages'!$A$5:$X$70,(3+MATCH(DL$4,'Agency percentages'!$D$4:$W$4,0)),FALSE),"") -> 0 | DM5: =IF(DM$3<>"",VLOOKUP($A5,'Agency percentages'!$A$5:$X$70,(3+MATCH(DM$4,'Agency percentages'!$D$4:$W$4,0)),FALSE),"") ->  | DN5: =IF(DN$3<>"",VLOOKUP($A5,'Agency percentages'!$A$5:$X$70,(3+MATCH(DN$4,'Agency percentages'!$D$4:$W$4,0)),FALSE),"") ->  | DO5: =IF(DO$3<>"",VLOOKUP($A5,'Agency percentages'!$A$5:$X$70,(3+MATCH(DO$4,'Agency percentages'!$D$4:$W$4,0)),FALSE),"") ->  | DP5: =IF(DP$3<>"",VLOOKUP($A5,'Agency percentages'!$A$5:$X$70,(3+MATCH(DP$4,'Agency percentages'!$D$4:$W$4,0)),FALSE),"") ->  | DQ5: =IF(DQ$3<>"",VLOOKUP($A5,'Agency percentages'!$A$5:$X$70,(3+MATCH(DQ$4,'Agency percentages'!$D$4:$W$4,0)),FALSE),"") ->  | DR5: =IF(DR$3<>"",VLOOKUP($A5,'Agency percentages'!$A$5:$X$70,(3+MATCH(DR$4,'Agency percentages'!$D$4:$W$4,0)),FALSE),"") ->  | DS5: =IF(DS$3<>"",VLOOKUP($A5,'Agency percentages'!$A$5:$X$70,(3+MATCH(DS$4,'Agency percentages'!$D$4:$W$4,0)),FALSE),"") ->  | DT5: =IF(DT$3<>"",VLOOKUP($A5,'Agency percentages'!$A$5:$X$70,(3+MATCH(DT$4,'Agency percentages'!$D$4:$W$4,0)),FALSE),"") ->  | DU5: =IF(DU$3<>"",VLOOKUP($A5,'Agency percentages'!$A$5:$X$70,(3+MATCH(DU$4,'Agency percentages'!$D$4:$W$4,0)),FALSE),"") ->  | DV5: =IF(DV$3<>"",VLOOKUP($A5,'Agency percentages'!$A$5:$X$70,(3+MATCH(DV$4,'Agency percentages'!$D$4:$W$4,0)),FALSE),"") ->  | DW5: =IF(DW$3<>"",VLOOKUP($A5,'Agency percentages'!$A$5:$X$70,(3+MATCH(DW$4,'Agency percentages'!$D$4:$W$4,0)),FALSE),"") ->  | DX5: =IF(DX$3<>"",VLOOKUP($A5,'Agency percentages'!$A$5:$X$70,(3+MATCH(DX$4,'Agency percentages'!$D$4:$W$4,0)),FALSE),"") ->  | DY5: =IF(DY$3<>"",VLOOKUP($A5,'Agency percentages'!$A$5:$X$70,(3+MATCH(DY$4,'Agency percentages'!$D$4:$W$4,0)),FALSE),"") ->  | DZ5: =IF(DZ$3<>"",VLOOKUP($A5,'Agency percentages'!$A$5:$X$70,(3+MATCH(DZ$4,'Agency percentages'!$D$4:$W$4,0)),FALSE),"") ->  | EB5: =IF(AND(EB$3<>"",DG5<>0),HLOOKUP(EB$4,'Agency cashability'!$B$3:$U$5,2,0),0) -> 0.2 | EC5: =IF(AND(EC$3<>"",DH5<>0),HLOOKUP(EC$4,'Agency cashability'!$B$3:$U$5,2,0),0) -> 0 | ED5: =IF(AND(ED$3<>"",DI5<>0),HLOOKUP(ED$4,'Agency cashability'!$B$3:$U$5,2,0),0) -> 0 | EE5: =IF(AND(EE$3<>"",DJ5<>0),HLOOKUP(EE$4,'Agency cashability'!$B$3:$U$5,2,0),0) -> 0 | EF5: =IF(AND(EF$3<>"",DK5<>0),HLOOKUP(EF$4,'Agency cashability'!$B$3:$U$5,2,0),0) -> 0 | EG5: =IF(AND(EG$3<>"",DL5<>0),HLOOKUP(EG$4,'Agency cashability'!$B$3:$U$5,2,0),0) -> 0 | EH5: =IF(AND(EH$3<>"",DM5<>0),HLOOKUP(EH$4,'Agency cashability'!$B$3:$U$5,2,0),0) -> 0 | EI5: =IF(AND(EI$3<>"",DN5<>0),HLOOKUP(EI$4,'Agency cashability'!$B$3:$U$5,2,0),0) -> 0 | EJ5: =IF(AND(EJ$3<>"",DO5<>0),HLOOKUP(EJ$4,'Agency cashability'!$B$3:$U$5,2,0),0) -> 0 | EK5: =IF(AND(EK$3<>"",DP5<>0),HLOOKUP(EK$4,'Agency cashability'!$B$3:$U$5,2,0),0) -> 0 | EL5: =IF(AND(EL$3<>"",DQ5<>0),HLOOKUP(EL$4,'Agency cashability'!$B$3:$U$5,2,0),0) -> 0 | EM5: =IF(AND(EM$3<>"",DR5<>0),HLOOKUP(EM$4,'Agency cashability'!$B$3:$U$5,2,0),0) -> 0 | EN5: =IF(AND(EN$3<>"",DS5<>0),HLOOKUP(EN$4,'Agency cashability'!$B$3:$U$5,2,0),0) -> 0 | EO5: =IF(AND(EO$3<>"",DT5<>0),HLOOKUP(EO$4,'Agency cashability'!$B$3:$U$5,2,0),0) -> 0 | EP5: =IF(AND(EP$3<>"",DU5<>0),HLOOKUP(EP$4,'Agency cashability'!$B$3:$U$5,2,0),0) -> 0 | EQ5: =IF(AND(EQ$3<>"",DV5<>0),HLOOKUP(EQ$4,'Agency cashability'!$B$3:$U$5,2,0),0) -> 0 | ER5: =IF(AND(ER$3<>"",DW5<>0),HLOOKUP(ER$4,'Agency cashability'!$B$3:$U$5,2,0),0) -> 0 | ES5: =IF(AND(ES$3<>"",DX5<>0),HLOOKUP(ES$4,'Agency cashability'!$B$3:$U$5,2,0),0) -> 0 | ET5: =IF(AND(ET$3<>"",DY5<>0),HLOOKUP(ET$4,'Agency cashability'!$B$3:$U$5,2,0),0) -> 0 | EU5: =IF(AND(EU$3<>"",DZ5<>0),HLOOKUP(EU$4,'Agency cashability'!$B$3:$U$5,2,0),0) -> 0 | EW5: =IF(AND(EW$3<>"",DG5<>0),HLOOKUP(EW$4,'Agency cashability'!$B$3:$U$5,3,0),0) -> 0.5 | EX5: =IF(AND(EX$3<>"",DH5<>0),HLOOKUP(EX$4,'Agency cashability'!$B$3:$U$5,3,0),0) -> 0 | EY5: =IF(AND(EY$3<>"",DI5<>0),HLOOKUP(EY$4,'Agency cashability'!$B$3:$U$5,3,0),0) -> 0 | EZ5: =IF(AND(EZ$3<>"",DJ5<>0),HLOOKUP(EZ$4,'Agency cashability'!$B$3:$U$5,3,0),0) -> 0 | FA5: =IF(AND(FA$3<>"",DK5<>0),HLOOKUP(FA$4,'Agency cashability'!$B$3:$U$5,3,0),0) -> 0 | FB5: =IF(AND(FB$3<>"",DL5<>0),HLOOKUP(FB$4,'Agency cashability'!$B$3:$U$5,3,0),0) -> 0 | FC5: =IF(AND(FC$3<>"",DM5<>0),HLOOKUP(FC$4,'Agency cashability'!$B$3:$U$5,3,0),0) -> 0 | FD5: =IF(AND(FD$3<>"",DN5<>0),HLOOKUP(FD$4,'Agency cashability'!$B$3:$U$5,3,0),0) -> 0 | FE5: =IF(AND(FE$3<>"",DO5<>0),HLOOKUP(FE$4,'Agency cashability'!$B$3:$U$5,3,0),0) -> 0 | FF5: =IF(AND(FF$3<>"",DP5<>0),HLOOKUP(FF$4,'Agency cashability'!$B$3:$U$5,3,0),0) -> 0 | FG5: =IF(AND(FG$3<>"",DQ5<>0),HLOOKUP(FG$4,'Agency cashability'!$B$3:$U$5,3,0),0) -> 0 | FH5: =IF(AND(FH$3<>"",DR5<>0),HLOOKUP(FH$4,'Agency cashability'!$B$3:$U$5,3,0),0) -> 0 | FI5: =IF(AND(FI$3<>"",DS5<>0),HLOOKUP(FI$4,'Agency cashability'!$B$3:$U$5,3,0),0) -> 0 | FJ5: =IF(AND(FJ$3<>"",DT5<>0),HLOOKUP(FJ$4,'Agency cashability'!$B$3:$U$5,3,0),0) -> 0 | FK5: =IF(AND(FK$3<>"",DU5<>0),HLOOKUP(FK$4,'Agency cashability'!$B$3:$U$5,3,0),0) -> 0 | FL5: =IF(AND(FL$3<>"",DV5<>0),HLOOKUP(FL$4,'Agency cashability'!$B$3:$U$5,3,0),0) -> 0 | FM5: =IF(AND(FM$3<>"",DW5<>0),HLOOKUP(FM$4,'Agency cashability'!$B$3:$U$5,3,0),0) -> 0 | FN5: =IF(AND(FN$3<>"",DX5<>0),HLOOKUP(FN$4,'Agency cashability'!$B$3:$U$5,3,0),0) -> 0 | FO5: =IF(AND(FO$3<>"",DY5<>0),HLOOKUP(FO$4,'Agency cashability'!$B$3:$U$5,3,0),0) -> 0 | FP5: =IF(AND(FP$3<>"",DZ5<>0),HLOOKUP(FP$4,'Agency cashability'!$B$3:$U$5,3,0),0) -> 0 | FR5: =IF((FR$3<>""),DG5*$CD5,"") -> 0 | FS5: =IF((FS$3<>""),DH5*$CD5,"") -> 0 | FT5: 0 | FU5: 0 | FV5: 0 | FW5: 0 | GM5: =IF((GM$3<>""),EB5*FR5,"") -> 0 | GN5: 0 | GO5: 0 | GP5: 0 | GQ5: 0 | GR5: 0 | GW5: =IF((GW$3<>""),EL5*GB5,"") ->  | HH5: =SUM(GM5:HF5)/SUM(FR5:GK5) ->  | HJ5: =IF((HJ$3<>""),EW5*FR5,"") -> 0 | HK5: 0 | HL5: 0 | HM5: 0 | HN5: 0 | HO5: 0 | HT5: =IF((HT$3<>""),FG5*GB5,"") ->  | IE5: =SUM(HJ5:IC5)/SUM(FR5:GK5) -> 
A6: B2 | C6: No | I6: ESA/IB | R6: 12818 | S6: =1169+442 -> 1611 | T6: 14352 | V6: =S6+T6+U6 -> 15963 | W6: 2017-18 | X6: =VLOOKUP(W6,'GDP Deflators'!$B$8:$C$76,2,0)*100/VLOOKUP('Model constants'!$B$3,'GDP Deflators'!$B$8:$C$76,2,0) -> 92.73492394 | Y6: DWP modelling (unpublished) | AA6: =IF($C6="Yes",($H6*$J6*$L6*($N6-$P6)*R6*100*(1+$Z6)/$X6),0) -> 0 | AB6: =IF($C6="Yes",($H6*$J6*$L6*($N6-$P6)*V6*100*(1+$Z6)/$X6),0) -> 0 | BE6: 0 | BF6: 0 | BG6: 0 | BH6: 0 | BI6: 0 | BJ6: 0 | BK6: 0 | BL6: 0 | BM6: 0 | BN6: 0 | CD6: =SUM(BE6:CC6) -> 0 | CF6: 0 | CG6: 0 | CH6: 0 | CI6: 0 | CJ6: 0 | CK6: 0 | CL6: 0 | CM6: 0 | CN6: 0 | CO6: 0 | DE6: =SUM(CF6:DD6) -> 0 | DG6: =IF(DG$3<>"",VLOOKUP($A6,'Agency percentages'!$A$5:$X$70,(3+MATCH(DG$4,'Agency percentages'!$D$4:$W$4,0)),FALSE),"") -> 0.09119987518 | DH6: =IF(DH$3<>"",VLOOKUP($A6,'Agency percentages'!$A$5:$X$70,(3+MATCH(DH$4,'Agency percentages'!$D$4:$W$4,0)),FALSE),"") -> 0 | DI6: =IF(DI$3<>"",VLOOKUP($A6,'Agency percentages'!$A$5:$X$70,(3+MATCH(DI$4,'Agency percentages'!$D$4:$W$4,0)),FALSE),"") -> 0 | DJ6: =IF(DJ$3<>"",VLOOKUP($A6,'Agency percentages'!$A$5:$X$70,(3+MATCH(DJ$4,'Agency percentages'!$D$4:$W$4,0)),FALSE),"") -> 0 | DK6: =IF(DK$3<>"",VLOOKUP($A6,'Agency percentages'!$A$5:$X$70,(3+MATCH(DK$4,'Agency percentages'!$D$4:$W$4,0)),FALSE),"") -> 0 | DL6: =IF(DL$3<>"",VLOOKUP($A6,'Agency percentages'!$A$5:$X$70,(3+MATCH(DL$4,'Agency percentages'!$D$4:$W$4,0)),FALSE),"") -> 0 | DM6: =IF(DM$3<>"",VLOOKUP($A6,'Agency percentages'!$A$5:$X$70,(3+MATCH(DM$4,'Agency percentages'!$D$4:$W$4,0)),FALSE),"") ->  | DN6: =IF(DN$3<>"",VLOOKUP($A6,'Agency percentages'!$A$5:$X$70,(3+MATCH(DN$4,'Agency percentages'!$D$4:$W$4,0)),FALSE),"") ->  | DO6: =IF(DO$3<>"",VLOOKUP($A6,'Agency percentages'!$A$5:$X$70,(3+MATCH(DO$4,'Agency percentages'!$D$4:$W$4,0)),FALSE),"") ->  | DP6: =IF(DP$3<>"",VLOOKUP($A6,'Agency percentages'!$A$5:$X$70,(3+MATCH(DP$4,'Agency percentages'!$D$4:$W$4,0)),FALSE),"") ->  | DQ6: =IF(DQ$3<>"",VLOOKUP($A6,'Agency percentages'!$A$5:$X$70,(3+MATCH(DQ$4,'Agency percentages'!$D$4:$W$4,0)),FALSE),"") ->  | DR6: =IF(DR$3<>"",VLOOKUP($A6,'Agency percentages'!$A$5:$X$70,(3+MATCH(DR$4,'Agency percentages'!$D$4:$W$4,0)),FALSE),"") ->  | DS6: =IF(DS$3<>"",VLOOKUP($A6,'Agency percentages'!$A$5:$X$70,(3+MATCH(DS$4,'Agency percentages'!$D$4:$W$4,0)),FALSE),"") ->  | DT6: =IF(DT$3<>"",VLOOKUP($A6,'Agency percentages'!$A$5:$X$70,(3+MATCH(DT$4,'Agency percentages'!$D$4:$W$4,0)),FALSE),"") ->  | DU6: =IF(DU$3<>"",VLOOKUP($A6,'Agency percentages'!$A$5:$X$70,(3+MATCH(DU$4,'Agency percentages'!$D$4:$W$4,0)),FALSE),"") ->  | DV6: =IF(DV$3<>"",VLOOKUP($A6,'Agency percentages'!$A$5:$X$70,(3+MATCH(DV$4,'Agency percentages'!$D$4:$W$4,0)),FALSE),"") ->  | DW6: =IF(DW$3<>"",VLOOKUP($A6,'Agency percentages'!$A$5:$X$70,(3+MATCH(DW$4,'Agency percentages'!$D$4:$W$4,0)),FALSE),"") ->  | DX6: =IF(DX$3<>"",VLOOKUP($A6,'Agency percentages'!$A$5:$X$70,(3+MATCH(DX$4,'Agency percentages'!$D$4:$W$4,0)),FALSE),"") ->  | DY6: =IF(DY$3<>"",VLOOKUP($A6,'Agency percentages'!$A$5:$X$70,(3+MATCH(DY$4,'Agency percentages'!$D$4:$W$4,0)),FALSE),"") ->  | DZ6: =IF(DZ$3<>"",VLOOKUP($A6,'Agency percentages'!$A$5:$X$70,(3+MATCH(DZ$4,'Agency percentages'!$D$4:$W$4,0)),FALSE),"") ->  | EB6: =IF(AND(EB$3<>"",DG6<>0),HLOOKUP(EB$4,'Agency cashability'!$B$3:$U$5,2,0),0) -> 0.2 | EC6: =IF(AND(EC$3<>"",DH6<>0),HLOOKUP(EC$4,'Agency cashability'!$B$3:$U$5,2,0),0) -> 0 | ED6: =IF(AND(ED$3<>"",DI6<>0),HLOOKUP(ED$4,'Agency cashability'!$B$3:$U$5,2,0),0) -> 0 | EE6: =IF(AND(EE$3<>"",DJ6<>0),HLOOKUP(EE$4,'Agency cashability'!$B$3:$U$5,2,0),0) -> 0 | EF6: =IF(AND(EF$3<>"",DK6<>0),HLOOKUP(EF$4,'Agency cashability'!$B$3:$U$5,2,0),0) -> 0 | EG6: =IF(AND(EG$3<>"",DL6<>0),HLOOKUP(EG$4,'Agency cashability'!$B$3:$U$5,2,0),0) -> 0 | EH6: =IF(AND(EH$3<>"",DM6<>0),HLOOKUP(EH$4,'Agency cashability'!$B$3:$U$5,2,0),0) -> 0 | EI6: =IF(AND(EI$3<>"",DN6<>0),HLOOKUP(EI$4,'Agency cashability'!$B$3:$U$5,2,0),0) -> 0 | EJ6: =IF(AND(EJ$3<>"",DO6<>0),HLOOKUP(EJ$4,'Agency cashability'!$B$3:$U$5,2,0),0) -> 0 | EK6: =IF(AND(EK$3<>"",DP6<>0),HLOOKUP(EK$4,'Agency cashability'!$B$3:$U$5,2,0),0) -> 0 | EL6: =IF(AND(EL$3<>"",DQ6<>0),HLOOKUP(EL$4,'Agency cashability'!$B$3:$U$5,2,0),0) -> 0 | EM6: =IF(AND(EM$3<>"",DR6<>0),HLOOKUP(EM$4,'Agency cashability'!$B$3:$U$5,2,0),0) -> 0 | EN6: =IF(AND(EN$3<>"",DS6<>0),HLOOKUP(EN$4,'Agency cashability'!$B$3:$U$5,2,0),0) -> 0 | EO6: =IF(AND(EO$3<>"",DT6<>0),HLOOKUP(EO$4,'Agency cashability'!$B$3:$U$5,2,0),0) -> 0 | EP6: =IF(AND(EP$3<>"",DU6<>0),HLOOKUP(EP$4,'Agency cashability'!$B$3:$U$5,2,0),0) -> 0 | EQ6: =IF(AND(EQ$3<>"",DV6<>0),HLOOKUP(EQ$4,'Agency cashability'!$B$3:$U$5,2,0),0) -> 0 | ER6: =IF(AND(ER$3<>"",DW6<>0),HLOOKUP(ER$4,'Agency cashability'!$B$3:$U$5,2,0),0) -> 0 | ES6: =IF(AND(ES$3<>"",DX6<>0),HLOOKUP(ES$4,'Agency cashability'!$B$3:$U$5,2,0),0) -> 0 | ET6: =IF(AND(ET$3<>"",DY6<>0),HLOOKUP(ET$4,'Agency cashability'!$B$3:$U$5,2,0),0) -> 0 | EU6: =IF(AND(EU$3<>"",DZ6<>0),HLOOKUP(EU$4,'Agency cashability'!$B$3:$U$5,2,0),0) -> 0 | EW6: =IF(AND(EW$3<>"",DG6<>0),HLOOKUP(EW$4,'Agency cashability'!$B$3:$U$5,3,0),0) -> 0.5 | EX6: =IF(AND(EX$3<>"",DH6<>0),HLOOKUP(EX$4,'Agency cashability'!$B$3:$U$5,3,0),0) -> 0 | EY6: =IF(AND(EY$3<>"",DI6<>0),HLOOKUP(EY$4,'Agency cashability'!$B$3:$U$5,3,0),0) -> 0 | EZ6: =IF(AND(EZ$3<>"",DJ6<>0),HLOOKUP(EZ$4,'Agency cashability'!$B$3:$U$5,3,0),0) -> 0 | FA6: =IF(AND(FA$3<>"",DK6<>0),HLOOKUP(FA$4,'Agency cashability'!$B$3:$U$5,3,0),0) -> 0 | FB6: =IF(AND(FB$3<>"",DL6<>0),HLOOKUP(FB$4,'Agency cashability'!$B$3:$U$5,3,0),0) -> 0 | FC6: =IF(AND(FC$3<>"",DM6<>0),HLOOKUP(FC$4,'Agency cashability'!$B$3:$U$5,3,0),0) -> 0 | FD6: =IF(AND(FD$3<>"",DN6<>0),HLOOKUP(FD$4,'Agency cashability'!$B$3:$U$5,3,0),0) -> 0 | FE6: =IF(AND(FE$3<>"",DO6<>0),HLOOKUP(FE$4,'Agency cashability'!$B$3:$U$5,3,0),0) -> 0 | FF6: =IF(AND(FF$3<>"",DP6<>0),HLOOKUP(FF$4,'Agency cashability'!$B$3:$U$5,3,0),0) -> 0 | FG6: =IF(AND(FG$3<>"",DQ6<>0),HLOOKUP(FG$4,'Agency cashability'!$B$3:$U$5,3,0),0) -> 0 | FH6: =IF(AND(FH$3<>"",DR6<>0),HLOOKUP(FH$4,'Agency cashability'!$B$3:$U$5,3,0),0) -> 0 | FI6: =IF(AND(FI$3<>"",DS6<>0),HLOOKUP(FI$4,'Agency cashability'!$B$3:$U$5,3,0),0) -> 0 | FJ6: =IF(AND(FJ$3<>"",DT6<>0),HLOOKUP(FJ$4,'Agency cashability'!$B$3:$U$5,3,0),0) -> 0 | FK6: =IF(AND(FK$3<>"",DU6<>0),HLOOKUP(FK$4,'Agency cashability'!$B$3:$U$5,3,0),0) -> 0 | FL6: =IF(AND(FL$3<>"",DV6<>0),HLOOKUP(FL$4,'Agency cashability'!$B$3:$U$5,3,0),0) -> 0 | FM6: =IF(AND(FM$3<>"",DW6<>0),HLOOKUP(FM$4,'Agency cashability'!$B$3:$U$5,3,0),0) -> 0 | FN6: =IF(AND(FN$3<>"",DX6<>0),HLOOKUP(FN$4,'Agency cashability'!$B$3:$U$5,3,0),0) -> 0 | FO6: =IF(AND(FO$3<>"",DY6<>0),HLOOKUP(FO$4,'Agency cashability'!$B$3:$U$5,3,0),0) -> 0 | FP6: =IF(AND(FP$3<>"",DZ6<>0),HLOOKUP(FP$4,'Agency cashability'!$B$3:$U$5,3,0),0) -> 0 | FR6: =IF((FR$3<>""),DG6*$CD6,"") -> 0 | FS6: =IF((FS$3<>""),DH6*$CD6,"") -> 0 | FT6: =IF((FT$3<>""),DI6*$CD6,"") -> 0 | FU6: =IF((FU$3<>""),DJ6*$CD6,"") -> 0 | FV6: =IF((FV$3<>""),DK6*$CD6,"") -> 0 | FW6: =IF((FW$3<>""),DL6*$CD6,"") -> 0 | FX6: =IF((FX$3<>""),DM6*$CD6,"") ->  | FY6: =IF((FY$3<>""),DN6*$CD6,"") ->  | FZ6: =IF((FZ$3<>""),DO6*$CD6,"") ->  | GA6: =IF((GA$3<>""),DP6*$CD6,"") ->  | GB6: =IF((GB$3<>""),DQ6*$CD6,"") ->  | GC6: =IF((GC$3<>""),DR6*$CD6,"") ->  | GD6: =IF((GD$3<>""),DS6*$CD6,"") ->  | GE6: =IF((GE$3<>""),DT6*$CD6,"") ->  | GF6: =IF((GF$3<>""),DU6*$CD6,"") ->  | GG6: =IF((GG$3<>""),DV6*$CD6,"") ->  | GH6: =IF((GH$3<>""),DW6*$CD6,"") ->  | GI6: =IF((GI$3<>""),DX6*$CD6,"") ->  | GJ6: =IF((GJ$3<>""),DY6*$CD6,"") ->  | GK6: =IF((GK$3<>""),DZ6*$CD6,"") ->  | GM6: =IF((GM$3<>""),EB6*FR6,"") -> 0 | GN6: 0 | GO6: 0 | GP6: 0 | GQ6: 0 | GR6: 0 | HJ6: =IF((HJ$3<>""),EW6*FR6,"") -> 0 | HK6: 0 | HL6: 0 | HM6: 0 | HN6: 0 | HO6: 0
A7: B3 | C7: No | I7: LPIS | R7: 5932 | S7: 956 | T7: 9548 | V7: 10504 | W7: 2017-18 | X7: =VLOOKUP(W7,'GDP Deflators'!$B$8:$C$76,2,0)*100/VLOOKUP('Model constants'!$B$3,'GDP Deflators'!$B$8:$C$76,2,0) -> 92.73492394 | Y7: DWP modelling (unpublished) | AA7: 0 | AB7: 0 | BE7: 0 | BF7: 0 | BG7: 0 | BH7: 0 | BI7: 0 | BJ7: 0 | BK7: 0 | BL7: 0 | BM7: 0 | BN7: 0 | CD7: 0 | CF7: 0 | CG7: 0 | CH7: 0 | CI7: 0 | CJ7: 0 | CK7: 0 | CL7: 0 | CM7: 0 | CN7: 0 | CO7: 0 | DE7: 0 | DG7: =IF(DG$3<>"",VLOOKUP($A7,'Agency percentages'!$A$5:$X$70,(3+MATCH(DG$4,'Agency percentages'!$D$4:$W$4,0)),FALSE),"") -> 0.098601045 | DH7: =IF(DH$3<>"",VLOOKUP($A7,'Agency percentages'!$A$5:$X$70,(3+MATCH(DH$4,'Agency percentages'!$D$4:$W$4,0)),FALSE),"") -> 0 | DI7: =IF(DI$3<>"",VLOOKUP($A7,'Agency percentages'!$A$5:$X$70,(3+MATCH(DI$4,'Agency percentages'!$D$4:$W$4,0)),FALSE),"") -> 0 | DJ7: =IF(DJ$3<>"",VLOOKUP($A7,'Agency percentages'!$A$5:$X$70,(3+MATCH(DJ$4,'Agency percentages'!$D$4:$W$4,0)),FALSE),"") -> 0 | DK7: =IF(DK$3<>"",VLOOKUP($A7,'Agency percentages'!$A$5:$X$70,(3+MATCH(DK$4,'Agency percentages'!$D$4:$W$4,0)),FALSE),"") -> 0 | DL7: =IF(DL$3<>"",VLOOKUP($A7,'Agency percentages'!$A$5:$X$70,(3+MATCH(DL$4,'Agency percentages'!$D$4:$W$4,0)),FALSE),"") -> 0 | DM7: =IF(DM$3<>"",VLOOKUP($A7,'Agency percentages'!$A$5:$X$70,(3+MATCH(DM$4,'Agency percentages'!$D$4:$W$4,0)),FALSE),"") ->  | DN7: =IF(DN$3<>"",VLOOKUP($A7,'Agency percentages'!$A$5:$X$70,(3+MATCH(DN$4,'Agency percentages'!$D$4:$W$4,0)),FALSE),"") ->  | DO7: =IF(DO$3<>"",VLOOKUP($A7,'Agency percentages'!$A$5:$X$70,(3+MATCH(DO$4,'Agency percentages'!$D$4:$W$4,0)),FALSE),"") ->  | DP7: =IF(DP$3<>"",VLOOKUP($A7,'Agency percentages'!$A$5:$X$70,(3+MATCH(DP$4,'Agency percentages'!$D$4:$W$4,0)),FALSE),"") ->  | DQ7: =IF(DQ$3<>"",VLOOKUP($A7,'Agency percentages'!$A$5:$X$70,(3+MATCH(DQ$4,'Agency percentages'!$D$4:$W$4,0)),FALSE),"") ->  | DR7: =IF(DR$3<>"",VLOOKUP($A7,'Agency percentages'!$A$5:$X$70,(3+MATCH(DR$4,'Agency percentages'!$D$4:$W$4,0)),FALSE),"") ->  | DS7: =IF(DS$3<>"",VLOOKUP($A7,'Agency percentages'!$A$5:$X$70,(3+MATCH(DS$4,'Agency percentages'!$D$4:$W$4,0)),FALSE),"") ->  | DT7: =IF(DT$3<>"",VLOOKUP($A7,'Agency percentages'!$A$5:$X$70,(3+MATCH(DT$4,'Agency percentages'!$D$4:$W$4,0)),FALSE),"") ->  | DU7: =IF(DU$3<>"",VLOOKUP($A7,'Agency percentages'!$A$5:$X$70,(3+MATCH(DU$4,'Agency percentages'!$D$4:$W$4,0)),FALSE),"") ->  | DV7: =IF(DV$3<>"",VLOOKUP($A7,'Agency percentages'!$A$5:$X$70,(3+MATCH(DV$4,'Agency percentages'!$D$4:$W$4,0)),FALSE),"") ->  | DW7: =IF(DW$3<>"",VLOOKUP($A7,'Agency percentages'!$A$5:$X$70,(3+MATCH(DW$4,'Agency percentages'!$D$4:$W$4,0)),FALSE),"") ->  | DX7: =IF(DX$3<>"",VLOOKUP($A7,'Agency percentages'!$A$5:$X$70,(3+MATCH(DX$4,'Agency percentages'!$D$4:$W$4,0)),FALSE),"") ->  | DY7: =IF(DY$3<>"",VLOOKUP($A7,'Agency percentages'!$A$5:$X$70,(3+MATCH(DY$4,'Agency percentages'!$D$4:$W$4,0)),FALSE),"") ->  | DZ7: =IF(DZ$3<>"",VLOOKUP($A7,'Agency percentages'!$A$5:$X$70,(3+MATCH(DZ$4,'Agency percentages'!$D$4:$W$4,0)),FALSE),"") ->  | EB7: =IF(AND(EB$3<>"",DG7<>0),HLOOKUP(EB$4,'Agency cashability'!$B$3:$U$5,2,0),0) -> 0.2 | EC7: =IF(AND(EC$3<>"",DH7<>0),HLOOKUP(EC$4,'Agency cashability'!$B$3:$U$5,2,0),0) -> 0 | ED7: =IF(AND(ED$3<>"",DI7<>0),HLOOKUP(ED$4,'Agency cashability'!$B$3:$U$5,2,0),0) -> 0 | EE7: =IF(AND(EE$3<>"",DJ7<>0),HLOOKUP(EE$4,'Agency cashability'!$B$3:$U$5,2,0),0) -> 0 | EF7: =IF(AND(EF$3<>"",DK7<>0),HLOOKUP(EF$4,'Agency cashability'!$B$3:$U$5,2,0),0) -> 0 | EG7: =IF(AND(EG$3<>"",DL7<>0),HLOOKUP(EG$4,'Agency cashability'!$B$3:$U$5,2,0),0) -> 0 | EH7: =IF(AND(EH$3<>"",DM7<>0),HLOOKUP(EH$4,'Agency cashability'!$B$3:$U$5,2,0),0) -> 0 | EI7: =IF(AND(EI$3<>"",DN7<>0),HLOOKUP(EI$4,'Agency cashability'!$B$3:$U$5,2,0),0) -> 0 | EJ7: =IF(AND(EJ$3<>"",DO7<>0),HLOOKUP(EJ$4,'Agency cashability'!$B$3:$U$5,2,0),0) -> 0 | EK7: =IF(AND(EK$3<>"",DP7<>0),HLOOKUP(EK$4,'Agency cashability'!$B$3:$U$5,2,0),0) -> 0 | EL7: =IF(AND(EL$3<>"",DQ7<>0),HLOOKUP(EL$4,'Agency cashability'!$B$3:$U$5,2,0),0) -> 0 | EM7: =IF(AND(EM$3<>"",DR7<>0),HLOOKUP(EM$4,'Agency cashability'!$B$3:$U$5,2,0),0) -> 0 | EN7: =IF(AND(EN$3<>"",DS7<>0),HLOOKUP(EN$4,'Agency cashability'!$B$3:$U$5,2,0),0) -> 0 | EO7: =IF(AND(EO$3<>"",DT7<>0),HLOOKUP(EO$4,'Agency cashability'!$B$3:$U$5,2,0),0) -> 0 | EP7: =IF(AND(EP$3<>"",DU7<>0),HLOOKUP(EP$4,'Agency cashability'!$B$3:$U$5,2,0),0) -> 0 | EQ7: =IF(AND(EQ$3<>"",DV7<>0),HLOOKUP(EQ$4,'Agency cashability'!$B$3:$U$5,2,0),0) -> 0 | ER7: =IF(AND(ER$3<>"",DW7<>0),HLOOKUP(ER$4,'Agency cashability'!$B$3:$U$5,2,0),0) -> 0 | ES7: =IF(AND(ES$3<>"",DX7<>0),HLOOKUP(ES$4,'Agency cashability'!$B$3:$U$5,2,0),0) -> 0 | ET7: =IF(AND(ET$3<>"",DY7<>0),HLOOKUP(ET$4,'Agency cashability'!$B$3:$U$5,2,0),0) -> 0 | EU7: =IF(AND(EU$3<>"",DZ7<>0),HLOOKUP(EU$4,'Agency cashability'!$B$3:$U$5,2,0),0) -> 0 | EW7: =IF(AND(EW$3<>"",DG7<>0),HLOOKUP(EW$4,'Agency cashability'!$B$3:$U$5,3,0),0) -> 0.5 | EX7: =IF(AND(EX$3<>"",DH7<>0),HLOOKUP(EX$4,'Agency cashability'!$B$3:$U$5,3,0),0) -> 0 | EY7: =IF(AND(EY$3<>"",DI7<>0),HLOOKUP(EY$4,'Agency cashability'!$B$3:$U$5,3,0),0) -> 0 | EZ7: =IF(AND(EZ$3<>"",DJ7<>0),HLOOKUP(EZ$4,'Agency cashability'!$B$3:$U$5,3,0),0) -> 0 | FA7: =IF(AND(FA$3<>"",DK7<>0),HLOOKUP(FA$4,'Agency cashability'!$B$3:$U$5,3,0),0) -> 0 | FB7: =IF(AND(FB$3<>"",DL7<>0),HLOOKUP(FB$4,'Agency cashability'!$B$3:$U$5,3,0),0) -> 0 | FC7: =IF(AND(FC$3<>"",DM7<>0),HLOOKUP(FC$4,'Agency cashability'!$B$3:$U$5,3,0),0) -> 0 | FD7: =IF(AND(FD$3<>"",DN7<>0),HLOOKUP(FD$4,'Agency cashability'!$B$3:$U$5,3,0),0) -> 0 | FE7: =IF(AND(FE$3<>"",DO7<>0),HLOOKUP(FE$4,'Agency cashability'!$B$3:$U$5,3,0),0) -> 0 | FF7: =IF(AND(FF$3<>"",DP7<>0),HLOOKUP(FF$4,'Agency cashability'!$B$3:$U$5,3,0),0) -> 0 | FG7: =IF(AND(FG$3<>"",DQ7<>0),HLOOKUP(FG$4,'Agency cashability'!$B$3:$U$5,3,0),0) -> 0 | FH7: =IF(AND(FH$3<>"",DR7<>0),HLOOKUP(FH$4,'Agency cashability'!$B$3:$U$5,3,0),0) -> 0 | FI7: =IF(AND(FI$3<>"",DS7<>0),HLOOKUP(FI$4,'Agency cashability'!$B$3:$U$5,3,0),0) -> 0 | FJ7: =IF(AND(FJ$3<>"",DT7<>0),HLOOKUP(FJ$4,'Agency cashability'!$B$3:$U$5,3,0),0) -> 0 | FK7: =IF(AND(FK$3<>"",DU7<>0),HLOOKUP(FK$4,'Agency cashability'!$B$3:$U$5,3,0),0) -> 0 | FL7: =IF(AND(FL$3<>"",DV7<>0),HLOOKUP(FL$4,'Agency cashability'!$B$3:$U$5,3,0),0) -> 0 | FM7: =IF(AND(FM$3<>"",DW7<>0),HLOOKUP(FM$4,'Agency cashability'!$B$3:$U$5,3,0),0) -> 0 | FN7: =IF(AND(FN$3<>"",DX7<>0),HLOOKUP(FN$4,'Agency cashability'!$B$3:$U$5,3,0),0) -> 0 | FO7: =IF(AND(FO$3<>"",DY7<>0),HLOOKUP(FO$4,'Agency cashability'!$B$3:$U$5,3,0),0) -> 0 | FP7: =IF(AND(FP$3<>"",DZ7<>0),HLOOKUP(FP$4,'Agency cashability'!$B$3:$U$5,3,0),0) -> 0 | FR7: 0 | FS7: 0 | FT7: 0 | FU7: 0 | FV7: 0 | FW7: 0 | GM7: 0 | GN7: 0 | GO7: 0 | GP7: 0 | GQ7: 0 | GR7: 0 | HJ7: 0 | HK7: 0 | HL7: 0 | HM7: 0 | HN7: 0 | HO7: 0
A8: B4a | B8: Improved skill levels | C8: No | D8: Increase in earnings amongst residents achieving Level 2 NVQ | E8: Population without Level 2 qualifications | I8: Population without Level 2 qualifications | R8: 83 | T8: 443 | V8: 443 | W8: 2010-11 | X8: =VLOOKUP(W8,'GDP Deflators'!$B$8:$C$76,2,0)*100/VLOOKUP('Model constants'!$B$3,'GDP Deflators'!$B$8:$C$76,2,0) -> 82.71086481 | Y8: BIS (2011): Returns to vocational qualifications. Research Paper 53 pg9-10; and IER (2008): Net Benefits of Training Study 2008 p62-64 | AA8: 0 | AB8: 0 | BE8: 0 | BF8: 0 | BG8: 0 | BH8: 0 | BI8: 0 | BJ8: 0 | BK8: 0 | BL8: 0 | BM8: 0 | BN8: 0 | CD8: 0 | CF8: 0 | CG8: 0 | CH8: 0 | CI8: 0 | CJ8: 0 | CK8: 0 | CL8: 0 | CM8: 0 | CN8: 0 | CO8: 0 | DE8: 0 | DG8: =IF(DG$3<>"",VLOOKUP($A8,'Agency percentages'!$A$5:$X$70,(3+MATCH(DG$4,'Agency percentages'!$D$4:$W$4,0)),FALSE),"") -> 0 | DH8: =IF(DH$3<>"",VLOOKUP($A8,'Agency percentages'!$A$5:$X$70,(3+MATCH(DH$4,'Agency percentages'!$D$4:$W$4,0)),FALSE),"") -> 0 | DI8: =IF(DI$3<>"",VLOOKUP($A8,'Agency percentages'!$A$5:$X$70,(3+MATCH(DI$4,'Agency percentages'!$D$4:$W$4,0)),FALSE),"") -> 0 | DJ8: =IF(DJ$3<>"",VLOOKUP($A8,'Agency percentages'!$A$5:$X$70,(3+MATCH(DJ$4,'Agency percentages'!$D$4:$W$4,0)),FALSE),"") -> 0 | DK8: =IF(DK$3<>"",VLOOKUP($A8,'Agency percentages'!$A$5:$X$70,(3+MATCH(DK$4,'Agency percentages'!$D$4:$W$4,0)),FALSE),"") -> 0 | DL8: =IF(DL$3<>"",VLOOKUP($A8,'Agency percentages'!$A$5:$X$70,(3+MATCH(DL$4,'Agency percentages'!$D$4:$W$4,0)),FALSE),"") -> 0 | DM8: =IF(DM$3<>"",VLOOKUP($A8,'Agency percentages'!$A$5:$X$70,(3+MATCH(DM$4,'Agency percentages'!$D$4:$W$4,0)),FALSE),"") ->  | DN8: =IF(DN$3<>"",VLOOKUP($A8,'Agency percentages'!$A$5:$X$70,(3+MATCH(DN$4,'Agency percentages'!$D$4:$W$4,0)),FALSE),"") ->  | DO8: =IF(DO$3<>"",VLOOKUP($A8,'Agency percentages'!$A$5:$X$70,(3+MATCH(DO$4,'Agency percentages'!$D$4:$W$4,0)),FALSE),"") ->  | DP8: =IF(DP$3<>"",VLOOKUP($A8,'Agency percentages'!$A$5:$X$70,(3+MATCH(DP$4,'Agency percentages'!$D$4:$W$4,0)),FALSE),"") ->  | DQ8: =IF(DQ$3<>"",VLOOKUP($A8,'Agency percentages'!$A$5:$X$70,(3+MATCH(DQ$4,'Agency percentages'!$D$4:$W$4,0)),FALSE),"") ->  | DR8: =IF(DR$3<>"",VLOOKUP($A8,'Agency percentages'!$A$5:$X$70,(3+MATCH(DR$4,'Agency percentages'!$D$4:$W$4,0)),FALSE),"") ->  | DS8: =IF(DS$3<>"",VLOOKUP($A8,'Agency percentages'!$A$5:$X$70,(3+MATCH(DS$4,'Agency percentages'!$D$4:$W$4,0)),FALSE),"") ->  | DT8: =IF(DT$3<>"",VLOOKUP($A8,'Agency percentages'!$A$5:$X$70,(3+MATCH(DT$4,'Agency percentages'!$D$4:$W$4,0)),FALSE),"") ->  | DU8: =IF(DU$3<>"",VLOOKUP($A8,'Agency percentages'!$A$5:$X$70,(3+MATCH(DU$4,'Agency percentages'!$D$4:$W$4,0)),FALSE),"") ->  | DV8: =IF(DV$3<>"",VLOOKUP($A8,'Agency percentages'!$A$5:$X$70,(3+MATCH(DV$4,'Agency percentages'!$D$4:$W$4,0)),FALSE),"") ->  | DW8: =IF(DW$3<>"",VLOOKUP($A8,'Agency percentages'!$A$5:$X$70,(3+MATCH(DW$4,'Agency percentages'!$D$4:$W$4,0)),FALSE),"") ->  | DX8: =IF(DX$3<>"",VLOOKUP($A8,'Agency percentages'!$A$5:$X$70,(3+MATCH(DX$4,'Agency percentages'!$D$4:$W$4,0)),FALSE),"") ->  | DY8: =IF(DY$3<>"",VLOOKUP($A8,'Agency percentages'!$A$5:$X$70,(3+MATCH(DY$4,'Agency percentages'!$D$4:$W$4,0)),FALSE),"") ->  | DZ8: =IF(DZ$3<>"",VLOOKUP($A8,'Agency percentages'!$A$5:$X$70,(3+MATCH(DZ$4,'Agency percentages'!$D$4:$W$4,0)),FALSE),"") ->  | EB8: =IF(AND(EB$3<>"",DG8<>0),HLOOKUP(EB$4,'Agency cashability'!$B$3:$U$5,2,0),0) -> 0 | EC8: =IF(AND(EC$3<>"",DH8<>0),HLOOKUP(EC$4,'Agency cashability'!$B$3:$U$5,2,0),0) -> 0 | ED8: =IF(AND(ED$3<>"",DI8<>0),HLOOKUP(ED$4,'Agency cashability'!$B$3:$U$5,2,0),0) -> 0 | EE8: =IF(AND(EE$3<>"",DJ8<>0),HLOOKUP(EE$4,'Agency cashability'!$B$3:$U$5,2,0),0) -> 0 | EF8: =IF(AND(EF$3<>"",DK8<>0),HLOOKUP(EF$4,'Agency cashability'!$B$3:$U$5,2,0),0) -> 0 | EG8: =IF(AND(EG$3<>"",DL8<>0),HLOOKUP(EG$4,'Agency cashability'!$B$3:$U$5,2,0),0) -> 0 | EH8: =IF(AND(EH$3<>"",DM8<>0),HLOOKUP(EH$4,'Agency cashability'!$B$3:$U$5,2,0),0) -> 0 | EI8: =IF(AND(EI$3<>"",DN8<>0),HLOOKUP(EI$4,'Agency cashability'!$B$3:$U$5,2,0),0) -> 0 | EJ8: =IF(AND(EJ$3<>"",DO8<>0),HLOOKUP(EJ$4,'Agency cashability'!$B$3:$U$5,2,0),0) -> 0 | EK8: =IF(AND(EK$3<>"",DP8<>0),HLOOKUP(EK$4,'Agency cashability'!$B$3:$U$5,2,0),0) -> 0 | EL8: =IF(AND(EL$3<>"",DQ8<>0),HLOOKUP(EL$4,'Agency cashability'!$B$3:$U$5,2,0),0) -> 0 | EM8: =IF(AND(EM$3<>"",DR8<>0),HLOOKUP(EM$4,'Agency cashability'!$B$3:$U$5,2,0),0) -> 0 | EN8: =IF(AND(EN$3<>"",DS8<>0),HLOOKUP(EN$4,'Agency cashability'!$B$3:$U$5,2,0),0) -> 0 | EO8: =IF(AND(EO$3<>"",DT8<>0),HLOOKUP(EO$4,'Agency cashability'!$B$3:$U$5,2,0),0) -> 0 | EP8: =IF(AND(EP$3<>"",DU8<>0),HLOOKUP(EP$4,'Agency cashability'!$B$3:$U$5,2,0),0) -> 0 | EQ8: =IF(AND(EQ$3<>"",DV8<>0),HLOOKUP(EQ$4,'Agency cashability'!$B$3:$U$5,2,0),0) -> 0 | ER8: =IF(AND(ER$3<>"",DW8<>0),HLOOKUP(ER$4,'Agency cashability'!$B$3:$U$5,2,0),0) -> 0 | ES8: =IF(AND(ES$3<>"",DX8<>0),HLOOKUP(ES$4,'Agency cashability'!$B$3:$U$5,2,0),0) -> 0 | ET8: =IF(AND(ET$3<>"",DY8<>0),HLOOKUP(ET$4,'Agency cashability'!$B$3:$U$5,2,0),0) -> 0 | EU8: =IF(AND(EU$3<>"",DZ8<>0),HLOOKUP(EU$4,'Agency cashability'!$B$3:$U$5,2,0),0) -> 0 | EW8: =IF(AND(EW$3<>"",DG8<>0),HLOOKUP(EW$4,'Agency cashability'!$B$3:$U$5,3,0),0) -> 0 | EX8: =IF(AND(EX$3<>"",DH8<>0),HLOOKUP(EX$4,'Agency cashability'!$B$3:$U$5,3,0),0) -> 0 | EY8: =IF(AND(EY$3<>"",DI8<>0),HLOOKUP(EY$4,'Agency cashability'!$B$3:$U$5,3,0),0) -> 0 | EZ8: =IF(AND(EZ$3<>"",DJ8<>0),HLOOKUP(EZ$4,'Agency cashability'!$B$3:$U$5,3,0),0) -> 0 | FA8: =IF(AND(FA$3<>"",DK8<>0),HLOOKUP(FA$4,'Agency cashability'!$B$3:$U$5,3,0),0) -> 0 | FB8: =IF(AND(FB$3<>"",DL8<>0),HLOOKUP(FB$4,'Agency cashability'!$B$3:$U$5,3,0),0) -> 0 | FC8: =IF(AND(FC$3<>"",DM8<>0),HLOOKUP(FC$4,'Agency cashability'!$B$3:$U$5,3,0),0) -> 0 | FD8: =IF(AND(FD$3<>"",DN8<>0),HLOOKUP(FD$4,'Agency cashability'!$B$3:$U$5,3,0),0) -> 0 | FE8: =IF(AND(FE$3<>"",DO8<>0),HLOOKUP(FE$4,'Agency cashability'!$B$3:$U$5,3,0),0) -> 0 | FF8: =IF(AND(FF$3<>"",DP8<>0),HLOOKUP(FF$4,'Agency cashability'!$B$3:$U$5,3,0),0) -> 0 | FG8: =IF(AND(FG$3<>"",DQ8<>0),HLOOKUP(FG$4,'Agency cashability'!$B$3:$U$5,3,0),0) -> 0 | FH8: =IF(AND(FH$3<>"",DR8<>0),HLOOKUP(FH$4,'Agency cashability'!$B$3:$U$5,3,0),0) -> 0 | FI8: =IF(AND(FI$3<>"",DS8<>0),HLOOKUP(FI$4,'Agency cashability'!$B$3:$U$5,3,0),0) -> 0 | FJ8: =IF(AND(FJ$3<>"",DT8<>0),HLOOKUP(FJ$4,'Agency cashability'!$B$3:$U$5,3,0),0) -> 0 | FK8: =IF(AND(FK$3<>"",DU8<>0),HLOOKUP(FK$4,'Agency cashability'!$B$3:$U$5,3,0),0) -> 0 | FL8: =IF(AND(FL$3<>"",DV8<>0),HLOOKUP(FL$4,'Agency cashability'!$B$3:$U$5,3,0),0) -> 0 | FM8: =IF(AND(FM$3<>"",DW8<>0),HLOOKUP(FM$4,'Agency cashability'!$B$3:$U$5,3,0),0) -> 0 | FN8: =IF(AND(FN$3<>"",DX8<>0),HLOOKUP(FN$4,'Agency cashability'!$B$3:$U$5,3,0),0) -> 0 | FO8: =IF(AND(FO$3<>"",DY8<>0),HLOOKUP(FO$4,'Agency cashability'!$B$3:$U$5,3,0),0) -> 0 | FP8: =IF(AND(FP$3<>"",DZ8<>0),HLOOKUP(FP$4,'Agency cashability'!$B$3:$U$5,3,0),0) -> 0 | FR8: 0 | FS8: 0 | FT8: 0 | FU8: 0 | FV8: 0 | FW8: 0 | GM8: =IF((GM$3<>""),EB8*FR8,"") -> 0 | GN8: 0 | GO8: 0 | GP8: 0 | GQ8: 0 | GR8: 0 | GW8: =IF((GW$3<>""),EL8*GB8,"") ->  | HJ8: =IF((HJ$3<>""),EW8*FR8,"") -> 0 | HK8: 0 | HL8: 0 | HM8: 0 | HN8: 0 | HO8: 0 | HT8: =IF((HT$3<>""),FG8*GB8,"") -> 
A9: B4b | C9: No | D9: Increase in earnings amongst residents achieving Level 3 NVQ progressing from Level 2 | E9: Population qualified to Level 2 but not qualified to Level 3+ | I9: Population qualified to Level 2 but not qualified to Level 3+ | R9: 513 | T9: 921 | V9: 921 | W9: 2010-11 | X9: =VLOOKUP(W9,'GDP Deflators'!$B$8:$C$76,2,0)*100/VLOOKUP('Model constants'!$B$3,'GDP Deflators'!$B$8:$C$76,2,0) -> 82.71086481 | Y9: BIS (2011): Returns to vocational qualifications. Research Paper 53 pg9-10; and IER (2008): Net Benefits of Training Study 2008 p62-64 | AA9: 0 | AB9: 0 | BE9: 0 | BF9: 0 | BG9: 0 | BH9: 0 | BI9: 0 | BJ9: 0 | BK9: 0 | BL9: 0 | BM9: 0 | BN9: 0 | CD9: 0 | CF9: 0 | CG9: 0 | CH9: 0 | CI9: 0 | CJ9: 0 | CK9: 0 | CL9: 0 | CM9: 0 | CN9: 0 | CO9: 0 | DE9: 0 | DG9: =IF(DG$3<>"",VLOOKUP($A9,'Agency percentages'!$A$5:$X$70,(3+MATCH(DG$4,'Agency percentages'!$D$4:$W$4,0)),FALSE),"") -> 0 | DH9: =IF(DH$3<>"",VLOOKUP($A9,'Agency percentages'!$A$5:$X$70,(3+MATCH(DH$4,'Agency percentages'!$D$4:$W$4,0)),FALSE),"") -> 0 | DI9: =IF(DI$3<>"",VLOOKUP($A9,'Agency percentages'!$A$5:$X$70,(3+MATCH(DI$4,'Agency percentages'!$D$4:$W$4,0)),FALSE),"") -> 0 | DJ9: =IF(DJ$3<>"",VLOOKUP($A9,'Agency percentages'!$A$5:$X$70,(3+MATCH(DJ$4,'Agency percentages'!$D$4:$W$4,0)),FALSE),"") -> 0 | DK9: =IF(DK$3<>"",VLOOKUP($A9,'Agency percentages'!$A$5:$X$70,(3+MATCH(DK$4,'Agency percentages'!$D$4:$W$4,0)),FALSE),"") -> 0 | DL9: =IF(DL$3<>"",VLOOKUP($A9,'Agency percentages'!$A$5:$X$70,(3+MATCH(DL$4,'Agency percentages'!$D$4:$W$4,0)),FALSE),"") -> 0 | DM9: =IF(DM$3<>"",VLOOKUP($A9,'Agency percentages'!$A$5:$X$70,(3+MATCH(DM$4,'Agency percentages'!$D$4:$W$4,0)),FALSE),"") ->  | DN9: =IF(DN$3<>"",VLOOKUP($A9,'Agency percentages'!$A$5:$X$70,(3+MATCH(DN$4,'Agency percentages'!$D$4:$W$4,0)),FALSE),"") ->  | DO9: =IF(DO$3<>"",VLOOKUP($A9,'Agency percentages'!$A$5:$X$70,(3+MATCH(DO$4,'Agency percentages'!$D$4:$W$4,0)),FALSE),"") ->  | DP9: =IF(DP$3<>"",VLOOKUP($A9,'Agency percentages'!$A$5:$X$70,(3+MATCH(DP$4,'Agency percentages'!$D$4:$W$4,0)),FALSE),"") ->  | DQ9: =IF(DQ$3<>"",VLOOKUP($A9,'Agency percentages'!$A$5:$X$70,(3+MATCH(DQ$4,'Agency percentages'!$D$4:$W$4,0)),FALSE),"") ->  | DR9: =IF(DR$3<>"",VLOOKUP($A9,'Agency percentages'!$A$5:$X$70,(3+MATCH(DR$4,'Agency percentages'!$D$4:$W$4,0)),FALSE),"") ->  | DS9: =IF(DS$3<>"",VLOOKUP($A9,'Agency percentages'!$A$5:$X$70,(3+MATCH(DS$4,'Agency percentages'!$D$4:$W$4,0)),FALSE),"") ->  | DT9: =IF(DT$3<>"",VLOOKUP($A9,'Agency percentages'!$A$5:$X$70,(3+MATCH(DT$4,'Agency percentages'!$D$4:$W$4,0)),FALSE),"") ->  | DU9: =IF(DU$3<>"",VLOOKUP($A9,'Agency percentages'!$A$5:$X$70,(3+MATCH(DU$4,'Agency percentages'!$D$4:$W$4,0)),FALSE),"") ->  | DV9: =IF(DV$3<>"",VLOOKUP($A9,'Agency percentages'!$A$5:$X$70,(3+MATCH(DV$4,'Agency percentages'!$D$4:$W$4,0)),FALSE),"") ->  | DW9: =IF(DW$3<>"",VLOOKUP($A9,'Agency percentages'!$A$5:$X$70,(3+MATCH(DW$4,'Agency percentages'!$D$4:$W$4,0)),FALSE),"") ->  | DX9: =IF(DX$3<>"",VLOOKUP($A9,'Agency percentages'!$A$5:$X$70,(3+MATCH(DX$4,'Agency percentages'!$D$4:$W$4,0)),FALSE),"") ->  | DY9: =IF(DY$3<>"",VLOOKUP($A9,'Agency percentages'!$A$5:$X$70,(3+MATCH(DY$4,'Agency percentages'!$D$4:$W$4,0)),FALSE),"") ->  | DZ9: =IF(DZ$3<>"",VLOOKUP($A9,'Agency percentages'!$A$5:$X$70,(3+MATCH(DZ$4,'Agency percentages'!$D$4:$W$4,0)),FALSE),"") ->  | EB9: =IF(AND(EB$3<>"",DG9<>0),HLOOKUP(EB$4,'Agency cashability'!$B$3:$U$5,2,0),0) -> 0 | EC9: =IF(AND(EC$3<>"",DH9<>0),HLOOKUP(EC$4,'Agency cashability'!$B$3:$U$5,2,0),0) -> 0 | ED9: =IF(AND(ED$3<>"",DI9<>0),HLOOKUP(ED$4,'Agency cashability'!$B$3:$U$5,2,0),0) -> 0 | EE9: =IF(AND(EE$3<>"",DJ9<>0),HLOOKUP(EE$4,'Agency cashability'!$B$3:$U$5,2,0),0) -> 0 | EF9: =IF(AND(EF$3<>"",DK9<>0),HLOOKUP(EF$4,'Agency cashability'!$B$3:$U$5,2,0),0) -> 0 | EG9: =IF(AND(EG$3<>"",DL9<>0),HLOOKUP(EG$4,'Agency cashability'!$B$3:$U$5,2,0),0) -> 0 | EH9: =IF(AND(EH$3<>"",DM9<>0),HLOOKUP(EH$4,'Agency cashability'!$B$3:$U$5,2,0),0) -> 0 | EI9: =IF(AND(EI$3<>"",DN9<>0),HLOOKUP(EI$4,'Agency cashability'!$B$3:$U$5,2,0),0) -> 0 | EJ9: =IF(AND(EJ$3<>"",DO9<>0),HLOOKUP(EJ$4,'Agency cashability'!$B$3:$U$5,2,0),0) -> 0 | EK9: =IF(AND(EK$3<>"",DP9<>0),HLOOKUP(EK$4,'Agency cashability'!$B$3:$U$5,2,0),0) -> 0 | EL9: =IF(AND(EL$3<>"",DQ9<>0),HLOOKUP(EL$4,'Agency cashability'!$B$3:$U$5,2,0),0) -> 0 | EM9: =IF(AND(EM$3<>"",DR9<>0),HLOOKUP(EM$4,'Agency cashability'!$B$3:$U$5,2,0),0) -> 0 | EN9: =IF(AND(EN$3<>"",DS9<>0),HLOOKUP(EN$4,'Agency cashability'!$B$3:$U$5,2,0),0) -> 0 | EO9: =IF(AND(EO$3<>"",DT9<>0),HLOOKUP(EO$4,'Agency cashability'!$B$3:$U$5,2,0),0) -> 0 | EP9: =IF(AND(EP$3<>"",DU9<>0),HLOOKUP(EP$4,'Agency cashability'!$B$3:$U$5,2,0),0) -> 0 | EQ9: =IF(AND(EQ$3<>"",DV9<>0),HLOOKUP(EQ$4,'Agency cashability'!$B$3:$U$5,2,0),0) -> 0 | ER9: =IF(AND(ER$3<>"",DW9<>0),HLOOKUP(ER$4,'Agency cashability'!$B$3:$U$5,2,0),0) -> 0 | ES9: =IF(AND(ES$3<>"",DX9<>0),HLOOKUP(ES$4,'Agency cashability'!$B$3:$U$5,2,0),0) -> 0 | ET9: =IF(AND(ET$3<>"",DY9<>0),HLOOKUP(ET$4,'Agency cashability'!$B$3:$U$5,2,0),0) -> 0 | EU9: =IF(AND(EU$3<>"",DZ9<>0),HLOOKUP(EU$4,'Agency cashability'!$B$3:$U$5,2,0),0) -> 0 | EW9: =IF(AND(EW$3<>"",DG9<>0),HLOOKUP(EW$4,'Agency cashability'!$B$3:$U$5,3,0),0) -> 0 | EX9: =IF(AND(EX$3<>"",DH9<>0),HLOOKUP(EX$4,'Agency cashability'!$B$3:$U$5,3,0),0) -> 0 | EY9: =IF(AND(EY$3<>"",DI9<>0),HLOOKUP(EY$4,'Agency cashability'!$B$3:$U$5,3,0),0) -> 0 | EZ9: =IF(AND(EZ$3<>"",DJ9<>0),HLOOKUP(EZ$4,'Agency cashability'!$B$3:$U$5,3,0),0) -> 0 | FA9: =IF(AND(FA$3<>"",DK9<>0),HLOOKUP(FA$4,'Agency cashability'!$B$3:$U$5,3,0),0) -> 0 | FB9: =IF(AND(FB$3<>"",DL9<>0),HLOOKUP(FB$4,'Agency cashability'!$B$3:$U$5,3,0),0) -> 0 | FC9: =IF(AND(FC$3<>"",DM9<>0),HLOOKUP(FC$4,'Agency cashability'!$B$3:$U$5,3,0),0) -> 0 | FD9: =IF(AND(FD$3<>"",DN9<>0),HLOOKUP(FD$4,'Agency cashability'!$B$3:$U$5,3,0),0) -> 0 | FE9: =IF(AND(FE$3<>"",DO9<>0),HLOOKUP(FE$4,'Agency cashability'!$B$3:$U$5,3,0),0) -> 0 | FF9: =IF(AND(FF$3<>"",DP9<>0),HLOOKUP(FF$4,'Agency cashability'!$B$3:$U$5,3,0),0) -> 0 | FG9: =IF(AND(FG$3<>"",DQ9<>0),HLOOKUP(FG$4,'Agency cashability'!$B$3:$U$5,3,0),0) -> 0 | FH9: =IF(AND(FH$3<>"",DR9<>0),HLOOKUP(FH$4,'Agency cashability'!$B$3:$U$5,3,0),0) -> 0 | FI9: =IF(AND(FI$3<>"",DS9<>0),HLOOKUP(FI$4,'Agency cashability'!$B$3:$U$5,3,0),0) -> 0 | FJ9: =IF(AND(FJ$3<>"",DT9<>0),HLOOKUP(FJ$4,'Agency cashability'!$B$3:$U$5,3,0),0) -> 0 | FK9: =IF(AND(FK$3<>"",DU9<>0),HLOOKUP(FK$4,'Agency cashability'!$B$3:$U$5,3,0),0) -> 0 | FL9: =IF(AND(FL$3<>"",DV9<>0),HLOOKUP(FL$4,'Agency cashability'!$B$3:$U$5,3,0),0) -> 0 | FM9: =IF(AND(FM$3<>"",DW9<>0),HLOOKUP(FM$4,'Agency cashability'!$B$3:$U$5,3,0),0) -> 0 | FN9: =IF(AND(FN$3<>"",DX9<>0),HLOOKUP(FN$4,'Agency cashability'!$B$3:$U$5,3,0),0) -> 0 | FO9: =IF(AND(FO$3<>"",DY9<>0),HLOOKUP(FO$4,'Agency cashability'!$B$3:$U$5,3,0),0) -> 0 | FP9: =IF(AND(FP$3<>"",DZ9<>0),HLOOKUP(FP$4,'Agency cashability'!$B$3:$U$5,3,0),0) -> 0 | FR9: 0 | FS9: 0 | FT9: 0 | FU9: 0 | FV9: 0 | FW9: 0 | GM9: 0 | GN9: 0 | GO9: 0 | GP9: 0 | GQ9: 0 | GR9: 0 | HJ9: 0 | HK9: 0 | HL9: 0 | HM9: 0 | HN9: 0 | HO9: 0
A10: B5 | B10: Mental health | C10: No | D10: Reduced health cost of interventions | E10: NHS/Individuals | R10: 830 | S10: 830 | T10: =#REF! ->  | W10: 2007-08 | X10: =VLOOKUP(W10,'GDP Deflators'!$B$8:$C$76,2,0)*100/VLOOKUP('Model constants'!$B$3,'GDP Deflators'!$B$8:$C$76,2,0) -> 77.94976312 | Y10: “Paying the Price - The cost of mental health care in England to 2026” - Kings Fund, 2008 | AA10: 0 | AB10: 0 | BE10: 0 | BF10: 0 | BG10: 0 | BH10: 0 | BI10: 0 | BJ10: 0 | BK10: 0 | BL10: 0 | BM10: 0 | BN10: 0 | CD10: 0 | CF10: 0 | CG10: 0 | CH10: 0 | CI10: 0 | CJ10: 0 | CK10: 0 | CL10: 0 | CM10: 0 | CN10: 0 | CO10: 0 | DE10: 0 | DG10: =IF(DG$3<>"",VLOOKUP($A10,'Agency percentages'!$A$5:$X$70,(3+MATCH(DG$4,'Agency percentages'!$D$4:$W$4,0)),FALSE),"") -> 0.92 | DH10: =IF(DH$3<>"",VLOOKUP($A10,'Agency percentages'!$A$5:$X$70,(3+MATCH(DH$4,'Agency percentages'!$D$4:$W$4,0)),FALSE),"") -> 0 | DI10: =IF(DI$3<>"",VLOOKUP($A10,'Agency percentages'!$A$5:$X$70,(3+MATCH(DI$4,'Agency percentages'!$D$4:$W$4,0)),FALSE),"") -> 0 | DJ10: =IF(DJ$3<>"",VLOOKUP($A10,'Agency percentages'!$A$5:$X$70,(3+MATCH(DJ$4,'Agency percentages'!$D$4:$W$4,0)),FALSE),"") -> 0 | DK10: =IF(DK$3<>"",VLOOKUP($A10,'Agency percentages'!$A$5:$X$70,(3+MATCH(DK$4,'Agency percentages'!$D$4:$W$4,0)),FALSE),"") -> 0 | DL10: =IF(DL$3<>"",VLOOKUP($A10,'Agency percentages'!$A$5:$X$70,(3+MATCH(DL$4,'Agency percentages'!$D$4:$W$4,0)),FALSE),"") -> 0 | DM10: =IF(DM$3<>"",VLOOKUP($A10,'Agency percentages'!$A$5:$X$70,(3+MATCH(DM$4,'Agency percentages'!$D$4:$W$4,0)),FALSE),"") ->  | DN10: =IF(DN$3<>"",VLOOKUP($A10,'Agency percentages'!$A$5:$X$70,(3+MATCH(DN$4,'Agency percentages'!$D$4:$W$4,0)),FALSE),"") ->  | DO10: =IF(DO$3<>"",VLOOKUP($A10,'Agency percentages'!$A$5:$X$70,(3+MATCH(DO$4,'Agency percentages'!$D$4:$W$4,0)),FALSE),"") ->  | DP10: =IF(DP$3<>"",VLOOKUP($A10,'Agency percentages'!$A$5:$X$70,(3+MATCH(DP$4,'Agency percentages'!$D$4:$W$4,0)),FALSE),"") ->  | DQ10: =IF(DQ$3<>"",VLOOKUP($A10,'Agency percentages'!$A$5:$X$70,(3+MATCH(DQ$4,'Agency percentages'!$D$4:$W$4,0)),FALSE),"") ->  | DR10: =IF(DR$3<>"",VLOOKUP($A10,'Agency percentages'!$A$5:$X$70,(3+MATCH(DR$4,'Agency percentages'!$D$4:$W$4,0)),FALSE),"") ->  | DS10: =IF(DS$3<>"",VLOOKUP($A10,'Agency percentages'!$A$5:$X$70,(3+MATCH(DS$4,'Agency percentages'!$D$4:$W$4,0)),FALSE),"") ->  | DT10: =IF(DT$3<>"",VLOOKUP($A10,'Agency percentages'!$A$5:$X$70,(3+MATCH(DT$4,'Agency percentages'!$D$4:$W$4,0)),FALSE),"") ->  | DU10: =IF(DU$3<>"",VLOOKUP($A10,'Agency percentages'!$A$5:$X$70,(3+MATCH(DU$4,'Agency percentages'!$D$4:$W$4,0)),FALSE),"") ->  | DV10: =IF(DV$3<>"",VLOOKUP($A10,'Agency percentages'!$A$5:$X$70,(3+MATCH(DV$4,'Agency percentages'!$D$4:$W$4,0)),FALSE),"") ->  | DW10: =IF(DW$3<>"",VLOOKUP($A10,'Agency percentages'!$A$5:$X$70,(3+MATCH(DW$4,'Agency percentages'!$D$4:$W$4,0)),FALSE),"") ->  | DX10: =IF(DX$3<>"",VLOOKUP($A10,'Agency percentages'!$A$5:$X$70,(3+MATCH(DX$4,'Agency percentages'!$D$4:$W$4,0)),FALSE),"") ->  | DY10: =IF(DY$3<>"",VLOOKUP($A10,'Agency percentages'!$A$5:$X$70,(3+MATCH(DY$4,'Agency percentages'!$D$4:$W$4,0)),FALSE),"") ->  | DZ10: =IF(DZ$3<>"",VLOOKUP($A10,'Agency percentages'!$A$5:$X$70,(3+MATCH(DZ$4,'Agency percentages'!$D$4:$W$4,0)),FALSE),"") ->  | EB10: =IF(AND(EB$3<>"",DG10<>0),HLOOKUP(EB$4,'Agency cashability'!$B$3:$U$5,2,0),0) -> 0.2 | EC10: =IF(AND(EC$3<>"",DH10<>0),HLOOKUP(EC$4,'Agency cashability'!$B$3:$U$5,2,0),0) -> 0 | ED10: =IF(AND(ED$3<>"",DI10<>0),HLOOKUP(ED$4,'Agency cashability'!$B$3:$U$5,2,0),0) -> 0 | EE10: =IF(AND(EE$3<>"",DJ10<>0),HLOOKUP(EE$4,'Agency cashability'!$B$3:$U$5,2,0),0) -> 0 | EF10: =IF(AND(EF$3<>"",DK10<>0),HLOOKUP(EF$4,'Agency cashability'!$B$3:$U$5,2,0),0) -> 0 | EG10: =IF(AND(EG$3<>"",DL10<>0),HLOOKUP(EG$4,'Agency cashability'!$B$3:$U$5,2,0),0) -> 0 | EH10: =IF(AND(EH$3<>"",DM10<>0),HLOOKUP(EH$4,'Agency cashability'!$B$3:$U$5,2,0),0) -> 0 | EI10: =IF(AND(EI$3<>"",DN10<>0),HLOOKUP(EI$4,'Agency cashability'!$B$3:$U$5,2,0),0) -> 0 | EJ10: =IF(AND(EJ$3<>"",DO10<>0),HLOOKUP(EJ$4,'Agency cashability'!$B$3:$U$5,2,0),0) -> 0 | EK10: =IF(AND(EK$3<>"",DP10<>0),HLOOKUP(EK$4,'Agency cashability'!$B$3:$U$5,2,0),0) -> 0 | EL10: =IF(AND(EL$3<>"",DQ10<>0),HLOOKUP(EL$4,'Agency cashability'!$B$3:$U$5,2,0),0) -> 0 | EM10: =IF(AND(EM$3<>"",DR10<>0),HLOOKUP(EM$4,'Agency cashability'!$B$3:$U$5,2,0),0) -> 0 | EN10: =IF(AND(EN$3<>"",DS10<>0),HLOOKUP(EN$4,'Agency cashability'!$B$3:$U$5,2,0),0) -> 0 | EO10: =IF(AND(EO$3<>"",DT10<>0),HLOOKUP(EO$4,'Agency cashability'!$B$3:$U$5,2,0),0) -> 0 | EP10: =IF(AND(EP$3<>"",DU10<>0),HLOOKUP(EP$4,'Agency cashability'!$B$3:$U$5,2,0),0) -> 0 | EQ10: =IF(AND(EQ$3<>"",DV10<>0),HLOOKUP(EQ$4,'Agency cashability'!$B$3:$U$5,2,0),0) -> 0 | ER10: =IF(AND(ER$3<>"",DW10<>0),HLOOKUP(ER$4,'Agency cashability'!$B$3:$U$5,2,0),0) -> 0 | ES10: =IF(AND(ES$3<>"",DX10<>0),HLOOKUP(ES$4,'Agency cashability'!$B$3:$U$5,2,0),0) -> 0 | ET10: =IF(AND(ET$3<>"",DY10<>0),HLOOKUP(ET$4,'Agency cashability'!$B$3:$U$5,2,0),0) -> 0 | EU10: =IF(AND(EU$3<>"",DZ10<>0),HLOOKUP(EU$4,'Agency cashability'!$B$3:$U$5,2,0),0) -> 0 | EW10: =IF(AND(EW$3<>"",DG10<>0),HLOOKUP(EW$4,'Agency cashability'!$B$3:$U$5,3,0),0) -> 0.5 | EX10: =IF(AND(EX$3<>"",DH10<>0),HLOOKUP(EX$4,'Agency cashability'!$B$3:$U$5,3,0),0) -> 0 | EY10: =IF(AND(EY$3<>"",DI10<>0),HLOOKUP(EY$4,'Agency cashability'!$B$3:$U$5,3,0),0) -> 0 | EZ10: =IF(AND(EZ$3<>"",DJ10<>0),HLOOKUP(EZ$4,'Agency cashability'!$B$3:$U$5,3,0),0) -> 0 | FA10: =IF(AND(FA$3<>"",DK10<>0),HLOOKUP(FA$4,'Agency cashability'!$B$3:$U$5,3,0),0) -> 0 | FB10: =IF(AND(FB$3<>"",DL10<>0),HLOOKUP(FB$4,'Agency cashability'!$B$3:$U$5,3,0),0) -> 0 | FC10: =IF(AND(FC$3<>"",DM10<>0),HLOOKUP(FC$4,'Agency cashability'!$B$3:$U$5,3,0),0) -> 0 | FD10: =IF(AND(FD$3<>"",DN10<>0),HLOOKUP(FD$4,'Agency cashability'!$B$3:$U$5,3,0),0) -> 0 | FE10: =IF(AND(FE$3<>"",DO10<>0),HLOOKUP(FE$4,'Agency cashability'!$B$3:$U$5,3,0),0) -> 0 | FF10: =IF(AND(FF$3<>"",DP10<>0),HLOOKUP(FF$4,'Agency cashability'!$B$3:$U$5,3,0),0) -> 0 | FG10: =IF(AND(FG$3<>"",DQ10<>0),HLOOKUP(FG$4,'Agency cashability'!$B$3:$U$5,3,0),0) -> 0 | FH10: =IF(AND(FH$3<>"",DR10<>0),HLOOKUP(FH$4,'Agency cashability'!$B$3:$U$5,3,0),0) -> 0 | FI10: =IF(AND(FI$3<>"",DS10<>0),HLOOKUP(FI$4,'Agency cashability'!$B$3:$U$5,3,0),0) -> 0 | FJ10: =IF(AND(FJ$3<>"",DT10<>0),HLOOKUP(FJ$4,'Agency cashability'!$B$3:$U$5,3,0),0) -> 0 | FK10: =IF(AND(FK$3<>"",DU10<>0),HLOOKUP(FK$4,'Agency cashability'!$B$3:$U$5,3,0),0) -> 0 | FL10: =IF(AND(FL$3<>"",DV10<>0),HLOOKUP(FL$4,'Agency cashability'!$B$3:$U$5,3,0),0) -> 0 | FM10: =IF(AND(FM$3<>"",DW10<>0),HLOOKUP(FM$4,'Agency cashability'!$B$3:$U$5,3,0),0) -> 0 | FN10: =IF(AND(FN$3<>"",DX10<>0),HLOOKUP(FN$4,'Agency cashability'!$B$3:$U$5,3,0),0) -> 0 | FO10: =IF(AND(FO$3<>"",DY10<>0),HLOOKUP(FO$4,'Agency cashability'!$B$3:$U$5,3,0),0) -> 0 | FP10: =IF(AND(FP$3<>"",DZ10<>0),HLOOKUP(FP$4,'Agency cashability'!$B$3:$U$5,3,0),0) -> 0 | FR10: 0 | FS10: 0 | FT10: 0 | FU10: 0 | FV10: 0 | FW10: 0 | GM10: =IF((GM$3<>""),EB10*FR10,"") -> 0 | GN10: 0 | GO10: 0 | GP10: 0 | GQ10: 0 | GR10: 0 | HJ10: =IF((HJ$3<>""),EW10*FR10,"") -> 0 | HK10: 0 | HL10: 0 | HM10: 0 | HN10: 0 | HO10: 0
A11: B6 | B11: A&E attendance | C11: No | D11: Reduced cost of unnecessary attendance | E11: NHS | R11: 89 | S11: =R11 -> 89 | V11: 89 | W11: 2017-18 | X11: =VLOOKUP(W11,'GDP Deflators'!$B$8:$C$76,2,0)*100/VLOOKUP('Model constants'!$B$3,'GDP Deflators'!$B$8:$C$76,2,0) -> 92.73492394 | Y11: National Schedule of Reference Costs 2017-18 for NHS trusts and NHS foundation trusts (weighted average of values against HRG code VB11Z) | AA11: 0 | AB11: 0 | BE11: 0 | BF11: 0 | BG11: 0 | BH11: 0 | BI11: 0 | BJ11: 0 | BK11: 0 | BL11: 0 | BM11: 0 | BN11: 0 | CD11: 0 | CF11: 0 | CG11: 0 | CH11: 0 | CI11: 0 | CJ11: 0 | CK11: 0 | CL11: 0 | CM11: 0 | CN11: 0 | CO11: 0 | DE11: 0 | DG11: =IF(DG$3<>"",VLOOKUP($A11,'Agency percentages'!$A$5:$X$70,(3+MATCH(DG$4,'Agency percentages'!$D$4:$W$4,0)),FALSE),"") -> 1 | DH11: =IF(DH$3<>"",VLOOKUP($A11,'Agency percentages'!$A$5:$X$70,(3+MATCH(DH$4,'Agency percentages'!$D$4:$W$4,0)),FALSE),"") -> 0 | DI11: =IF(DI$3<>"",VLOOKUP($A11,'Agency percentages'!$A$5:$X$70,(3+MATCH(DI$4,'Agency percentages'!$D$4:$W$4,0)),FALSE),"") -> 0 | DJ11: =IF(DJ$3<>"",VLOOKUP($A11,'Agency percentages'!$A$5:$X$70,(3+MATCH(DJ$4,'Agency percentages'!$D$4:$W$4,0)),FALSE),"") -> 0 | DK11: =IF(DK$3<>"",VLOOKUP($A11,'Agency percentages'!$A$5:$X$70,(3+MATCH(DK$4,'Agency percentages'!$D$4:$W$4,0)),FALSE),"") -> 0 | DL11: =IF(DL$3<>"",VLOOKUP($A11,'Agency percentages'!$A$5:$X$70,(3+MATCH(DL$4,'Agency percentages'!$D$4:$W$4,0)),FALSE),"") -> 0 | DM11: =IF(DM$3<>"",VLOOKUP($A11,'Agency percentages'!$A$5:$X$70,(3+MATCH(DM$4,'Agency percentages'!$D$4:$W$4,0)),FALSE),"") ->  | DN11: =IF(DN$3<>"",VLOOKUP($A11,'Agency percentages'!$A$5:$X$70,(3+MATCH(DN$4,'Agency percentages'!$D$4:$W$4,0)),FALSE),"") ->  | DO11: =IF(DO$3<>"",VLOOKUP($A11,'Agency percentages'!$A$5:$X$70,(3+MATCH(DO$4,'Agency percentages'!$D$4:$W$4,0)),FALSE),"") ->  | DP11: =IF(DP$3<>"",VLOOKUP($A11,'Agency percentages'!$A$5:$X$70,(3+MATCH(DP$4,'Agency percentages'!$D$4:$W$4,0)),FALSE),"") ->  | DQ11: =IF(DQ$3<>"",VLOOKUP($A11,'Agency percentages'!$A$5:$X$70,(3+MATCH(DQ$4,'Agency percentages'!$D$4:$W$4,0)),FALSE),"") ->  | DR11: =IF(DR$3<>"",VLOOKUP($A11,'Agency percentages'!$A$5:$X$70,(3+MATCH(DR$4,'Agency percentages'!$D$4:$W$4,0)),FALSE),"") ->  | DS11: =IF(DS$3<>"",VLOOKUP($A11,'Agency percentages'!$A$5:$X$70,(3+MATCH(DS$4,'Agency percentages'!$D$4:$W$4,0)),FALSE),"") ->  | DT11: =IF(DT$3<>"",VLOOKUP($A11,'Agency percentages'!$A$5:$X$70,(3+MATCH(DT$4,'Agency percentages'!$D$4:$W$4,0)),FALSE),"") ->  | DU11: =IF(DU$3<>"",VLOOKUP($A11,'Agency percentages'!$A$5:$X$70,(3+MATCH(DU$4,'Agency percentages'!$D$4:$W$4,0)),FALSE),"") ->  | DV11: =IF(DV$3<>"",VLOOKUP($A11,'Agency percentages'!$A$5:$X$70,(3+MATCH(DV$4,'Agency percentages'!$D$4:$W$4,0)),FALSE),"") ->  | DW11: =IF(DW$3<>"",VLOOKUP($A11,'Agency percentages'!$A$5:$X$70,(3+MATCH(DW$4,'Agency percentages'!$D$4:$W$4,0)),FALSE),"") ->  | DX11: =IF(DX$3<>"",VLOOKUP($A11,'Agency percentages'!$A$5:$X$70,(3+MATCH(DX$4,'Agency percentages'!$D$4:$W$4,0)),FALSE),"") ->  | DY11: =IF(DY$3<>"",VLOOKUP($A11,'Agency percentages'!$A$5:$X$70,(3+MATCH(DY$4,'Agency percentages'!$D$4:$W$4,0)),FALSE),"") ->  | DZ11: =IF(DZ$3<>"",VLOOKUP($A11,'Agency percentages'!$A$5:$X$70,(3+MATCH(DZ$4,'Agency percentages'!$D$4:$W$4,0)),FALSE),"") ->  | EB11: =IF(AND(EB$3<>"",DG11<>0),HLOOKUP(EB$4,'Agency cashability'!$B$3:$U$5,2,0),0) -> 0.2 | EC11: =IF(AND(EC$3<>"",DH11<>0),HLOOKUP(EC$4,'Agency cashability'!$B$3:$U$5,2,0),0) -> 0 | ED11: =IF(AND(ED$3<>"",DI11<>0),HLOOKUP(ED$4,'Agency cashability'!$B$3:$U$5,2,0),0) -> 0 | EE11: =IF(AND(EE$3<>"",DJ11<>0),HLOOKUP(EE$4,'Agency cashability'!$B$3:$U$5,2,0),0) -> 0 | EF11: =IF(AND(EF$3<>"",DK11<>0),HLOOKUP(EF$4,'Agency cashability'!$B$3:$U$5,2,0),0) -> 0 | EG11: =IF(AND(EG$3<>"",DL11<>0),HLOOKUP(EG$4,'Agency cashability'!$B$3:$U$5,2,0),0) -> 0 | EH11: =IF(AND(EH$3<>"",DM11<>0),HLOOKUP(EH$4,'Agency cashability'!$B$3:$U$5,2,0),0) -> 0 | EI11: =IF(AND(EI$3<>"",DN11<>0),HLOOKUP(EI$4,'Agency cashability'!$B$3:$U$5,2,0),0) -> 0 | EJ11: =IF(AND(EJ$3<>"",DO11<>0),HLOOKUP(EJ$4,'Agency cashability'!$B$3:$U$5,2,0),0) -> 0 | EK11: =IF(AND(EK$3<>"",DP11<>0),HLOOKUP(EK$4,'Agency cashability'!$B$3:$U$5,2,0),0) -> 0 | EL11: =IF(AND(EL$3<>"",DQ11<>0),HLOOKUP(EL$4,'Agency cashability'!$B$3:$U$5,2,0),0) -> 0 | EM11: =IF(AND(EM$3<>"",DR11<>0),HLOOKUP(EM$4,'Agency cashability'!$B$3:$U$5,2,0),0) -> 0 | EN11: =IF(AND(EN$3<>"",DS11<>0),HLOOKUP(EN$4,'Agency cashability'!$B$3:$U$5,2,0),0) -> 0 | EO11: =IF(AND(EO$3<>"",DT11<>0),HLOOKUP(EO$4,'Agency cashability'!$B$3:$U$5,2,0),0) -> 0 | EP11: =IF(AND(EP$3<>"",DU11<>0),HLOOKUP(EP$4,'Agency cashability'!$B$3:$U$5,2,0),0) -> 0 | EQ11: =IF(AND(EQ$3<>"",DV11<>0),HLOOKUP(EQ$4,'Agency cashability'!$B$3:$U$5,2,0),0) -> 0 | ER11: =IF(AND(ER$3<>"",DW11<>0),HLOOKUP(ER$4,'Agency cashability'!$B$3:$U$5,2,0),0) -> 0 | ES11: =IF(AND(ES$3<>"",DX11<>0),HLOOKUP(ES$4,'Agency cashability'!$B$3:$U$5,2,0),0) -> 0 | ET11: =IF(AND(ET$3<>"",DY11<>0),HLOOKUP(ET$4,'Agency cashability'!$B$3:$U$5,2,0),0) -> 0 | EU11: =IF(AND(EU$3<>"",DZ11<>0),HLOOKUP(EU$4,'Agency cashability'!$B$3:$U$5,2,0),0) -> 0 | EW11: =IF(AND(EW$3<>"",DG11<>0),HLOOKUP(EW$4,'Agency cashability'!$B$3:$U$5,3,0),0) -> 0.5 | EX11: =IF(AND(EX$3<>"",DH11<>0),HLOOKUP(EX$4,'Agency cashability'!$B$3:$U$5,3,0),0) -> 0 | EY11: =IF(AND(EY$3<>"",DI11<>0),HLOOKUP(EY$4,'Agency cashability'!$B$3:$U$5,3,0),0) -> 0 | EZ11: =IF(AND(EZ$3<>"",DJ11<>0),HLOOKUP(EZ$4,'Agency cashability'!$B$3:$U$5,3,0),0) -> 0 | FA11: =IF(AND(FA$3<>"",DK11<>0),HLOOKUP(FA$4,'Agency cashability'!$B$3:$U$5,3,0),0) -> 0 | FB11: =IF(AND(FB$3<>"",DL11<>0),HLOOKUP(FB$4,'Agency cashability'!$B$3:$U$5,3,0),0) -> 0 | FC11: =IF(AND(FC$3<>"",DM11<>0),HLOOKUP(FC$4,'Agency cashability'!$B$3:$U$5,3,0),0) -> 0 | FD11: =IF(AND(FD$3<>"",DN11<>0),HLOOKUP(FD$4,'Agency cashability'!$B$3:$U$5,3,0),0) -> 0 | FE11: =IF(AND(FE$3<>"",DO11<>0),HLOOKUP(FE$4,'Agency cashability'!$B$3:$U$5,3,0),0) -> 0 | FF11: =IF(AND(FF$3<>"",DP11<>0),HLOOKUP(FF$4,'Agency cashability'!$B$3:$U$5,3,0),0) -> 0 | FG11: =IF(AND(FG$3<>"",DQ11<>0),HLOOKUP(FG$4,'Agency cashability'!$B$3:$U$5,3,0),0) -> 0 | FH11: =IF(AND(FH$3<>"",DR11<>0),HLOOKUP(FH$4,'Agency cashability'!$B$3:$U$5,3,0),0) -> 0 | FI11: =IF(AND(FI$3<>"",DS11<>0),HLOOKUP(FI$4,'Agency cashability'!$B$3:$U$5,3,0),0) -> 0 | FJ11: =IF(AND(FJ$3<>"",DT11<>0),HLOOKUP(FJ$4,'Agency cashability'!$B$3:$U$5,3,0),0) -> 0 | FK11: =IF(AND(FK$3<>"",DU11<>0),HLOOKUP(FK$4,'Agency cashability'!$B$3:$U$5,3,0),0) -> 0 | FL11: =IF(AND(FL$3<>"",DV11<>0),HLOOKUP(FL$4,'Agency cashability'!$B$3:$U$5,3,0),0) -> 0 | FM11: =IF(AND(FM$3<>"",DW11<>0),HLOOKUP(FM$4,'Agency cashability'!$B$3:$U$5,3,0),0) -> 0 | FN11: =IF(AND(FN$3<>"",DX11<>0),HLOOKUP(FN$4,'Agency cashability'!$B$3:$U$5,3,0),0) -> 0 | FO11: =IF(AND(FO$3<>"",DY11<>0),HLOOKUP(FO$4,'Agency cashability'!$B$3:$U$5,3,0),0) -> 0 | FP11: =IF(AND(FP$3<>"",DZ11<>0),HLOOKUP(FP$4,'Agency cashability'!$B$3:$U$5,3,0),0) -> 0 | FR11: 0 | FS11: 0 | FT11: 0 | FU11: 0 | FV11: 0 | FW11: 0 | GM11: =IF((GM$3<>""),EB11*FR11,"") -> 0 | GN11: 0 | GO11: 0 | GP11: 0 | GQ11: 0 | GR11: 0 | HJ11: =IF((HJ$3<>""),EW11*FR11,"") -> 0 | HK11: 0 | HL11: 0 | HM11: 0 | HN11: 0 | HO11: 0
A12: B7 | B12: Reduced incidents of domestic violence | C12: No | D12: Reduced health and criminal justice costs | E12: NHS, LA, CJS | R12: 2470 | S12: 2470 | T12: 1473 | U12: 6795 | V12: 10738 | W12: 2008-09 | X12: =VLOOKUP(W12,'GDP Deflators'!$B$8:$C$76,2,0)*100/VLOOKUP('Model constants'!$B$3,'GDP Deflators'!$B$8:$C$76,2,0) -> 80.06592898 | Y12: Based on Silvia Walby paper “The Cost of Domestic Violence: Up-date 2009” | AA12: 0 | AB12: 0 | BE12: 0 | BF12: 0 | BG12: 0 | BH12: 0 | BI12: 0 | BJ12: 0 | BK12: 0 | BL12: 0 | BM12: 0 | BN12: 0 | CD12: 0 | CF12: 0 | CG12: 0 | CH12: 0 | CI12: 0 | CJ12: 0 | CK12: 0 | CL12: 0 | CM12: 0 | CN12: 0 | CO12: 0 | DE12: 0 | DG12: =IF(DG$3<>"",VLOOKUP($A12,'Agency percentages'!$A$5:$X$70,(3+MATCH(DG$4,'Agency percentages'!$D$4:$W$4,0)),FALSE),"") -> 0.47 | DH12: =IF(DH$3<>"",VLOOKUP($A12,'Agency percentages'!$A$5:$X$70,(3+MATCH(DH$4,'Agency percentages'!$D$4:$W$4,0)),FALSE),"") -> 0 | DI12: =IF(DI$3<>"",VLOOKUP($A12,'Agency percentages'!$A$5:$X$70,(3+MATCH(DI$4,'Agency percentages'!$D$4:$W$4,0)),FALSE),"") -> 0 | DJ12: =IF(DJ$3<>"",VLOOKUP($A12,'Agency percentages'!$A$5:$X$70,(3+MATCH(DJ$4,'Agency percentages'!$D$4:$W$4,0)),FALSE),"") -> 0 | DK12: =IF(DK$3<>"",VLOOKUP($A12,'Agency percentages'!$A$5:$X$70,(3+MATCH(DK$4,'Agency percentages'!$D$4:$W$4,0)),FALSE),"") -> 0 | DL12: =IF(DL$3<>"",VLOOKUP($A12,'Agency percentages'!$A$5:$X$70,(3+MATCH(DL$4,'Agency percentages'!$D$4:$W$4,0)),FALSE),"") -> 0 | DM12: =IF(DM$3<>"",VLOOKUP($A12,'Agency percentages'!$A$5:$X$70,(3+MATCH(DM$4,'Agency percentages'!$D$4:$W$4,0)),FALSE),"") ->  | DN12: =IF(DN$3<>"",VLOOKUP($A12,'Agency percentages'!$A$5:$X$70,(3+MATCH(DN$4,'Agency percentages'!$D$4:$W$4,0)),FALSE),"") ->  | DO12: =IF(DO$3<>"",VLOOKUP($A12,'Agency percentages'!$A$5:$X$70,(3+MATCH(DO$4,'Agency percentages'!$D$4:$W$4,0)),FALSE),"") ->  | DP12: =IF(DP$3<>"",VLOOKUP($A12,'Agency percentages'!$A$5:$X$70,(3+MATCH(DP$4,'Agency percentages'!$D$4:$W$4,0)),FALSE),"") ->  | DQ12: =IF(DQ$3<>"",VLOOKUP($A12,'Agency percentages'!$A$5:$X$70,(3+MATCH(DQ$4,'Agency percentages'!$D$4:$W$4,0)),FALSE),"") ->  | DR12: =IF(DR$3<>"",VLOOKUP($A12,'Agency percentages'!$A$5:$X$70,(3+MATCH(DR$4,'Agency percentages'!$D$4:$W$4,0)),FALSE),"") ->  | DS12: =IF(DS$3<>"",VLOOKUP($A12,'Agency percentages'!$A$5:$X$70,(3+MATCH(DS$4,'Agency percentages'!$D$4:$W$4,0)),FALSE),"") ->  | DT12: =IF(DT$3<>"",VLOOKUP($A12,'Agency percentages'!$A$5:$X$70,(3+MATCH(DT$4,'Agency percentages'!$D$4:$W$4,0)),FALSE),"") ->  | DU12: =IF(DU$3<>"",VLOOKUP($A12,'Agency percentages'!$A$5:$X$70,(3+MATCH(DU$4,'Agency percentages'!$D$4:$W$4,0)),FALSE),"") ->  | DV12: =IF(DV$3<>"",VLOOKUP($A12,'Agency percentages'!$A$5:$X$70,(3+MATCH(DV$4,'Agency percentages'!$D$4:$W$4,0)),FALSE),"") ->  | DW12: =IF(DW$3<>"",VLOOKUP($A12,'Agency percentages'!$A$5:$X$70,(3+MATCH(DW$4,'Agency percentages'!$D$4:$W$4,0)),FALSE),"") ->  | DX12: =IF(DX$3<>"",VLOOKUP($A12,'Agency percentages'!$A$5:$X$70,(3+MATCH(DX$4,'Agency percentages'!$D$4:$W$4,0)),FALSE),"") ->  | DY12: =IF(DY$3<>"",VLOOKUP($A12,'Agency percentages'!$A$5:$X$70,(3+MATCH(DY$4,'Agency percentages'!$D$4:$W$4,0)),FALSE),"") ->  | DZ12: =IF(DZ$3<>"",VLOOKUP($A12,'Agency percentages'!$A$5:$X$70,(3+MATCH(DZ$4,'Agency percentages'!$D$4:$W$4,0)),FALSE),"") ->  | EB12: =IF(AND(EB$3<>"",DG12<>0),HLOOKUP(EB$4,'Agency cashability'!$B$3:$U$5,2,0),0) -> 0.2 | EC12: =IF(AND(EC$3<>"",DH12<>0),HLOOKUP(EC$4,'Agency cashability'!$B$3:$U$5,2,0),0) -> 0 | ED12: =IF(AND(ED$3<>"",DI12<>0),HLOOKUP(ED$4,'Agency cashability'!$B$3:$U$5,2,0),0) -> 0 | EE12: =IF(AND(EE$3<>"",DJ12<>0),HLOOKUP(EE$4,'Agency cashability'!$B$3:$U$5,2,0),0) -> 0 | EF12: =IF(AND(EF$3<>"",DK12<>0),HLOOKUP(EF$4,'Agency cashability'!$B$3:$U$5,2,0),0) -> 0 | EG12: =IF(AND(EG$3<>"",DL12<>0),HLOOKUP(EG$4,'Agency cashability'!$B$3:$U$5,2,0),0) -> 0 | EH12: =IF(AND(EH$3<>"",DM12<>0),HLOOKUP(EH$4,'Agency cashability'!$B$3:$U$5,2,0),0) -> 0 | EI12: =IF(AND(EI$3<>"",DN12<>0),HLOOKUP(EI$4,'Agency cashability'!$B$3:$U$5,2,0),0) -> 0 | EJ12: =IF(AND(EJ$3<>"",DO12<>0),HLOOKUP(EJ$4,'Agency cashability'!$B$3:$U$5,2,0),0) -> 0 | EK12: =IF(AND(EK$3<>"",DP12<>0),HLOOKUP(EK$4,'Agency cashability'!$B$3:$U$5,2,0),0) -> 0 | EL12: =IF(AND(EL$3<>"",DQ12<>0),HLOOKUP(EL$4,'Agency cashability'!$B$3:$U$5,2,0),0) -> 0 | EM12: =IF(AND(EM$3<>"",DR12<>0),HLOOKUP(EM$4,'Agency cashability'!$B$3:$U$5,2,0),0) -> 0 | EN12: =IF(AND(EN$3<>"",DS12<>0),HLOOKUP(EN$4,'Agency cashability'!$B$3:$U$5,2,0),0) -> 0 | EO12: =IF(AND(EO$3<>"",DT12<>0),HLOOKUP(EO$4,'Agency cashability'!$B$3:$U$5,2,0),0) -> 0 | EP12: =IF(AND(EP$3<>"",DU12<>0),HLOOKUP(EP$4,'Agency cashability'!$B$3:$U$5,2,0),0) -> 0 | EQ12: =IF(AND(EQ$3<>"",DV12<>0),HLOOKUP(EQ$4,'Agency cashability'!$B$3:$U$5,2,0),0) -> 0 | ER12: =IF(AND(ER$3<>"",DW12<>0),HLOOKUP(ER$4,'Agency cashability'!$B$3:$U$5,2,0),0) -> 0 | ES12: =IF(AND(ES$3<>"",DX12<>0),HLOOKUP(ES$4,'Agency cashability'!$B$3:$U$5,2,0),0) -> 0 | ET12: =IF(AND(ET$3<>"",DY12<>0),HLOOKUP(ET$4,'Agency cashability'!$B$3:$U$5,2,0),0) -> 0 | EU12: =IF(AND(EU$3<>"",DZ12<>0),HLOOKUP(EU$4,'Agency cashability'!$B$3:$U$5,2,0),0) -> 0 | EW12: =IF(AND(EW$3<>"",DG12<>0),HLOOKUP(EW$4,'Agency cashability'!$B$3:$U$5,3,0),0) -> 0.5 | EX12: =IF(AND(EX$3<>"",DH12<>0),HLOOKUP(EX$4,'Agency cashability'!$B$3:$U$5,3,0),0) -> 0 | EY12: =IF(AND(EY$3<>"",DI12<>0),HLOOKUP(EY$4,'Agency cashability'!$B$3:$U$5,3,0),0) -> 0 | EZ12: =IF(AND(EZ$3<>"",DJ12<>0),HLOOKUP(EZ$4,'Agency cashability'!$B$3:$U$5,3,0),0) -> 0 | FA12: =IF(AND(FA$3<>"",DK12<>0),HLOOKUP(FA$4,'Agency cashability'!$B$3:$U$5,3,0),0) -> 0 | FB12: =IF(AND(FB$3<>"",DL12<>0),HLOOKUP(FB$4,'Agency cashability'!$B$3:$U$5,3,0),0) -> 0 | FC12: =IF(AND(FC$3<>"",DM12<>0),HLOOKUP(FC$4,'Agency cashability'!$B$3:$U$5,3,0),0) -> 0 | FD12: =IF(AND(FD$3<>"",DN12<>0),HLOOKUP(FD$4,'Agency cashability'!$B$3:$U$5,3,0),0) -> 0 | FE12: =IF(AND(FE$3<>"",DO12<>0),HLOOKUP(FE$4,'Agency cashability'!$B$3:$U$5,3,0),0) -> 0 | FF12: =IF(AND(FF$3<>"",DP12<>0),HLOOKUP(FF$4,'Agency cashability'!$B$3:$U$5,3,0),0) -> 0 | FG12: =IF(AND(FG$3<>"",DQ12<>0),HLOOKUP(FG$4,'Agency cashability'!$B$3:$U$5,3,0),0) -> 0 | FH12: =IF(AND(FH$3<>"",DR12<>0),HLOOKUP(FH$4,'Agency cashability'!$B$3:$U$5,3,0),0) -> 0 | FI12: =IF(AND(FI$3<>"",DS12<>0),HLOOKUP(FI$4,'Agency cashability'!$B$3:$U$5,3,0),0) -> 0 | FJ12: =IF(AND(FJ$3<>"",DT12<>0),HLOOKUP(FJ$4,'Agency cashability'!$B$3:$U$5,3,0),0) -> 0 | FK12: =IF(AND(FK$3<>"",DU12<>0),HLOOKUP(FK$4,'Agency cashability'!$B$3:$U$5,3,0),0) -> 0 | FL12: =IF(AND(FL$3<>"",DV12<>0),HLOOKUP(FL$4,'Agency cashability'!$B$3:$U$5,3,0),0) -> 0 | FM12: =IF(AND(FM$3<>"",DW12<>0),HLOOKUP(FM$4,'Agency cashability'!$B$3:$U$5,3,0),0) -> 0 | FN12: =IF(AND(FN$3<>"",DX12<>0),HLOOKUP(FN$4,'Agency cashability'!$B$3:$U$5,3,0),0) -> 0 | FO12: =IF(AND(FO$3<>"",DY12<>0),HLOOKUP(FO$4,'Agency cashability'!$B$3:$U$5,3,0),0) -> 0 | FP12: =IF(AND(FP$3<>"",DZ12<>0),HLOOKUP(FP$4,'Agency cashability'!$B$3:$U$5,3,0),0) -> 0 | FR12: 0 | FS12: 0 | FT12: 0 | FU12: 0 | FV12: 0 | FW12: 0 | GM12: =IF((GM$3<>""),EB12*FR12,"") -> 0 | GN12: 0 | GO12: 0 | GP12: 0 | GQ12: 0 | GR12: 0 | HJ12: =IF((HJ$3<>""),EW12*FR12,"") -> 0 | HK12: 0 | HL12: 0 | HM12: 0 | HN12: 0 | HO12: 0
A13: B8a | B13: Reduced ASB | C13: No | D13: Reduced incident requiring no further action | E13: Police, Neighbourhood teams | R13: 35 | S13: 35 | U13: 118 | V13: 153 | W13: 2002-03 | X13: =VLOOKUP(W13,'GDP Deflators'!$B$8:$C$76,2,0)*100/VLOOKUP('Model constants'!$B$3,'GDP Deflators'!$B$8:$C$76,2,0) -> 68.66889056 | Y13: LSE Report into cost of ASB 2003 | AA13: 0 | AB13: 0 | BE13: 0 | BF13: 0 | BG13: 0 | BH13: 0 | BI13: 0 | BJ13: 0 | BK13: 0 | BL13: 0 | BM13: 0 | BN13: 0 | CD13: 0 | CF13: 0 | CG13: 0 | CH13: 0 | CI13: 0 | CJ13: 0 | CK13: 0 | CL13: 0 | CM13: 0 | CN13: 0 | CO13: 0 | DE13: 0 | DG13: =IF(DG$3<>"",VLOOKUP($A13,'Agency percentages'!$A$5:$X$70,(3+MATCH(DG$4,'Agency percentages'!$D$4:$W$4,0)),FALSE),"") -> 0 | DH13: =IF(DH$3<>"",VLOOKUP($A13,'Agency percentages'!$A$5:$X$70,(3+MATCH(DH$4,'Agency percentages'!$D$4:$W$4,0)),FALSE),"") -> 0 | DI13: =IF(DI$3<>"",VLOOKUP($A13,'Agency percentages'!$A$5:$X$70,(3+MATCH(DI$4,'Agency percentages'!$D$4:$W$4,0)),FALSE),"") -> 0 | DJ13: =IF(DJ$3<>"",VLOOKUP($A13,'Agency percentages'!$A$5:$X$70,(3+MATCH(DJ$4,'Agency percentages'!$D$4:$W$4,0)),FALSE),"") -> 0 | DK13: =IF(DK$3<>"",VLOOKUP($A13,'Agency percentages'!$A$5:$X$70,(3+MATCH(DK$4,'Agency percentages'!$D$4:$W$4,0)),FALSE),"") -> 0 | DL13: =IF(DL$3<>"",VLOOKUP($A13,'Agency percentages'!$A$5:$X$70,(3+MATCH(DL$4,'Agency percentages'!$D$4:$W$4,0)),FALSE),"") -> 0 | DM13: =IF(DM$3<>"",VLOOKUP($A13,'Agency percentages'!$A$5:$X$70,(3+MATCH(DM$4,'Agency percentages'!$D$4:$W$4,0)),FALSE),"") ->  | DN13: =IF(DN$3<>"",VLOOKUP($A13,'Agency percentages'!$A$5:$X$70,(3+MATCH(DN$4,'Agency percentages'!$D$4:$W$4,0)),FALSE),"") ->  | DO13: =IF(DO$3<>"",VLOOKUP($A13,'Agency percentages'!$A$5:$X$70,(3+MATCH(DO$4,'Agency percentages'!$D$4:$W$4,0)),FALSE),"") ->  | DP13: =IF(DP$3<>"",VLOOKUP($A13,'Agency percentages'!$A$5:$X$70,(3+MATCH(DP$4,'Agency percentages'!$D$4:$W$4,0)),FALSE),"") ->  | DQ13: =IF(DQ$3<>"",VLOOKUP($A13,'Agency percentages'!$A$5:$X$70,(3+MATCH(DQ$4,'Agency percentages'!$D$4:$W$4,0)),FALSE),"") ->  | DR13: =IF(DR$3<>"",VLOOKUP($A13,'Agency percentages'!$A$5:$X$70,(3+MATCH(DR$4,'Agency percentages'!$D$4:$W$4,0)),FALSE),"") ->  | DS13: =IF(DS$3<>"",VLOOKUP($A13,'Agency percentages'!$A$5:$X$70,(3+MATCH(DS$4,'Agency percentages'!$D$4:$W$4,0)),FALSE),"") ->  | DT13: =IF(DT$3<>"",VLOOKUP($A13,'Agency percentages'!$A$5:$X$70,(3+MATCH(DT$4,'Agency percentages'!$D$4:$W$4,0)),FALSE),"") ->  | DU13: =IF(DU$3<>"",VLOOKUP($A13,'Agency percentages'!$A$5:$X$70,(3+MATCH(DU$4,'Agency percentages'!$D$4:$W$4,0)),FALSE),"") ->  | DV13: =IF(DV$3<>"",VLOOKUP($A13,'Agency percentages'!$A$5:$X$70,(3+MATCH(DV$4,'Agency percentages'!$D$4:$W$4,0)),FALSE),"") ->  | DW13: =IF(DW$3<>"",VLOOKUP($A13,'Agency percentages'!$A$5:$X$70,(3+MATCH(DW$4,'Agency percentages'!$D$4:$W$4,0)),FALSE),"") ->  | DX13: =IF(DX$3<>"",VLOOKUP($A13,'Agency percentages'!$A$5:$X$70,(3+MATCH(DX$4,'Agency percentages'!$D$4:$W$4,0)),FALSE),"") ->  | DY13: =IF(DY$3<>"",VLOOKUP($A13,'Agency percentages'!$A$5:$X$70,(3+MATCH(DY$4,'Agency percentages'!$D$4:$W$4,0)),FALSE),"") ->  | DZ13: =IF(DZ$3<>"",VLOOKUP($A13,'Agency percentages'!$A$5:$X$70,(3+MATCH(DZ$4,'Agency percentages'!$D$4:$W$4,0)),FALSE),"") ->  | EB13: =IF(AND(EB$3<>"",DG13<>0),HLOOKUP(EB$4,'Agency cashability'!$B$3:$U$5,2,0),0) -> 0 | EC13: =IF(AND(EC$3<>"",DH13<>0),HLOOKUP(EC$4,'Agency cashability'!$B$3:$U$5,2,0),0) -> 0 | ED13: =IF(AND(ED$3<>"",DI13<>0),HLOOKUP(ED$4,'Agency cashability'!$B$3:$U$5,2,0),0) -> 0 | EE13: =IF(AND(EE$3<>"",DJ13<>0),HLOOKUP(EE$4,'Agency cashability'!$B$3:$U$5,2,0),0) -> 0 | EF13: =IF(AND(EF$3<>"",DK13<>0),HLOOKUP(EF$4,'Agency cashability'!$B$3:$U$5,2,0),0) -> 0 | EG13: =IF(AND(EG$3<>"",DL13<>0),HLOOKUP(EG$4,'Agency cashability'!$B$3:$U$5,2,0),0) -> 0 | EH13: =IF(AND(EH$3<>"",DM13<>0),HLOOKUP(EH$4,'Agency cashability'!$B$3:$U$5,2,0),0) -> 0 | EI13: =IF(AND(EI$3<>"",DN13<>0),HLOOKUP(EI$4,'Agency cashability'!$B$3:$U$5,2,0),0) -> 0 | EJ13: =IF(AND(EJ$3<>"",DO13<>0),HLOOKUP(EJ$4,'Agency cashability'!$B$3:$U$5,2,0),0) -> 0 | EK13: =IF(AND(EK$3<>"",DP13<>0),HLOOKUP(EK$4,'Agency cashability'!$B$3:$U$5,2,0),0) -> 0 | EL13: =IF(AND(EL$3<>"",DQ13<>0),HLOOKUP(EL$4,'Agency cashability'!$B$3:$U$5,2,0),0) -> 0 | EM13: =IF(AND(EM$3<>"",DR13<>0),HLOOKUP(EM$4,'Agency cashability'!$B$3:$U$5,2,0),0) -> 0 | EN13: =IF(AND(EN$3<>"",DS13<>0),HLOOKUP(EN$4,'Agency cashability'!$B$3:$U$5,2,0),0) -> 0 | EO13: =IF(AND(EO$3<>"",DT13<>0),HLOOKUP(EO$4,'Agency cashability'!$B$3:$U$5,2,0),0) -> 0 | EP13: =IF(AND(EP$3<>"",DU13<>0),HLOOKUP(EP$4,'Agency cashability'!$B$3:$U$5,2,0),0) -> 0 | EQ13: =IF(AND(EQ$3<>"",DV13<>0),HLOOKUP(EQ$4,'Agency cashability'!$B$3:$U$5,2,0),0) -> 0 | ER13: =IF(AND(ER$3<>"",DW13<>0),HLOOKUP(ER$4,'Agency cashability'!$B$3:$U$5,2,0),0) -> 0 | ES13: =IF(AND(ES$3<>"",DX13<>0),HLOOKUP(ES$4,'Agency cashability'!$B$3:$U$5,2,0),0) -> 0 | ET13: =IF(AND(ET$3<>"",DY13<>0),HLOOKUP(ET$4,'Agency cashability'!$B$3:$U$5,2,0),0) -> 0 | EU13: =IF(AND(EU$3<>"",DZ13<>0),HLOOKUP(EU$4,'Agency cashability'!$B$3:$U$5,2,0),0) -> 0 | EW13: =IF(AND(EW$3<>"",DG13<>0),HLOOKUP(EW$4,'Agency cashability'!$B$3:$U$5,3,0),0) -> 0 | EX13: =IF(AND(EX$3<>"",DH13<>0),HLOOKUP(EX$4,'Agency cashability'!$B$3:$U$5,3,0),0) -> 0 | EY13: =IF(AND(EY$3<>"",DI13<>0),HLOOKUP(EY$4,'Agency cashability'!$B$3:$U$5,3,0),0) -> 0 | EZ13: =IF(AND(EZ$3<>"",DJ13<>0),HLOOKUP(EZ$4,'Agency cashability'!$B$3:$U$5,3,0),0) -> 0 | FA13: =IF(AND(FA$3<>"",DK13<>0),HLOOKUP(FA$4,'Agency cashability'!$B$3:$U$5,3,0),0) -> 0 | FB13: =IF(AND(FB$3<>"",DL13<>0),HLOOKUP(FB$4,'Agency cashability'!$B$3:$U$5,3,0),0) -> 0 | FC13: =IF(AND(FC$3<>"",DM13<>0),HLOOKUP(FC$4,'Agency cashability'!$B$3:$U$5,3,0),0) -> 0 | FD13: =IF(AND(FD$3<>"",DN13<>0),HLOOKUP(FD$4,'Agency cashability'!$B$3:$U$5,3,0),0) -> 0 | FE13: =IF(AND(FE$3<>"",DO13<>0),HLOOKUP(FE$4,'Agency cashability'!$B$3:$U$5,3,0),0) -> 0 | FF13: =IF(AND(FF$3<>"",DP13<>0),HLOOKUP(FF$4,'Agency cashability'!$B$3:$U$5,3,0),0) -> 0 | FG13: =IF(AND(FG$3<>"",DQ13<>0),HLOOKUP(FG$4,'Agency cashability'!$B$3:$U$5,3,0),0) -> 0 | FH13: =IF(AND(FH$3<>"",DR13<>0),HLOOKUP(FH$4,'Agency cashability'!$B$3:$U$5,3,0),0) -> 0 | FI13: =IF(AND(FI$3<>"",DS13<>0),HLOOKUP(FI$4,'Agency cashability'!$B$3:$U$5,3,0),0) -> 0 | FJ13: =IF(AND(FJ$3<>"",DT13<>0),HLOOKUP(FJ$4,'Agency cashability'!$B$3:$U$5,3,0),0) -> 0 | FK13: =IF(AND(FK$3<>"",DU13<>0),HLOOKUP(FK$4,'Agency cashability'!$B$3:$U$5,3,0),0) -> 0 | FL13: =IF(AND(FL$3<>"",DV13<>0),HLOOKUP(FL$4,'Agency cashability'!$B$3:$U$5,3,0),0) -> 0 | FM13: =IF(AND(FM$3<>"",DW13<>0),HLOOKUP(FM$4,'Agency cashability'!$B$3:$U$5,3,0),0) -> 0 | FN13: =IF(AND(FN$3<>"",DX13<>0),HLOOKUP(FN$4,'Agency cashability'!$B$3:$U$5,3,0),0) -> 0 | FO13: =IF(AND(FO$3<>"",DY13<>0),HLOOKUP(FO$4,'Agency cashability'!$B$3:$U$5,3,0),0) -> 0 | FP13: =IF(AND(FP$3<>"",DZ13<>0),HLOOKUP(FP$4,'Agency cashability'!$B$3:$U$5,3,0),0) -> 0 | FR13: 0 | FS13: 0 | FT13: 0 | FU13: 0 | FV13: 0 | FW13: 0 | GM13: =IF((GM$3<>""),EB13*FR13,"") -> 0 | GN13: 0 | GO13: 0 | GP13: 0 | GQ13: 0 | GR13: 0 | GW13: =IF((GW$3<>""),EL13*GB13,"") ->  | HJ13: =IF((HJ$3<>""),EW13*FR13,"") -> 0 | HK13: 0 | HL13: 0 | HM13: 0 | HN13: 0 | HO13: 0 | HT13: =IF((HT$3<>""),FG13*GB13,"") -> 
A14: B8b | C14: No | D14: Reduced incidents requiring further action | E14: Police, Neighbourhood teams | R14: 500 | S14: 500 | U14: 118 | V14: 618 | W14: 2002-03 | X14: =VLOOKUP(W14,'GDP Deflators'!$B$8:$C$76,2,0)*100/VLOOKUP('Model constants'!$B$3,'GDP Deflators'!$B$8:$C$76,2,0) -> 68.66889056 | Y14: LSE Report into cost of ASB 2003 | AA14: 0 | AB14: 0 | BE14: 0 | BF14: 0 | BG14: 0 | BH14: 0 | BI14: 0 | BJ14: 0 | BK14: 0 | BL14: 0 | BM14: 0 | BN14: 0 | CD14: 0 | CF14: 0 | CG14: 0 | CH14: 0 | CI14: 0 | CJ14: 0 | CK14: 0 | CL14: 0 | CM14: 0 | CN14: 0 | CO14: 0 | DE14: 0 | DG14: =IF(DG$3<>"",VLOOKUP($A14,'Agency percentages'!$A$5:$X$70,(3+MATCH(DG$4,'Agency percentages'!$D$4:$W$4,0)),FALSE),"") -> 0 | DH14: =IF(DH$3<>"",VLOOKUP($A14,'Agency percentages'!$A$5:$X$70,(3+MATCH(DH$4,'Agency percentages'!$D$4:$W$4,0)),FALSE),"") -> 0 | DI14: =IF(DI$3<>"",VLOOKUP($A14,'Agency percentages'!$A$5:$X$70,(3+MATCH(DI$4,'Agency percentages'!$D$4:$W$4,0)),FALSE),"") -> 0 | DJ14: =IF(DJ$3<>"",VLOOKUP($A14,'Agency percentages'!$A$5:$X$70,(3+MATCH(DJ$4,'Agency percentages'!$D$4:$W$4,0)),FALSE),"") -> 0 | DK14: =IF(DK$3<>"",VLOOKUP($A14,'Agency percentages'!$A$5:$X$70,(3+MATCH(DK$4,'Agency percentages'!$D$4:$W$4,0)),FALSE),"") -> 0 | DL14: =IF(DL$3<>"",VLOOKUP($A14,'Agency percentages'!$A$5:$X$70,(3+MATCH(DL$4,'Agency percentages'!$D$4:$W$4,0)),FALSE),"") -> 0 | DM14: =IF(DM$3<>"",VLOOKUP($A14,'Agency percentages'!$A$5:$X$70,(3+MATCH(DM$4,'Agency percentages'!$D$4:$W$4,0)),FALSE),"") ->  | DN14: =IF(DN$3<>"",VLOOKUP($A14,'Agency percentages'!$A$5:$X$70,(3+MATCH(DN$4,'Agency percentages'!$D$4:$W$4,0)),FALSE),"") ->  | DO14: =IF(DO$3<>"",VLOOKUP($A14,'Agency percentages'!$A$5:$X$70,(3+MATCH(DO$4,'Agency percentages'!$D$4:$W$4,0)),FALSE),"") ->  | DP14: =IF(DP$3<>"",VLOOKUP($A14,'Agency percentages'!$A$5:$X$70,(3+MATCH(DP$4,'Agency percentages'!$D$4:$W$4,0)),FALSE),"") ->  | DQ14: =IF(DQ$3<>"",VLOOKUP($A14,'Agency percentages'!$A$5:$X$70,(3+MATCH(DQ$4,'Agency percentages'!$D$4:$W$4,0)),FALSE),"") ->  | DR14: =IF(DR$3<>"",VLOOKUP($A14,'Agency percentages'!$A$5:$X$70,(3+MATCH(DR$4,'Agency percentages'!$D$4:$W$4,0)),FALSE),"") ->  | DS14: =IF(DS$3<>"",VLOOKUP($A14,'Agency percentages'!$A$5:$X$70,(3+MATCH(DS$4,'Agency percentages'!$D$4:$W$4,0)),FALSE),"") ->  | DT14: =IF(DT$3<>"",VLOOKUP($A14,'Agency percentages'!$A$5:$X$70,(3+MATCH(DT$4,'Agency percentages'!$D$4:$W$4,0)),FALSE),"") ->  | DU14: =IF(DU$3<>"",VLOOKUP($A14,'Agency percentages'!$A$5:$X$70,(3+MATCH(DU$4,'Agency percentages'!$D$4:$W$4,0)),FALSE),"") ->  | DV14: =IF(DV$3<>"",VLOOKUP($A14,'Agency percentages'!$A$5:$X$70,(3+MATCH(DV$4,'Agency percentages'!$D$4:$W$4,0)),FALSE),"") ->  | DW14: =IF(DW$3<>"",VLOOKUP($A14,'Agency percentages'!$A$5:$X$70,(3+MATCH(DW$4,'Agency percentages'!$D$4:$W$4,0)),FALSE),"") ->  | DX14: =IF(DX$3<>"",VLOOKUP($A14,'Agency percentages'!$A$5:$X$70,(3+MATCH(DX$4,'Agency percentages'!$D$4:$W$4,0)),FALSE),"") ->  | DY14: =IF(DY$3<>"",VLOOKUP($A14,'Agency percentages'!$A$5:$X$70,(3+MATCH(DY$4,'Agency percentages'!$D$4:$W$4,0)),FALSE),"") ->  | DZ14: =IF(DZ$3<>"",VLOOKUP($A14,'Agency percentages'!$A$5:$X$70,(3+MATCH(DZ$4,'Agency percentages'!$D$4:$W$4,0)),FALSE),"") ->  | EB14: =IF(AND(EB$3<>"",DG14<>0),HLOOKUP(EB$4,'Agency cashability'!$B$3:$U$5,2,0),0) -> 0 | EC14: =IF(AND(EC$3<>"",DH14<>0),HLOOKUP(EC$4,'Agency cashability'!$B$3:$U$5,2,0),0) -> 0 | ED14: =IF(AND(ED$3<>"",DI14<>0),HLOOKUP(ED$4,'Agency cashability'!$B$3:$U$5,2,0),0) -> 0 | EE14: =IF(AND(EE$3<>"",DJ14<>0),HLOOKUP(EE$4,'Agency cashability'!$B$3:$U$5,2,0),0) -> 0 | EF14: =IF(AND(EF$3<>"",DK14<>0),HLOOKUP(EF$4,'Agency cashability'!$B$3:$U$5,2,0),0) -> 0 | EG14: =IF(AND(EG$3<>"",DL14<>0),HLOOKUP(EG$4,'Agency cashability'!$B$3:$U$5,2,0),0) -> 0 | EH14: =IF(AND(EH$3<>"",DM14<>0),HLOOKUP(EH$4,'Agency cashability'!$B$3:$U$5,2,0),0) -> 0 | EI14: =IF(AND(EI$3<>"",DN14<>0),HLOOKUP(EI$4,'Agency cashability'!$B$3:$U$5,2,0),0) -> 0 | EJ14: =IF(AND(EJ$3<>"",DO14<>0),HLOOKUP(EJ$4,'Agency cashability'!$B$3:$U$5,2,0),0) -> 0 | EK14: =IF(AND(EK$3<>"",DP14<>0),HLOOKUP(EK$4,'Agency cashability'!$B$3:$U$5,2,0),0) -> 0 | EL14: =IF(AND(EL$3<>"",DQ14<>0),HLOOKUP(EL$4,'Agency cashability'!$B$3:$U$5,2,0),0) -> 0 | EM14: =IF(AND(EM$3<>"",DR14<>0),HLOOKUP(EM$4,'Agency cashability'!$B$3:$U$5,2,0),0) -> 0 | EN14: =IF(AND(EN$3<>"",DS14<>0),HLOOKUP(EN$4,'Agency cashability'!$B$3:$U$5,2,0),0) -> 0 | EO14: =IF(AND(EO$3<>"",DT14<>0),HLOOKUP(EO$4,'Agency cashability'!$B$3:$U$5,2,0),0) -> 0 | EP14: =IF(AND(EP$3<>"",DU14<>0),HLOOKUP(EP$4,'Agency cashability'!$B$3:$U$5,2,0),0) -> 0 | EQ14: =IF(AND(EQ$3<>"",DV14<>0),HLOOKUP(EQ$4,'Agency cashability'!$B$3:$U$5,2,0),0) -> 0 | ER14: =IF(AND(ER$3<>"",DW14<>0),HLOOKUP(ER$4,'Agency cashability'!$B$3:$U$5,2,0),0) -> 0 | ES14: =IF(AND(ES$3<>"",DX14<>0),HLOOKUP(ES$4,'Agency cashability'!$B$3:$U$5,2,0),0) -> 0 | ET14: =IF(AND(ET$3<>"",DY14<>0),HLOOKUP(ET$4,'Agency cashability'!$B$3:$U$5,2,0),0) -> 0 | EU14: =IF(AND(EU$3<>"",DZ14<>0),HLOOKUP(EU$4,'Agency cashability'!$B$3:$U$5,2,0),0) -> 0 | EW14: =IF(AND(EW$3<>"",DG14<>0),HLOOKUP(EW$4,'Agency cashability'!$B$3:$U$5,3,0),0) -> 0 | EX14: =IF(AND(EX$3<>"",DH14<>0),HLOOKUP(EX$4,'Agency cashability'!$B$3:$U$5,3,0),0) -> 0 | EY14: =IF(AND(EY$3<>"",DI14<>0),HLOOKUP(EY$4,'Agency cashability'!$B$3:$U$5,3,0),0) -> 0 | EZ14: =IF(AND(EZ$3<>"",DJ14<>0),HLOOKUP(EZ$4,'Agency cashability'!$B$3:$U$5,3,0),0) -> 0 | FA14: =IF(AND(FA$3<>"",DK14<>0),HLOOKUP(FA$4,'Agency cashability'!$B$3:$U$5,3,0),0) -> 0 | FB14: =IF(AND(FB$3<>"",DL14<>0),HLOOKUP(FB$4,'Agency cashability'!$B$3:$U$5,3,0),0) -> 0 | FC14: =IF(AND(FC$3<>"",DM14<>0),HLOOKUP(FC$4,'Agency cashability'!$B$3:$U$5,3,0),0) -> 0 | FD14: =IF(AND(FD$3<>"",DN14<>0),HLOOKUP(FD$4,'Agency cashability'!$B$3:$U$5,3,0),0) -> 0 | FE14: =IF(AND(FE$3<>"",DO14<>0),HLOOKUP(FE$4,'Agency cashability'!$B$3:$U$5,3,0),0) -> 0 | FF14: =IF(AND(FF$3<>"",DP14<>0),HLOOKUP(FF$4,'Agency cashability'!$B$3:$U$5,3,0),0) -> 0 | FG14: =IF(AND(FG$3<>"",DQ14<>0),HLOOKUP(FG$4,'Agency cashability'!$B$3:$U$5,3,0),0) -> 0 | FH14: =IF(AND(FH$3<>"",DR14<>0),HLOOKUP(FH$4,'Agency cashability'!$B$3:$U$5,3,0),0) -> 0 | FI14: =IF(AND(FI$3<>"",DS14<>0),HLOOKUP(FI$4,'Agency cashability'!$B$3:$U$5,3,0),0) -> 0 | FJ14: =IF(AND(FJ$3<>"",DT14<>0),HLOOKUP(FJ$4,'Agency cashability'!$B$3:$U$5,3,0),0) -> 0 | FK14: =IF(AND(FK$3<>"",DU14<>0),HLOOKUP(FK$4,'Agency cashability'!$B$3:$U$5,3,0),0) -> 0 | FL14: =IF(AND(FL$3<>"",DV14<>0),HLOOKUP(FL$4,'Agency cashability'!$B$3:$U$5,3,0),0) -> 0 | FM14: =IF(AND(FM$3<>"",DW14<>0),HLOOKUP(FM$4,'Agency cashability'!$B$3:$U$5,3,0),0) -> 0 | FN14: =IF(AND(FN$3<>"",DX14<>0),HLOOKUP(FN$4,'Agency cashability'!$B$3:$U$5,3,0),0) -> 0 | FO14: =IF(AND(FO$3<>"",DY14<>0),HLOOKUP(FO$4,'Agency cashability'!$B$3:$U$5,3,0),0) -> 0 | FP14: =IF(AND(FP$3<>"",DZ14<>0),HLOOKUP(FP$4,'Agency cashability'!$B$3:$U$5,3,0),0) -> 0 | FR14: 0 | FS14: 0 | FT14: 0 | FU14: 0 | FV14: 0 | FW14: 0 | GM14: 0 | GN14: 0 | GO14: 0 | GP14: 0 | GQ14: 0 | GR14: 0 | HJ14: 0 | HK14: 0 | HL14: 0 | HM14: 0 | HN14: 0 | HO14: 0
A15: B9 | B15: Reduced incidents of crime (all crimes) | C15: No | D15: Reduced police, other criminal justice costs, health costs per actual crime (N.B. Use multipliers to convert from recorded crime or convictions) | E15: Police, CJS, NHS | R15: 979 | S15: =R15 -> 979 | T15: 1111 | U15: 1407 | V15: 3497 | W15: 2016-17 | X15: =VLOOKUP(W15,'GDP Deflators'!$B$8:$C$76,2,0)*100/VLOOKUP('Model constants'!$B$3,'GDP Deflators'!$B$8:$C$76,2,0) -> 90.9016879 | Y15: The Economic and Social cost of Crime, Second Edition (Home Office 2018) | AA15: 0 | AB15: 0 | BE15: 0 | BF15: 0 | BG15: 0 | BH15: 0 | BI15: 0 | BJ15: 0 | BK15: 0 | BL15: 0 | BM15: 0 | BN15: 0 | CD15: 0 | CF15: 0 | CG15: 0 | CH15: 0 | CI15: 0 | CJ15: 0 | CK15: 0 | CL15: 0 | CM15: 0 | CN15: 0 | CO15: 0 | DE15: 0 | DG15: =IF(DG$3<>"",VLOOKUP($A15,'Agency percentages'!$A$5:$X$70,(3+MATCH(DG$4,'Agency percentages'!$D$4:$W$4,0)),FALSE),"") -> 0.1773516466 | DH15: =IF(DH$3<>"",VLOOKUP($A15,'Agency percentages'!$A$5:$X$70,(3+MATCH(DH$4,'Agency percentages'!$D$4:$W$4,0)),FALSE),"") -> 0 | DI15: =IF(DI$3<>"",VLOOKUP($A15,'Agency percentages'!$A$5:$X$70,(3+MATCH(DI$4,'Agency percentages'!$D$4:$W$4,0)),FALSE),"") -> 0 | DJ15: =IF(DJ$3<>"",VLOOKUP($A15,'Agency percentages'!$A$5:$X$70,(3+MATCH(DJ$4,'Agency percentages'!$D$4:$W$4,0)),FALSE),"") -> 0 | DK15: =IF(DK$3<>"",VLOOKUP($A15,'Agency percentages'!$A$5:$X$70,(3+MATCH(DK$4,'Agency percentages'!$D$4:$W$4,0)),FALSE),"") -> 0 | DL15: =IF(DL$3<>"",VLOOKUP($A15,'Agency percentages'!$A$5:$X$70,(3+MATCH(DL$4,'Agency percentages'!$D$4:$W$4,0)),FALSE),"") -> 0 | DM15: =IF(DM$3<>"",VLOOKUP($A15,'Agency percentages'!$A$5:$X$70,(3+MATCH(DM$4,'Agency percentages'!$D$4:$W$4,0)),FALSE),"") ->  | DN15: =IF(DN$3<>"",VLOOKUP($A15,'Agency percentages'!$A$5:$X$70,(3+MATCH(DN$4,'Agency percentages'!$D$4:$W$4,0)),FALSE),"") ->  | DO15: =IF(DO$3<>"",VLOOKUP($A15,'Agency percentages'!$A$5:$X$70,(3+MATCH(DO$4,'Agency percentages'!$D$4:$W$4,0)),FALSE),"") ->  | DP15: =IF(DP$3<>"",VLOOKUP($A15,'Agency percentages'!$A$5:$X$70,(3+MATCH(DP$4,'Agency percentages'!$D$4:$W$4,0)),FALSE),"") ->  | DQ15: =IF(DQ$3<>"",VLOOKUP($A15,'Agency percentages'!$A$5:$X$70,(3+MATCH(DQ$4,'Agency percentages'!$D$4:$W$4,0)),FALSE),"") ->  | DR15: =IF(DR$3<>"",VLOOKUP($A15,'Agency percentages'!$A$5:$X$70,(3+MATCH(DR$4,'Agency percentages'!$D$4:$W$4,0)),FALSE),"") ->  | DS15: =IF(DS$3<>"",VLOOKUP($A15,'Agency percentages'!$A$5:$X$70,(3+MATCH(DS$4,'Agency percentages'!$D$4:$W$4,0)),FALSE),"") ->  | DT15: =IF(DT$3<>"",VLOOKUP($A15,'Agency percentages'!$A$5:$X$70,(3+MATCH(DT$4,'Agency percentages'!$D$4:$W$4,0)),FALSE),"") ->  | DU15: =IF(DU$3<>"",VLOOKUP($A15,'Agency percentages'!$A$5:$X$70,(3+MATCH(DU$4,'Agency percentages'!$D$4:$W$4,0)),FALSE),"") ->  | DV15: =IF(DV$3<>"",VLOOKUP($A15,'Agency percentages'!$A$5:$X$70,(3+MATCH(DV$4,'Agency percentages'!$D$4:$W$4,0)),FALSE),"") ->  | DW15: =IF(DW$3<>"",VLOOKUP($A15,'Agency percentages'!$A$5:$X$70,(3+MATCH(DW$4,'Agency percentages'!$D$4:$W$4,0)),FALSE),"") ->  | DX15: =IF(DX$3<>"",VLOOKUP($A15,'Agency percentages'!$A$5:$X$70,(3+MATCH(DX$4,'Agency percentages'!$D$4:$W$4,0)),FALSE),"") ->  | DY15: =IF(DY$3<>"",VLOOKUP($A15,'Agency percentages'!$A$5:$X$70,(3+MATCH(DY$4,'Agency percentages'!$D$4:$W$4,0)),FALSE),"") ->  | DZ15: =IF(DZ$3<>"",VLOOKUP($A15,'Agency percentages'!$A$5:$X$70,(3+MATCH(DZ$4,'Agency percentages'!$D$4:$W$4,0)),FALSE),"") ->  | EB15: =IF(AND(EB$3<>"",DG15<>0),HLOOKUP(EB$4,'Agency cashability'!$B$3:$U$5,2,0),0) -> 0.2 | EC15: =IF(AND(EC$3<>"",DH15<>0),HLOOKUP(EC$4,'Agency cashability'!$B$3:$U$5,2,0),0) -> 0 | ED15: =IF(AND(ED$3<>"",DI15<>0),HLOOKUP(ED$4,'Agency cashability'!$B$3:$U$5,2,0),0) -> 0 | EE15: =IF(AND(EE$3<>"",DJ15<>0),HLOOKUP(EE$4,'Agency cashability'!$B$3:$U$5,2,0),0) -> 0 | EF15: =IF(AND(EF$3<>"",DK15<>0),HLOOKUP(EF$4,'Agency cashability'!$B$3:$U$5,2,0),0) -> 0 | EG15: =IF(AND(EG$3<>"",DL15<>0),HLOOKUP(EG$4,'Agency cashability'!$B$3:$U$5,2,0),0) -> 0 | EH15: =IF(AND(EH$3<>"",DM15<>0),HLOOKUP(EH$4,'Agency cashability'!$B$3:$U$5,2,0),0) -> 0 | EI15: =IF(AND(EI$3<>"",DN15<>0),HLOOKUP(EI$4,'Agency cashability'!$B$3:$U$5,2,0),0) -> 0 | EJ15: =IF(AND(EJ$3<>"",DO15<>0),HLOOKUP(EJ$4,'Agency cashability'!$B$3:$U$5,2,0),0) -> 0 | EK15: =IF(AND(EK$3<>"",DP15<>0),HLOOKUP(EK$4,'Agency cashability'!$B$3:$U$5,2,0),0) -> 0 | EL15: =IF(AND(EL$3<>"",DQ15<>0),HLOOKUP(EL$4,'Agency cashability'!$B$3:$U$5,2,0),0) -> 0 | EM15: =IF(AND(EM$3<>"",DR15<>0),HLOOKUP(EM$4,'Agency cashability'!$B$3:$U$5,2,0),0) -> 0 | EN15: =IF(AND(EN$3<>"",DS15<>0),HLOOKUP(EN$4,'Agency cashability'!$B$3:$U$5,2,0),0) -> 0 | EO15: =IF(AND(EO$3<>"",DT15<>0),HLOOKUP(EO$4,'Agency cashability'!$B$3:$U$5,2,0),0) -> 0 | EP15: =IF(AND(EP$3<>"",DU15<>0),HLOOKUP(EP$4,'Agency cashability'!$B$3:$U$5,2,0),0) -> 0 | EQ15: =IF(AND(EQ$3<>"",DV15<>0),HLOOKUP(EQ$4,'Agency cashability'!$B$3:$U$5,2,0),0) -> 0 | ER15: =IF(AND(ER$3<>"",DW15<>0),HLOOKUP(ER$4,'Agency cashability'!$B$3:$U$5,2,0),0) -> 0 | ES15: =IF(AND(ES$3<>"",DX15<>0),HLOOKUP(ES$4,'Agency cashability'!$B$3:$U$5,2,0),0) -> 0 | ET15: =IF(AND(ET$3<>"",DY15<>0),HLOOKUP(ET$4,'Agency cashability'!$B$3:$U$5,2,0),0) -> 0 | EU15: =IF(AND(EU$3<>"",DZ15<>0),HLOOKUP(EU$4,'Agency cashability'!$B$3:$U$5,2,0),0) -> 0 | EW15: =IF(AND(EW$3<>"",DG15<>0),HLOOKUP(EW$4,'Agency cashability'!$B$3:$U$5,3,0),0) -> 0.5 | EX15: =IF(AND(EX$3<>"",DH15<>0),HLOOKUP(EX$4,'Agency cashability'!$B$3:$U$5,3,0),0) -> 0 | EY15: =IF(AND(EY$3<>"",DI15<>0),HLOOKUP(EY$4,'Agency cashability'!$B$3:$U$5,3,0),0) -> 0 | EZ15: =IF(AND(EZ$3<>"",DJ15<>0),HLOOKUP(EZ$4,'Agency cashability'!$B$3:$U$5,3,0),0) -> 0 | FA15: =IF(AND(FA$3<>"",DK15<>0),HLOOKUP(FA$4,'Agency cashability'!$B$3:$U$5,3,0),0) -> 0 | FB15: =IF(AND(FB$3<>"",DL15<>0),HLOOKUP(FB$4,'Agency cashability'!$B$3:$U$5,3,0),0) -> 0 | FC15: =IF(AND(FC$3<>"",DM15<>0),HLOOKUP(FC$4,'Agency cashability'!$B$3:$U$5,3,0),0) -> 0 | FD15: =IF(AND(FD$3<>"",DN15<>0),HLOOKUP(FD$4,'Agency cashability'!$B$3:$U$5,3,0),0) -> 0 | FE15: =IF(AND(FE$3<>"",DO15<>0),HLOOKUP(FE$4,'Agency cashability'!$B$3:$U$5,3,0),0) -> 0 | FF15: =IF(AND(FF$3<>"",DP15<>0),HLOOKUP(FF$4,'Agency cashability'!$B$3:$U$5,3,0),0) -> 0 | FG15: =IF(AND(FG$3<>"",DQ15<>0),HLOOKUP(FG$4,'Agency cashability'!$B$3:$U$5,3,0),0) -> 0 | FH15: =IF(AND(FH$3<>"",DR15<>0),HLOOKUP(FH$4,'Agency cashability'!$B$3:$U$5,3,0),0) -> 0 | FI15: =IF(AND(FI$3<>"",DS15<>0),HLOOKUP(FI$4,'Agency cashability'!$B$3:$U$5,3,0),0) -> 0 | FJ15: =IF(AND(FJ$3<>"",DT15<>0),HLOOKUP(FJ$4,'Agency cashability'!$B$3:$U$5,3,0),0) -> 0 | FK15: =IF(AND(FK$3<>"",DU15<>0),HLOOKUP(FK$4,'Agency cashability'!$B$3:$U$5,3,0),0) -> 0 | FL15: =IF(AND(FL$3<>"",DV15<>0),HLOOKUP(FL$4,'Agency cashability'!$B$3:$U$5,3,0),0) -> 0 | FM15: =IF(AND(FM$3<>"",DW15<>0),HLOOKUP(FM$4,'Agency cashability'!$B$3:$U$5,3,0),0) -> 0 | FN15: =IF(AND(FN$3<>"",DX15<>0),HLOOKUP(FN$4,'Agency cashability'!$B$3:$U$5,3,0),0) -> 0 | FO15: =IF(AND(FO$3<>"",DY15<>0),HLOOKUP(FO$4,'Agency cashability'!$B$3:$U$5,3,0),0) -> 0 | FP15: =IF(AND(FP$3<>"",DZ15<>0),HLOOKUP(FP$4,'Agency cashability'!$B$3:$U$5,3,0),0) -> 0 | FR15: 0 | FS15: 0 | FT15: 0 | FU15: 0 | FV15: 0 | FW15: 0 | GM15: =IF((GM$3<>""),EB15*FR15,"") -> 0 | GN15: 0 | GO15: 0 | GP15: 0 | GQ15: 0 | GR15: 0 | HJ15: =IF((HJ$3<>""),EW15*FR15,"") -> 0 | HK15: 0 | HL15: 0 | HM15: 0 | HN15: 0 | HO15: 0
A16: B9a | B16: Reduced incidents of crime - homicide | C16: No | D16: Reduced police, other criminal justice costs, health costs per actual crime (N.B. Use multipliers to convert from recorded crime or convictions) | E16: Police, CJS, NHS | R16: 819530 | S16: 819530 | T16: 315780 | U16: 2082430 | V16: 3217740 | W16: 2016-17 | X16: =VLOOKUP(W16,'GDP Deflators'!$B$8:$C$76,2,0)*100/VLOOKUP('Model constants'!$B$3,'GDP Deflators'!$B$8:$C$76,2,0) -> 90.9016879 | Y16: The Economic and Social cost of Crime, Second Edition (Home Office 2018) | AA16: =IF($C16="Yes",($H16*$J16*$L16*($N16-$P16)*R16*100*(1+$Z16)/$X16),0) -> 0 | AB16: 0 | BE16: 0 | BF16: 0 | BG16: 0 | BH16: 0 | BI16: 0 | BJ16: 0 | BK16: 0 | BL16: 0 | BM16: 0 | BN16: 0 | CD16: 0 | CF16: 0 | CG16: 0 | CH16: 0 | CI16: 0 | CJ16: 0 | CK16: 0 | CL16: 0 | CM16: 0 | CN16: 0 | CO16: 0 | DE16: 0 | DG16: =IF(DG$3<>"",VLOOKUP($A16,'Agency percentages'!$A$5:$X$70,(3+MATCH(DG$4,'Agency percentages'!$D$4:$W$4,0)),FALSE),"") -> 0.001354451386 | DH16: =IF(DH$3<>"",VLOOKUP($A16,'Agency percentages'!$A$5:$X$70,(3+MATCH(DH$4,'Agency percentages'!$D$4:$W$4,0)),FALSE),"") -> 0 | DI16: =IF(DI$3<>"",VLOOKUP($A16,'Agency percentages'!$A$5:$X$70,(3+MATCH(DI$4,'Agency percentages'!$D$4:$W$4,0)),FALSE),"") -> 0 | DJ16: =IF(DJ$3<>"",VLOOKUP($A16,'Agency percentages'!$A$5:$X$70,(3+MATCH(DJ$4,'Agency percentages'!$D$4:$W$4,0)),FALSE),"") -> 0 | DK16: =IF(DK$3<>"",VLOOKUP($A16,'Agency percentages'!$A$5:$X$70,(3+MATCH(DK$4,'Agency percentages'!$D$4:$W$4,0)),FALSE),"") -> 0 | DL16: =IF(DL$3<>"",VLOOKUP($A16,'Agency percentages'!$A$5:$X$70,(3+MATCH(DL$4,'Agency percentages'!$D$4:$W$4,0)),FALSE),"") -> 0 | DM16: =IF(DM$3<>"",VLOOKUP($A16,'Agency percentages'!$A$5:$X$70,(3+MATCH(DM$4,'Agency percentages'!$D$4:$W$4,0)),FALSE),"") ->  | DN16: =IF(DN$3<>"",VLOOKUP($A16,'Agency percentages'!$A$5:$X$70,(3+MATCH(DN$4,'Agency percentages'!$D$4:$W$4,0)),FALSE),"") ->  | DO16: =IF(DO$3<>"",VLOOKUP($A16,'Agency percentages'!$A$5:$X$70,(3+MATCH(DO$4,'Agency percentages'!$D$4:$W$4,0)),FALSE),"") ->  | DP16: =IF(DP$3<>"",VLOOKUP($A16,'Agency percentages'!$A$5:$X$70,(3+MATCH(DP$4,'Agency percentages'!$D$4:$W$4,0)),FALSE),"") ->  | DQ16: =IF(DQ$3<>"",VLOOKUP($A16,'Agency percentages'!$A$5:$X$70,(3+MATCH(DQ$4,'Agency percentages'!$D$4:$W$4,0)),FALSE),"") ->  | DR16: =IF(DR$3<>"",VLOOKUP($A16,'Agency percentages'!$A$5:$X$70,(3+MATCH(DR$4,'Agency percentages'!$D$4:$W$4,0)),FALSE),"") ->  | DS16: =IF(DS$3<>"",VLOOKUP($A16,'Agency percentages'!$A$5:$X$70,(3+MATCH(DS$4,'Agency percentages'!$D$4:$W$4,0)),FALSE),"") ->  | DT16: =IF(DT$3<>"",VLOOKUP($A16,'Agency percentages'!$A$5:$X$70,(3+MATCH(DT$4,'Agency percentages'!$D$4:$W$4,0)),FALSE),"") ->  | DU16: =IF(DU$3<>"",VLOOKUP($A16,'Agency percentages'!$A$5:$X$70,(3+MATCH(DU$4,'Agency percentages'!$D$4:$W$4,0)),FALSE),"") ->  | DV16: =IF(DV$3<>"",VLOOKUP($A16,'Agency percentages'!$A$5:$X$70,(3+MATCH(DV$4,'Agency percentages'!$D$4:$W$4,0)),FALSE),"") ->  | DW16: =IF(DW$3<>"",VLOOKUP($A16,'Agency percentages'!$A$5:$X$70,(3+MATCH(DW$4,'Agency percentages'!$D$4:$W$4,0)),FALSE),"") ->  | DX16: =IF(DX$3<>"",VLOOKUP($A16,'Agency percentages'!$A$5:$X$70,(3+MATCH(DX$4,'Agency percentages'!$D$4:$W$4,0)),FALSE),"") ->  | DY16: =IF(DY$3<>"",VLOOKUP($A16,'Agency percentages'!$A$5:$X$70,(3+MATCH(DY$4,'Agency percentages'!$D$4:$W$4,0)),FALSE),"") ->  | DZ16: =IF(DZ$3<>"",VLOOKUP($A16,'Agency percentages'!$A$5:$X$70,(3+MATCH(DZ$4,'Agency percentages'!$D$4:$W$4,0)),FALSE),"") ->  | EB16: =IF(AND(EB$3<>"",DG16<>0),HLOOKUP(EB$4,'Agency cashability'!$B$3:$U$5,2,0),0) -> 0.2 | EC16: =IF(AND(EC$3<>"",DH16<>0),HLOOKUP(EC$4,'Agency cashability'!$B$3:$U$5,2,0),0) -> 0 | ED16: =IF(AND(ED$3<>"",DI16<>0),HLOOKUP(ED$4,'Agency cashability'!$B$3:$U$5,2,0),0) -> 0 | EE16: =IF(AND(EE$3<>"",DJ16<>0),HLOOKUP(EE$4,'Agency cashability'!$B$3:$U$5,2,0),0) -> 0 | EF16: =IF(AND(EF$3<>"",DK16<>0),HLOOKUP(EF$4,'Agency cashability'!$B$3:$U$5,2,0),0) -> 0 | EG16: =IF(AND(EG$3<>"",DL16<>0),HLOOKUP(EG$4,'Agency cashability'!$B$3:$U$5,2,0),0) -> 0 | EH16: =IF(AND(EH$3<>"",DM16<>0),HLOOKUP(EH$4,'Agency cashability'!$B$3:$U$5,2,0),0) -> 0 | EI16: =IF(AND(EI$3<>"",DN16<>0),HLOOKUP(EI$4,'Agency cashability'!$B$3:$U$5,2,0),0) -> 0 | EJ16: =IF(AND(EJ$3<>"",DO16<>0),HLOOKUP(EJ$4,'Agency cashability'!$B$3:$U$5,2,0),0) -> 0 | EK16: =IF(AND(EK$3<>"",DP16<>0),HLOOKUP(EK$4,'Agency cashability'!$B$3:$U$5,2,0),0) -> 0 | EL16: =IF(AND(EL$3<>"",DQ16<>0),HLOOKUP(EL$4,'Agency cashability'!$B$3:$U$5,2,0),0) -> 0 | EM16: =IF(AND(EM$3<>"",DR16<>0),HLOOKUP(EM$4,'Agency cashability'!$B$3:$U$5,2,0),0) -> 0 | EN16: =IF(AND(EN$3<>"",DS16<>0),HLOOKUP(EN$4,'Agency cashability'!$B$3:$U$5,2,0),0) -> 0 | EO16: =IF(AND(EO$3<>"",DT16<>0),HLOOKUP(EO$4,'Agency cashability'!$B$3:$U$5,2,0),0) -> 0 | EP16: =IF(AND(EP$3<>"",DU16<>0),HLOOKUP(EP$4,'Agency cashability'!$B$3:$U$5,2,0),0) -> 0 | EQ16: =IF(AND(EQ$3<>"",DV16<>0),HLOOKUP(EQ$4,'Agency cashability'!$B$3:$U$5,2,0),0) -> 0 | ER16: =IF(AND(ER$3<>"",DW16<>0),HLOOKUP(ER$4,'Agency cashability'!$B$3:$U$5,2,0),0) -> 0 | ES16: =IF(AND(ES$3<>"",DX16<>0),HLOOKUP(ES$4,'Agency cashability'!$B$3:$U$5,2,0),0) -> 0 | ET16: =IF(AND(ET$3<>"",DY16<>0),HLOOKUP(ET$4,'Agency cashability'!$B$3:$U$5,2,0),0) -> 0 | EU16: =IF(AND(EU$3<>"",DZ16<>0),HLOOKUP(EU$4,'Agency cashability'!$B$3:$U$5,2,0),0) -> 0 | EW16: =IF(AND(EW$3<>"",DG16<>0),HLOOKUP(EW$4,'Agency cashability'!$B$3:$U$5,3,0),0) -> 0.5 | EX16: =IF(AND(EX$3<>"",DH16<>0),HLOOKUP(EX$4,'Agency cashability'!$B$3:$U$5,3,0),0) -> 0 | EY16: =IF(AND(EY$3<>"",DI16<>0),HLOOKUP(EY$4,'Agency cashability'!$B$3:$U$5,3,0),0) -> 0 | EZ16: =IF(AND(EZ$3<>"",DJ16<>0),HLOOKUP(EZ$4,'Agency cashability'!$B$3:$U$5,3,0),0) -> 0 | FA16: =IF(AND(FA$3<>"",DK16<>0),HLOOKUP(FA$4,'Agency cashability'!$B$3:$U$5,3,0),0) -> 0 | FB16: =IF(AND(FB$3<>"",DL16<>0),HLOOKUP(FB$4,'Agency cashability'!$B$3:$U$5,3,0),0) -> 0 | FC16: =IF(AND(FC$3<>"",DM16<>0),HLOOKUP(FC$4,'Agency cashability'!$B$3:$U$5,3,0),0) -> 0 | FD16: =IF(AND(FD$3<>"",DN16<>0),HLOOKUP(FD$4,'Agency cashability'!$B$3:$U$5,3,0),0) -> 0 | FE16: =IF(AND(FE$3<>"",DO16<>0),HLOOKUP(FE$4,'Agency cashability'!$B$3:$U$5,3,0),0) -> 0 | FF16: =IF(AND(FF$3<>"",DP16<>0),HLOOKUP(FF$4,'Agency cashability'!$B$3:$U$5,3,0),0) -> 0 | FG16: =IF(AND(FG$3<>"",DQ16<>0),HLOOKUP(FG$4,'Agency cashability'!$B$3:$U$5,3,0),0) -> 0 | FH16: =IF(AND(FH$3<>"",DR16<>0),HLOOKUP(FH$4,'Agency cashability'!$B$3:$U$5,3,0),0) -> 0 | FI16: =IF(AND(FI$3<>"",DS16<>0),HLOOKUP(FI$4,'Agency cashability'!$B$3:$U$5,3,0),0) -> 0 | FJ16: =IF(AND(FJ$3<>"",DT16<>0),HLOOKUP(FJ$4,'Agency cashability'!$B$3:$U$5,3,0),0) -> 0 | FK16: =IF(AND(FK$3<>"",DU16<>0),HLOOKUP(FK$4,'Agency cashability'!$B$3:$U$5,3,0),0) -> 0 | FL16: =IF(AND(FL$3<>"",DV16<>0),HLOOKUP(FL$4,'Agency cashability'!$B$3:$U$5,3,0),0) -> 0 | FM16: =IF(AND(FM$3<>"",DW16<>0),HLOOKUP(FM$4,'Agency cashability'!$B$3:$U$5,3,0),0) -> 0 | FN16: =IF(AND(FN$3<>"",DX16<>0),HLOOKUP(FN$4,'Agency cashability'!$B$3:$U$5,3,0),0) -> 0 | FO16: =IF(AND(FO$3<>"",DY16<>0),HLOOKUP(FO$4,'Agency cashability'!$B$3:$U$5,3,0),0) -> 0 | FP16: =IF(AND(FP$3<>"",DZ16<>0),HLOOKUP(FP$4,'Agency cashability'!$B$3:$U$5,3,0),0) -> 0 | FR16: 0 | FS16: 0 | FT16: 0 | FU16: 0 | FV16: 0 | FW16: 0 | GM16: =IF((GM$3<>""),EB16*FR16,"") -> 0 | GN16: 0 | GO16: 0 | GP16: 0 | GQ16: 0 | GR16: 0 | HJ16: =IF((HJ$3<>""),EW16*FR16,"") -> 0 | HK16: 0 | HL16: 0 | HM16: 0 | HN16: 0 | HO16: 0
A17: B9b | B17: Reduced incidents of crime - violence with injury | C17: No | D17: Reduced police, other criminal justice costs, health costs per actual crime (N.B. Use multipliers to convert from recorded crime or convictions) | E17: Police, CJS, NHS | R17: 3420 | S17: 3420 | T17: 2400 | U17: 8240 | V17: 14060 | W17: 2016-17 | X17: =VLOOKUP(W17,'GDP Deflators'!$B$8:$C$76,2,0)*100/VLOOKUP('Model constants'!$B$3,'GDP Deflators'!$B$8:$C$76,2,0) -> 90.9016879 | Y17: The Economic and Social cost of Crime, Second Edition (Home Office 2018) | AA17: 0 | AB17: 0 | BE17: 0 | BF17: 0 | BG17: 0 | BH17: 0 | BI17: 0 | BJ17: 0 | BK17: 0 | BL17: 0 | BM17: 0 | BN17: 0 | CD17: 0 | CF17: 0 | CG17: 0 | CH17: 0 | CI17: 0 | CJ17: 0 | CK17: 0 | CL17: 0 | CM17: 0 | CN17: 0 | CO17: 0 | DE17: 0 | DG17: =IF(DG$3<>"",VLOOKUP($A17,'Agency percentages'!$A$5:$X$70,(3+MATCH(DG$4,'Agency percentages'!$D$4:$W$4,0)),FALSE),"") -> 0.2674418605 | DH17: =IF(DH$3<>"",VLOOKUP($A17,'Agency percentages'!$A$5:$X$70,(3+MATCH(DH$4,'Agency percentages'!$D$4:$W$4,0)),FALSE),"") -> 0 | DI17: =IF(DI$3<>"",VLOOKUP($A17,'Agency percentages'!$A$5:$X$70,(3+MATCH(DI$4,'Agency percentages'!$D$4:$W$4,0)),FALSE),"") -> 0 | DJ17: =IF(DJ$3<>"",VLOOKUP($A17,'Agency percentages'!$A$5:$X$70,(3+MATCH(DJ$4,'Agency percentages'!$D$4:$W$4,0)),FALSE),"") -> 0 | DK17: =IF(DK$3<>"",VLOOKUP($A17,'Agency percentages'!$A$5:$X$70,(3+MATCH(DK$4,'Agency percentages'!$D$4:$W$4,0)),FALSE),"") -> 0 | DL17: =IF(DL$3<>"",VLOOKUP($A17,'Agency percentages'!$A$5:$X$70,(3+MATCH(DL$4,'Agency percentages'!$D$4:$W$4,0)),FALSE),"") -> 0 | DM17: =IF(DM$3<>"",VLOOKUP($A17,'Agency percentages'!$A$5:$X$70,(3+MATCH(DM$4,'Agency percentages'!$D$4:$W$4,0)),FALSE),"") ->  | DN17: =IF(DN$3<>"",VLOOKUP($A17,'Agency percentages'!$A$5:$X$70,(3+MATCH(DN$4,'Agency percentages'!$D$4:$W$4,0)),FALSE),"") ->  | DO17: =IF(DO$3<>"",VLOOKUP($A17,'Agency percentages'!$A$5:$X$70,(3+MATCH(DO$4,'Agency percentages'!$D$4:$W$4,0)),FALSE),"") ->  | DP17: =IF(DP$3<>"",VLOOKUP($A17,'Agency percentages'!$A$5:$X$70,(3+MATCH(DP$4,'Agency percentages'!$D$4:$W$4,0)),FALSE),"") ->  | DQ17: =IF(DQ$3<>"",VLOOKUP($A17,'Agency percentages'!$A$5:$X$70,(3+MATCH(DQ$4,'Agency percentages'!$D$4:$W$4,0)),FALSE),"") ->  | DR17: =IF(DR$3<>"",VLOOKUP($A17,'Agency percentages'!$A$5:$X$70,(3+MATCH(DR$4,'Agency percentages'!$D$4:$W$4,0)),FALSE),"") ->  | DS17: =IF(DS$3<>"",VLOOKUP($A17,'Agency percentages'!$A$5:$X$70,(3+MATCH(DS$4,'Agency percentages'!$D$4:$W$4,0)),FALSE),"") ->  | DT17: =IF(DT$3<>"",VLOOKUP($A17,'Agency percentages'!$A$5:$X$70,(3+MATCH(DT$4,'Agency percentages'!$D$4:$W$4,0)),FALSE),"") ->  | DU17: =IF(DU$3<>"",VLOOKUP($A17,'Agency percentages'!$A$5:$X$70,(3+MATCH(DU$4,'Agency percentages'!$D$4:$W$4,0)),FALSE),"") ->  | DV17: =IF(DV$3<>"",VLOOKUP($A17,'Agency percentages'!$A$5:$X$70,(3+MATCH(DV$4,'Agency percentages'!$D$4:$W$4,0)),FALSE),"") ->  | DW17: =IF(DW$3<>"",VLOOKUP($A17,'Agency percentages'!$A$5:$X$70,(3+MATCH(DW$4,'Agency percentages'!$D$4:$W$4,0)),FALSE),"") ->  | DX17: =IF(DX$3<>"",VLOOKUP($A17,'Agency percentages'!$A$5:$X$70,(3+MATCH(DX$4,'Agency percentages'!$D$4:$W$4,0)),FALSE),"") ->  | DY17: =IF(DY$3<>"",VLOOKUP($A17,'Agency percentages'!$A$5:$X$70,(3+MATCH(DY$4,'Agency percentages'!$D$4:$W$4,0)),FALSE),"") ->  | DZ17: =IF(DZ$3<>"",VLOOKUP($A17,'Agency percentages'!$A$5:$X$70,(3+MATCH(DZ$4,'Agency percentages'!$D$4:$W$4,0)),FALSE),"") ->  | EB17: =IF(AND(EB$3<>"",DG17<>0),HLOOKUP(EB$4,'Agency cashability'!$B$3:$U$5,2,0),0) -> 0.2 | EC17: =IF(AND(EC$3<>"",DH17<>0),HLOOKUP(EC$4,'Agency cashability'!$B$3:$U$5,2,0),0) -> 0 | ED17: =IF(AND(ED$3<>"",DI17<>0),HLOOKUP(ED$4,'Agency cashability'!$B$3:$U$5,2,0),0) -> 0 | EE17: =IF(AND(EE$3<>"",DJ17<>0),HLOOKUP(EE$4,'Agency cashability'!$B$3:$U$5,2,0),0) -> 0 | EF17: =IF(AND(EF$3<>"",DK17<>0),HLOOKUP(EF$4,'Agency cashability'!$B$3:$U$5,2,0),0) -> 0 | EG17: =IF(AND(EG$3<>"",DL17<>0),HLOOKUP(EG$4,'Agency cashability'!$B$3:$U$5,2,0),0) -> 0 | EH17: =IF(AND(EH$3<>"",DM17<>0),HLOOKUP(EH$4,'Agency cashability'!$B$3:$U$5,2,0),0) -> 0 | EI17: =IF(AND(EI$3<>"",DN17<>0),HLOOKUP(EI$4,'Agency cashability'!$B$3:$U$5,2,0),0) -> 0 | EJ17: =IF(AND(EJ$3<>"",DO17<>0),HLOOKUP(EJ$4,'Agency cashability'!$B$3:$U$5,2,0),0) -> 0 | EK17: =IF(AND(EK$3<>"",DP17<>0),HLOOKUP(EK$4,'Agency cashability'!$B$3:$U$5,2,0),0) -> 0 | EL17: =IF(AND(EL$3<>"",DQ17<>0),HLOOKUP(EL$4,'Agency cashability'!$B$3:$U$5,2,0),0) -> 0 | EM17: =IF(AND(EM$3<>"",DR17<>0),HLOOKUP(EM$4,'Agency cashability'!$B$3:$U$5,2,0),0) -> 0 | EN17: =IF(AND(EN$3<>"",DS17<>0),HLOOKUP(EN$4,'Agency cashability'!$B$3:$U$5,2,0),0) -> 0 | EO17: =IF(AND(EO$3<>"",DT17<>0),HLOOKUP(EO$4,'Agency cashability'!$B$3:$U$5,2,0),0) -> 0 | EP17: =IF(AND(EP$3<>"",DU17<>0),HLOOKUP(EP$4,'Agency cashability'!$B$3:$U$5,2,0),0) -> 0 | EQ17: =IF(AND(EQ$3<>"",DV17<>0),HLOOKUP(EQ$4,'Agency cashability'!$B$3:$U$5,2,0),0) -> 0 | ER17: =IF(AND(ER$3<>"",DW17<>0),HLOOKUP(ER$4,'Agency cashability'!$B$3:$U$5,2,0),0) -> 0 | ES17: =IF(AND(ES$3<>"",DX17<>0),HLOOKUP(ES$4,'Agency cashability'!$B$3:$U$5,2,0),0) -> 0 | ET17: =IF(AND(ET$3<>"",DY17<>0),HLOOKUP(ET$4,'Agency cashability'!$B$3:$U$5,2,0),0) -> 0 | EU17: =IF(AND(EU$3<>"",DZ17<>0),HLOOKUP(EU$4,'Agency cashability'!$B$3:$U$5,2,0),0) -> 0 | EW17: =IF(AND(EW$3<>"",DG17<>0),HLOOKUP(EW$4,'Agency cashability'!$B$3:$U$5,3,0),0) -> 0.5 | EX17: =IF(AND(EX$3<>"",DH17<>0),HLOOKUP(EX$4,'Agency cashability'!$B$3:$U$5,3,0),0) -> 0 | EY17: =IF(AND(EY$3<>"",DI17<>0),HLOOKUP(EY$4,'Agency cashability'!$B$3:$U$5,3,0),0) -> 0 | EZ17: =IF(AND(EZ$3<>"",DJ17<>0),HLOOKUP(EZ$4,'Agency cashability'!$B$3:$U$5,3,0),0) -> 0 | FA17: =IF(AND(FA$3<>"",DK17<>0),HLOOKUP(FA$4,'Agency cashability'!$B$3:$U$5,3,0),0) -> 0 | FB17: =IF(AND(FB$3<>"",DL17<>0),HLOOKUP(FB$4,'Agency cashability'!$B$3:$U$5,3,0),0) -> 0 | FC17: =IF(AND(FC$3<>"",DM17<>0),HLOOKUP(FC$4,'Agency cashability'!$B$3:$U$5,3,0),0) -> 0 | FD17: =IF(AND(FD$3<>"",DN17<>0),HLOOKUP(FD$4,'Agency cashability'!$B$3:$U$5,3,0),0) -> 0 | FE17: =IF(AND(FE$3<>"",DO17<>0),HLOOKUP(FE$4,'Agency cashability'!$B$3:$U$5,3,0),0) -> 0 | FF17: =IF(AND(FF$3<>"",DP17<>0),HLOOKUP(FF$4,'Agency cashability'!$B$3:$U$5,3,0),0) -> 0 | FG17: =IF(AND(FG$3<>"",DQ17<>0),HLOOKUP(FG$4,'Agency cashability'!$B$3:$U$5,3,0),0) -> 0 | FH17: =IF(AND(FH$3<>"",DR17<>0),HLOOKUP(FH$4,'Agency cashability'!$B$3:$U$5,3,0),0) -> 0 | FI17: =IF(AND(FI$3<>"",DS17<>0),HLOOKUP(FI$4,'Agency cashability'!$B$3:$U$5,3,0),0) -> 0 | FJ17: =IF(AND(FJ$3<>"",DT17<>0),HLOOKUP(FJ$4,'Agency cashability'!$B$3:$U$5,3,0),0) -> 0 | FK17: =IF(AND(FK$3<>"",DU17<>0),HLOOKUP(FK$4,'Agency cashability'!$B$3:$U$5,3,0),0) -> 0 | FL17: =IF(AND(FL$3<>"",DV17<>0),HLOOKUP(FL$4,'Agency cashability'!$B$3:$U$5,3,0),0) -> 0 | FM17: =IF(AND(FM$3<>"",DW17<>0),HLOOKUP(FM$4,'Agency cashability'!$B$3:$U$5,3,0),0) -> 0 | FN17: =IF(AND(FN$3<>"",DX17<>0),HLOOKUP(FN$4,'Agency cashability'!$B$3:$U$5,3,0),0) -> 0 | FO17: =IF(AND(FO$3<>"",DY17<>0),HLOOKUP(FO$4,'Agency cashability'!$B$3:$U$5,3,0),0) -> 0 | FP17: =IF(AND(FP$3<>"",DZ17<>0),HLOOKUP(FP$4,'Agency cashability'!$B$3:$U$5,3,0),0) -> 0 | FR17: 0 | FS17: 0 | FT17: 0 | FU17: 0 | FV17: 0 | FW17: 0 | GM17: =IF((GM$3<>""),EB17*FR17,"") -> 0 | GN17: 0 | GO17: 0 | GP17: 0 | GQ17: 0 | GR17: 0 | HJ17: =IF((HJ$3<>""),EW17*FR17,"") -> 0 | HK17: 0 | HL17: 0 | HM17: 0 | HN17: 0 | HO17: 0
A18: B9c | B18: Reduced incidents of crime - violence without injury | C18: No | D18: Reduced police, other criminal justice costs, health costs per actual crime (N.B. Use multipliers to convert from recorded crime or convictions) | E18: Police, CJS, NHS | R18: 2340 | S18: 2340 | T18: 790 | U18: 2810 | V18: 5940 | W18: 2016-17 | X18: =VLOOKUP(W18,'GDP Deflators'!$B$8:$C$76,2,0)*100/VLOOKUP('Model constants'!$B$3,'GDP Deflators'!$B$8:$C$76,2,0) -> 90.9016879 | Y18: The Economic and Social cost of Crime, Second Edition (Home Office 2018) | AA18: 0 | AB18: 0 | BE18: 0 | BF18: 0 | BG18: 0 | BH18: 0 | BI18: 0 | BJ18: 0 | BK18: 0 | BL18: 0 | BM18: 0 | BN18: 0 | CD18: 0 | CF18: 0 | CG18: 0 | CH18: 0 | CI18: 0 | CJ18: 0 | CK18: 0 | CL18: 0 | CM18: 0 | CN18: 0 | CO18: 0 | DE18: 0 | DG18: =IF(DG$3<>"",VLOOKUP($A18,'Agency percentages'!$A$5:$X$70,(3+MATCH(DG$4,'Agency percentages'!$D$4:$W$4,0)),FALSE),"") -> 0.1158798283 | DH18: =IF(DH$3<>"",VLOOKUP($A18,'Agency percentages'!$A$5:$X$70,(3+MATCH(DH$4,'Agency percentages'!$D$4:$W$4,0)),FALSE),"") -> 0 | DI18: =IF(DI$3<>"",VLOOKUP($A18,'Agency percentages'!$A$5:$X$70,(3+MATCH(DI$4,'Agency percentages'!$D$4:$W$4,0)),FALSE),"") -> 0 | DJ18: =IF(DJ$3<>"",VLOOKUP($A18,'Agency percentages'!$A$5:$X$70,(3+MATCH(DJ$4,'Agency percentages'!$D$4:$W$4,0)),FALSE),"") -> 0 | DK18: =IF(DK$3<>"",VLOOKUP($A18,'Agency percentages'!$A$5:$X$70,(3+MATCH(DK$4,'Agency percentages'!$D$4:$W$4,0)),FALSE),"") -> 0 | DL18: =IF(DL$3<>"",VLOOKUP($A18,'Agency percentages'!$A$5:$X$70,(3+MATCH(DL$4,'Agency percentages'!$D$4:$W$4,0)),FALSE),"") -> 0 | DM18: =IF(DM$3<>"",VLOOKUP($A18,'Agency percentages'!$A$5:$X$70,(3+MATCH(DM$4,'Agency percentages'!$D$4:$W$4,0)),FALSE),"") ->  | DN18: =IF(DN$3<>"",VLOOKUP($A18,'Agency percentages'!$A$5:$X$70,(3+MATCH(DN$4,'Agency percentages'!$D$4:$W$4,0)),FALSE),"") ->  | DO18: =IF(DO$3<>"",VLOOKUP($A18,'Agency percentages'!$A$5:$X$70,(3+MATCH(DO$4,'Agency percentages'!$D$4:$W$4,0)),FALSE),"") ->  | DP18: =IF(DP$3<>"",VLOOKUP($A18,'Agency percentages'!$A$5:$X$70,(3+MATCH(DP$4,'Agency percentages'!$D$4:$W$4,0)),FALSE),"") ->  | DQ18: =IF(DQ$3<>"",VLOOKUP($A18,'Agency percentages'!$A$5:$X$70,(3+MATCH(DQ$4,'Agency percentages'!$D$4:$W$4,0)),FALSE),"") ->  | DR18: =IF(DR$3<>"",VLOOKUP($A18,'Agency percentages'!$A$5:$X$70,(3+MATCH(DR$4,'Agency percentages'!$D$4:$W$4,0)),FALSE),"") ->  | DS18: =IF(DS$3<>"",VLOOKUP($A18,'Agency percentages'!$A$5:$X$70,(3+MATCH(DS$4,'Agency percentages'!$D$4:$W$4,0)),FALSE),"") ->  | DT18: =IF(DT$3<>"",VLOOKUP($A18,'Agency percentages'!$A$5:$X$70,(3+MATCH(DT$4,'Agency percentages'!$D$4:$W$4,0)),FALSE),"") ->  | DU18: =IF(DU$3<>"",VLOOKUP($A18,'Agency percentages'!$A$5:$X$70,(3+MATCH(DU$4,'Agency percentages'!$D$4:$W$4,0)),FALSE),"") ->  | DV18: =IF(DV$3<>"",VLOOKUP($A18,'Agency percentages'!$A$5:$X$70,(3+MATCH(DV$4,'Agency percentages'!$D$4:$W$4,0)),FALSE),"") ->  | DW18: =IF(DW$3<>"",VLOOKUP($A18,'Agency percentages'!$A$5:$X$70,(3+MATCH(DW$4,'Agency percentages'!$D$4:$W$4,0)),FALSE),"") ->  | DX18: =IF(DX$3<>"",VLOOKUP($A18,'Agency percentages'!$A$5:$X$70,(3+MATCH(DX$4,'Agency percentages'!$D$4:$W$4,0)),FALSE),"") ->  | DY18: =IF(DY$3<>"",VLOOKUP($A18,'Agency percentages'!$A$5:$X$70,(3+MATCH(DY$4,'Agency percentages'!$D$4:$W$4,0)),FALSE),"") ->  | DZ18: =IF(DZ$3<>"",VLOOKUP($A18,'Agency percentages'!$A$5:$X$70,(3+MATCH(DZ$4,'Agency percentages'!$D$4:$W$4,0)),FALSE),"") ->  | EB18: =IF(AND(EB$3<>"",DG18<>0),HLOOKUP(EB$4,'Agency cashability'!$B$3:$U$5,2,0),0) -> 0.2 | EC18: =IF(AND(EC$3<>"",DH18<>0),HLOOKUP(EC$4,'Agency cashability'!$B$3:$U$5,2,0),0) -> 0 | ED18: =IF(AND(ED$3<>"",DI18<>0),HLOOKUP(ED$4,'Agency cashability'!$B$3:$U$5,2,0),0) -> 0 | EE18: =IF(AND(EE$3<>"",DJ18<>0),HLOOKUP(EE$4,'Agency cashability'!$B$3:$U$5,2,0),0) -> 0 | EF18: =IF(AND(EF$3<>"",DK18<>0),HLOOKUP(EF$4,'Agency cashability'!$B$3:$U$5,2,0),0) -> 0 | EG18: =IF(AND(EG$3<>"",DL18<>0),HLOOKUP(EG$4,'Agency cashability'!$B$3:$U$5,2,0),0) -> 0 | EH18: =IF(AND(EH$3<>"",DM18<>0),HLOOKUP(EH$4,'Agency cashability'!$B$3:$U$5,2,0),0) -> 0 | EI18: =IF(AND(EI$3<>"",DN18<>0),HLOOKUP(EI$4,'Agency cashability'!$B$3:$U$5,2,0),0) -> 0 | EJ18: =IF(AND(EJ$3<>"",DO18<>0),HLOOKUP(EJ$4,'Agency cashability'!$B$3:$U$5,2,0),0) -> 0 | EK18: =IF(AND(EK$3<>"",DP18<>0),HLOOKUP(EK$4,'Agency cashability'!$B$3:$U$5,2,0),0) -> 0 | EL18: =IF(AND(EL$3<>"",DQ18<>0),HLOOKUP(EL$4,'Agency cashability'!$B$3:$U$5,2,0),0) -> 0 | EM18: =IF(AND(EM$3<>"",DR18<>0),HLOOKUP(EM$4,'Agency cashability'!$B$3:$U$5,2,0),0) -> 0 | EN18: =IF(AND(EN$3<>"",DS18<>0),HLOOKUP(EN$4,'Agency cashability'!$B$3:$U$5,2,0),0) -> 0 | EO18: =IF(AND(EO$3<>"",DT18<>0),HLOOKUP(EO$4,'Agency cashability'!$B$3:$U$5,2,0),0) -> 0 | EP18: =IF(AND(EP$3<>"",DU18<>0),HLOOKUP(EP$4,'Agency cashability'!$B$3:$U$5,2,0),0) -> 0 | EQ18: =IF(AND(EQ$3<>"",DV18<>0),HLOOKUP(EQ$4,'Agency cashability'!$B$3:$U$5,2,0),0) -> 0 | ER18: =IF(AND(ER$3<>"",DW18<>0),HLOOKUP(ER$4,'Agency cashability'!$B$3:$U$5,2,0),0) -> 0 | ES18: =IF(AND(ES$3<>"",DX18<>0),HLOOKUP(ES$4,'Agency cashability'!$B$3:$U$5,2,0),0) -> 0 | ET18: =IF(AND(ET$3<>"",DY18<>0),HLOOKUP(ET$4,'Agency cashability'!$B$3:$U$5,2,0),0) -> 0 | EU18: =IF(AND(EU$3<>"",DZ18<>0),HLOOKUP(EU$4,'Agency cashability'!$B$3:$U$5,2,0),0) -> 0 | EW18: =IF(AND(EW$3<>"",DG18<>0),HLOOKUP(EW$4,'Agency cashability'!$B$3:$U$5,3,0),0) -> 0.5 | EX18: =IF(AND(EX$3<>"",DH18<>0),HLOOKUP(EX$4,'Agency cashability'!$B$3:$U$5,3,0),0) -> 0 | EY18: =IF(AND(EY$3<>"",DI18<>0),HLOOKUP(EY$4,'Agency cashability'!$B$3:$U$5,3,0),0) -> 0 | EZ18: =IF(AND(EZ$3<>"",DJ18<>0),HLOOKUP(EZ$4,'Agency cashability'!$B$3:$U$5,3,0),0) -> 0 | FA18: =IF(AND(FA$3<>"",DK18<>0),HLOOKUP(FA$4,'Agency cashability'!$B$3:$U$5,3,0),0) -> 0 | FB18: =IF(AND(FB$3<>"",DL18<>0),HLOOKUP(FB$4,'Agency cashability'!$B$3:$U$5,3,0),0) -> 0 | FC18: =IF(AND(FC$3<>"",DM18<>0),HLOOKUP(FC$4,'Agency cashability'!$B$3:$U$5,3,0),0) -> 0 | FD18: =IF(AND(FD$3<>"",DN18<>0),HLOOKUP(FD$4,'Agency cashability'!$B$3:$U$5,3,0),0) -> 0 | FE18: =IF(AND(FE$3<>"",DO18<>0),HLOOKUP(FE$4,'Agency cashability'!$B$3:$U$5,3,0),0) -> 0 | FF18: =IF(AND(FF$3<>"",DP18<>0),HLOOKUP(FF$4,'Agency cashability'!$B$3:$U$5,3,0),0) -> 0 | FG18: =IF(AND(FG$3<>"",DQ18<>0),HLOOKUP(FG$4,'Agency cashability'!$B$3:$U$5,3,0),0) -> 0 | FH18: =IF(AND(FH$3<>"",DR18<>0),HLOOKUP(FH$4,'Agency cashability'!$B$3:$U$5,3,0),0) -> 0 | FI18: =IF(AND(FI$3<>"",DS18<>0),HLOOKUP(FI$4,'Agency cashability'!$B$3:$U$5,3,0),0) -> 0 | FJ18: =IF(AND(FJ$3<>"",DT18<>0),HLOOKUP(FJ$4,'Agency cashability'!$B$3:$U$5,3,0),0) -> 0 | FK18: =IF(AND(FK$3<>"",DU18<>0),HLOOKUP(FK$4,'Agency cashability'!$B$3:$U$5,3,0),0) -> 0 | FL18: =IF(AND(FL$3<>"",DV18<>0),HLOOKUP(FL$4,'Agency cashability'!$B$3:$U$5,3,0),0) -> 0 | FM18: =IF(AND(FM$3<>"",DW18<>0),HLOOKUP(FM$4,'Agency cashability'!$B$3:$U$5,3,0),0) -> 0 | FN18: =IF(AND(FN$3<>"",DX18<>0),HLOOKUP(FN$4,'Agency cashability'!$B$3:$U$5,3,0),0) -> 0 | FO18: =IF(AND(FO$3<>"",DY18<>0),HLOOKUP(FO$4,'Agency cashability'!$B$3:$U$5,3,0),0) -> 0 | FP18: =IF(AND(FP$3<>"",DZ18<>0),HLOOKUP(FP$4,'Agency cashability'!$B$3:$U$5,3,0),0) -> 0 | FR18: 0 | FS18: 0 | FT18: 0 | FU18: 0 | FV18: 0 | FW18: 0 | GM18: =IF((GM$3<>""),EB18*FR18,"") -> 0 | GN18: 0 | GO18: 0 | GP18: 0 | GQ18: 0 | GR18: 0 | HJ18: =IF((HJ$3<>""),EW18*FR18,"") -> 0 | HK18: 0 | HL18: 0 | HM18: 0 | HN18: 0 | HO18: 0
A19: B9d | B19: Reduced incidents of crime - rape | C19: No | D19: Reduced police, other criminal justice costs, health costs per actual crime (N.B. Use multipliers to convert from recorded crime or convictions) | E19: Police, CJS, NHS | R19: 8090 | S19: 8090 | T19: 6880 | U19: 24390 | V19: 39360 | W19: 2016-17 | X19: =VLOOKUP(W19,'GDP Deflators'!$B$8:$C$76,2,0)*100/VLOOKUP('Model constants'!$B$3,'GDP Deflators'!$B$8:$C$76,2,0) -> 90.9016879 | Y19: The Economic and Social cost of Crime, Second Edition (Home Office 2018) | AA19: 0 | AB19: 0 | BE19: 0 | BF19: 0 | BG19: 0 | BH19: 0 | BI19: 0 | BJ19: 0 | BK19: 0 | BL19: 0 | BM19: 0 | BN19: 0 | CD19: 0 | CF19: 0 | CG19: 0 | CH19: 0 | CI19: 0 | CJ19: 0 | CK19: 0 | CL19: 0 | CM19: 0 | CN19: 0 | CO19: 0 | DE19: 0 | DG19: =IF(DG$3<>"",VLOOKUP($A19,'Agency percentages'!$A$5:$X$70,(3+MATCH(DG$4,'Agency percentages'!$D$4:$W$4,0)),FALSE),"") -> 0.1372064277 | DH19: =IF(DH$3<>"",VLOOKUP($A19,'Agency percentages'!$A$5:$X$70,(3+MATCH(DH$4,'Agency percentages'!$D$4:$W$4,0)),FALSE),"") -> 0 | DI19: =IF(DI$3<>"",VLOOKUP($A19,'Agency percentages'!$A$5:$X$70,(3+MATCH(DI$4,'Agency percentages'!$D$4:$W$4,0)),FALSE),"") -> 0 | DJ19: =IF(DJ$3<>"",VLOOKUP($A19,'Agency percentages'!$A$5:$X$70,(3+MATCH(DJ$4,'Agency percentages'!$D$4:$W$4,0)),FALSE),"") -> 0 | DK19: =IF(DK$3<>"",VLOOKUP($A19,'Agency percentages'!$A$5:$X$70,(3+MATCH(DK$4,'Agency percentages'!$D$4:$W$4,0)),FALSE),"") -> 0 | DL19: =IF(DL$3<>"",VLOOKUP($A19,'Agency percentages'!$A$5:$X$70,(3+MATCH(DL$4,'Agency percentages'!$D$4:$W$4,0)),FALSE),"") -> 0 | DM19: =IF(DM$3<>"",VLOOKUP($A19,'Agency percentages'!$A$5:$X$70,(3+MATCH(DM$4,'Agency percentages'!$D$4:$W$4,0)),FALSE),"") ->  | DN19: =IF(DN$3<>"",VLOOKUP($A19,'Agency percentages'!$A$5:$X$70,(3+MATCH(DN$4,'Agency percentages'!$D$4:$W$4,0)),FALSE),"") ->  | DO19: =IF(DO$3<>"",VLOOKUP($A19,'Agency percentages'!$A$5:$X$70,(3+MATCH(DO$4,'Agency percentages'!$D$4:$W$4,0)),FALSE),"") ->  | DP19: =IF(DP$3<>"",VLOOKUP($A19,'Agency percentages'!$A$5:$X$70,(3+MATCH(DP$4,'Agency percentages'!$D$4:$W$4,0)),FALSE),"") ->  | DQ19: =IF(DQ$3<>"",VLOOKUP($A19,'Agency percentages'!$A$5:$X$70,(3+MATCH(DQ$4,'Agency percentages'!$D$4:$W$4,0)),FALSE),"") ->  | DR19: =IF(DR$3<>"",VLOOKUP($A19,'Agency percentages'!$A$5:$X$70,(3+MATCH(DR$4,'Agency percentages'!$D$4:$W$4,0)),FALSE),"") ->  | DS19: =IF(DS$3<>"",VLOOKUP($A19,'Agency percentages'!$A$5:$X$70,(3+MATCH(DS$4,'Agency percentages'!$D$4:$W$4,0)),FALSE),"") ->  | DT19: =IF(DT$3<>"",VLOOKUP($A19,'Agency percentages'!$A$5:$X$70,(3+MATCH(DT$4,'Agency percentages'!$D$4:$W$4,0)),FALSE),"") ->  | DU19: =IF(DU$3<>"",VLOOKUP($A19,'Agency percentages'!$A$5:$X$70,(3+MATCH(DU$4,'Agency percentages'!$D$4:$W$4,0)),FALSE),"") ->  | DV19: =IF(DV$3<>"",VLOOKUP($A19,'Agency percentages'!$A$5:$X$70,(3+MATCH(DV$4,'Agency percentages'!$D$4:$W$4,0)),FALSE),"") ->  | DW19: =IF(DW$3<>"",VLOOKUP($A19,'Agency percentages'!$A$5:$X$70,(3+MATCH(DW$4,'Agency percentages'!$D$4:$W$4,0)),FALSE),"") ->  | DX19: =IF(DX$3<>"",VLOOKUP($A19,'Agency percentages'!$A$5:$X$70,(3+MATCH(DX$4,'Agency percentages'!$D$4:$W$4,0)),FALSE),"") ->  | DY19: =IF(DY$3<>"",VLOOKUP($A19,'Agency percentages'!$A$5:$X$70,(3+MATCH(DY$4,'Agency percentages'!$D$4:$W$4,0)),FALSE),"") ->  | DZ19: =IF(DZ$3<>"",VLOOKUP($A19,'Agency percentages'!$A$5:$X$70,(3+MATCH(DZ$4,'Agency percentages'!$D$4:$W$4,0)),FALSE),"") ->  | EB19: =IF(AND(EB$3<>"",DG19<>0),HLOOKUP(EB$4,'Agency cashability'!$B$3:$U$5,2,0),0) -> 0.2 | EC19: =IF(AND(EC$3<>"",DH19<>0),HLOOKUP(EC$4,'Agency cashability'!$B$3:$U$5,2,0),0) -> 0 | ED19: =IF(AND(ED$3<>"",DI19<>0),HLOOKUP(ED$4,'Agency cashability'!$B$3:$U$5,2,0),0) -> 0 | EE19: =IF(AND(EE$3<>"",DJ19<>0),HLOOKUP(EE$4,'Agency cashability'!$B$3:$U$5,2,0),0) -> 0 | EF19: =IF(AND(EF$3<>"",DK19<>0),HLOOKUP(EF$4,'Agency cashability'!$B$3:$U$5,2,0),0) -> 0 | EG19: =IF(AND(EG$3<>"",DL19<>0),HLOOKUP(EG$4,'Agency cashability'!$B$3:$U$5,2,0),0) -> 0 | EH19: =IF(AND(EH$3<>"",DM19<>0),HLOOKUP(EH$4,'Agency cashability'!$B$3:$U$5,2,0),0) -> 0 | EI19: =IF(AND(EI$3<>"",DN19<>0),HLOOKUP(EI$4,'Agency cashability'!$B$3:$U$5,2,0),0) -> 0 | EJ19: =IF(AND(EJ$3<>"",DO19<>0),HLOOKUP(EJ$4,'Agency cashability'!$B$3:$U$5,2,0),0) -> 0 | EK19: =IF(AND(EK$3<>"",DP19<>0),HLOOKUP(EK$4,'Agency cashability'!$B$3:$U$5,2,0),0) -> 0 | EL19: =IF(AND(EL$3<>"",DQ19<>0),HLOOKUP(EL$4,'Agency cashability'!$B$3:$U$5,2,0),0) -> 0 | EM19: =IF(AND(EM$3<>"",DR19<>0),HLOOKUP(EM$4,'Agency cashability'!$B$3:$U$5,2,0),0) -> 0 | EN19: =IF(AND(EN$3<>"",DS19<>0),HLOOKUP(EN$4,'Agency cashability'!$B$3:$U$5,2,0),0) -> 0 | EO19: =IF(AND(EO$3<>"",DT19<>0),HLOOKUP(EO$4,'Agency cashability'!$B$3:$U$5,2,0),0) -> 0 | EP19: =IF(AND(EP$3<>"",DU19<>0),HLOOKUP(EP$4,'Agency cashability'!$B$3:$U$5,2,0),0) -> 0 | EQ19: =IF(AND(EQ$3<>"",DV19<>0),HLOOKUP(EQ$4,'Agency cashability'!$B$3:$U$5,2,0),0) -> 0 | ER19: =IF(AND(ER$3<>"",DW19<>0),HLOOKUP(ER$4,'Agency cashability'!$B$3:$U$5,2,0),0) -> 0 | ES19: =IF(AND(ES$3<>"",DX19<>0),HLOOKUP(ES$4,'Agency cashability'!$B$3:$U$5,2,0),0) -> 0 | ET19: =IF(AND(ET$3<>"",DY19<>0),HLOOKUP(ET$4,'Agency cashability'!$B$3:$U$5,2,0),0) -> 0 | EU19: =IF(AND(EU$3<>"",DZ19<>0),HLOOKUP(EU$4,'Agency cashability'!$B$3:$U$5,2,0),0) -> 0 | EW19: =IF(AND(EW$3<>"",DG19<>0),HLOOKUP(EW$4,'Agency cashability'!$B$3:$U$5,3,0),0) -> 0.5 | EX19: =IF(AND(EX$3<>"",DH19<>0),HLOOKUP(EX$4,'Agency cashability'!$B$3:$U$5,3,0),0) -> 0 | EY19: =IF(AND(EY$3<>"",DI19<>0),HLOOKUP(EY$4,'Agency cashability'!$B$3:$U$5,3,0),0) -> 0 | EZ19: =IF(AND(EZ$3<>"",DJ19<>0),HLOOKUP(EZ$4,'Agency cashability'!$B$3:$U$5,3,0),0) -> 0 | FA19: =IF(AND(FA$3<>"",DK19<>0),HLOOKUP(FA$4,'Agency cashability'!$B$3:$U$5,3,0),0) -> 0 | FB19: =IF(AND(FB$3<>"",DL19<>0),HLOOKUP(FB$4,'Agency cashability'!$B$3:$U$5,3,0),0) -> 0 | FC19: =IF(AND(FC$3<>"",DM19<>0),HLOOKUP(FC$4,'Agency cashability'!$B$3:$U$5,3,0),0) -> 0 | FD19: =IF(AND(FD$3<>"",DN19<>0),HLOOKUP(FD$4,'Agency cashability'!$B$3:$U$5,3,0),0) -> 0 | FE19: =IF(AND(FE$3<>"",DO19<>0),HLOOKUP(FE$4,'Agency cashability'!$B$3:$U$5,3,0),0) -> 0 | FF19: =IF(AND(FF$3<>"",DP19<>0),HLOOKUP(FF$4,'Agency cashability'!$B$3:$U$5,3,0),0) -> 0 | FG19: =IF(AND(FG$3<>"",DQ19<>0),HLOOKUP(FG$4,'Agency cashability'!$B$3:$U$5,3,0),0) -> 0 | FH19: =IF(AND(FH$3<>"",DR19<>0),HLOOKUP(FH$4,'Agency cashability'!$B$3:$U$5,3,0),0) -> 0 | FI19: =IF(AND(FI$3<>"",DS19<>0),HLOOKUP(FI$4,'Agency cashability'!$B$3:$U$5,3,0),0) -> 0 | FJ19: =IF(AND(FJ$3<>"",DT19<>0),HLOOKUP(FJ$4,'Agency cashability'!$B$3:$U$5,3,0),0) -> 0 | FK19: =IF(AND(FK$3<>"",DU19<>0),HLOOKUP(FK$4,'Agency cashability'!$B$3:$U$5,3,0),0) -> 0 | FL19: =IF(AND(FL$3<>"",DV19<>0),HLOOKUP(FL$4,'Agency cashability'!$B$3:$U$5,3,0),0) -> 0 | FM19: =IF(AND(FM$3<>"",DW19<>0),HLOOKUP(FM$4,'Agency cashability'!$B$3:$U$5,3,0),0) -> 0 | FN19: =IF(AND(FN$3<>"",DX19<>0),HLOOKUP(FN$4,'Agency cashability'!$B$3:$U$5,3,0),0) -> 0 | FO19: =IF(AND(FO$3<>"",DY19<>0),HLOOKUP(FO$4,'Agency cashability'!$B$3:$U$5,3,0),0) -> 0 | FP19: =IF(AND(FP$3<>"",DZ19<>0),HLOOKUP(FP$4,'Agency cashability'!$B$3:$U$5,3,0),0) -> 0 | FR19: 0 | FS19: 0 | FT19: 0 | FU19: 0 | FV19: 0 | FW19: 0 | GM19: =IF((GM$3<>""),EB19*FR19,"") -> 0 | GN19: 0 | GO19: 0 | GP19: 0 | GQ19: 0 | GR19: 0 | HJ19: =IF((HJ$3<>""),EW19*FR19,"") -> 0 | HK19: 0 | HL19: 0 | HM19: 0 | HN19: 0 | HO19: 0
A20: B9e | B20: Reduced incidents of crime - other sexual offences | C20: No | D20: Reduced police, other criminal justice costs, health costs per actual crime (N.B. Use multipliers to convert from recorded crime or convictions) | E20: Police, CJS, NHS | R20: 1550 | S20: 1550 | T20: 1280 | U20: 3700 | V20: 6530 | W20: 2016-17 | X20: =VLOOKUP(W20,'GDP Deflators'!$B$8:$C$76,2,0)*100/VLOOKUP('Model constants'!$B$3,'GDP Deflators'!$B$8:$C$76,2,0) -> 90.9016879 | Y20: The Economic and Social cost of Crime, Second Edition (Home Office 2018) | AA20: 0 | AB20: 0 | BE20: 0 | BF20: 0 | BG20: 0 | BH20: 0 | BI20: 0 | BJ20: 0 | BK20: 0 | BL20: 0 | BM20: 0 | BN20: 0 | CD20: 0 | CF20: 0 | CG20: 0 | CH20: 0 | CI20: 0 | CJ20: 0 | CK20: 0 | CL20: 0 | CM20: 0 | CN20: 0 | CO20: 0 | DE20: 0 | DG20: =IF(DG$3<>"",VLOOKUP($A20,'Agency percentages'!$A$5:$X$70,(3+MATCH(DG$4,'Agency percentages'!$D$4:$W$4,0)),FALSE),"") -> 0.2516129032 | DH20: =IF(DH$3<>"",VLOOKUP($A20,'Agency percentages'!$A$5:$X$70,(3+MATCH(DH$4,'Agency percentages'!$D$4:$W$4,0)),FALSE),"") -> 0 | DI20: =IF(DI$3<>"",VLOOKUP($A20,'Agency percentages'!$A$5:$X$70,(3+MATCH(DI$4,'Agency percentages'!$D$4:$W$4,0)),FALSE),"") -> 0 | DJ20: =IF(DJ$3<>"",VLOOKUP($A20,'Agency percentages'!$A$5:$X$70,(3+MATCH(DJ$4,'Agency percentages'!$D$4:$W$4,0)),FALSE),"") -> 0 | DK20: =IF(DK$3<>"",VLOOKUP($A20,'Agency percentages'!$A$5:$X$70,(3+MATCH(DK$4,'Agency percentages'!$D$4:$W$4,0)),FALSE),"") -> 0 | DL20: =IF(DL$3<>"",VLOOKUP($A20,'Agency percentages'!$A$5:$X$70,(3+MATCH(DL$4,'Agency percentages'!$D$4:$W$4,0)),FALSE),"") -> 0 | DM20: =IF(DM$3<>"",VLOOKUP($A20,'Agency percentages'!$A$5:$X$70,(3+MATCH(DM$4,'Agency percentages'!$D$4:$W$4,0)),FALSE),"") ->  | DN20: =IF(DN$3<>"",VLOOKUP($A20,'Agency percentages'!$A$5:$X$70,(3+MATCH(DN$4,'Agency percentages'!$D$4:$W$4,0)),FALSE),"") ->  | DO20: =IF(DO$3<>"",VLOOKUP($A20,'Agency percentages'!$A$5:$X$70,(3+MATCH(DO$4,'Agency percentages'!$D$4:$W$4,0)),FALSE),"") ->  | DP20: =IF(DP$3<>"",VLOOKUP($A20,'Agency percentages'!$A$5:$X$70,(3+MATCH(DP$4,'Agency percentages'!$D$4:$W$4,0)),FALSE),"") ->  | DQ20: =IF(DQ$3<>"",VLOOKUP($A20,'Agency percentages'!$A$5:$X$70,(3+MATCH(DQ$4,'Agency percentages'!$D$4:$W$4,0)),FALSE),"") ->  | DR20: =IF(DR$3<>"",VLOOKUP($A20,'Agency percentages'!$A$5:$X$70,(3+MATCH(DR$4,'Agency percentages'!$D$4:$W$4,0)),FALSE),"") ->  | DS20: =IF(DS$3<>"",VLOOKUP($A20,'Agency percentages'!$A$5:$X$70,(3+MATCH(DS$4,'Agency percentages'!$D$4:$W$4,0)),FALSE),"") ->  | DT20: =IF(DT$3<>"",VLOOKUP($A20,'Agency percentages'!$A$5:$X$70,(3+MATCH(DT$4,'Agency percentages'!$D$4:$W$4,0)),FALSE),"") ->  | DU20: =IF(DU$3<>"",VLOOKUP($A20,'Agency percentages'!$A$5:$X$70,(3+MATCH(DU$4,'Agency percentages'!$D$4:$W$4,0)),FALSE),"") ->  | DV20: =IF(DV$3<>"",VLOOKUP($A20,'Agency percentages'!$A$5:$X$70,(3+MATCH(DV$4,'Agency percentages'!$D$4:$W$4,0)),FALSE),"") ->  | DW20: =IF(DW$3<>"",VLOOKUP($A20,'Agency percentages'!$A$5:$X$70,(3+MATCH(DW$4,'Agency percentages'!$D$4:$W$4,0)),FALSE),"") ->  | DX20: =IF(DX$3<>"",VLOOKUP($A20,'Agency percentages'!$A$5:$X$70,(3+MATCH(DX$4,'Agency percentages'!$D$4:$W$4,0)),FALSE),"") ->  | DY20: =IF(DY$3<>"",VLOOKUP($A20,'Agency percentages'!$A$5:$X$70,(3+MATCH(DY$4,'Agency percentages'!$D$4:$W$4,0)),FALSE),"") ->  | DZ20: =IF(DZ$3<>"",VLOOKUP($A20,'Agency percentages'!$A$5:$X$70,(3+MATCH(DZ$4,'Agency percentages'!$D$4:$W$4,0)),FALSE),"") ->  | EB20: =IF(AND(EB$3<>"",DG20<>0),HLOOKUP(EB$4,'Agency cashability'!$B$3:$U$5,2,0),0) -> 0.2 | EC20: =IF(AND(EC$3<>"",DH20<>0),HLOOKUP(EC$4,'Agency cashability'!$B$3:$U$5,2,0),0) -> 0 | ED20: =IF(AND(ED$3<>"",DI20<>0),HLOOKUP(ED$4,'Agency cashability'!$B$3:$U$5,2,0),0) -> 0 | EE20: =IF(AND(EE$3<>"",DJ20<>0),HLOOKUP(EE$4,'Agency cashability'!$B$3:$U$5,2,0),0) -> 0 | EF20: =IF(AND(EF$3<>"",DK20<>0),HLOOKUP(EF$4,'Agency cashability'!$B$3:$U$5,2,0),0) -> 0 | EG20: =IF(AND(EG$3<>"",DL20<>0),HLOOKUP(EG$4,'Agency cashability'!$B$3:$U$5,2,0),0) -> 0 | EH20: =IF(AND(EH$3<>"",DM20<>0),HLOOKUP(EH$4,'Agency cashability'!$B$3:$U$5,2,0),0) -> 0 | EI20: =IF(AND(EI$3<>"",DN20<>0),HLOOKUP(EI$4,'Agency cashability'!$B$3:$U$5,2,0),0) -> 0 | EJ20: =IF(AND(EJ$3<>"",DO20<>0),HLOOKUP(EJ$4,'Agency cashability'!$B$3:$U$5,2,0),0) -> 0 | EK20: =IF(AND(EK$3<>"",DP20<>0),HLOOKUP(EK$4,'Agency cashability'!$B$3:$U$5,2,0),0) -> 0 | EL20: =IF(AND(EL$3<>"",DQ20<>0),HLOOKUP(EL$4,'Agency cashability'!$B$3:$U$5,2,0),0) -> 0 | EM20: =IF(AND(EM$3<>"",DR20<>0),HLOOKUP(EM$4,'Agency cashability'!$B$3:$U$5,2,0),0) -> 0 | EN20: =IF(AND(EN$3<>"",DS20<>0),HLOOKUP(EN$4,'Agency cashability'!$B$3:$U$5,2,0),0) -> 0 | EO20: =IF(AND(EO$3<>"",DT20<>0),HLOOKUP(EO$4,'Agency cashability'!$B$3:$U$5,2,0),0) -> 0 | EP20: =IF(AND(EP$3<>"",DU20<>0),HLOOKUP(EP$4,'Agency cashability'!$B$3:$U$5,2,0),0) -> 0 | EQ20: =IF(AND(EQ$3<>"",DV20<>0),HLOOKUP(EQ$4,'Agency cashability'!$B$3:$U$5,2,0),0) -> 0 | ER20: =IF(AND(ER$3<>"",DW20<>0),HLOOKUP(ER$4,'Agency cashability'!$B$3:$U$5,2,0),0) -> 0 | ES20: =IF(AND(ES$3<>"",DX20<>0),HLOOKUP(ES$4,'Agency cashability'!$B$3:$U$5,2,0),0) -> 0 | ET20: =IF(AND(ET$3<>"",DY20<>0),HLOOKUP(ET$4,'Agency cashability'!$B$3:$U$5,2,0),0) -> 0 | EU20: =IF(AND(EU$3<>"",DZ20<>0),HLOOKUP(EU$4,'Agency cashability'!$B$3:$U$5,2,0),0) -> 0 | EW20: =IF(AND(EW$3<>"",DG20<>0),HLOOKUP(EW$4,'Agency cashability'!$B$3:$U$5,3,0),0) -> 0.5 | EX20: =IF(AND(EX$3<>"",DH20<>0),HLOOKUP(EX$4,'Agency cashability'!$B$3:$U$5,3,0),0) -> 0 | EY20: =IF(AND(EY$3<>"",DI20<>0),HLOOKUP(EY$4,'Agency cashability'!$B$3:$U$5,3,0),0) -> 0 | EZ20: =IF(AND(EZ$3<>"",DJ20<>0),HLOOKUP(EZ$4,'Agency cashability'!$B$3:$U$5,3,0),0) -> 0 | FA20: =IF(AND(FA$3<>"",DK20<>0),HLOOKUP(FA$4,'Agency cashability'!$B$3:$U$5,3,0),0) -> 0 | FB20: =IF(AND(FB$3<>"",DL20<>0),HLOOKUP(FB$4,'Agency cashability'!$B$3:$U$5,3,0),0) -> 0 | FC20: =IF(AND(FC$3<>"",DM20<>0),HLOOKUP(FC$4,'Agency cashability'!$B$3:$U$5,3,0),0) -> 0 | FD20: =IF(AND(FD$3<>"",DN20<>0),HLOOKUP(FD$4,'Agency cashability'!$B$3:$U$5,3,0),0) -> 0 | FE20: =IF(AND(FE$3<>"",DO20<>0),HLOOKUP(FE$4,'Agency cashability'!$B$3:$U$5,3,0),0) -> 0 | FF20: =IF(AND(FF$3<>"",DP20<>0),HLOOKUP(FF$4,'Agency cashability'!$B$3:$U$5,3,0),0) -> 0 | FG20: =IF(AND(FG$3<>"",DQ20<>0),HLOOKUP(FG$4,'Agency cashability'!$B$3:$U$5,3,0),0) -> 0 | FH20: =IF(AND(FH$3<>"",DR20<>0),HLOOKUP(FH$4,'Agency cashability'!$B$3:$U$5,3,0),0) -> 0 | FI20: =IF(AND(FI$3<>"",DS20<>0),HLOOKUP(FI$4,'Agency cashability'!$B$3:$U$5,3,0),0) -> 0 | FJ20: =IF(AND(FJ$3<>"",DT20<>0),HLOOKUP(FJ$4,'Agency cashability'!$B$3:$U$5,3,0),0) -> 0 | FK20: =IF(AND(FK$3<>"",DU20<>0),HLOOKUP(FK$4,'Agency cashability'!$B$3:$U$5,3,0),0) -> 0 | FL20: =IF(AND(FL$3<>"",DV20<>0),HLOOKUP(FL$4,'Agency cashability'!$B$3:$U$5,3,0),0) -> 0 | FM20: =IF(AND(FM$3<>"",DW20<>0),HLOOKUP(FM$4,'Agency cashability'!$B$3:$U$5,3,0),0) -> 0 | FN20: =IF(AND(FN$3<>"",DX20<>0),HLOOKUP(FN$4,'Agency cashability'!$B$3:$U$5,3,0),0) -> 0 | FO20: =IF(AND(FO$3<>"",DY20<>0),HLOOKUP(FO$4,'Agency cashability'!$B$3:$U$5,3,0),0) -> 0 | FP20: =IF(AND(FP$3<>"",DZ20<>0),HLOOKUP(FP$4,'Agency cashability'!$B$3:$U$5,3,0),0) -> 0 | FR20: 0 | FS20: 0 | FT20: 0 | FU20: 0 | FV20: 0 | FW20: 0 | GM20: =IF((GM$3<>""),EB20*FR20,"") -> 0 | GN20: 0 | GO20: 0 | GP20: 0 | GQ20: 0 | GR20: 0 | HJ20: =IF((HJ$3<>""),EW20*FR20,"") -> 0 | HK20: 0 | HL20: 0 | HM20: 0 | HN20: 0 | HO20: 0
A21: B9f | B21: Reduced incidents of crime - robbery | C21: No | D21: Reduced police, other criminal justice costs, health costs per actual crime (N.B. Use multipliers to convert from recorded crime or convictions) | E21: Police, CJS, NHS | R21: 5450 | S21: 5450 | T21: 2280 | U21: 3590 | V21: 11320 | W21: 2016-17 | X21: =VLOOKUP(W21,'GDP Deflators'!$B$8:$C$76,2,0)*100/VLOOKUP('Model constants'!$B$3,'GDP Deflators'!$B$8:$C$76,2,0) -> 90.9016879 | Y21: The Economic and Social cost of Crime, Second Edition (Home Office 2018) | AA21: 0 | AB21: 0 | BE21: 0 | BF21: 0 | BG21: 0 | BH21: 0 | BI21: 0 | BJ21: 0 | BK21: 0 | BL21: 0 | BM21: 0 | BN21: 0 | CD21: 0 | CF21: 0 | CG21: 0 | CH21: 0 | CI21: 0 | CJ21: 0 | CK21: 0 | CL21: 0 | CM21: 0 | CN21: 0 | CO21: 0 | DE21: 0 | DG21: =IF(DG$3<>"",VLOOKUP($A21,'Agency percentages'!$A$5:$X$70,(3+MATCH(DG$4,'Agency percentages'!$D$4:$W$4,0)),FALSE),"") -> 0.1391941392 | DH21: =IF(DH$3<>"",VLOOKUP($A21,'Agency percentages'!$A$5:$X$70,(3+MATCH(DH$4,'Agency percentages'!$D$4:$W$4,0)),FALSE),"") -> 0 | DI21: =IF(DI$3<>"",VLOOKUP($A21,'Agency percentages'!$A$5:$X$70,(3+MATCH(DI$4,'Agency percentages'!$D$4:$W$4,0)),FALSE),"") -> 0 | DJ21: =IF(DJ$3<>"",VLOOKUP($A21,'Agency percentages'!$A$5:$X$70,(3+MATCH(DJ$4,'Agency percentages'!$D$4:$W$4,0)),FALSE),"") -> 0 | DK21: =IF(DK$3<>"",VLOOKUP($A21,'Agency percentages'!$A$5:$X$70,(3+MATCH(DK$4,'Agency percentages'!$D$4:$W$4,0)),FALSE),"") -> 0 | DL21: =IF(DL$3<>"",VLOOKUP($A21,'Agency percentages'!$A$5:$X$70,(3+MATCH(DL$4,'Agency percentages'!$D$4:$W$4,0)),FALSE),"") -> 0 | DM21: =IF(DM$3<>"",VLOOKUP($A21,'Agency percentages'!$A$5:$X$70,(3+MATCH(DM$4,'Agency percentages'!$D$4:$W$4,0)),FALSE),"") ->  | DN21: =IF(DN$3<>"",VLOOKUP($A21,'Agency percentages'!$A$5:$X$70,(3+MATCH(DN$4,'Agency percentages'!$D$4:$W$4,0)),FALSE),"") ->  | DO21: =IF(DO$3<>"",VLOOKUP($A21,'Agency percentages'!$A$5:$X$70,(3+MATCH(DO$4,'Agency percentages'!$D$4:$W$4,0)),FALSE),"") ->  | DP21: =IF(DP$3<>"",VLOOKUP($A21,'Agency percentages'!$A$5:$X$70,(3+MATCH(DP$4,'Agency percentages'!$D$4:$W$4,0)),FALSE),"") ->  | DQ21: =IF(DQ$3<>"",VLOOKUP($A21,'Agency percentages'!$A$5:$X$70,(3+MATCH(DQ$4,'Agency percentages'!$D$4:$W$4,0)),FALSE),"") ->  | DR21: =IF(DR$3<>"",VLOOKUP($A21,'Agency percentages'!$A$5:$X$70,(3+MATCH(DR$4,'Agency percentages'!$D$4:$W$4,0)),FALSE),"") ->  | DS21: =IF(DS$3<>"",VLOOKUP($A21,'Agency percentages'!$A$5:$X$70,(3+MATCH(DS$4,'Agency percentages'!$D$4:$W$4,0)),FALSE),"") ->  | DT21: =IF(DT$3<>"",VLOOKUP($A21,'Agency percentages'!$A$5:$X$70,(3+MATCH(DT$4,'Agency percentages'!$D$4:$W$4,0)),FALSE),"") ->  | DU21: =IF(DU$3<>"",VLOOKUP($A21,'Agency percentages'!$A$5:$X$70,(3+MATCH(DU$4,'Agency percentages'!$D$4:$W$4,0)),FALSE),"") ->  | DV21: =IF(DV$3<>"",VLOOKUP($A21,'Agency percentages'!$A$5:$X$70,(3+MATCH(DV$4,'Agency percentages'!$D$4:$W$4,0)),FALSE),"") ->  | DW21: =IF(DW$3<>"",VLOOKUP($A21,'Agency percentages'!$A$5:$X$70,(3+MATCH(DW$4,'Agency percentages'!$D$4:$W$4,0)),FALSE),"") ->  | DX21: =IF(DX$3<>"",VLOOKUP($A21,'Agency percentages'!$A$5:$X$70,(3+MATCH(DX$4,'Agency percentages'!$D$4:$W$4,0)),FALSE),"") ->  | DY21: =IF(DY$3<>"",VLOOKUP($A21,'Agency percentages'!$A$5:$X$70,(3+MATCH(DY$4,'Agency percentages'!$D$4:$W$4,0)),FALSE),"") ->  | DZ21: =IF(DZ$3<>"",VLOOKUP($A21,'Agency percentages'!$A$5:$X$70,(3+MATCH(DZ$4,'Agency percentages'!$D$4:$W$4,0)),FALSE),"") ->  | EB21: =IF(AND(EB$3<>"",DG21<>0),HLOOKUP(EB$4,'Agency cashability'!$B$3:$U$5,2,0),0) -> 0.2 | EC21: =IF(AND(EC$3<>"",DH21<>0),HLOOKUP(EC$4,'Agency cashability'!$B$3:$U$5,2,0),0) -> 0 | ED21: =IF(AND(ED$3<>"",DI21<>0),HLOOKUP(ED$4,'Agency cashability'!$B$3:$U$5,2,0),0) -> 0 | EE21: =IF(AND(EE$3<>"",DJ21<>0),HLOOKUP(EE$4,'Agency cashability'!$B$3:$U$5,2,0),0) -> 0 | EF21: =IF(AND(EF$3<>"",DK21<>0),HLOOKUP(EF$4,'Agency cashability'!$B$3:$U$5,2,0),0) -> 0 | EG21: =IF(AND(EG$3<>"",DL21<>0),HLOOKUP(EG$4,'Agency cashability'!$B$3:$U$5,2,0),0) -> 0 | EH21: =IF(AND(EH$3<>"",DM21<>0),HLOOKUP(EH$4,'Agency cashability'!$B$3:$U$5,2,0),0) -> 0 | EI21: =IF(AND(EI$3<>"",DN21<>0),HLOOKUP(EI$4,'Agency cashability'!$B$3:$U$5,2,0),0) -> 0 | EJ21: =IF(AND(EJ$3<>"",DO21<>0),HLOOKUP(EJ$4,'Agency cashability'!$B$3:$U$5,2,0),0) -> 0 | EK21: =IF(AND(EK$3<>"",DP21<>0),HLOOKUP(EK$4,'Agency cashability'!$B$3:$U$5,2,0),0) -> 0 | EL21: =IF(AND(EL$3<>"",DQ21<>0),HLOOKUP(EL$4,'Agency cashability'!$B$3:$U$5,2,0),0) -> 0 | EM21: =IF(AND(EM$3<>"",DR21<>0),HLOOKUP(EM$4,'Agency cashability'!$B$3:$U$5,2,0),0) -> 0 | EN21: =IF(AND(EN$3<>"",DS21<>0),HLOOKUP(EN$4,'Agency cashability'!$B$3:$U$5,2,0),0) -> 0 | EO21: =IF(AND(EO$3<>"",DT21<>0),HLOOKUP(EO$4,'Agency cashability'!$B$3:$U$5,2,0),0) -> 0 | EP21: =IF(AND(EP$3<>"",DU21<>0),HLOOKUP(EP$4,'Agency cashability'!$B$3:$U$5,2,0),0) -> 0 | EQ21: =IF(AND(EQ$3<>"",DV21<>0),HLOOKUP(EQ$4,'Agency cashability'!$B$3:$U$5,2,0),0) -> 0 | ER21: =IF(AND(ER$3<>"",DW21<>0),HLOOKUP(ER$4,'Agency cashability'!$B$3:$U$5,2,0),0) -> 0 | ES21: =IF(AND(ES$3<>"",DX21<>0),HLOOKUP(ES$4,'Agency cashability'!$B$3:$U$5,2,0),0) -> 0 | ET21: =IF(AND(ET$3<>"",DY21<>0),HLOOKUP(ET$4,'Agency cashability'!$B$3:$U$5,2,0),0) -> 0 | EU21: =IF(AND(EU$3<>"",DZ21<>0),HLOOKUP(EU$4,'Agency cashability'!$B$3:$U$5,2,0),0) -> 0 | EW21: =IF(AND(EW$3<>"",DG21<>0),HLOOKUP(EW$4,'Agency cashability'!$B$3:$U$5,3,0),0) -> 0.5 | EX21: =IF(AND(EX$3<>"",DH21<>0),HLOOKUP(EX$4,'Agency cashability'!$B$3:$U$5,3,0),0) -> 0 | EY21: =IF(AND(EY$3<>"",DI21<>0),HLOOKUP(EY$4,'Agency cashability'!$B$3:$U$5,3,0),0) -> 0 | EZ21: =IF(AND(EZ$3<>"",DJ21<>0),HLOOKUP(EZ$4,'Agency cashability'!$B$3:$U$5,3,0),0) -> 0 | FA21: =IF(AND(FA$3<>"",DK21<>0),HLOOKUP(FA$4,'Agency cashability'!$B$3:$U$5,3,0),0) -> 0 | FB21: =IF(AND(FB$3<>"",DL21<>0),HLOOKUP(FB$4,'Agency cashability'!$B$3:$U$5,3,0),0) -> 0 | FC21: =IF(AND(FC$3<>"",DM21<>0),HLOOKUP(FC$4,'Agency cashability'!$B$3:$U$5,3,0),0) -> 0 | FD21: =IF(AND(FD$3<>"",DN21<>0),HLOOKUP(FD$4,'Agency cashability'!$B$3:$U$5,3,0),0) -> 0 | FE21: =IF(AND(FE$3<>"",DO21<>0),HLOOKUP(FE$4,'Agency cashability'!$B$3:$U$5,3,0),0) -> 0 | FF21: =IF(AND(FF$3<>"",DP21<>0),HLOOKUP(FF$4,'Agency cashability'!$B$3:$U$5,3,0),0) -> 0 | FG21: =IF(AND(FG$3<>"",DQ21<>0),HLOOKUP(FG$4,'Agency cashability'!$B$3:$U$5,3,0),0) -> 0 | FH21: =IF(AND(FH$3<>"",DR21<>0),HLOOKUP(FH$4,'Agency cashability'!$B$3:$U$5,3,0),0) -> 0 | FI21: =IF(AND(FI$3<>"",DS21<>0),HLOOKUP(FI$4,'Agency cashability'!$B$3:$U$5,3,0),0) -> 0 | FJ21: =IF(AND(FJ$3<>"",DT21<>0),HLOOKUP(FJ$4,'Agency cashability'!$B$3:$U$5,3,0),0) -> 0 | FK21: =IF(AND(FK$3<>"",DU21<>0),HLOOKUP(FK$4,'Agency cashability'!$B$3:$U$5,3,0),0) -> 0 | FL21: =IF(AND(FL$3<>"",DV21<>0),HLOOKUP(FL$4,'Agency cashability'!$B$3:$U$5,3,0),0) -> 0 | FM21: =IF(AND(FM$3<>"",DW21<>0),HLOOKUP(FM$4,'Agency cashability'!$B$3:$U$5,3,0),0) -> 0 | FN21: =IF(AND(FN$3<>"",DX21<>0),HLOOKUP(FN$4,'Agency cashability'!$B$3:$U$5,3,0),0) -> 0 | FO21: =IF(AND(FO$3<>"",DY21<>0),HLOOKUP(FO$4,'Agency cashability'!$B$3:$U$5,3,0),0) -> 0 | FP21: =IF(AND(FP$3<>"",DZ21<>0),HLOOKUP(FP$4,'Agency cashability'!$B$3:$U$5,3,0),0) -> 0 | FR21: 0 | FS21: 0 | FT21: 0 | FU21: 0 | FV21: 0 | FW21: 0 | GM21: =IF((GM$3<>""),EB21*FR21,"") -> 0 | GN21: 0 | GO21: 0 | GP21: 0 | GQ21: 0 | GR21: 0 | HJ21: =IF((HJ$3<>""),EW21*FR21,"") -> 0 | HK21: 0 | HL21: 0 | HM21: 0 | HN21: 0 | HO21: 0
A22: B9g | B22: Reduced incidents of crime - domestic burglary | C22: No | D22: Reduced police, other criminal justice costs, health costs per actual crime (N.B. Use multipliers to convert from recorded crime or convictions) | E22: Police, CJS, NHS | R22: 2180 | S22: 2180 | T22: 2550 | U22: 1190 | V22: 5920 | W22: 2016-17 | X22: =VLOOKUP(W22,'GDP Deflators'!$B$8:$C$76,2,0)*100/VLOOKUP('Model constants'!$B$3,'GDP Deflators'!$B$8:$C$76,2,0) -> 90.9016879 | Y22: The Economic and Social cost of Crime, Second Edition (Home Office 2018) | AA22: 0 | AB22: 0 | BE22: 0 | BF22: 0 | BG22: 0 | BH22: 0 | BI22: 0 | BJ22: 0 | BK22: 0 | BL22: 0 | BM22: 0 | BN22: 0 | CD22: 0 | CF22: 0 | CG22: 0 | CH22: 0 | CI22: 0 | CJ22: 0 | CK22: 0 | CL22: 0 | CM22: 0 | CN22: 0 | CO22: 0 | DE22: 0 | DG22: =IF(DG$3<>"",VLOOKUP($A22,'Agency percentages'!$A$5:$X$70,(3+MATCH(DG$4,'Agency percentages'!$D$4:$W$4,0)),FALSE),"") -> 0.1743119266 | DH22: =IF(DH$3<>"",VLOOKUP($A22,'Agency percentages'!$A$5:$X$70,(3+MATCH(DH$4,'Agency percentages'!$D$4:$W$4,0)),FALSE),"") -> 0 | DI22: =IF(DI$3<>"",VLOOKUP($A22,'Agency percentages'!$A$5:$X$70,(3+MATCH(DI$4,'Agency percentages'!$D$4:$W$4,0)),FALSE),"") -> 0 | DJ22: =IF(DJ$3<>"",VLOOKUP($A22,'Agency percentages'!$A$5:$X$70,(3+MATCH(DJ$4,'Agency percentages'!$D$4:$W$4,0)),FALSE),"") -> 0 | DK22: =IF(DK$3<>"",VLOOKUP($A22,'Agency percentages'!$A$5:$X$70,(3+MATCH(DK$4,'Agency percentages'!$D$4:$W$4,0)),FALSE),"") -> 0 | DL22: =IF(DL$3<>"",VLOOKUP($A22,'Agency percentages'!$A$5:$X$70,(3+MATCH(DL$4,'Agency percentages'!$D$4:$W$4,0)),FALSE),"") -> 0 | DM22: =IF(DM$3<>"",VLOOKUP($A22,'Agency percentages'!$A$5:$X$70,(3+MATCH(DM$4,'Agency percentages'!$D$4:$W$4,0)),FALSE),"") ->  | DN22: =IF(DN$3<>"",VLOOKUP($A22,'Agency percentages'!$A$5:$X$70,(3+MATCH(DN$4,'Agency percentages'!$D$4:$W$4,0)),FALSE),"") ->  | DO22: =IF(DO$3<>"",VLOOKUP($A22,'Agency percentages'!$A$5:$X$70,(3+MATCH(DO$4,'Agency percentages'!$D$4:$W$4,0)),FALSE),"") ->  | DP22: =IF(DP$3<>"",VLOOKUP($A22,'Agency percentages'!$A$5:$X$70,(3+MATCH(DP$4,'Agency percentages'!$D$4:$W$4,0)),FALSE),"") ->  | DQ22: =IF(DQ$3<>"",VLOOKUP($A22,'Agency percentages'!$A$5:$X$70,(3+MATCH(DQ$4,'Agency percentages'!$D$4:$W$4,0)),FALSE),"") ->  | DR22: =IF(DR$3<>"",VLOOKUP($A22,'Agency percentages'!$A$5:$X$70,(3+MATCH(DR$4,'Agency percentages'!$D$4:$W$4,0)),FALSE),"") ->  | DS22: =IF(DS$3<>"",VLOOKUP($A22,'Agency percentages'!$A$5:$X$70,(3+MATCH(DS$4,'Agency percentages'!$D$4:$W$4,0)),FALSE),"") ->  | DT22: =IF(DT$3<>"",VLOOKUP($A22,'Agency percentages'!$A$5:$X$70,(3+MATCH(DT$4,'Agency percentages'!$D$4:$W$4,0)),FALSE),"") ->  | DU22: =IF(DU$3<>"",VLOOKUP($A22,'Agency percentages'!$A$5:$X$70,(3+MATCH(DU$4,'Agency percentages'!$D$4:$W$4,0)),FALSE),"") ->  | DV22: =IF(DV$3<>"",VLOOKUP($A22,'Agency percentages'!$A$5:$X$70,(3+MATCH(DV$4,'Agency percentages'!$D$4:$W$4,0)),FALSE),"") ->  | DW22: =IF(DW$3<>"",VLOOKUP($A22,'Agency percentages'!$A$5:$X$70,(3+MATCH(DW$4,'Agency percentages'!$D$4:$W$4,0)),FALSE),"") ->  | DX22: =IF(DX$3<>"",VLOOKUP($A22,'Agency percentages'!$A$5:$X$70,(3+MATCH(DX$4,'Agency percentages'!$D$4:$W$4,0)),FALSE),"") ->  | DY22: =IF(DY$3<>"",VLOOKUP($A22,'Agency percentages'!$A$5:$X$70,(3+MATCH(DY$4,'Agency percentages'!$D$4:$W$4,0)),FALSE),"") ->  | DZ22: =IF(DZ$3<>"",VLOOKUP($A22,'Agency percentages'!$A$5:$X$70,(3+MATCH(DZ$4,'Agency percentages'!$D$4:$W$4,0)),FALSE),"") ->  | EB22: =IF(AND(EB$3<>"",DG22<>0),HLOOKUP(EB$4,'Agency cashability'!$B$3:$U$5,2,0),0) -> 0.2 | EC22: =IF(AND(EC$3<>"",DH22<>0),HLOOKUP(EC$4,'Agency cashability'!$B$3:$U$5,2,0),0) -> 0 | ED22: =IF(AND(ED$3<>"",DI22<>0),HLOOKUP(ED$4,'Agency cashability'!$B$3:$U$5,2,0),0) -> 0 | EE22: =IF(AND(EE$3<>"",DJ22<>0),HLOOKUP(EE$4,'Agency cashability'!$B$3:$U$5,2,0),0) -> 0 | EF22: =IF(AND(EF$3<>"",DK22<>0),HLOOKUP(EF$4,'Agency cashability'!$B$3:$U$5,2,0),0) -> 0 | EG22: =IF(AND(EG$3<>"",DL22<>0),HLOOKUP(EG$4,'Agency cashability'!$B$3:$U$5,2,0),0) -> 0 | EH22: =IF(AND(EH$3<>"",DM22<>0),HLOOKUP(EH$4,'Agency cashability'!$B$3:$U$5,2,0),0) -> 0 | EI22: =IF(AND(EI$3<>"",DN22<>0),HLOOKUP(EI$4,'Agency cashability'!$B$3:$U$5,2,0),0) -> 0 | EJ22: =IF(AND(EJ$3<>"",DO22<>0),HLOOKUP(EJ$4,'Agency cashability'!$B$3:$U$5,2,0),0) -> 0 | EK22: =IF(AND(EK$3<>"",DP22<>0),HLOOKUP(EK$4,'Agency cashability'!$B$3:$U$5,2,0),0) -> 0 | EL22: =IF(AND(EL$3<>"",DQ22<>0),HLOOKUP(EL$4,'Agency cashability'!$B$3:$U$5,2,0),0) -> 0 | EM22: =IF(AND(EM$3<>"",DR22<>0),HLOOKUP(EM$4,'Agency cashability'!$B$3:$U$5,2,0),0) -> 0 | EN22: =IF(AND(EN$3<>"",DS22<>0),HLOOKUP(EN$4,'Agency cashability'!$B$3:$U$5,2,0),0) -> 0 | EO22: =IF(AND(EO$3<>"",DT22<>0),HLOOKUP(EO$4,'Agency cashability'!$B$3:$U$5,2,0),0) -> 0 | EP22: =IF(AND(EP$3<>"",DU22<>0),HLOOKUP(EP$4,'Agency cashability'!$B$3:$U$5,2,0),0) -> 0 | EQ22: =IF(AND(EQ$3<>"",DV22<>0),HLOOKUP(EQ$4,'Agency cashability'!$B$3:$U$5,2,0),0) -> 0 | ER22: =IF(AND(ER$3<>"",DW22<>0),HLOOKUP(ER$4,'Agency cashability'!$B$3:$U$5,2,0),0) -> 0 | ES22: =IF(AND(ES$3<>"",DX22<>0),HLOOKUP(ES$4,'Agency cashability'!$B$3:$U$5,2,0),0) -> 0 | ET22: =IF(AND(ET$3<>"",DY22<>0),HLOOKUP(ET$4,'Agency cashability'!$B$3:$U$5,2,0),0) -> 0 | EU22: =IF(AND(EU$3<>"",DZ22<>0),HLOOKUP(EU$4,'Agency cashability'!$B$3:$U$5,2,0),0) -> 0 | EW22: =IF(AND(EW$3<>"",DG22<>0),HLOOKUP(EW$4,'Agency cashability'!$B$3:$U$5,3,0),0) -> 0.5 | EX22: =IF(AND(EX$3<>"",DH22<>0),HLOOKUP(EX$4,'Agency cashability'!$B$3:$U$5,3,0),0) -> 0 | EY22: =IF(AND(EY$3<>"",DI22<>0),HLOOKUP(EY$4,'Agency cashability'!$B$3:$U$5,3,0),0) -> 0 | EZ22: =IF(AND(EZ$3<>"",DJ22<>0),HLOOKUP(EZ$4,'Agency cashability'!$B$3:$U$5,3,0),0) -> 0 | FA22: =IF(AND(FA$3<>"",DK22<>0),HLOOKUP(FA$4,'Agency cashability'!$B$3:$U$5,3,0),0) -> 0 | FB22: =IF(AND(FB$3<>"",DL22<>0),HLOOKUP(FB$4,'Agency cashability'!$B$3:$U$5,3,0),0) -> 0 | FC22: =IF(AND(FC$3<>"",DM22<>0),HLOOKUP(FC$4,'Agency cashability'!$B$3:$U$5,3,0),0) -> 0 | FD22: =IF(AND(FD$3<>"",DN22<>0),HLOOKUP(FD$4,'Agency cashability'!$B$3:$U$5,3,0),0) -> 0 | FE22: =IF(AND(FE$3<>"",DO22<>0),HLOOKUP(FE$4,'Agency cashability'!$B$3:$U$5,3,0),0) -> 0 | FF22: =IF(AND(FF$3<>"",DP22<>0),HLOOKUP(FF$4,'Agency cashability'!$B$3:$U$5,3,0),0) -> 0 | FG22: =IF(AND(FG$3<>"",DQ22<>0),HLOOKUP(FG$4,'Agency cashability'!$B$3:$U$5,3,0),0) -> 0 | FH22: =IF(AND(FH$3<>"",DR22<>0),HLOOKUP(FH$4,'Agency cashability'!$B$3:$U$5,3,0),0) -> 0 | FI22: =IF(AND(FI$3<>"",DS22<>0),HLOOKUP(FI$4,'Agency cashability'!$B$3:$U$5,3,0),0) -> 0 | FJ22: =IF(AND(FJ$3<>"",DT22<>0),HLOOKUP(FJ$4,'Agency cashability'!$B$3:$U$5,3,0),0) -> 0 | FK22: =IF(AND(FK$3<>"",DU22<>0),HLOOKUP(FK$4,'Agency cashability'!$B$3:$U$5,3,0),0) -> 0 | FL22: =IF(AND(FL$3<>"",DV22<>0),HLOOKUP(FL$4,'Agency cashability'!$B$3:$U$5,3,0),0) -> 0 | FM22: =IF(AND(FM$3<>"",DW22<>0),HLOOKUP(FM$4,'Agency cashability'!$B$3:$U$5,3,0),0) -> 0 | FN22: =IF(AND(FN$3<>"",DX22<>0),HLOOKUP(FN$4,'Agency cashability'!$B$3:$U$5,3,0),0) -> 0 | FO22: =IF(AND(FO$3<>"",DY22<>0),HLOOKUP(FO$4,'Agency cashability'!$B$3:$U$5,3,0),0) -> 0 | FP22: =IF(AND(FP$3<>"",DZ22<>0),HLOOKUP(FP$4,'Agency cashability'!$B$3:$U$5,3,0),0) -> 0 | FR22: 0 | FS22: 0 | FT22: 0 | FU22: 0 | FV22: 0 | FW22: 0 | GM22: =IF((GM$3<>""),EB22*FR22,"") -> 0 | GN22: 0 | GO22: 0 | GP22: 0 | GQ22: 0 | GR22: 0 | HJ22: =IF((HJ$3<>""),EW22*FR22,"") -> 0 | HK22: 0 | HL22: 0 | HM22: 0 | HN22: 0 | HO22: 0
A23: B9h | B23: Reduced incidents of crime - theft from person | C23: No | D23: Reduced police, other criminal justice costs, health costs per actual crime (N.B. Use multipliers to convert from recorded crime or convictions) | E23: Police, CJS, NHS | R23: 640 | S23: 640 | T23: 330 | U23: 410 | V23: 1380 | W23: 2016-17 | X23: =VLOOKUP(W23,'GDP Deflators'!$B$8:$C$76,2,0)*100/VLOOKUP('Model constants'!$B$3,'GDP Deflators'!$B$8:$C$76,2,0) -> 90.9016879 | Y23: The Economic and Social cost of Crime, Second Edition (Home Office 2018) | AA23: 0 | AB23: 0 | BE23: 0 | BF23: 0 | BG23: 0 | BH23: 0 | BI23: 0 | BJ23: 0 | BK23: 0 | BL23: 0 | BM23: 0 | BN23: 0 | CD23: 0 | CF23: 0 | CG23: 0 | CH23: 0 | CI23: 0 | CJ23: 0 | CK23: 0 | CL23: 0 | CM23: 0 | CN23: 0 | CO23: 0 | DE23: 0 | DG23: =IF(DG$3<>"",VLOOKUP($A23,'Agency percentages'!$A$5:$X$70,(3+MATCH(DG$4,'Agency percentages'!$D$4:$W$4,0)),FALSE),"") -> 0.328125 | DH23: =IF(DH$3<>"",VLOOKUP($A23,'Agency percentages'!$A$5:$X$70,(3+MATCH(DH$4,'Agency percentages'!$D$4:$W$4,0)),FALSE),"") -> 0 | DI23: =IF(DI$3<>"",VLOOKUP($A23,'Agency percentages'!$A$5:$X$70,(3+MATCH(DI$4,'Agency percentages'!$D$4:$W$4,0)),FALSE),"") -> 0 | DJ23: =IF(DJ$3<>"",VLOOKUP($A23,'Agency percentages'!$A$5:$X$70,(3+MATCH(DJ$4,'Agency percentages'!$D$4:$W$4,0)),FALSE),"") -> 0 | DK23: =IF(DK$3<>"",VLOOKUP($A23,'Agency percentages'!$A$5:$X$70,(3+MATCH(DK$4,'Agency percentages'!$D$4:$W$4,0)),FALSE),"") -> 0 | DL23: =IF(DL$3<>"",VLOOKUP($A23,'Agency percentages'!$A$5:$X$70,(3+MATCH(DL$4,'Agency percentages'!$D$4:$W$4,0)),FALSE),"") -> 0 | DM23: =IF(DM$3<>"",VLOOKUP($A23,'Agency percentages'!$A$5:$X$70,(3+MATCH(DM$4,'Agency percentages'!$D$4:$W$4,0)),FALSE),"") ->  | DN23: =IF(DN$3<>"",VLOOKUP($A23,'Agency percentages'!$A$5:$X$70,(3+MATCH(DN$4,'Agency percentages'!$D$4:$W$4,0)),FALSE),"") ->  | DO23: =IF(DO$3<>"",VLOOKUP($A23,'Agency percentages'!$A$5:$X$70,(3+MATCH(DO$4,'Agency percentages'!$D$4:$W$4,0)),FALSE),"") ->  | DP23: =IF(DP$3<>"",VLOOKUP($A23,'Agency percentages'!$A$5:$X$70,(3+MATCH(DP$4,'Agency percentages'!$D$4:$W$4,0)),FALSE),"") ->  | DQ23: =IF(DQ$3<>"",VLOOKUP($A23,'Agency percentages'!$A$5:$X$70,(3+MATCH(DQ$4,'Agency percentages'!$D$4:$W$4,0)),FALSE),"") ->  | DR23: =IF(DR$3<>"",VLOOKUP($A23,'Agency percentages'!$A$5:$X$70,(3+MATCH(DR$4,'Agency percentages'!$D$4:$W$4,0)),FALSE),"") ->  | DS23: =IF(DS$3<>"",VLOOKUP($A23,'Agency percentages'!$A$5:$X$70,(3+MATCH(DS$4,'Agency percentages'!$D$4:$W$4,0)),FALSE),"") ->  | DT23: =IF(DT$3<>"",VLOOKUP($A23,'Agency percentages'!$A$5:$X$70,(3+MATCH(DT$4,'Agency percentages'!$D$4:$W$4,0)),FALSE),"") ->  | DU23: =IF(DU$3<>"",VLOOKUP($A23,'Agency percentages'!$A$5:$X$70,(3+MATCH(DU$4,'Agency percentages'!$D$4:$W$4,0)),FALSE),"") ->  | DV23: =IF(DV$3<>"",VLOOKUP($A23,'Agency percentages'!$A$5:$X$70,(3+MATCH(DV$4,'Agency percentages'!$D$4:$W$4,0)),FALSE),"") ->  | DW23: =IF(DW$3<>"",VLOOKUP($A23,'Agency percentages'!$A$5:$X$70,(3+MATCH(DW$4,'Agency percentages'!$D$4:$W$4,0)),FALSE),"") ->  | DX23: =IF(DX$3<>"",VLOOKUP($A23,'Agency percentages'!$A$5:$X$70,(3+MATCH(DX$4,'Agency percentages'!$D$4:$W$4,0)),FALSE),"") ->  | DY23: =IF(DY$3<>"",VLOOKUP($A23,'Agency percentages'!$A$5:$X$70,(3+MATCH(DY$4,'Agency percentages'!$D$4:$W$4,0)),FALSE),"") ->  | DZ23: =IF(DZ$3<>"",VLOOKUP($A23,'Agency percentages'!$A$5:$X$70,(3+MATCH(DZ$4,'Agency percentages'!$D$4:$W$4,0)),FALSE),"") ->  | EB23: =IF(AND(EB$3<>"",DG23<>0),HLOOKUP(EB$4,'Agency cashability'!$B$3:$U$5,2,0),0) -> 0.2 | EC23: =IF(AND(EC$3<>"",DH23<>0),HLOOKUP(EC$4,'Agency cashability'!$B$3:$U$5,2,0),0) -> 0 | ED23: =IF(AND(ED$3<>"",DI23<>0),HLOOKUP(ED$4,'Agency cashability'!$B$3:$U$5,2,0),0) -> 0 | EE23: =IF(AND(EE$3<>"",DJ23<>0),HLOOKUP(EE$4,'Agency cashability'!$B$3:$U$5,2,0),0) -> 0 | EF23: =IF(AND(EF$3<>"",DK23<>0),HLOOKUP(EF$4,'Agency cashability'!$B$3:$U$5,2,0),0) -> 0 | EG23: =IF(AND(EG$3<>"",DL23<>0),HLOOKUP(EG$4,'Agency cashability'!$B$3:$U$5,2,0),0) -> 0 | EH23: =IF(AND(EH$3<>"",DM23<>0),HLOOKUP(EH$4,'Agency cashability'!$B$3:$U$5,2,0),0) -> 0 | EI23: =IF(AND(EI$3<>"",DN23<>0),HLOOKUP(EI$4,'Agency cashability'!$B$3:$U$5,2,0),0) -> 0 | EJ23: =IF(AND(EJ$3<>"",DO23<>0),HLOOKUP(EJ$4,'Agency cashability'!$B$3:$U$5,2,0),0) -> 0 | EK23: =IF(AND(EK$3<>"",DP23<>0),HLOOKUP(EK$4,'Agency cashability'!$B$3:$U$5,2,0),0) -> 0 | EL23: =IF(AND(EL$3<>"",DQ23<>0),HLOOKUP(EL$4,'Agency cashability'!$B$3:$U$5,2,0),0) -> 0 | EM23: =IF(AND(EM$3<>"",DR23<>0),HLOOKUP(EM$4,'Agency cashability'!$B$3:$U$5,2,0),0) -> 0 | EN23: =IF(AND(EN$3<>"",DS23<>0),HLOOKUP(EN$4,'Agency cashability'!$B$3:$U$5,2,0),0) -> 0 | EO23: =IF(AND(EO$3<>"",DT23<>0),HLOOKUP(EO$4,'Agency cashability'!$B$3:$U$5,2,0),0) -> 0 | EP23: =IF(AND(EP$3<>"",DU23<>0),HLOOKUP(EP$4,'Agency cashability'!$B$3:$U$5,2,0),0) -> 0 | EQ23: =IF(AND(EQ$3<>"",DV23<>0),HLOOKUP(EQ$4,'Agency cashability'!$B$3:$U$5,2,0),0) -> 0 | ER23: =IF(AND(ER$3<>"",DW23<>0),HLOOKUP(ER$4,'Agency cashability'!$B$3:$U$5,2,0),0) -> 0 | ES23: =IF(AND(ES$3<>"",DX23<>0),HLOOKUP(ES$4,'Agency cashability'!$B$3:$U$5,2,0),0) -> 0 | ET23: =IF(AND(ET$3<>"",DY23<>0),HLOOKUP(ET$4,'Agency cashability'!$B$3:$U$5,2,0),0) -> 0 | EU23: =IF(AND(EU$3<>"",DZ23<>0),HLOOKUP(EU$4,'Agency cashability'!$B$3:$U$5,2,0),0) -> 0 | EW23: =IF(AND(EW$3<>"",DG23<>0),HLOOKUP(EW$4,'Agency cashability'!$B$3:$U$5,3,0),0) -> 0.5 | EX23: =IF(AND(EX$3<>"",DH23<>0),HLOOKUP(EX$4,'Agency cashability'!$B$3:$U$5,3,0),0) -> 0 | EY23: =IF(AND(EY$3<>"",DI23<>0),HLOOKUP(EY$4,'Agency cashability'!$B$3:$U$5,3,0),0) -> 0 | EZ23: =IF(AND(EZ$3<>"",DJ23<>0),HLOOKUP(EZ$4,'Agency cashability'!$B$3:$U$5,3,0),0) -> 0 | FA23: =IF(AND(FA$3<>"",DK23<>0),HLOOKUP(FA$4,'Agency cashability'!$B$3:$U$5,3,0),0) -> 0 | FB23: =IF(AND(FB$3<>"",DL23<>0),HLOOKUP(FB$4,'Agency cashability'!$B$3:$U$5,3,0),0) -> 0 | FC23: =IF(AND(FC$3<>"",DM23<>0),HLOOKUP(FC$4,'Agency cashability'!$B$3:$U$5,3,0),0) -> 0 | FD23: =IF(AND(FD$3<>"",DN23<>0),HLOOKUP(FD$4,'Agency cashability'!$B$3:$U$5,3,0),0) -> 0 | FE23: =IF(AND(FE$3<>"",DO23<>0),HLOOKUP(FE$4,'Agency cashability'!$B$3:$U$5,3,0),0) -> 0 | FF23: =IF(AND(FF$3<>"",DP23<>0),HLOOKUP(FF$4,'Agency cashability'!$B$3:$U$5,3,0),0) -> 0 | FG23: =IF(AND(FG$3<>"",DQ23<>0),HLOOKUP(FG$4,'Agency cashability'!$B$3:$U$5,3,0),0) -> 0 | FH23: =IF(AND(FH$3<>"",DR23<>0),HLOOKUP(FH$4,'Agency cashability'!$B$3:$U$5,3,0),0) -> 0 | FI23: =IF(AND(FI$3<>"",DS23<>0),HLOOKUP(FI$4,'Agency cashability'!$B$3:$U$5,3,0),0) -> 0 | FJ23: =IF(AND(FJ$3<>"",DT23<>0),HLOOKUP(FJ$4,'Agency cashability'!$B$3:$U$5,3,0),0) -> 0 | FK23: =IF(AND(FK$3<>"",DU23<>0),HLOOKUP(FK$4,'Agency cashability'!$B$3:$U$5,3,0),0) -> 0 | FL23: =IF(AND(FL$3<>"",DV23<>0),HLOOKUP(FL$4,'Agency cashability'!$B$3:$U$5,3,0),0) -> 0 | FM23: =IF(AND(FM$3<>"",DW23<>0),HLOOKUP(FM$4,'Agency cashability'!$B$3:$U$5,3,0),0) -> 0 | FN23: =IF(AND(FN$3<>"",DX23<>0),HLOOKUP(FN$4,'Agency cashability'!$B$3:$U$5,3,0),0) -> 0 | FO23: =IF(AND(FO$3<>"",DY23<>0),HLOOKUP(FO$4,'Agency cashability'!$B$3:$U$5,3,0),0) -> 0 | FP23: =IF(AND(FP$3<>"",DZ23<>0),HLOOKUP(FP$4,'Agency cashability'!$B$3:$U$5,3,0),0) -> 0 | FR23: 0 | FS23: 0 | FT23: 0 | FU23: 0 | FV23: 0 | FW23: 0 | GM23: =IF((GM$3<>""),EB23*FR23,"") -> 0 | GN23: 0 | GO23: 0 | GP23: 0 | GQ23: 0 | GR23: 0 | HJ23: =IF((HJ$3<>""),EW23*FR23,"") -> 0 | HK23: 0 | HL23: 0 | HM23: 0 | HN23: 0 | HO23: 0
A24: B9i | B24: Reduced incidents of crime - theft of vehicle | C24: No | D24: Reduced police, other criminal justice costs, health costs per actual crime (N.B. Use multipliers to convert from recorded crime or convictions) | E24: Police, CJS, NHS | R24: 4000 | S24: 4000 | T24: 6020 | U24: 270 | V24: 10290 | W24: 2016-17 | X24: =VLOOKUP(W24,'GDP Deflators'!$B$8:$C$76,2,0)*100/VLOOKUP('Model constants'!$B$3,'GDP Deflators'!$B$8:$C$76,2,0) -> 90.9016879 | Y24: The Economic and Social cost of Crime, Second Edition (Home Office 2018) | AA24: 0 | AB24: 0 | BE24: 0 | BF24: 0 | BG24: 0 | BH24: 0 | BI24: 0 | BJ24: 0 | BK24: 0 | BL24: 0 | BM24: 0 | BN24: 0 | CD24: 0 | CF24: 0 | CG24: 0 | CH24: 0 | CI24: 0 | CJ24: 0 | CK24: 0 | CL24: 0 | CM24: 0 | CN24: 0 | CO24: 0 | DE24: 0 | DG24: =IF(DG$3<>"",VLOOKUP($A24,'Agency percentages'!$A$5:$X$70,(3+MATCH(DG$4,'Agency percentages'!$D$4:$W$4,0)),FALSE),"") -> 0.02512562814 | DH24: =IF(DH$3<>"",VLOOKUP($A24,'Agency percentages'!$A$5:$X$70,(3+MATCH(DH$4,'Agency percentages'!$D$4:$W$4,0)),FALSE),"") -> 0 | DI24: =IF(DI$3<>"",VLOOKUP($A24,'Agency percentages'!$A$5:$X$70,(3+MATCH(DI$4,'Agency percentages'!$D$4:$W$4,0)),FALSE),"") -> 0 | DJ24: =IF(DJ$3<>"",VLOOKUP($A24,'Agency percentages'!$A$5:$X$70,(3+MATCH(DJ$4,'Agency percentages'!$D$4:$W$4,0)),FALSE),"") -> 0 | DK24: =IF(DK$3<>"",VLOOKUP($A24,'Agency percentages'!$A$5:$X$70,(3+MATCH(DK$4,'Agency percentages'!$D$4:$W$4,0)),FALSE),"") -> 0 | DL24: =IF(DL$3<>"",VLOOKUP($A24,'Agency percentages'!$A$5:$X$70,(3+MATCH(DL$4,'Agency percentages'!$D$4:$W$4,0)),FALSE),"") -> 0 | DM24: =IF(DM$3<>"",VLOOKUP($A24,'Agency percentages'!$A$5:$X$70,(3+MATCH(DM$4,'Agency percentages'!$D$4:$W$4,0)),FALSE),"") ->  | DN24: =IF(DN$3<>"",VLOOKUP($A24,'Agency percentages'!$A$5:$X$70,(3+MATCH(DN$4,'Agency percentages'!$D$4:$W$4,0)),FALSE),"") ->  | DO24: =IF(DO$3<>"",VLOOKUP($A24,'Agency percentages'!$A$5:$X$70,(3+MATCH(DO$4,'Agency percentages'!$D$4:$W$4,0)),FALSE),"") ->  | DP24: =IF(DP$3<>"",VLOOKUP($A24,'Agency percentages'!$A$5:$X$70,(3+MATCH(DP$4,'Agency percentages'!$D$4:$W$4,0)),FALSE),"") ->  | DQ24: =IF(DQ$3<>"",VLOOKUP($A24,'Agency percentages'!$A$5:$X$70,(3+MATCH(DQ$4,'Agency percentages'!$D$4:$W$4,0)),FALSE),"") ->  | DR24: =IF(DR$3<>"",VLOOKUP($A24,'Agency percentages'!$A$5:$X$70,(3+MATCH(DR$4,'Agency percentages'!$D$4:$W$4,0)),FALSE),"") ->  | DS24: =IF(DS$3<>"",VLOOKUP($A24,'Agency percentages'!$A$5:$X$70,(3+MATCH(DS$4,'Agency percentages'!$D$4:$W$4,0)),FALSE),"") ->  | DT24: =IF(DT$3<>"",VLOOKUP($A24,'Agency percentages'!$A$5:$X$70,(3+MATCH(DT$4,'Agency percentages'!$D$4:$W$4,0)),FALSE),"") ->  | DU24: =IF(DU$3<>"",VLOOKUP($A24,'Agency percentages'!$A$5:$X$70,(3+MATCH(DU$4,'Agency percentages'!$D$4:$W$4,0)),FALSE),"") ->  | DV24: =IF(DV$3<>"",VLOOKUP($A24,'Agency percentages'!$A$5:$X$70,(3+MATCH(DV$4,'Agency percentages'!$D$4:$W$4,0)),FALSE),"") ->  | DW24: =IF(DW$3<>"",VLOOKUP($A24,'Agency percentages'!$A$5:$X$70,(3+MATCH(DW$4,'Agency percentages'!$D$4:$W$4,0)),FALSE),"") ->  | DX24: =IF(DX$3<>"",VLOOKUP($A24,'Agency percentages'!$A$5:$X$70,(3+MATCH(DX$4,'Agency percentages'!$D$4:$W$4,0)),FALSE),"") ->  | DY24: =IF(DY$3<>"",VLOOKUP($A24,'Agency percentages'!$A$5:$X$70,(3+MATCH(DY$4,'Agency percentages'!$D$4:$W$4,0)),FALSE),"") ->  | DZ24: =IF(DZ$3<>"",VLOOKUP($A24,'Agency percentages'!$A$5:$X$70,(3+MATCH(DZ$4,'Agency percentages'!$D$4:$W$4,0)),FALSE),"") ->  | EB24: =IF(AND(EB$3<>"",DG24<>0),HLOOKUP(EB$4,'Agency cashability'!$B$3:$U$5,2,0),0) -> 0.2 | EC24: =IF(AND(EC$3<>"",DH24<>0),HLOOKUP(EC$4,'Agency cashability'!$B$3:$U$5,2,0),0) -> 0 | ED24: =IF(AND(ED$3<>"",DI24<>0),HLOOKUP(ED$4,'Agency cashability'!$B$3:$U$5,2,0),0) -> 0 | EE24: =IF(AND(EE$3<>"",DJ24<>0),HLOOKUP(EE$4,'Agency cashability'!$B$3:$U$5,2,0),0) -> 0 | EF24: =IF(AND(EF$3<>"",DK24<>0),HLOOKUP(EF$4,'Agency cashability'!$B$3:$U$5,2,0),0) -> 0 | EG24: =IF(AND(EG$3<>"",DL24<>0),HLOOKUP(EG$4,'Agency cashability'!$B$3:$U$5,2,0),0) -> 0 | EH24: =IF(AND(EH$3<>"",DM24<>0),HLOOKUP(EH$4,'Agency cashability'!$B$3:$U$5,2,0),0) -> 0 | EI24: =IF(AND(EI$3<>"",DN24<>0),HLOOKUP(EI$4,'Agency cashability'!$B$3:$U$5,2,0),0) -> 0 | EJ24: =IF(AND(EJ$3<>"",DO24<>0),HLOOKUP(EJ$4,'Agency cashability'!$B$3:$U$5,2,0),0) -> 0 | EK24: =IF(AND(EK$3<>"",DP24<>0),HLOOKUP(EK$4,'Agency cashability'!$B$3:$U$5,2,0),0) -> 0 | EL24: =IF(AND(EL$3<>"",DQ24<>0),HLOOKUP(EL$4,'Agency cashability'!$B$3:$U$5,2,0),0) -> 0 | EM24: =IF(AND(EM$3<>"",DR24<>0),HLOOKUP(EM$4,'Agency cashability'!$B$3:$U$5,2,0),0) -> 0 | EN24: =IF(AND(EN$3<>"",DS24<>0),HLOOKUP(EN$4,'Agency cashability'!$B$3:$U$5,2,0),0) -> 0 | EO24: =IF(AND(EO$3<>"",DT24<>0),HLOOKUP(EO$4,'Agency cashability'!$B$3:$U$5,2,0),0) -> 0 | EP24: =IF(AND(EP$3<>"",DU24<>0),HLOOKUP(EP$4,'Agency cashability'!$B$3:$U$5,2,0),0) -> 0 | EQ24: =IF(AND(EQ$3<>"",DV24<>0),HLOOKUP(EQ$4,'Agency cashability'!$B$3:$U$5,2,0),0) -> 0 | ER24: =IF(AND(ER$3<>"",DW24<>0),HLOOKUP(ER$4,'Agency cashability'!$B$3:$U$5,2,0),0) -> 0 | ES24: =IF(AND(ES$3<>"",DX24<>0),HLOOKUP(ES$4,'Agency cashability'!$B$3:$U$5,2,0),0) -> 0 | ET24: =IF(AND(ET$3<>"",DY24<>0),HLOOKUP(ET$4,'Agency cashability'!$B$3:$U$5,2,0),0) -> 0 | EU24: =IF(AND(EU$3<>"",DZ24<>0),HLOOKUP(EU$4,'Agency cashability'!$B$3:$U$5,2,0),0) -> 0 | EW24: =IF(AND(EW$3<>"",DG24<>0),HLOOKUP(EW$4,'Agency cashability'!$B$3:$U$5,3,0),0) -> 0.5 | EX24: =IF(AND(EX$3<>"",DH24<>0),HLOOKUP(EX$4,'Agency cashability'!$B$3:$U$5,3,0),0) -> 0 | EY24: =IF(AND(EY$3<>"",DI24<>0),HLOOKUP(EY$4,'Agency cashability'!$B$3:$U$5,3,0),0) -> 0 | EZ24: =IF(AND(EZ$3<>"",DJ24<>0),HLOOKUP(EZ$4,'Agency cashability'!$B$3:$U$5,3,0),0) -> 0 | FA24: =IF(AND(FA$3<>"",DK24<>0),HLOOKUP(FA$4,'Agency cashability'!$B$3:$U$5,3,0),0) -> 0 | FB24: =IF(AND(FB$3<>"",DL24<>0),HLOOKUP(FB$4,'Agency cashability'!$B$3:$U$5,3,0),0) -> 0 | FC24: =IF(AND(FC$3<>"",DM24<>0),HLOOKUP(FC$4,'Agency cashability'!$B$3:$U$5,3,0),0) -> 0 | FD24: =IF(AND(FD$3<>"",DN24<>0),HLOOKUP(FD$4,'Agency cashability'!$B$3:$U$5,3,0),0) -> 0 | FE24: =IF(AND(FE$3<>"",DO24<>0),HLOOKUP(FE$4,'Agency cashability'!$B$3:$U$5,3,0),0) -> 0 | FF24: =IF(AND(FF$3<>"",DP24<>0),HLOOKUP(FF$4,'Agency cashability'!$B$3:$U$5,3,0),0) -> 0 | FG24: =IF(AND(FG$3<>"",DQ24<>0),HLOOKUP(FG$4,'Agency cashability'!$B$3:$U$5,3,0),0) -> 0 | FH24: =IF(AND(FH$3<>"",DR24<>0),HLOOKUP(FH$4,'Agency cashability'!$B$3:$U$5,3,0),0) -> 0 | FI24: =IF(AND(FI$3<>"",DS24<>0),HLOOKUP(FI$4,'Agency cashability'!$B$3:$U$5,3,0),0) -> 0 | FJ24: =IF(AND(FJ$3<>"",DT24<>0),HLOOKUP(FJ$4,'Agency cashability'!$B$3:$U$5,3,0),0) -> 0 | FK24: =IF(AND(FK$3<>"",DU24<>0),HLOOKUP(FK$4,'Agency cashability'!$B$3:$U$5,3,0),0) -> 0 | FL24: =IF(AND(FL$3<>"",DV24<>0),HLOOKUP(FL$4,'Agency cashability'!$B$3:$U$5,3,0),0) -> 0 | FM24: =IF(AND(FM$3<>"",DW24<>0),HLOOKUP(FM$4,'Agency cashability'!$B$3:$U$5,3,0),0) -> 0 | FN24: =IF(AND(FN$3<>"",DX24<>0),HLOOKUP(FN$4,'Agency cashability'!$B$3:$U$5,3,0),0) -> 0 | FO24: =IF(AND(FO$3<>"",DY24<>0),HLOOKUP(FO$4,'Agency cashability'!$B$3:$U$5,3,0),0) -> 0 | FP24: =IF(AND(FP$3<>"",DZ24<>0),HLOOKUP(FP$4,'Agency cashability'!$B$3:$U$5,3,0),0) -> 0 | FR24: 0 | FS24: 0 | FT24: 0 | FU24: 0 | FV24: 0 | FW24: 0 | GM24: =IF((GM$3<>""),EB24*FR24,"") -> 0 | GN24: 0 | GO24: 0 | GP24: 0 | GQ24: 0 | GR24: 0 | HJ24: =IF((HJ$3<>""),EW24*FR24,"") -> 0 | HK24: 0 | HL24: 0 | HM24: 0 | HN24: 0 | HO24: 0
A25: B9j | B25: Reduced incidents of crime - theft from vehicle | C25: No | D25: Reduced police, other criminal justice costs, health costs per actual crime (N.B. Use multipliers to convert from recorded crime or convictions) | E25: Police, CJS, NHS | R25: 220 | S25: 220 | T25: 530 | U25: 140 | V25: 890 | W25: 2016-17 | X25: =VLOOKUP(W25,'GDP Deflators'!$B$8:$C$76,2,0)*100/VLOOKUP('Model constants'!$B$3,'GDP Deflators'!$B$8:$C$76,2,0) -> 90.9016879 | Y25: The Economic and Social cost of Crime, Second Edition (Home Office 2018) | AA25: 0 | AB25: 0 | BE25: 0 | BF25: 0 | BG25: 0 | BH25: 0 | BI25: 0 | BJ25: 0 | BK25: 0 | BL25: 0 | BM25: 0 | BN25: 0 | CD25: 0 | CF25: 0 | CG25: 0 | CH25: 0 | CI25: 0 | CJ25: 0 | CK25: 0 | CL25: 0 | CM25: 0 | CN25: 0 | CO25: 0 | DE25: 0 | DG25: =IF(DG$3<>"",VLOOKUP($A25,'Agency percentages'!$A$5:$X$70,(3+MATCH(DG$4,'Agency percentages'!$D$4:$W$4,0)),FALSE),"") -> 0.1818181818 | DH25: =IF(DH$3<>"",VLOOKUP($A25,'Agency percentages'!$A$5:$X$70,(3+MATCH(DH$4,'Agency percentages'!$D$4:$W$4,0)),FALSE),"") -> 0 | DI25: =IF(DI$3<>"",VLOOKUP($A25,'Agency percentages'!$A$5:$X$70,(3+MATCH(DI$4,'Agency percentages'!$D$4:$W$4,0)),FALSE),"") -> 0 | DJ25: =IF(DJ$3<>"",VLOOKUP($A25,'Agency percentages'!$A$5:$X$70,(3+MATCH(DJ$4,'Agency percentages'!$D$4:$W$4,0)),FALSE),"") -> 0 | DK25: =IF(DK$3<>"",VLOOKUP($A25,'Agency percentages'!$A$5:$X$70,(3+MATCH(DK$4,'Agency percentages'!$D$4:$W$4,0)),FALSE),"") -> 0 | DL25: =IF(DL$3<>"",VLOOKUP($A25,'Agency percentages'!$A$5:$X$70,(3+MATCH(DL$4,'Agency percentages'!$D$4:$W$4,0)),FALSE),"") -> 0 | DM25: =IF(DM$3<>"",VLOOKUP($A25,'Agency percentages'!$A$5:$X$70,(3+MATCH(DM$4,'Agency percentages'!$D$4:$W$4,0)),FALSE),"") ->  | DN25: =IF(DN$3<>"",VLOOKUP($A25,'Agency percentages'!$A$5:$X$70,(3+MATCH(DN$4,'Agency percentages'!$D$4:$W$4,0)),FALSE),"") ->  | DO25: =IF(DO$3<>"",VLOOKUP($A25,'Agency percentages'!$A$5:$X$70,(3+MATCH(DO$4,'Agency percentages'!$D$4:$W$4,0)),FALSE),"") ->  | DP25: =IF(DP$3<>"",VLOOKUP($A25,'Agency percentages'!$A$5:$X$70,(3+MATCH(DP$4,'Agency percentages'!$D$4:$W$4,0)),FALSE),"") ->  | DQ25: =IF(DQ$3<>"",VLOOKUP($A25,'Agency percentages'!$A$5:$X$70,(3+MATCH(DQ$4,'Agency percentages'!$D$4:$W$4,0)),FALSE),"") ->  | DR25: =IF(DR$3<>"",VLOOKUP($A25,'Agency percentages'!$A$5:$X$70,(3+MATCH(DR$4,'Agency percentages'!$D$4:$W$4,0)),FALSE),"") ->  | DS25: =IF(DS$3<>"",VLOOKUP($A25,'Agency percentages'!$A$5:$X$70,(3+MATCH(DS$4,'Agency percentages'!$D$4:$W$4,0)),FALSE),"") ->  | DT25: =IF(DT$3<>"",VLOOKUP($A25,'Agency percentages'!$A$5:$X$70,(3+MATCH(DT$4,'Agency percentages'!$D$4:$W$4,0)),FALSE),"") ->  | DU25: =IF(DU$3<>"",VLOOKUP($A25,'Agency percentages'!$A$5:$X$70,(3+MATCH(DU$4,'Agency percentages'!$D$4:$W$4,0)),FALSE),"") ->  | DV25: =IF(DV$3<>"",VLOOKUP($A25,'Agency percentages'!$A$5:$X$70,(3+MATCH(DV$4,'Agency percentages'!$D$4:$W$4,0)),FALSE),"") ->  | DW25: =IF(DW$3<>"",VLOOKUP($A25,'Agency percentages'!$A$5:$X$70,(3+MATCH(DW$4,'Agency percentages'!$D$4:$W$4,0)),FALSE),"") ->  | DX25: =IF(DX$3<>"",VLOOKUP($A25,'Agency percentages'!$A$5:$X$70,(3+MATCH(DX$4,'Agency percentages'!$D$4:$W$4,0)),FALSE),"") ->  | DY25: =IF(DY$3<>"",VLOOKUP($A25,'Agency percentages'!$A$5:$X$70,(3+MATCH(DY$4,'Agency percentages'!$D$4:$W$4,0)),FALSE),"") ->  | DZ25: =IF(DZ$3<>"",VLOOKUP($A25,'Agency percentages'!$A$5:$X$70,(3+MATCH(DZ$4,'Agency percentages'!$D$4:$W$4,0)),FALSE),"") ->  | EB25: =IF(AND(EB$3<>"",DG25<>0),HLOOKUP(EB$4,'Agency cashability'!$B$3:$U$5,2,0),0) -> 0.2 | EC25: =IF(AND(EC$3<>"",DH25<>0),HLOOKUP(EC$4,'Agency cashability'!$B$3:$U$5,2,0),0) -> 0 | ED25: =IF(AND(ED$3<>"",DI25<>0),HLOOKUP(ED$4,'Agency cashability'!$B$3:$U$5,2,0),0) -> 0 | EE25: =IF(AND(EE$3<>"",DJ25<>0),HLOOKUP(EE$4,'Agency cashability'!$B$3:$U$5,2,0),0) -> 0 | EF25: =IF(AND(EF$3<>"",DK25<>0),HLOOKUP(EF$4,'Agency cashability'!$B$3:$U$5,2,0),0) -> 0 | EG25: =IF(AND(EG$3<>"",DL25<>0),HLOOKUP(EG$4,'Agency cashability'!$B$3:$U$5,2,0),0) -> 0 | EH25: =IF(AND(EH$3<>"",DM25<>0),HLOOKUP(EH$4,'Agency cashability'!$B$3:$U$5,2,0),0) -> 0 | EI25: =IF(AND(EI$3<>"",DN25<>0),HLOOKUP(EI$4,'Agency cashability'!$B$3:$U$5,2,0),0) -> 0 | EJ25: =IF(AND(EJ$3<>"",DO25<>0),HLOOKUP(EJ$4,'Agency cashability'!$B$3:$U$5,2,0),0) -> 0 | EK25: =IF(AND(EK$3<>"",DP25<>0),HLOOKUP(EK$4,'Agency cashability'!$B$3:$U$5,2,0),0) -> 0 | EL25: =IF(AND(EL$3<>"",DQ25<>0),HLOOKUP(EL$4,'Agency cashability'!$B$3:$U$5,2,0),0) -> 0 | EM25: =IF(AND(EM$3<>"",DR25<>0),HLOOKUP(EM$4,'Agency cashability'!$B$3:$U$5,2,0),0) -> 0 | EN25: =IF(AND(EN$3<>"",DS25<>0),HLOOKUP(EN$4,'Agency cashability'!$B$3:$U$5,2,0),0) -> 0 | EO25: =IF(AND(EO$3<>"",DT25<>0),HLOOKUP(EO$4,'Agency cashability'!$B$3:$U$5,2,0),0) -> 0 | EP25: =IF(AND(EP$3<>"",DU25<>0),HLOOKUP(EP$4,'Agency cashability'!$B$3:$U$5,2,0),0) -> 0 | EQ25: =IF(AND(EQ$3<>"",DV25<>0),HLOOKUP(EQ$4,'Agency cashability'!$B$3:$U$5,2,0),0) -> 0 | ER25: =IF(AND(ER$3<>"",DW25<>0),HLOOKUP(ER$4,'Agency cashability'!$B$3:$U$5,2,0),0) -> 0 | ES25: =IF(AND(ES$3<>"",DX25<>0),HLOOKUP(ES$4,'Agency cashability'!$B$3:$U$5,2,0),0) -> 0 | ET25: =IF(AND(ET$3<>"",DY25<>0),HLOOKUP(ET$4,'Agency cashability'!$B$3:$U$5,2,0),0) -> 0 | EU25: =IF(AND(EU$3<>"",DZ25<>0),HLOOKUP(EU$4,'Agency cashability'!$B$3:$U$5,2,0),0) -> 0 | EW25: =IF(AND(EW$3<>"",DG25<>0),HLOOKUP(EW$4,'Agency cashability'!$B$3:$U$5,3,0),0) -> 0.5 | EX25: =IF(AND(EX$3<>"",DH25<>0),HLOOKUP(EX$4,'Agency cashability'!$B$3:$U$5,3,0),0) -> 0 | EY25: =IF(AND(EY$3<>"",DI25<>0),HLOOKUP(EY$4,'Agency cashability'!$B$3:$U$5,3,0),0) -> 0 | EZ25: =IF(AND(EZ$3<>"",DJ25<>0),HLOOKUP(EZ$4,'Agency cashability'!$B$3:$U$5,3,0),0) -> 0 | FA25: =IF(AND(FA$3<>"",DK25<>0),HLOOKUP(FA$4,'Agency cashability'!$B$3:$U$5,3,0),0) -> 0 | FB25: =IF(AND(FB$3<>"",DL25<>0),HLOOKUP(FB$4,'Agency cashability'!$B$3:$U$5,3,0),0) -> 0 | FC25: =IF(AND(FC$3<>"",DM25<>0),HLOOKUP(FC$4,'Agency cashability'!$B$3:$U$5,3,0),0) -> 0 | FD25: =IF(AND(FD$3<>"",DN25<>0),HLOOKUP(FD$4,'Agency cashability'!$B$3:$U$5,3,0),0) -> 0 | FE25: =IF(AND(FE$3<>"",DO25<>0),HLOOKUP(FE$4,'Agency cashability'!$B$3:$U$5,3,0),0) -> 0 | FF25: =IF(AND(FF$3<>"",DP25<>0),HLOOKUP(FF$4,'Agency cashability'!$B$3:$U$5,3,0),0) -> 0 | FG25: =IF(AND(FG$3<>"",DQ25<>0),HLOOKUP(FG$4,'Agency cashability'!$B$3:$U$5,3,0),0) -> 0 | FH25: =IF(AND(FH$3<>"",DR25<>0),HLOOKUP(FH$4,'Agency cashability'!$B$3:$U$5,3,0),0) -> 0 | FI25: =IF(AND(FI$3<>"",DS25<>0),HLOOKUP(FI$4,'Agency cashability'!$B$3:$U$5,3,0),0) -> 0 | FJ25: =IF(AND(FJ$3<>"",DT25<>0),HLOOKUP(FJ$4,'Agency cashability'!$B$3:$U$5,3,0),0) -> 0 | FK25: =IF(AND(FK$3<>"",DU25<>0),HLOOKUP(FK$4,'Agency cashability'!$B$3:$U$5,3,0),0) -> 0 | FL25: =IF(AND(FL$3<>"",DV25<>0),HLOOKUP(FL$4,'Agency cashability'!$B$3:$U$5,3,0),0) -> 0 | FM25: =IF(AND(FM$3<>"",DW25<>0),HLOOKUP(FM$4,'Agency cashability'!$B$3:$U$5,3,0),0) -> 0 | FN25: =IF(AND(FN$3<>"",DX25<>0),HLOOKUP(FN$4,'Agency cashability'!$B$3:$U$5,3,0),0) -> 0 | FO25: =IF(AND(FO$3<>"",DY25<>0),HLOOKUP(FO$4,'Agency cashability'!$B$3:$U$5,3,0),0) -> 0 | FP25: =IF(AND(FP$3<>"",DZ25<>0),HLOOKUP(FP$4,'Agency cashability'!$B$3:$U$5,3,0),0) -> 0 | FR25: 0 | FS25: 0 | FT25: 0 | FU25: 0 | FV25: 0 | FW25: 0 | GM25: =IF((GM$3<>""),EB25*FR25,"") -> 0 | GN25: 0 | GO25: 0 | GP25: 0 | GQ25: 0 | GR25: 0 | HJ25: =IF((HJ$3<>""),EW25*FR25,"") -> 0 | HK25: 0 | HL25: 0 | HM25: 0 | HN25: 0 | HO25: 0
A26: B9k | B26: Reduced incidents of crime - arson | C26: No | D26: Reduced police, other criminal justice costs, health costs per actual crime (N.B. Use multipliers to convert from recorded crime or convictions) | E26: Police, CJS, NHS | R26: 5170 | S26: 5170 | T26: 2260 | U26: 980 | V26: 8410 | W26: 2016-17 | X26: =VLOOKUP(W26,'GDP Deflators'!$B$8:$C$76,2,0)*100/VLOOKUP('Model constants'!$B$3,'GDP Deflators'!$B$8:$C$76,2,0) -> 90.9016879 | Y26: The Economic and Social cost of Crime, Second Edition (Home Office 2018) | AA26: 0 | AB26: 0 | BE26: 0 | BF26: 0 | BG26: 0 | BH26: 0 | BI26: 0 | BJ26: 0 | BK26: 0 | BL26: 0 | BM26: 0 | BN26: 0 | CD26: 0 | CF26: 0 | CG26: 0 | CH26: 0 | CI26: 0 | CJ26: 0 | CK26: 0 | CL26: 0 | CM26: 0 | CN26: 0 | CO26: 0 | DE26: 0 | DG26: =IF(DG$3<>"",VLOOKUP($A26,'Agency percentages'!$A$5:$X$70,(3+MATCH(DG$4,'Agency percentages'!$D$4:$W$4,0)),FALSE),"") -> 0.03474903475 | DH26: =IF(DH$3<>"",VLOOKUP($A26,'Agency percentages'!$A$5:$X$70,(3+MATCH(DH$4,'Agency percentages'!$D$4:$W$4,0)),FALSE),"") -> 0 | DI26: =IF(DI$3<>"",VLOOKUP($A26,'Agency percentages'!$A$5:$X$70,(3+MATCH(DI$4,'Agency percentages'!$D$4:$W$4,0)),FALSE),"") -> 0 | DJ26: =IF(DJ$3<>"",VLOOKUP($A26,'Agency percentages'!$A$5:$X$70,(3+MATCH(DJ$4,'Agency percentages'!$D$4:$W$4,0)),FALSE),"") -> 0 | DK26: =IF(DK$3<>"",VLOOKUP($A26,'Agency percentages'!$A$5:$X$70,(3+MATCH(DK$4,'Agency percentages'!$D$4:$W$4,0)),FALSE),"") -> 0 | DL26: =IF(DL$3<>"",VLOOKUP($A26,'Agency percentages'!$A$5:$X$70,(3+MATCH(DL$4,'Agency percentages'!$D$4:$W$4,0)),FALSE),"") -> 0 | DM26: =IF(DM$3<>"",VLOOKUP($A26,'Agency percentages'!$A$5:$X$70,(3+MATCH(DM$4,'Agency percentages'!$D$4:$W$4,0)),FALSE),"") ->  | DN26: =IF(DN$3<>"",VLOOKUP($A26,'Agency percentages'!$A$5:$X$70,(3+MATCH(DN$4,'Agency percentages'!$D$4:$W$4,0)),FALSE),"") ->  | DO26: =IF(DO$3<>"",VLOOKUP($A26,'Agency percentages'!$A$5:$X$70,(3+MATCH(DO$4,'Agency percentages'!$D$4:$W$4,0)),FALSE),"") ->  | DP26: =IF(DP$3<>"",VLOOKUP($A26,'Agency percentages'!$A$5:$X$70,(3+MATCH(DP$4,'Agency percentages'!$D$4:$W$4,0)),FALSE),"") ->  | DQ26: =IF(DQ$3<>"",VLOOKUP($A26,'Agency percentages'!$A$5:$X$70,(3+MATCH(DQ$4,'Agency percentages'!$D$4:$W$4,0)),FALSE),"") ->  | DR26: =IF(DR$3<>"",VLOOKUP($A26,'Agency percentages'!$A$5:$X$70,(3+MATCH(DR$4,'Agency percentages'!$D$4:$W$4,0)),FALSE),"") ->  | DS26: =IF(DS$3<>"",VLOOKUP($A26,'Agency percentages'!$A$5:$X$70,(3+MATCH(DS$4,'Agency percentages'!$D$4:$W$4,0)),FALSE),"") ->  | DT26: =IF(DT$3<>"",VLOOKUP($A26,'Agency percentages'!$A$5:$X$70,(3+MATCH(DT$4,'Agency percentages'!$D$4:$W$4,0)),FALSE),"") ->  | DU26: =IF(DU$3<>"",VLOOKUP($A26,'Agency percentages'!$A$5:$X$70,(3+MATCH(DU$4,'Agency percentages'!$D$4:$W$4,0)),FALSE),"") ->  | DV26: =IF(DV$3<>"",VLOOKUP($A26,'Agency percentages'!$A$5:$X$70,(3+MATCH(DV$4,'Agency percentages'!$D$4:$W$4,0)),FALSE),"") ->  | DW26: =IF(DW$3<>"",VLOOKUP($A26,'Agency percentages'!$A$5:$X$70,(3+MATCH(DW$4,'Agency percentages'!$D$4:$W$4,0)),FALSE),"") ->  | DX26: =IF(DX$3<>"",VLOOKUP($A26,'Agency percentages'!$A$5:$X$70,(3+MATCH(DX$4,'Agency percentages'!$D$4:$W$4,0)),FALSE),"") ->  | DY26: =IF(DY$3<>"",VLOOKUP($A26,'Agency percentages'!$A$5:$X$70,(3+MATCH(DY$4,'Agency percentages'!$D$4:$W$4,0)),FALSE),"") ->  | DZ26: =IF(DZ$3<>"",VLOOKUP($A26,'Agency percentages'!$A$5:$X$70,(3+MATCH(DZ$4,'Agency percentages'!$D$4:$W$4,0)),FALSE),"") ->  | EB26: =IF(AND(EB$3<>"",DG26<>0),HLOOKUP(EB$4,'Agency cashability'!$B$3:$U$5,2,0),0) -> 0.2 | EC26: =IF(AND(EC$3<>"",DH26<>0),HLOOKUP(EC$4,'Agency cashability'!$B$3:$U$5,2,0),0) -> 0 | ED26: =IF(AND(ED$3<>"",DI26<>0),HLOOKUP(ED$4,'Agency cashability'!$B$3:$U$5,2,0),0) -> 0 | EE26: =IF(AND(EE$3<>"",DJ26<>0),HLOOKUP(EE$4,'Agency cashability'!$B$3:$U$5,2,0),0) -> 0 | EF26: =IF(AND(EF$3<>"",DK26<>0),HLOOKUP(EF$4,'Agency cashability'!$B$3:$U$5,2,0),0) -> 0 | EG26: =IF(AND(EG$3<>"",DL26<>0),HLOOKUP(EG$4,'Agency cashability'!$B$3:$U$5,2,0),0) -> 0 | EH26: =IF(AND(EH$3<>"",DM26<>0),HLOOKUP(EH$4,'Agency cashability'!$B$3:$U$5,2,0),0) -> 0 | EI26: =IF(AND(EI$3<>"",DN26<>0),HLOOKUP(EI$4,'Agency cashability'!$B$3:$U$5,2,0),0) -> 0 | EJ26: =IF(AND(EJ$3<>"",DO26<>0),HLOOKUP(EJ$4,'Agency cashability'!$B$3:$U$5,2,0),0) -> 0 | EK26: =IF(AND(EK$3<>"",DP26<>0),HLOOKUP(EK$4,'Agency cashability'!$B$3:$U$5,2,0),0) -> 0 | EL26: =IF(AND(EL$3<>"",DQ26<>0),HLOOKUP(EL$4,'Agency cashability'!$B$3:$U$5,2,0),0) -> 0 | EM26: =IF(AND(EM$3<>"",DR26<>0),HLOOKUP(EM$4,'Agency cashability'!$B$3:$U$5,2,0),0) -> 0 | EN26: =IF(AND(EN$3<>"",DS26<>0),HLOOKUP(EN$4,'Agency cashability'!$B$3:$U$5,2,0),0) -> 0 | EO26: =IF(AND(EO$3<>"",DT26<>0),HLOOKUP(EO$4,'Agency cashability'!$B$3:$U$5,2,0),0) -> 0 | EP26: =IF(AND(EP$3<>"",DU26<>0),HLOOKUP(EP$4,'Agency cashability'!$B$3:$U$5,2,0),0) -> 0 | EQ26: =IF(AND(EQ$3<>"",DV26<>0),HLOOKUP(EQ$4,'Agency cashability'!$B$3:$U$5,2,0),0) -> 0 | ER26: =IF(AND(ER$3<>"",DW26<>0),HLOOKUP(ER$4,'Agency cashability'!$B$3:$U$5,2,0),0) -> 0 | ES26: =IF(AND(ES$3<>"",DX26<>0),HLOOKUP(ES$4,'Agency cashability'!$B$3:$U$5,2,0),0) -> 0 | ET26: =IF(AND(ET$3<>"",DY26<>0),HLOOKUP(ET$4,'Agency cashability'!$B$3:$U$5,2,0),0) -> 0 | EU26: =IF(AND(EU$3<>"",DZ26<>0),HLOOKUP(EU$4,'Agency cashability'!$B$3:$U$5,2,0),0) -> 0 | EW26: =IF(AND(EW$3<>"",DG26<>0),HLOOKUP(EW$4,'Agency cashability'!$B$3:$U$5,3,0),0) -> 0.5 | EX26: =IF(AND(EX$3<>"",DH26<>0),HLOOKUP(EX$4,'Agency cashability'!$B$3:$U$5,3,0),0) -> 0 | EY26: =IF(AND(EY$3<>"",DI26<>0),HLOOKUP(EY$4,'Agency cashability'!$B$3:$U$5,3,0),0) -> 0 | EZ26: =IF(AND(EZ$3<>"",DJ26<>0),HLOOKUP(EZ$4,'Agency cashability'!$B$3:$U$5,3,0),0) -> 0 | FA26: =IF(AND(FA$3<>"",DK26<>0),HLOOKUP(FA$4,'Agency cashability'!$B$3:$U$5,3,0),0) -> 0 | FB26: =IF(AND(FB$3<>"",DL26<>0),HLOOKUP(FB$4,'Agency cashability'!$B$3:$U$5,3,0),0) -> 0 | FC26: =IF(AND(FC$3<>"",DM26<>0),HLOOKUP(FC$4,'Agency cashability'!$B$3:$U$5,3,0),0) -> 0 | FD26: =IF(AND(FD$3<>"",DN26<>0),HLOOKUP(FD$4,'Agency cashability'!$B$3:$U$5,3,0),0) -> 0 | FE26: =IF(AND(FE$3<>"",DO26<>0),HLOOKUP(FE$4,'Agency cashability'!$B$3:$U$5,3,0),0) -> 0 | FF26: =IF(AND(FF$3<>"",DP26<>0),HLOOKUP(FF$4,'Agency cashability'!$B$3:$U$5,3,0),0) -> 0 | FG26: =IF(AND(FG$3<>"",DQ26<>0),HLOOKUP(FG$4,'Agency cashability'!$B$3:$U$5,3,0),0) -> 0 | FH26: =IF(AND(FH$3<>"",DR26<>0),HLOOKUP(FH$4,'Agency cashability'!$B$3:$U$5,3,0),0) -> 0 | FI26: =IF(AND(FI$3<>"",DS26<>0),HLOOKUP(FI$4,'Agency cashability'!$B$3:$U$5,3,0),0) -> 0 | FJ26: =IF(AND(FJ$3<>"",DT26<>0),HLOOKUP(FJ$4,'Agency cashability'!$B$3:$U$5,3,0),0) -> 0 | FK26: =IF(AND(FK$3<>"",DU26<>0),HLOOKUP(FK$4,'Agency cashability'!$B$3:$U$5,3,0),0) -> 0 | FL26: =IF(AND(FL$3<>"",DV26<>0),HLOOKUP(FL$4,'Agency cashability'!$B$3:$U$5,3,0),0) -> 0 | FM26: =IF(AND(FM$3<>"",DW26<>0),HLOOKUP(FM$4,'Agency cashability'!$B$3:$U$5,3,0),0) -> 0 | FN26: =IF(AND(FN$3<>"",DX26<>0),HLOOKUP(FN$4,'Agency cashability'!$B$3:$U$5,3,0),0) -> 0 | FO26: =IF(AND(FO$3<>"",DY26<>0),HLOOKUP(FO$4,'Agency cashability'!$B$3:$U$5,3,0),0) -> 0 | FP26: =IF(AND(FP$3<>"",DZ26<>0),HLOOKUP(FP$4,'Agency cashability'!$B$3:$U$5,3,0),0) -> 0 | FR26: 0 | FS26: 0 | FT26: 0 | FU26: 0 | FV26: 0 | FW26: 0 | GM26: =IF((GM$3<>""),EB26*FR26,"") -> 0 | GN26: 0 | GO26: 0 | GP26: 0 | GQ26: 0 | GR26: 0 | HJ26: =IF((HJ$3<>""),EW26*FR26,"") -> 0 | HK26: 0 | HL26: 0 | HM26: 0 | HN26: 0 | HO26: 0
A27: B9l | B27: Reduced incidents of crime - other criminal damage | C27: No | D27: Reduced police, other criminal justice costs, health costs per actual crime (N.B. Use multipliers to convert from recorded crime or convictions) | E27: Police, CJS, NHS | R27: 590 | S27: 590 | T27: 480 | U27: 270 | V27: 1340 | W27: 2016-17 | X27: =VLOOKUP(W27,'GDP Deflators'!$B$8:$C$76,2,0)*100/VLOOKUP('Model constants'!$B$3,'GDP Deflators'!$B$8:$C$76,2,0) -> 90.9016879 | Y27: The Economic and Social cost of Crime, Second Edition (Home Office 2018) | AA27: 0 | AB27: 0 | BE27: 0 | BF27: 0 | BG27: 0 | BH27: 0 | BI27: 0 | BJ27: 0 | BK27: 0 | BL27: 0 | BM27: 0 | BN27: 0 | CD27: 0 | CF27: 0 | CG27: 0 | CH27: 0 | CI27: 0 | CJ27: 0 | CK27: 0 | CL27: 0 | CM27: 0 | CN27: 0 | CO27: 0 | DE27: 0 | DG27: =IF(DG$3<>"",VLOOKUP($A27,'Agency percentages'!$A$5:$X$70,(3+MATCH(DG$4,'Agency percentages'!$D$4:$W$4,0)),FALSE),"") -> 0.15 | DH27: =IF(DH$3<>"",VLOOKUP($A27,'Agency percentages'!$A$5:$X$70,(3+MATCH(DH$4,'Agency percentages'!$D$4:$W$4,0)),FALSE),"") -> 0 | DI27: =IF(DI$3<>"",VLOOKUP($A27,'Agency percentages'!$A$5:$X$70,(3+MATCH(DI$4,'Agency percentages'!$D$4:$W$4,0)),FALSE),"") -> 0 | DJ27: =IF(DJ$3<>"",VLOOKUP($A27,'Agency percentages'!$A$5:$X$70,(3+MATCH(DJ$4,'Agency percentages'!$D$4:$W$4,0)),FALSE),"") -> 0 | DK27: =IF(DK$3<>"",VLOOKUP($A27,'Agency percentages'!$A$5:$X$70,(3+MATCH(DK$4,'Agency percentages'!$D$4:$W$4,0)),FALSE),"") -> 0 | DL27: =IF(DL$3<>"",VLOOKUP($A27,'Agency percentages'!$A$5:$X$70,(3+MATCH(DL$4,'Agency percentages'!$D$4:$W$4,0)),FALSE),"") -> 0 | DM27: =IF(DM$3<>"",VLOOKUP($A27,'Agency percentages'!$A$5:$X$70,(3+MATCH(DM$4,'Agency percentages'!$D$4:$W$4,0)),FALSE),"") ->  | DN27: =IF(DN$3<>"",VLOOKUP($A27,'Agency percentages'!$A$5:$X$70,(3+MATCH(DN$4,'Agency percentages'!$D$4:$W$4,0)),FALSE),"") ->  | DO27: =IF(DO$3<>"",VLOOKUP($A27,'Agency percentages'!$A$5:$X$70,(3+MATCH(DO$4,'Agency percentages'!$D$4:$W$4,0)),FALSE),"") ->  | DP27: =IF(DP$3<>"",VLOOKUP($A27,'Agency percentages'!$A$5:$X$70,(3+MATCH(DP$4,'Agency percentages'!$D$4:$W$4,0)),FALSE),"") ->  | DQ27: =IF(DQ$3<>"",VLOOKUP($A27,'Agency percentages'!$A$5:$X$70,(3+MATCH(DQ$4,'Agency percentages'!$D$4:$W$4,0)),FALSE),"") ->  | DR27: =IF(DR$3<>"",VLOOKUP($A27,'Agency percentages'!$A$5:$X$70,(3+MATCH(DR$4,'Agency percentages'!$D$4:$W$4,0)),FALSE),"") ->  | DS27: =IF(DS$3<>"",VLOOKUP($A27,'Agency percentages'!$A$5:$X$70,(3+MATCH(DS$4,'Agency percentages'!$D$4:$W$4,0)),FALSE),"") ->  | DT27: =IF(DT$3<>"",VLOOKUP($A27,'Agency percentages'!$A$5:$X$70,(3+MATCH(DT$4,'Agency percentages'!$D$4:$W$4,0)),FALSE),"") ->  | DU27: =IF(DU$3<>"",VLOOKUP($A27,'Agency percentages'!$A$5:$X$70,(3+MATCH(DU$4,'Agency percentages'!$D$4:$W$4,0)),FALSE),"") ->  | DV27: =IF(DV$3<>"",VLOOKUP($A27,'Agency percentages'!$A$5:$X$70,(3+MATCH(DV$4,'Agency percentages'!$D$4:$W$4,0)),FALSE),"") ->  | DW27: =IF(DW$3<>"",VLOOKUP($A27,'Agency percentages'!$A$5:$X$70,(3+MATCH(DW$4,'Agency percentages'!$D$4:$W$4,0)),FALSE),"") ->  | DX27: =IF(DX$3<>"",VLOOKUP($A27,'Agency percentages'!$A$5:$X$70,(3+MATCH(DX$4,'Agency percentages'!$D$4:$W$4,0)),FALSE),"") ->  | DY27: =IF(DY$3<>"",VLOOKUP($A27,'Agency percentages'!$A$5:$X$70,(3+MATCH(DY$4,'Agency percentages'!$D$4:$W$4,0)),FALSE),"") ->  | DZ27: =IF(DZ$3<>"",VLOOKUP($A27,'Agency percentages'!$A$5:$X$70,(3+MATCH(DZ$4,'Agency percentages'!$D$4:$W$4,0)),FALSE),"") ->  | EB27: =IF(AND(EB$3<>"",DG27<>0),HLOOKUP(EB$4,'Agency cashability'!$B$3:$U$5,2,0),0) -> 0.2 | EC27: =IF(AND(EC$3<>"",DH27<>0),HLOOKUP(EC$4,'Agency cashability'!$B$3:$U$5,2,0),0) -> 0 | ED27: =IF(AND(ED$3<>"",DI27<>0),HLOOKUP(ED$4,'Agency cashability'!$B$3:$U$5,2,0),0) -> 0 | EE27: =IF(AND(EE$3<>"",DJ27<>0),HLOOKUP(EE$4,'Agency cashability'!$B$3:$U$5,2,0),0) -> 0 | EF27: =IF(AND(EF$3<>"",DK27<>0),HLOOKUP(EF$4,'Agency cashability'!$B$3:$U$5,2,0),0) -> 0 | EG27: =IF(AND(EG$3<>"",DL27<>0),HLOOKUP(EG$4,'Agency cashability'!$B$3:$U$5,2,0),0) -> 0 | EH27: =IF(AND(EH$3<>"",DM27<>0),HLOOKUP(EH$4,'Agency cashability'!$B$3:$U$5,2,0),0) -> 0 | EI27: =IF(AND(EI$3<>"",DN27<>0),HLOOKUP(EI$4,'Agency cashability'!$B$3:$U$5,2,0),0) -> 0 | EJ27: =IF(AND(EJ$3<>"",DO27<>0),HLOOKUP(EJ$4,'Agency cashability'!$B$3:$U$5,2,0),0) -> 0 | EK27: =IF(AND(EK$3<>"",DP27<>0),HLOOKUP(EK$4,'Agency cashability'!$B$3:$U$5,2,0),0) -> 0 | EL27: =IF(AND(EL$3<>"",DQ27<>0),HLOOKUP(EL$4,'Agency cashability'!$B$3:$U$5,2,0),0) -> 0 | EM27: =IF(AND(EM$3<>"",DR27<>0),HLOOKUP(EM$4,'Agency cashability'!$B$3:$U$5,2,0),0) -> 0 | EN27: =IF(AND(EN$3<>"",DS27<>0),HLOOKUP(EN$4,'Agency cashability'!$B$3:$U$5,2,0),0) -> 0 | EO27: =IF(AND(EO$3<>"",DT27<>0),HLOOKUP(EO$4,'Agency cashability'!$B$3:$U$5,2,0),0) -> 0 | EP27: =IF(AND(EP$3<>"",DU27<>0),HLOOKUP(EP$4,'Agency cashability'!$B$3:$U$5,2,0),0) -> 0 | EQ27: =IF(AND(EQ$3<>"",DV27<>0),HLOOKUP(EQ$4,'Agency cashability'!$B$3:$U$5,2,0),0) -> 0 | ER27: =IF(AND(ER$3<>"",DW27<>0),HLOOKUP(ER$4,'Agency cashability'!$B$3:$U$5,2,0),0) -> 0 | ES27: =IF(AND(ES$3<>"",DX27<>0),HLOOKUP(ES$4,'Agency cashability'!$B$3:$U$5,2,0),0) -> 0 | ET27: =IF(AND(ET$3<>"",DY27<>0),HLOOKUP(ET$4,'Agency cashability'!$B$3:$U$5,2,0),0) -> 0 | EU27: =IF(AND(EU$3<>"",DZ27<>0),HLOOKUP(EU$4,'Agency cashability'!$B$3:$U$5,2,0),0) -> 0 | EW27: =IF(AND(EW$3<>"",DG27<>0),HLOOKUP(EW$4,'Agency cashability'!$B$3:$U$5,3,0),0) -> 0.5 | EX27: =IF(AND(EX$3<>"",DH27<>0),HLOOKUP(EX$4,'Agency cashability'!$B$3:$U$5,3,0),0) -> 0 | EY27: =IF(AND(EY$3<>"",DI27<>0),HLOOKUP(EY$4,'Agency cashability'!$B$3:$U$5,3,0),0) -> 0 | EZ27: =IF(AND(EZ$3<>"",DJ27<>0),HLOOKUP(EZ$4,'Agency cashability'!$B$3:$U$5,3,0),0) -> 0 | FA27: =IF(AND(FA$3<>"",DK27<>0),HLOOKUP(FA$4,'Agency cashability'!$B$3:$U$5,3,0),0) -> 0 | FB27: =IF(AND(FB$3<>"",DL27<>0),HLOOKUP(FB$4,'Agency cashability'!$B$3:$U$5,3,0),0) -> 0 | FC27: =IF(AND(FC$3<>"",DM27<>0),HLOOKUP(FC$4,'Agency cashability'!$B$3:$U$5,3,0),0) -> 0 | FD27: =IF(AND(FD$3<>"",DN27<>0),HLOOKUP(FD$4,'Agency cashability'!$B$3:$U$5,3,0),0) -> 0 | FE27: =IF(AND(FE$3<>"",DO27<>0),HLOOKUP(FE$4,'Agency cashability'!$B$3:$U$5,3,0),0) -> 0 | FF27: =IF(AND(FF$3<>"",DP27<>0),HLOOKUP(FF$4,'Agency cashability'!$B$3:$U$5,3,0),0) -> 0 | FG27: =IF(AND(FG$3<>"",DQ27<>0),HLOOKUP(FG$4,'Agency cashability'!$B$3:$U$5,3,0),0) -> 0 | FH27: =IF(AND(FH$3<>"",DR27<>0),HLOOKUP(FH$4,'Agency cashability'!$B$3:$U$5,3,0),0) -> 0 | FI27: =IF(AND(FI$3<>"",DS27<>0),HLOOKUP(FI$4,'Agency cashability'!$B$3:$U$5,3,0),0) -> 0 | FJ27: =IF(AND(FJ$3<>"",DT27<>0),HLOOKUP(FJ$4,'Agency cashability'!$B$3:$U$5,3,0),0) -> 0 | FK27: =IF(AND(FK$3<>"",DU27<>0),HLOOKUP(FK$4,'Agency cashability'!$B$3:$U$5,3,0),0) -> 0 | FL27: =IF(AND(FL$3<>"",DV27<>0),HLOOKUP(FL$4,'Agency cashability'!$B$3:$U$5,3,0),0) -> 0 | FM27: =IF(AND(FM$3<>"",DW27<>0),HLOOKUP(FM$4,'Agency cashability'!$B$3:$U$5,3,0),0) -> 0 | FN27: =IF(AND(FN$3<>"",DX27<>0),HLOOKUP(FN$4,'Agency cashability'!$B$3:$U$5,3,0),0) -> 0 | FO27: =IF(AND(FO$3<>"",DY27<>0),HLOOKUP(FO$4,'Agency cashability'!$B$3:$U$5,3,0),0) -> 0 | FP27: =IF(AND(FP$3<>"",DZ27<>0),HLOOKUP(FP$4,'Agency cashability'!$B$3:$U$5,3,0),0) -> 0 | FR27: 0 | FS27: 0 | FT27: 0 | FU27: 0 | FV27: 0 | FW27: 0 | GM27: =IF((GM$3<>""),EB27*FR27,"") -> 0 | GN27: 0 | GO27: 0 | GP27: 0 | GQ27: 0 | GR27: 0 | HJ27: =IF((HJ$3<>""),EW27*FR27,"") -> 0 | HK27: 0 | HL27: 0 | HM27: 0 | HN27: 0 | HO27: 0
A28: B9m | B28: Reduced incidents of crime - commercial burglary | C28: No | D28: Reduced police, other criminal justice costs, health costs per actual crime (N.B. Use multipliers to convert from recorded crime or convictions) | E28: Police, CJS, NHS | R28: 2930 | S28: 2930 | T28: 12010 | U28: 510 | V28: 15450 | W28: 2016-17 | X28: =VLOOKUP(W28,'GDP Deflators'!$B$8:$C$76,2,0)*100/VLOOKUP('Model constants'!$B$3,'GDP Deflators'!$B$8:$C$76,2,0) -> 90.9016879 | Y28: The Economic and Social cost of Crime, Second Edition (Home Office 2018) | AA28: 0 | AB28: 0 | BE28: 0 | BF28: 0 | BG28: 0 | BH28: 0 | BI28: 0 | BJ28: 0 | BK28: 0 | BL28: 0 | BM28: 0 | BN28: 0 | CD28: 0 | CF28: 0 | CG28: 0 | CH28: 0 | CI28: 0 | CJ28: 0 | CK28: 0 | CL28: 0 | CM28: 0 | CN28: 0 | CO28: 0 | DE28: 0 | DG28: =IF(DG$3<>"",VLOOKUP($A28,'Agency percentages'!$A$5:$X$70,(3+MATCH(DG$4,'Agency percentages'!$D$4:$W$4,0)),FALSE),"") -> 0.05460750853 | DH28: =IF(DH$3<>"",VLOOKUP($A28,'Agency percentages'!$A$5:$X$70,(3+MATCH(DH$4,'Agency percentages'!$D$4:$W$4,0)),FALSE),"") -> 0 | DI28: =IF(DI$3<>"",VLOOKUP($A28,'Agency percentages'!$A$5:$X$70,(3+MATCH(DI$4,'Agency percentages'!$D$4:$W$4,0)),FALSE),"") -> 0 | DJ28: =IF(DJ$3<>"",VLOOKUP($A28,'Agency percentages'!$A$5:$X$70,(3+MATCH(DJ$4,'Agency percentages'!$D$4:$W$4,0)),FALSE),"") -> 0 | DK28: =IF(DK$3<>"",VLOOKUP($A28,'Agency percentages'!$A$5:$X$70,(3+MATCH(DK$4,'Agency percentages'!$D$4:$W$4,0)),FALSE),"") -> 0 | DL28: =IF(DL$3<>"",VLOOKUP($A28,'Agency percentages'!$A$5:$X$70,(3+MATCH(DL$4,'Agency percentages'!$D$4:$W$4,0)),FALSE),"") -> 0 | DM28: =IF(DM$3<>"",VLOOKUP($A28,'Agency percentages'!$A$5:$X$70,(3+MATCH(DM$4,'Agency percentages'!$D$4:$W$4,0)),FALSE),"") ->  | DN28: =IF(DN$3<>"",VLOOKUP($A28,'Agency percentages'!$A$5:$X$70,(3+MATCH(DN$4,'Agency percentages'!$D$4:$W$4,0)),FALSE),"") ->  | DO28: =IF(DO$3<>"",VLOOKUP($A28,'Agency percentages'!$A$5:$X$70,(3+MATCH(DO$4,'Agency percentages'!$D$4:$W$4,0)),FALSE),"") ->  | DP28: =IF(DP$3<>"",VLOOKUP($A28,'Agency percentages'!$A$5:$X$70,(3+MATCH(DP$4,'Agency percentages'!$D$4:$W$4,0)),FALSE),"") ->  | DQ28: =IF(DQ$3<>"",VLOOKUP($A28,'Agency percentages'!$A$5:$X$70,(3+MATCH(DQ$4,'Agency percentages'!$D$4:$W$4,0)),FALSE),"") ->  | DR28: =IF(DR$3<>"",VLOOKUP($A28,'Agency percentages'!$A$5:$X$70,(3+MATCH(DR$4,'Agency percentages'!$D$4:$W$4,0)),FALSE),"") ->  | DS28: =IF(DS$3<>"",VLOOKUP($A28,'Agency percentages'!$A$5:$X$70,(3+MATCH(DS$4,'Agency percentages'!$D$4:$W$4,0)),FALSE),"") ->  | DT28: =IF(DT$3<>"",VLOOKUP($A28,'Agency percentages'!$A$5:$X$70,(3+MATCH(DT$4,'Agency percentages'!$D$4:$W$4,0)),FALSE),"") ->  | DU28: =IF(DU$3<>"",VLOOKUP($A28,'Agency percentages'!$A$5:$X$70,(3+MATCH(DU$4,'Agency percentages'!$D$4:$W$4,0)),FALSE),"") ->  | DV28: =IF(DV$3<>"",VLOOKUP($A28,'Agency percentages'!$A$5:$X$70,(3+MATCH(DV$4,'Agency percentages'!$D$4:$W$4,0)),FALSE),"") ->  | DW28: =IF(DW$3<>"",VLOOKUP($A28,'Agency percentages'!$A$5:$X$70,(3+MATCH(DW$4,'Agency percentages'!$D$4:$W$4,0)),FALSE),"") ->  | DX28: =IF(DX$3<>"",VLOOKUP($A28,'Agency percentages'!$A$5:$X$70,(3+MATCH(DX$4,'Agency percentages'!$D$4:$W$4,0)),FALSE),"") ->  | DY28: =IF(DY$3<>"",VLOOKUP($A28,'Agency percentages'!$A$5:$X$70,(3+MATCH(DY$4,'Agency percentages'!$D$4:$W$4,0)),FALSE),"") ->  | DZ28: =IF(DZ$3<>"",VLOOKUP($A28,'Agency percentages'!$A$5:$X$70,(3+MATCH(DZ$4,'Agency percentages'!$D$4:$W$4,0)),FALSE),"") ->  | EB28: =IF(AND(EB$3<>"",DG28<>0),HLOOKUP(EB$4,'Agency cashability'!$B$3:$U$5,2,0),0) -> 0.2 | EC28: =IF(AND(EC$3<>"",DH28<>0),HLOOKUP(EC$4,'Agency cashability'!$B$3:$U$5,2,0),0) -> 0 | ED28: =IF(AND(ED$3<>"",DI28<>0),HLOOKUP(ED$4,'Agency cashability'!$B$3:$U$5,2,0),0) -> 0 | EE28: =IF(AND(EE$3<>"",DJ28<>0),HLOOKUP(EE$4,'Agency cashability'!$B$3:$U$5,2,0),0) -> 0 | EF28: =IF(AND(EF$3<>"",DK28<>0),HLOOKUP(EF$4,'Agency cashability'!$B$3:$U$5,2,0),0) -> 0 | EG28: =IF(AND(EG$3<>"",DL28<>0),HLOOKUP(EG$4,'Agency cashability'!$B$3:$U$5,2,0),0) -> 0 | EH28: =IF(AND(EH$3<>"",DM28<>0),HLOOKUP(EH$4,'Agency cashability'!$B$3:$U$5,2,0),0) -> 0 | EI28: =IF(AND(EI$3<>"",DN28<>0),HLOOKUP(EI$4,'Agency cashability'!$B$3:$U$5,2,0),0) -> 0 | EJ28: =IF(AND(EJ$3<>"",DO28<>0),HLOOKUP(EJ$4,'Agency cashability'!$B$3:$U$5,2,0),0) -> 0 | EK28: =IF(AND(EK$3<>"",DP28<>0),HLOOKUP(EK$4,'Agency cashability'!$B$3:$U$5,2,0),0) -> 0 | EL28: =IF(AND(EL$3<>"",DQ28<>0),HLOOKUP(EL$4,'Agency cashability'!$B$3:$U$5,2,0),0) -> 0 | EM28: =IF(AND(EM$3<>"",DR28<>0),HLOOKUP(EM$4,'Agency cashability'!$B$3:$U$5,2,0),0) -> 0 | EN28: =IF(AND(EN$3<>"",DS28<>0),HLOOKUP(EN$4,'Agency cashability'!$B$3:$U$5,2,0),0) -> 0 | EO28: =IF(AND(EO$3<>"",DT28<>0),HLOOKUP(EO$4,'Agency cashability'!$B$3:$U$5,2,0),0) -> 0 | EP28: =IF(AND(EP$3<>"",DU28<>0),HLOOKUP(EP$4,'Agency cashability'!$B$3:$U$5,2,0),0) -> 0 | EQ28: =IF(AND(EQ$3<>"",DV28<>0),HLOOKUP(EQ$4,'Agency cashability'!$B$3:$U$5,2,0),0) -> 0 | ER28: =IF(AND(ER$3<>"",DW28<>0),HLOOKUP(ER$4,'Agency cashability'!$B$3:$U$5,2,0),0) -> 0 | ES28: =IF(AND(ES$3<>"",DX28<>0),HLOOKUP(ES$4,'Agency cashability'!$B$3:$U$5,2,0),0) -> 0 | ET28: =IF(AND(ET$3<>"",DY28<>0),HLOOKUP(ET$4,'Agency cashability'!$B$3:$U$5,2,0),0) -> 0 | EU28: =IF(AND(EU$3<>"",DZ28<>0),HLOOKUP(EU$4,'Agency cashability'!$B$3:$U$5,2,0),0) -> 0 | EW28: =IF(AND(EW$3<>"",DG28<>0),HLOOKUP(EW$4,'Agency cashability'!$B$3:$U$5,3,0),0) -> 0.5 | EX28: =IF(AND(EX$3<>"",DH28<>0),HLOOKUP(EX$4,'Agency cashability'!$B$3:$U$5,3,0),0) -> 0 | EY28: =IF(AND(EY$3<>"",DI28<>0),HLOOKUP(EY$4,'Agency cashability'!$B$3:$U$5,3,0),0) -> 0 | EZ28: =IF(AND(EZ$3<>"",DJ28<>0),HLOOKUP(EZ$4,'Agency cashability'!$B$3:$U$5,3,0),0) -> 0 | FA28: =IF(AND(FA$3<>"",DK28<>0),HLOOKUP(FA$4,'Agency cashability'!$B$3:$U$5,3,0),0) -> 0 | FB28: =IF(AND(FB$3<>"",DL28<>0),HLOOKUP(FB$4,'Agency cashability'!$B$3:$U$5,3,0),0) -> 0 | FC28: =IF(AND(FC$3<>"",DM28<>0),HLOOKUP(FC$4,'Agency cashability'!$B$3:$U$5,3,0),0) -> 0 | FD28: =IF(AND(FD$3<>"",DN28<>0),HLOOKUP(FD$4,'Agency cashability'!$B$3:$U$5,3,0),0) -> 0 | FE28: =IF(AND(FE$3<>"",DO28<>0),HLOOKUP(FE$4,'Agency cashability'!$B$3:$U$5,3,0),0) -> 0 | FF28: =IF(AND(FF$3<>"",DP28<>0),HLOOKUP(FF$4,'Agency cashability'!$B$3:$U$5,3,0),0) -> 0 | FG28: =IF(AND(FG$3<>"",DQ28<>0),HLOOKUP(FG$4,'Agency cashability'!$B$3:$U$5,3,0),0) -> 0 | FH28: =IF(AND(FH$3<>"",DR28<>0),HLOOKUP(FH$4,'Agency cashability'!$B$3:$U$5,3,0),0) -> 0 | FI28: =IF(AND(FI$3<>"",DS28<>0),HLOOKUP(FI$4,'Agency cashability'!$B$3:$U$5,3,0),0) -> 0 | FJ28: =IF(AND(FJ$3<>"",DT28<>0),HLOOKUP(FJ$4,'Agency cashability'!$B$3:$U$5,3,0),0) -> 0 | FK28: =IF(AND(FK$3<>"",DU28<>0),HLOOKUP(FK$4,'Agency cashability'!$B$3:$U$5,3,0),0) -> 0 | FL28: =IF(AND(FL$3<>"",DV28<>0),HLOOKUP(FL$4,'Agency cashability'!$B$3:$U$5,3,0),0) -> 0 | FM28: =IF(AND(FM$3<>"",DW28<>0),HLOOKUP(FM$4,'Agency cashability'!$B$3:$U$5,3,0),0) -> 0 | FN28: =IF(AND(FN$3<>"",DX28<>0),HLOOKUP(FN$4,'Agency cashability'!$B$3:$U$5,3,0),0) -> 0 | FO28: =IF(AND(FO$3<>"",DY28<>0),HLOOKUP(FO$4,'Agency cashability'!$B$3:$U$5,3,0),0) -> 0 | FP28: =IF(AND(FP$3<>"",DZ28<>0),HLOOKUP(FP$4,'Agency cashability'!$B$3:$U$5,3,0),0) -> 0 | FR28: 0 | FS28: 0 | FT28: 0 | FU28: 0 | FV28: 0 | FW28: 0 | GM28: =IF((GM$3<>""),EB28*FR28,"") -> 0 | GN28: 0 | GO28: 0 | GP28: 0 | GQ28: 0 | GR28: 0 | HJ28: =IF((HJ$3<>""),EW28*FR28,"") -> 0 | HK28: 0 | HL28: 0 | HM28: 0 | HN28: 0 | HO28: 0
A29: B9n | B29: Reduced incidents of crime - commercial robbery | C29: No | D29: Reduced police, other criminal justice costs, health costs per actual crime (N.B. Use multipliers to convert from recorded crime or convictions) | E29: Police, CJS, NHS | R29: 5300 | S29: 5300 | T29: 5530 | U29: 4170 | V29: 15000 | W29: 2016-17 | X29: =VLOOKUP(W29,'GDP Deflators'!$B$8:$C$76,2,0)*100/VLOOKUP('Model constants'!$B$3,'GDP Deflators'!$B$8:$C$76,2,0) -> 90.9016879 | Y29: The Economic and Social cost of Crime, Second Edition (Home Office 2018) | AA29: 0 | AB29: 0 | BE29: 0 | BF29: 0 | BG29: 0 | BH29: 0 | BI29: 0 | BJ29: 0 | BK29: 0 | BL29: 0 | BM29: 0 | BN29: 0 | CD29: 0 | CF29: 0 | CG29: 0 | CH29: 0 | CI29: 0 | CJ29: 0 | CK29: 0 | CL29: 0 | CM29: 0 | CN29: 0 | CO29: 0 | DE29: 0 | DG29: =IF(DG$3<>"",VLOOKUP($A29,'Agency percentages'!$A$5:$X$70,(3+MATCH(DG$4,'Agency percentages'!$D$4:$W$4,0)),FALSE),"") -> 0.1134215501 | DH29: =IF(DH$3<>"",VLOOKUP($A29,'Agency percentages'!$A$5:$X$70,(3+MATCH(DH$4,'Agency percentages'!$D$4:$W$4,0)),FALSE),"") -> 0 | DI29: =IF(DI$3<>"",VLOOKUP($A29,'Agency percentages'!$A$5:$X$70,(3+MATCH(DI$4,'Agency percentages'!$D$4:$W$4,0)),FALSE),"") -> 0 | DJ29: =IF(DJ$3<>"",VLOOKUP($A29,'Agency percentages'!$A$5:$X$70,(3+MATCH(DJ$4,'Agency percentages'!$D$4:$W$4,0)),FALSE),"") -> 0 | DK29: =IF(DK$3<>"",VLOOKUP($A29,'Agency percentages'!$A$5:$X$70,(3+MATCH(DK$4,'Agency percentages'!$D$4:$W$4,0)),FALSE),"") -> 0 | DL29: =IF(DL$3<>"",VLOOKUP($A29,'Agency percentages'!$A$5:$X$70,(3+MATCH(DL$4,'Agency percentages'!$D$4:$W$4,0)),FALSE),"") -> 0 | DM29: =IF(DM$3<>"",VLOOKUP($A29,'Agency percentages'!$A$5:$X$70,(3+MATCH(DM$4,'Agency percentages'!$D$4:$W$4,0)),FALSE),"") ->  | DN29: =IF(DN$3<>"",VLOOKUP($A29,'Agency percentages'!$A$5:$X$70,(3+MATCH(DN$4,'Agency percentages'!$D$4:$W$4,0)),FALSE),"") ->  | DO29: =IF(DO$3<>"",VLOOKUP($A29,'Agency percentages'!$A$5:$X$70,(3+MATCH(DO$4,'Agency percentages'!$D$4:$W$4,0)),FALSE),"") ->  | DP29: =IF(DP$3<>"",VLOOKUP($A29,'Agency percentages'!$A$5:$X$70,(3+MATCH(DP$4,'Agency percentages'!$D$4:$W$4,0)),FALSE),"") ->  | DQ29: =IF(DQ$3<>"",VLOOKUP($A29,'Agency percentages'!$A$5:$X$70,(3+MATCH(DQ$4,'Agency percentages'!$D$4:$W$4,0)),FALSE),"") ->  | DR29: =IF(DR$3<>"",VLOOKUP($A29,'Agency percentages'!$A$5:$X$70,(3+MATCH(DR$4,'Agency percentages'!$D$4:$W$4,0)),FALSE),"") ->  | DS29: =IF(DS$3<>"",VLOOKUP($A29,'Agency percentages'!$A$5:$X$70,(3+MATCH(DS$4,'Agency percentages'!$D$4:$W$4,0)),FALSE),"") ->  | DT29: =IF(DT$3<>"",VLOOKUP($A29,'Agency percentages'!$A$5:$X$70,(3+MATCH(DT$4,'Agency percentages'!$D$4:$W$4,0)),FALSE),"") ->  | DU29: =IF(DU$3<>"",VLOOKUP($A29,'Agency percentages'!$A$5:$X$70,(3+MATCH(DU$4,'Agency percentages'!$D$4:$W$4,0)),FALSE),"") ->  | DV29: =IF(DV$3<>"",VLOOKUP($A29,'Agency percentages'!$A$5:$X$70,(3+MATCH(DV$4,'Agency percentages'!$D$4:$W$4,0)),FALSE),"") ->  | DW29: =IF(DW$3<>"",VLOOKUP($A29,'Agency percentages'!$A$5:$X$70,(3+MATCH(DW$4,'Agency percentages'!$D$4:$W$4,0)),FALSE),"") ->  | DX29: =IF(DX$3<>"",VLOOKUP($A29,'Agency percentages'!$A$5:$X$70,(3+MATCH(DX$4,'Agency percentages'!$D$4:$W$4,0)),FALSE),"") ->  | DY29: =IF(DY$3<>"",VLOOKUP($A29,'Agency percentages'!$A$5:$X$70,(3+MATCH(DY$4,'Agency percentages'!$D$4:$W$4,0)),FALSE),"") ->  | DZ29: =IF(DZ$3<>"",VLOOKUP($A29,'Agency percentages'!$A$5:$X$70,(3+MATCH(DZ$4,'Agency percentages'!$D$4:$W$4,0)),FALSE),"") ->  | EB29: =IF(AND(EB$3<>"",DG29<>0),HLOOKUP(EB$4,'Agency cashability'!$B$3:$U$5,2,0),0) -> 0.2 | EC29: =IF(AND(EC$3<>"",DH29<>0),HLOOKUP(EC$4,'Agency cashability'!$B$3:$U$5,2,0),0) -> 0 | ED29: =IF(AND(ED$3<>"",DI29<>0),HLOOKUP(ED$4,'Agency cashability'!$B$3:$U$5,2,0),0) -> 0 | EE29: =IF(AND(EE$3<>"",DJ29<>0),HLOOKUP(EE$4,'Agency cashability'!$B$3:$U$5,2,0),0) -> 0 | EF29: =IF(AND(EF$3<>"",DK29<>0),HLOOKUP(EF$4,'Agency cashability'!$B$3:$U$5,2,0),0) -> 0 | EG29: =IF(AND(EG$3<>"",DL29<>0),HLOOKUP(EG$4,'Agency cashability'!$B$3:$U$5,2,0),0) -> 0 | EH29: =IF(AND(EH$3<>"",DM29<>0),HLOOKUP(EH$4,'Agency cashability'!$B$3:$U$5,2,0),0) -> 0 | EI29: =IF(AND(EI$3<>"",DN29<>0),HLOOKUP(EI$4,'Agency cashability'!$B$3:$U$5,2,0),0) -> 0 | EJ29: =IF(AND(EJ$3<>"",DO29<>0),HLOOKUP(EJ$4,'Agency cashability'!$B$3:$U$5,2,0),0) -> 0 | EK29: =IF(AND(EK$3<>"",DP29<>0),HLOOKUP(EK$4,'Agency cashability'!$B$3:$U$5,2,0),0) -> 0 | EL29: =IF(AND(EL$3<>"",DQ29<>0),HLOOKUP(EL$4,'Agency cashability'!$B$3:$U$5,2,0),0) -> 0 | EM29: =IF(AND(EM$3<>"",DR29<>0),HLOOKUP(EM$4,'Agency cashability'!$B$3:$U$5,2,0),0) -> 0 | EN29: =IF(AND(EN$3<>"",DS29<>0),HLOOKUP(EN$4,'Agency cashability'!$B$3:$U$5,2,0),0) -> 0 | EO29: =IF(AND(EO$3<>"",DT29<>0),HLOOKUP(EO$4,'Agency cashability'!$B$3:$U$5,2,0),0) -> 0 | EP29: =IF(AND(EP$3<>"",DU29<>0),HLOOKUP(EP$4,'Agency cashability'!$B$3:$U$5,2,0),0) -> 0 | EQ29: =IF(AND(EQ$3<>"",DV29<>0),HLOOKUP(EQ$4,'Agency cashability'!$B$3:$U$5,2,0),0) -> 0 | ER29: =IF(AND(ER$3<>"",DW29<>0),HLOOKUP(ER$4,'Agency cashability'!$B$3:$U$5,2,0),0) -> 0 | ES29: =IF(AND(ES$3<>"",DX29<>0),HLOOKUP(ES$4,'Agency cashability'!$B$3:$U$5,2,0),0) -> 0 | ET29: =IF(AND(ET$3<>"",DY29<>0),HLOOKUP(ET$4,'Agency cashability'!$B$3:$U$5,2,0),0) -> 0 | EU29: =IF(AND(EU$3<>"",DZ29<>0),HLOOKUP(EU$4,'Agency cashability'!$B$3:$U$5,2,0),0) -> 0 | EW29: =IF(AND(EW$3<>"",DG29<>0),HLOOKUP(EW$4,'Agency cashability'!$B$3:$U$5,3,0),0) -> 0.5 | EX29: =IF(AND(EX$3<>"",DH29<>0),HLOOKUP(EX$4,'Agency cashability'!$B$3:$U$5,3,0),0) -> 0 | EY29: =IF(AND(EY$3<>"",DI29<>0),HLOOKUP(EY$4,'Agency cashability'!$B$3:$U$5,3,0),0) -> 0 | EZ29: =IF(AND(EZ$3<>"",DJ29<>0),HLOOKUP(EZ$4,'Agency cashability'!$B$3:$U$5,3,0),0) -> 0 | FA29: =IF(AND(FA$3<>"",DK29<>0),HLOOKUP(FA$4,'Agency cashability'!$B$3:$U$5,3,0),0) -> 0 | FB29: =IF(AND(FB$3<>"",DL29<>0),HLOOKUP(FB$4,'Agency cashability'!$B$3:$U$5,3,0),0) -> 0 | FC29: =IF(AND(FC$3<>"",DM29<>0),HLOOKUP(FC$4,'Agency cashability'!$B$3:$U$5,3,0),0) -> 0 | FD29: =IF(AND(FD$3<>"",DN29<>0),HLOOKUP(FD$4,'Agency cashability'!$B$3:$U$5,3,0),0) -> 0 | FE29: =IF(AND(FE$3<>"",DO29<>0),HLOOKUP(FE$4,'Agency cashability'!$B$3:$U$5,3,0),0) -> 0 | FF29: =IF(AND(FF$3<>"",DP29<>0),HLOOKUP(FF$4,'Agency cashability'!$B$3:$U$5,3,0),0) -> 0 | FG29: =IF(AND(FG$3<>"",DQ29<>0),HLOOKUP(FG$4,'Agency cashability'!$B$3:$U$5,3,0),0) -> 0 | FH29: =IF(AND(FH$3<>"",DR29<>0),HLOOKUP(FH$4,'Agency cashability'!$B$3:$U$5,3,0),0) -> 0 | FI29: =IF(AND(FI$3<>"",DS29<>0),HLOOKUP(FI$4,'Agency cashability'!$B$3:$U$5,3,0),0) -> 0 | FJ29: =IF(AND(FJ$3<>"",DT29<>0),HLOOKUP(FJ$4,'Agency cashability'!$B$3:$U$5,3,0),0) -> 0 | FK29: =IF(AND(FK$3<>"",DU29<>0),HLOOKUP(FK$4,'Agency cashability'!$B$3:$U$5,3,0),0) -> 0 | FL29: =IF(AND(FL$3<>"",DV29<>0),HLOOKUP(FL$4,'Agency cashability'!$B$3:$U$5,3,0),0) -> 0 | FM29: =IF(AND(FM$3<>"",DW29<>0),HLOOKUP(FM$4,'Agency cashability'!$B$3:$U$5,3,0),0) -> 0 | FN29: =IF(AND(FN$3<>"",DX29<>0),HLOOKUP(FN$4,'Agency cashability'!$B$3:$U$5,3,0),0) -> 0 | FO29: =IF(AND(FO$3<>"",DY29<>0),HLOOKUP(FO$4,'Agency cashability'!$B$3:$U$5,3,0),0) -> 0 | FP29: =IF(AND(FP$3<>"",DZ29<>0),HLOOKUP(FP$4,'Agency cashability'!$B$3:$U$5,3,0),0) -> 0 | FR29: 0 | FS29: 0 | FT29: 0 | FU29: 0 | FV29: 0 | FW29: 0 | GM29: =IF((GM$3<>""),EB29*FR29,"") -> 0 | GN29: 0 | GO29: 0 | GP29: 0 | GQ29: 0 | GR29: 0 | HJ29: =IF((HJ$3<>""),EW29*FR29,"") -> 0 | HK29: 0 | HL29: 0 | HM29: 0 | HN29: 0 | HO29: 0
A30: B9o | B30: Reduced incidents of crime - commercial - theft of vehicle | C30: No | D30: Reduced police, other criminal justice costs, health costs per actual crime (N.B. Use multipliers to convert from recorded crime or convictions) | E30: Police, CJS, NHS | R30: 3910 | S30: 3910 | T30: 30910 | U30: 360 | V30: 35180 | W30: 2016-17 | X30: =VLOOKUP(W30,'GDP Deflators'!$B$8:$C$76,2,0)*100/VLOOKUP('Model constants'!$B$3,'GDP Deflators'!$B$8:$C$76,2,0) -> 90.9016879 | Y30: The Economic and Social cost of Crime, Second Edition (Home Office 2018) | AA30: 0 | AB30: 0 | BE30: 0 | BF30: 0 | BG30: 0 | BH30: 0 | BI30: 0 | BJ30: 0 | BK30: 0 | BL30: 0 | BM30: 0 | BN30: 0 | CD30: 0 | CF30: 0 | CG30: 0 | CH30: 0 | CI30: 0 | CJ30: 0 | CK30: 0 | CL30: 0 | CM30: 0 | CN30: 0 | CO30: 0 | DE30: 0 | DG30: =IF(DG$3<>"",VLOOKUP($A30,'Agency percentages'!$A$5:$X$70,(3+MATCH(DG$4,'Agency percentages'!$D$4:$W$4,0)),FALSE),"") -> 0.002570694087 | DH30: =IF(DH$3<>"",VLOOKUP($A30,'Agency percentages'!$A$5:$X$70,(3+MATCH(DH$4,'Agency percentages'!$D$4:$W$4,0)),FALSE),"") -> 0 | DI30: =IF(DI$3<>"",VLOOKUP($A30,'Agency percentages'!$A$5:$X$70,(3+MATCH(DI$4,'Agency percentages'!$D$4:$W$4,0)),FALSE),"") -> 0 | DJ30: =IF(DJ$3<>"",VLOOKUP($A30,'Agency percentages'!$A$5:$X$70,(3+MATCH(DJ$4,'Agency percentages'!$D$4:$W$4,0)),FALSE),"") -> 0 | DK30: =IF(DK$3<>"",VLOOKUP($A30,'Agency percentages'!$A$5:$X$70,(3+MATCH(DK$4,'Agency percentages'!$D$4:$W$4,0)),FALSE),"") -> 0 | DL30: =IF(DL$3<>"",VLOOKUP($A30,'Agency percentages'!$A$5:$X$70,(3+MATCH(DL$4,'Agency percentages'!$D$4:$W$4,0)),FALSE),"") -> 0 | DM30: =IF(DM$3<>"",VLOOKUP($A30,'Agency percentages'!$A$5:$X$70,(3+MATCH(DM$4,'Agency percentages'!$D$4:$W$4,0)),FALSE),"") ->  | DN30: =IF(DN$3<>"",VLOOKUP($A30,'Agency percentages'!$A$5:$X$70,(3+MATCH(DN$4,'Agency percentages'!$D$4:$W$4,0)),FALSE),"") ->  | DO30: =IF(DO$3<>"",VLOOKUP($A30,'Agency percentages'!$A$5:$X$70,(3+MATCH(DO$4,'Agency percentages'!$D$4:$W$4,0)),FALSE),"") ->  | DP30: =IF(DP$3<>"",VLOOKUP($A30,'Agency percentages'!$A$5:$X$70,(3+MATCH(DP$4,'Agency percentages'!$D$4:$W$4,0)),FALSE),"") ->  | DQ30: =IF(DQ$3<>"",VLOOKUP($A30,'Agency percentages'!$A$5:$X$70,(3+MATCH(DQ$4,'Agency percentages'!$D$4:$W$4,0)),FALSE),"") ->  | DR30: =IF(DR$3<>"",VLOOKUP($A30,'Agency percentages'!$A$5:$X$70,(3+MATCH(DR$4,'Agency percentages'!$D$4:$W$4,0)),FALSE),"") ->  | DS30: =IF(DS$3<>"",VLOOKUP($A30,'Agency percentages'!$A$5:$X$70,(3+MATCH(DS$4,'Agency percentages'!$D$4:$W$4,0)),FALSE),"") ->  | DT30: =IF(DT$3<>"",VLOOKUP($A30,'Agency percentages'!$A$5:$X$70,(3+MATCH(DT$4,'Agency percentages'!$D$4:$W$4,0)),FALSE),"") ->  | DU30: =IF(DU$3<>"",VLOOKUP($A30,'Agency percentages'!$A$5:$X$70,(3+MATCH(DU$4,'Agency percentages'!$D$4:$W$4,0)),FALSE),"") ->  | DV30: =IF(DV$3<>"",VLOOKUP($A30,'Agency percentages'!$A$5:$X$70,(3+MATCH(DV$4,'Agency percentages'!$D$4:$W$4,0)),FALSE),"") ->  | DW30: =IF(DW$3<>"",VLOOKUP($A30,'Agency percentages'!$A$5:$X$70,(3+MATCH(DW$4,'Agency percentages'!$D$4:$W$4,0)),FALSE),"") ->  | DX30: =IF(DX$3<>"",VLOOKUP($A30,'Agency percentages'!$A$5:$X$70,(3+MATCH(DX$4,'Agency percentages'!$D$4:$W$4,0)),FALSE),"") ->  | DY30: =IF(DY$3<>"",VLOOKUP($A30,'Agency percentages'!$A$5:$X$70,(3+MATCH(DY$4,'Agency percentages'!$D$4:$W$4,0)),FALSE),"") ->  | DZ30: =IF(DZ$3<>"",VLOOKUP($A30,'Agency percentages'!$A$5:$X$70,(3+MATCH(DZ$4,'Agency percentages'!$D$4:$W$4,0)),FALSE),"") ->  | EB30: =IF(AND(EB$3<>"",DG30<>0),HLOOKUP(EB$4,'Agency cashability'!$B$3:$U$5,2,0),0) -> 0.2 | EC30: =IF(AND(EC$3<>"",DH30<>0),HLOOKUP(EC$4,'Agency cashability'!$B$3:$U$5,2,0),0) -> 0 | ED30: =IF(AND(ED$3<>"",DI30<>0),HLOOKUP(ED$4,'Agency cashability'!$B$3:$U$5,2,0),0) -> 0 | EE30: =IF(AND(EE$3<>"",DJ30<>0),HLOOKUP(EE$4,'Agency cashability'!$B$3:$U$5,2,0),0) -> 0 | EF30: =IF(AND(EF$3<>"",DK30<>0),HLOOKUP(EF$4,'Agency cashability'!$B$3:$U$5,2,0),0) -> 0 | EG30: =IF(AND(EG$3<>"",DL30<>0),HLOOKUP(EG$4,'Agency cashability'!$B$3:$U$5,2,0),0) -> 0 | EH30: =IF(AND(EH$3<>"",DM30<>0),HLOOKUP(EH$4,'Agency cashability'!$B$3:$U$5,2,0),0) -> 0 | EI30: =IF(AND(EI$3<>"",DN30<>0),HLOOKUP(EI$4,'Agency cashability'!$B$3:$U$5,2,0),0) -> 0 | EJ30: =IF(AND(EJ$3<>"",DO30<>0),HLOOKUP(EJ$4,'Agency cashability'!$B$3:$U$5,2,0),0) -> 0 | EK30: =IF(AND(EK$3<>"",DP30<>0),HLOOKUP(EK$4,'Agency cashability'!$B$3:$U$5,2,0),0) -> 0 | EL30: =IF(AND(EL$3<>"",DQ30<>0),HLOOKUP(EL$4,'Agency cashability'!$B$3:$U$5,2,0),0) -> 0 | EM30: =IF(AND(EM$3<>"",DR30<>0),HLOOKUP(EM$4,'Agency cashability'!$B$3:$U$5,2,0),0) -> 0 | EN30: =IF(AND(EN$3<>"",DS30<>0),HLOOKUP(EN$4,'Agency cashability'!$B$3:$U$5,2,0),0) -> 0 | EO30: =IF(AND(EO$3<>"",DT30<>0),HLOOKUP(EO$4,'Agency cashability'!$B$3:$U$5,2,0),0) -> 0 | EP30: =IF(AND(EP$3<>"",DU30<>0),HLOOKUP(EP$4,'Agency cashability'!$B$3:$U$5,2,0),0) -> 0 | EQ30: =IF(AND(EQ$3<>"",DV30<>0),HLOOKUP(EQ$4,'Agency cashability'!$B$3:$U$5,2,0),0) -> 0 | ER30: =IF(AND(ER$3<>"",DW30<>0),HLOOKUP(ER$4,'Agency cashability'!$B$3:$U$5,2,0),0) -> 0 | ES30: =IF(AND(ES$3<>"",DX30<>0),HLOOKUP(ES$4,'Agency cashability'!$B$3:$U$5,2,0),0) -> 0 | ET30: =IF(AND(ET$3<>"",DY30<>0),HLOOKUP(ET$4,'Agency cashability'!$B$3:$U$5,2,0),0) -> 0 | EU30: =IF(AND(EU$3<>"",DZ30<>0),HLOOKUP(EU$4,'Agency cashability'!$B$3:$U$5,2,0),0) -> 0 | EW30: =IF(AND(EW$3<>"",DG30<>0),HLOOKUP(EW$4,'Agency cashability'!$B$3:$U$5,3,0),0) -> 0.5 | EX30: =IF(AND(EX$3<>"",DH30<>0),HLOOKUP(EX$4,'Agency cashability'!$B$3:$U$5,3,0),0) -> 0 | EY30: =IF(AND(EY$3<>"",DI30<>0),HLOOKUP(EY$4,'Agency cashability'!$B$3:$U$5,3,0),0) -> 0 | EZ30: =IF(AND(EZ$3<>"",DJ30<>0),HLOOKUP(EZ$4,'Agency cashability'!$B$3:$U$5,3,0),0) -> 0 | FA30: =IF(AND(FA$3<>"",DK30<>0),HLOOKUP(FA$4,'Agency cashability'!$B$3:$U$5,3,0),0) -> 0 | FB30: =IF(AND(FB$3<>"",DL30<>0),HLOOKUP(FB$4,'Agency cashability'!$B$3:$U$5,3,0),0) -> 0 | FC30: =IF(AND(FC$3<>"",DM30<>0),HLOOKUP(FC$4,'Agency cashability'!$B$3:$U$5,3,0),0) -> 0 | FD30: =IF(AND(FD$3<>"",DN30<>0),HLOOKUP(FD$4,'Agency cashability'!$B$3:$U$5,3,0),0) -> 0 | FE30: =IF(AND(FE$3<>"",DO30<>0),HLOOKUP(FE$4,'Agency cashability'!$B$3:$U$5,3,0),0) -> 0 | FF30: =IF(AND(FF$3<>"",DP30<>0),HLOOKUP(FF$4,'Agency cashability'!$B$3:$U$5,3,0),0) -> 0 | FG30: =IF(AND(FG$3<>"",DQ30<>0),HLOOKUP(FG$4,'Agency cashability'!$B$3:$U$5,3,0),0) -> 0 | FH30: =IF(AND(FH$3<>"",DR30<>0),HLOOKUP(FH$4,'Agency cashability'!$B$3:$U$5,3,0),0) -> 0 | FI30: =IF(AND(FI$3<>"",DS30<>0),HLOOKUP(FI$4,'Agency cashability'!$B$3:$U$5,3,0),0) -> 0 | FJ30: =IF(AND(FJ$3<>"",DT30<>0),HLOOKUP(FJ$4,'Agency cashability'!$B$3:$U$5,3,0),0) -> 0 | FK30: =IF(AND(FK$3<>"",DU30<>0),HLOOKUP(FK$4,'Agency cashability'!$B$3:$U$5,3,0),0) -> 0 | FL30: =IF(AND(FL$3<>"",DV30<>0),HLOOKUP(FL$4,'Agency cashability'!$B$3:$U$5,3,0),0) -> 0 | FM30: =IF(AND(FM$3<>"",DW30<>0),HLOOKUP(FM$4,'Agency cashability'!$B$3:$U$5,3,0),0) -> 0 | FN30: =IF(AND(FN$3<>"",DX30<>0),HLOOKUP(FN$4,'Agency cashability'!$B$3:$U$5,3,0),0) -> 0 | FO30: =IF(AND(FO$3<>"",DY30<>0),HLOOKUP(FO$4,'Agency cashability'!$B$3:$U$5,3,0),0) -> 0 | FP30: =IF(AND(FP$3<>"",DZ30<>0),HLOOKUP(FP$4,'Agency cashability'!$B$3:$U$5,3,0),0) -> 0 | FR30: 0 | FS30: 0 | FT30: 0 | FU30: 0 | FV30: 0 | FW30: 0 | GM30: =IF((GM$3<>""),EB30*FR30,"") -> 0 | GN30: 0 | GO30: 0 | GP30: 0 | GQ30: 0 | GR30: 0 | HJ30: =IF((HJ$3<>""),EW30*FR30,"") -> 0 | HK30: 0 | HL30: 0 | HM30: 0 | HN30: 0 | HO30: 0
A31: B9p | B31: Reduced incidents of crime - commercial - theft from vehicle | C31: No | D31: Reduced police, other criminal justice costs, health costs per actual crime (N.B. Use multipliers to convert from recorded crime or convictions) | E31: Police, CJS, NHS | R31: 180 | S31: 180 | T31: 1600 | U31: 100 | V31: 1880 | W31: 2016-17 | X31: =VLOOKUP(W31,'GDP Deflators'!$B$8:$C$76,2,0)*100/VLOOKUP('Model constants'!$B$3,'GDP Deflators'!$B$8:$C$76,2,0) -> 90.9016879 | Y31: The Economic and Social cost of Crime, Second Edition (Home Office 2018) | AA31: 0 | AB31: 0 | BE31: 0 | BF31: 0 | BG31: 0 | BH31: 0 | BI31: 0 | BJ31: 0 | BK31: 0 | BL31: 0 | BM31: 0 | BN31: 0 | CD31: 0 | CF31: 0 | CG31: 0 | CH31: 0 | CI31: 0 | CJ31: 0 | CK31: 0 | CL31: 0 | CM31: 0 | CN31: 0 | CO31: 0 | DE31: 0 | DG31: =IF(DG$3<>"",VLOOKUP($A31,'Agency percentages'!$A$5:$X$70,(3+MATCH(DG$4,'Agency percentages'!$D$4:$W$4,0)),FALSE),"") -> 0 | DH31: =IF(DH$3<>"",VLOOKUP($A31,'Agency percentages'!$A$5:$X$70,(3+MATCH(DH$4,'Agency percentages'!$D$4:$W$4,0)),FALSE),"") -> 0 | DI31: =IF(DI$3<>"",VLOOKUP($A31,'Agency percentages'!$A$5:$X$70,(3+MATCH(DI$4,'Agency percentages'!$D$4:$W$4,0)),FALSE),"") -> 0 | DJ31: =IF(DJ$3<>"",VLOOKUP($A31,'Agency percentages'!$A$5:$X$70,(3+MATCH(DJ$4,'Agency percentages'!$D$4:$W$4,0)),FALSE),"") -> 0 | DK31: =IF(DK$3<>"",VLOOKUP($A31,'Agency percentages'!$A$5:$X$70,(3+MATCH(DK$4,'Agency percentages'!$D$4:$W$4,0)),FALSE),"") -> 0 | DL31: =IF(DL$3<>"",VLOOKUP($A31,'Agency percentages'!$A$5:$X$70,(3+MATCH(DL$4,'Agency percentages'!$D$4:$W$4,0)),FALSE),"") -> 0 | DM31: =IF(DM$3<>"",VLOOKUP($A31,'Agency percentages'!$A$5:$X$70,(3+MATCH(DM$4,'Agency percentages'!$D$4:$W$4,0)),FALSE),"") ->  | DN31: =IF(DN$3<>"",VLOOKUP($A31,'Agency percentages'!$A$5:$X$70,(3+MATCH(DN$4,'Agency percentages'!$D$4:$W$4,0)),FALSE),"") ->  | DO31: =IF(DO$3<>"",VLOOKUP($A31,'Agency percentages'!$A$5:$X$70,(3+MATCH(DO$4,'Agency percentages'!$D$4:$W$4,0)),FALSE),"") ->  | DP31: =IF(DP$3<>"",VLOOKUP($A31,'Agency percentages'!$A$5:$X$70,(3+MATCH(DP$4,'Agency percentages'!$D$4:$W$4,0)),FALSE),"") ->  | DQ31: =IF(DQ$3<>"",VLOOKUP($A31,'Agency percentages'!$A$5:$X$70,(3+MATCH(DQ$4,'Agency percentages'!$D$4:$W$4,0)),FALSE),"") ->  | DR31: =IF(DR$3<>"",VLOOKUP($A31,'Agency percentages'!$A$5:$X$70,(3+MATCH(DR$4,'Agency percentages'!$D$4:$W$4,0)),FALSE),"") ->  | DS31: =IF(DS$3<>"",VLOOKUP($A31,'Agency percentages'!$A$5:$X$70,(3+MATCH(DS$4,'Agency percentages'!$D$4:$W$4,0)),FALSE),"") ->  | DT31: =IF(DT$3<>"",VLOOKUP($A31,'Agency percentages'!$A$5:$X$70,(3+MATCH(DT$4,'Agency percentages'!$D$4:$W$4,0)),FALSE),"") ->  | DU31: =IF(DU$3<>"",VLOOKUP($A31,'Agency percentages'!$A$5:$X$70,(3+MATCH(DU$4,'Agency percentages'!$D$4:$W$4,0)),FALSE),"") ->  | DV31: =IF(DV$3<>"",VLOOKUP($A31,'Agency percentages'!$A$5:$X$70,(3+MATCH(DV$4,'Agency percentages'!$D$4:$W$4,0)),FALSE),"") ->  | DW31: =IF(DW$3<>"",VLOOKUP($A31,'Agency percentages'!$A$5:$X$70,(3+MATCH(DW$4,'Agency percentages'!$D$4:$W$4,0)),FALSE),"") ->  | DX31: =IF(DX$3<>"",VLOOKUP($A31,'Agency percentages'!$A$5:$X$70,(3+MATCH(DX$4,'Agency percentages'!$D$4:$W$4,0)),FALSE),"") ->  | DY31: =IF(DY$3<>"",VLOOKUP($A31,'Agency percentages'!$A$5:$X$70,(3+MATCH(DY$4,'Agency percentages'!$D$4:$W$4,0)),FALSE),"") ->  | DZ31: =IF(DZ$3<>"",VLOOKUP($A31,'Agency percentages'!$A$5:$X$70,(3+MATCH(DZ$4,'Agency percentages'!$D$4:$W$4,0)),FALSE),"") ->  | EB31: =IF(AND(EB$3<>"",DG31<>0),HLOOKUP(EB$4,'Agency cashability'!$B$3:$U$5,2,0),0) -> 0 | EC31: =IF(AND(EC$3<>"",DH31<>0),HLOOKUP(EC$4,'Agency cashability'!$B$3:$U$5,2,0),0) -> 0 | ED31: =IF(AND(ED$3<>"",DI31<>0),HLOOKUP(ED$4,'Agency cashability'!$B$3:$U$5,2,0),0) -> 0 | EE31: =IF(AND(EE$3<>"",DJ31<>0),HLOOKUP(EE$4,'Agency cashability'!$B$3:$U$5,2,0),0) -> 0 | EF31: =IF(AND(EF$3<>"",DK31<>0),HLOOKUP(EF$4,'Agency cashability'!$B$3:$U$5,2,0),0) -> 0 | EG31: =IF(AND(EG$3<>"",DL31<>0),HLOOKUP(EG$4,'Agency cashability'!$B$3:$U$5,2,0),0) -> 0 | EH31: =IF(AND(EH$3<>"",DM31<>0),HLOOKUP(EH$4,'Agency cashability'!$B$3:$U$5,2,0),0) -> 0 | EI31: =IF(AND(EI$3<>"",DN31<>0),HLOOKUP(EI$4,'Agency cashability'!$B$3:$U$5,2,0),0) -> 0 | EJ31: =IF(AND(EJ$3<>"",DO31<>0),HLOOKUP(EJ$4,'Agency cashability'!$B$3:$U$5,2,0),0) -> 0 | EK31: =IF(AND(EK$3<>"",DP31<>0),HLOOKUP(EK$4,'Agency cashability'!$B$3:$U$5,2,0),0) -> 0 | EL31: =IF(AND(EL$3<>"",DQ31<>0),HLOOKUP(EL$4,'Agency cashability'!$B$3:$U$5,2,0),0) -> 0 | EM31: =IF(AND(EM$3<>"",DR31<>0),HLOOKUP(EM$4,'Agency cashability'!$B$3:$U$5,2,0),0) -> 0 | EN31: =IF(AND(EN$3<>"",DS31<>0),HLOOKUP(EN$4,'Agency cashability'!$B$3:$U$5,2,0),0) -> 0 | EO31: =IF(AND(EO$3<>"",DT31<>0),HLOOKUP(EO$4,'Agency cashability'!$B$3:$U$5,2,0),0) -> 0 | EP31: =IF(AND(EP$3<>"",DU31<>0),HLOOKUP(EP$4,'Agency cashability'!$B$3:$U$5,2,0),0) -> 0 | EQ31: =IF(AND(EQ$3<>"",DV31<>0),HLOOKUP(EQ$4,'Agency cashability'!$B$3:$U$5,2,0),0) -> 0 | ER31: =IF(AND(ER$3<>"",DW31<>0),HLOOKUP(ER$4,'Agency cashability'!$B$3:$U$5,2,0),0) -> 0 | ES31: =IF(AND(ES$3<>"",DX31<>0),HLOOKUP(ES$4,'Agency cashability'!$B$3:$U$5,2,0),0) -> 0 | ET31: =IF(AND(ET$3<>"",DY31<>0),HLOOKUP(ET$4,'Agency cashability'!$B$3:$U$5,2,0),0) -> 0 | EU31: =IF(AND(EU$3<>"",DZ31<>0),HLOOKUP(EU$4,'Agency cashability'!$B$3:$U$5,2,0),0) -> 0 | EW31: =IF(AND(EW$3<>"",DG31<>0),HLOOKUP(EW$4,'Agency cashability'!$B$3:$U$5,3,0),0) -> 0 | EX31: =IF(AND(EX$3<>"",DH31<>0),HLOOKUP(EX$4,'Agency cashability'!$B$3:$U$5,3,0),0) -> 0 | EY31: =IF(AND(EY$3<>"",DI31<>0),HLOOKUP(EY$4,'Agency cashability'!$B$3:$U$5,3,0),0) -> 0 | EZ31: =IF(AND(EZ$3<>"",DJ31<>0),HLOOKUP(EZ$4,'Agency cashability'!$B$3:$U$5,3,0),0) -> 0 | FA31: =IF(AND(FA$3<>"",DK31<>0),HLOOKUP(FA$4,'Agency cashability'!$B$3:$U$5,3,0),0) -> 0 | FB31: =IF(AND(FB$3<>"",DL31<>0),HLOOKUP(FB$4,'Agency cashability'!$B$3:$U$5,3,0),0) -> 0 | FC31: =IF(AND(FC$3<>"",DM31<>0),HLOOKUP(FC$4,'Agency cashability'!$B$3:$U$5,3,0),0) -> 0 | FD31: =IF(AND(FD$3<>"",DN31<>0),HLOOKUP(FD$4,'Agency cashability'!$B$3:$U$5,3,0),0) -> 0 | FE31: =IF(AND(FE$3<>"",DO31<>0),HLOOKUP(FE$4,'Agency cashability'!$B$3:$U$5,3,0),0) -> 0 | FF31: =IF(AND(FF$3<>"",DP31<>0),HLOOKUP(FF$4,'Agency cashability'!$B$3:$U$5,3,0),0) -> 0 | FG31: =IF(AND(FG$3<>"",DQ31<>0),HLOOKUP(FG$4,'Agency cashability'!$B$3:$U$5,3,0),0) -> 0 | FH31: =IF(AND(FH$3<>"",DR31<>0),HLOOKUP(FH$4,'Agency cashability'!$B$3:$U$5,3,0),0) -> 0 | FI31: =IF(AND(FI$3<>"",DS31<>0),HLOOKUP(FI$4,'Agency cashability'!$B$3:$U$5,3,0),0) -> 0 | FJ31: =IF(AND(FJ$3<>"",DT31<>0),HLOOKUP(FJ$4,'Agency cashability'!$B$3:$U$5,3,0),0) -> 0 | FK31: =IF(AND(FK$3<>"",DU31<>0),HLOOKUP(FK$4,'Agency cashability'!$B$3:$U$5,3,0),0) -> 0 | FL31: =IF(AND(FL$3<>"",DV31<>0),HLOOKUP(FL$4,'Agency cashability'!$B$3:$U$5,3,0),0) -> 0 | FM31: =IF(AND(FM$3<>"",DW31<>0),HLOOKUP(FM$4,'Agency cashability'!$B$3:$U$5,3,0),0) -> 0 | FN31: =IF(AND(FN$3<>"",DX31<>0),HLOOKUP(FN$4,'Agency cashability'!$B$3:$U$5,3,0),0) -> 0 | FO31: =IF(AND(FO$3<>"",DY31<>0),HLOOKUP(FO$4,'Agency cashability'!$B$3:$U$5,3,0),0) -> 0 | FP31: =IF(AND(FP$3<>"",DZ31<>0),HLOOKUP(FP$4,'Agency cashability'!$B$3:$U$5,3,0),0) -> 0 | FR31: 0 | FS31: 0 | FT31: 0 | FU31: 0 | FV31: 0 | FW31: 0 | GM31: =IF((GM$3<>""),EB31*FR31,"") -> 0 | GN31: 0 | GO31: 0 | GP31: 0 | GQ31: 0 | GR31: 0 | HJ31: =IF((HJ$3<>""),EW31*FR31,"") -> 0 | HK31: 0 | HL31: 0 | HM31: 0 | HN31: 0 | HO31: 0
A32: B9q | B32: Reduced incidents of crime - commercial theft | C32: No | D32: Reduced police, other criminal justice costs, health costs per actual crime (N.B. Use multipliers to convert from recorded crime or convictions) | E32: Police, CJS, NHS | R32: 240 | S32: 240 | T32: 720 | U32: 0 | V32: 960 | W32: 2016-17 | X32: =VLOOKUP(W32,'GDP Deflators'!$B$8:$C$76,2,0)*100/VLOOKUP('Model constants'!$B$3,'GDP Deflators'!$B$8:$C$76,2,0) -> 90.9016879 | Y32: The Economic and Social cost of Crime, Second Edition (Home Office 2018) | AA32: 0 | AB32: 0 | BE32: 0 | BF32: 0 | BG32: 0 | BH32: 0 | BI32: 0 | BJ32: 0 | BK32: 0 | BL32: 0 | BM32: 0 | BN32: 0 | CD32: 0 | CF32: 0 | CG32: 0 | CH32: 0 | CI32: 0 | CJ32: 0 | CK32: 0 | CL32: 0 | CM32: 0 | CN32: 0 | CO32: 0 | DE32: 0 | DG32: =IF(DG$3<>"",VLOOKUP($A32,'Agency percentages'!$A$5:$X$70,(3+MATCH(DG$4,'Agency percentages'!$D$4:$W$4,0)),FALSE),"") -> 0 | DH32: =IF(DH$3<>"",VLOOKUP($A32,'Agency percentages'!$A$5:$X$70,(3+MATCH(DH$4,'Agency percentages'!$D$4:$W$4,0)),FALSE),"") -> 0 | DI32: =IF(DI$3<>"",VLOOKUP($A32,'Agency percentages'!$A$5:$X$70,(3+MATCH(DI$4,'Agency percentages'!$D$4:$W$4,0)),FALSE),"") -> 0 | DJ32: =IF(DJ$3<>"",VLOOKUP($A32,'Agency percentages'!$A$5:$X$70,(3+MATCH(DJ$4,'Agency percentages'!$D$4:$W$4,0)),FALSE),"") -> 0 | DK32: =IF(DK$3<>"",VLOOKUP($A32,'Agency percentages'!$A$5:$X$70,(3+MATCH(DK$4,'Agency percentages'!$D$4:$W$4,0)),FALSE),"") -> 0 | DL32: =IF(DL$3<>"",VLOOKUP($A32,'Agency percentages'!$A$5:$X$70,(3+MATCH(DL$4,'Agency percentages'!$D$4:$W$4,0)),FALSE),"") -> 0 | DM32: =IF(DM$3<>"",VLOOKUP($A32,'Agency percentages'!$A$5:$X$70,(3+MATCH(DM$4,'Agency percentages'!$D$4:$W$4,0)),FALSE),"") ->  | DN32: =IF(DN$3<>"",VLOOKUP($A32,'Agency percentages'!$A$5:$X$70,(3+MATCH(DN$4,'Agency percentages'!$D$4:$W$4,0)),FALSE),"") ->  | DO32: =IF(DO$3<>"",VLOOKUP($A32,'Agency percentages'!$A$5:$X$70,(3+MATCH(DO$4,'Agency percentages'!$D$4:$W$4,0)),FALSE),"") ->  | DP32: =IF(DP$3<>"",VLOOKUP($A32,'Agency percentages'!$A$5:$X$70,(3+MATCH(DP$4,'Agency percentages'!$D$4:$W$4,0)),FALSE),"") ->  | DQ32: =IF(DQ$3<>"",VLOOKUP($A32,'Agency percentages'!$A$5:$X$70,(3+MATCH(DQ$4,'Agency percentages'!$D$4:$W$4,0)),FALSE),"") ->  | DR32: =IF(DR$3<>"",VLOOKUP($A32,'Agency percentages'!$A$5:$X$70,(3+MATCH(DR$4,'Agency percentages'!$D$4:$W$4,0)),FALSE),"") ->  | DS32: =IF(DS$3<>"",VLOOKUP($A32,'Agency percentages'!$A$5:$X$70,(3+MATCH(DS$4,'Agency percentages'!$D$4:$W$4,0)),FALSE),"") ->  | DT32: =IF(DT$3<>"",VLOOKUP($A32,'Agency percentages'!$A$5:$X$70,(3+MATCH(DT$4,'Agency percentages'!$D$4:$W$4,0)),FALSE),"") ->  | DU32: =IF(DU$3<>"",VLOOKUP($A32,'Agency percentages'!$A$5:$X$70,(3+MATCH(DU$4,'Agency percentages'!$D$4:$W$4,0)),FALSE),"") ->  | DV32: =IF(DV$3<>"",VLOOKUP($A32,'Agency percentages'!$A$5:$X$70,(3+MATCH(DV$4,'Agency percentages'!$D$4:$W$4,0)),FALSE),"") ->  | DW32: =IF(DW$3<>"",VLOOKUP($A32,'Agency percentages'!$A$5:$X$70,(3+MATCH(DW$4,'Agency percentages'!$D$4:$W$4,0)),FALSE),"") ->  | DX32: =IF(DX$3<>"",VLOOKUP($A32,'Agency percentages'!$A$5:$X$70,(3+MATCH(DX$4,'Agency percentages'!$D$4:$W$4,0)),FALSE),"") ->  | DY32: =IF(DY$3<>"",VLOOKUP($A32,'Agency percentages'!$A$5:$X$70,(3+MATCH(DY$4,'Agency percentages'!$D$4:$W$4,0)),FALSE),"") ->  | DZ32: =IF(DZ$3<>"",VLOOKUP($A32,'Agency percentages'!$A$5:$X$70,(3+MATCH(DZ$4,'Agency percentages'!$D$4:$W$4,0)),FALSE),"") ->  | EB32: =IF(AND(EB$3<>"",DG32<>0),HLOOKUP(EB$4,'Agency cashability'!$B$3:$U$5,2,0),0) -> 0 | EC32: =IF(AND(EC$3<>"",DH32<>0),HLOOKUP(EC$4,'Agency cashability'!$B$3:$U$5,2,0),0) -> 0 | ED32: =IF(AND(ED$3<>"",DI32<>0),HLOOKUP(ED$4,'Agency cashability'!$B$3:$U$5,2,0),0) -> 0 | EE32: =IF(AND(EE$3<>"",DJ32<>0),HLOOKUP(EE$4,'Agency cashability'!$B$3:$U$5,2,0),0) -> 0 | EF32: =IF(AND(EF$3<>"",DK32<>0),HLOOKUP(EF$4,'Agency cashability'!$B$3:$U$5,2,0),0) -> 0 | EG32: =IF(AND(EG$3<>"",DL32<>0),HLOOKUP(EG$4,'Agency cashability'!$B$3:$U$5,2,0),0) -> 0 | EH32: =IF(AND(EH$3<>"",DM32<>0),HLOOKUP(EH$4,'Agency cashability'!$B$3:$U$5,2,0),0) -> 0 | EI32: =IF(AND(EI$3<>"",DN32<>0),HLOOKUP(EI$4,'Agency cashability'!$B$3:$U$5,2,0),0) -> 0 | EJ32: =IF(AND(EJ$3<>"",DO32<>0),HLOOKUP(EJ$4,'Agency cashability'!$B$3:$U$5,2,0),0) -> 0 | EK32: =IF(AND(EK$3<>"",DP32<>0),HLOOKUP(EK$4,'Agency cashability'!$B$3:$U$5,2,0),0) -> 0 | EL32: =IF(AND(EL$3<>"",DQ32<>0),HLOOKUP(EL$4,'Agency cashability'!$B$3:$U$5,2,0),0) -> 0 | EM32: =IF(AND(EM$3<>"",DR32<>0),HLOOKUP(EM$4,'Agency cashability'!$B$3:$U$5,2,0),0) -> 0 | EN32: =IF(AND(EN$3<>"",DS32<>0),HLOOKUP(EN$4,'Agency cashability'!$B$3:$U$5,2,0),0) -> 0 | EO32: =IF(AND(EO$3<>"",DT32<>0),HLOOKUP(EO$4,'Agency cashability'!$B$3:$U$5,2,0),0) -> 0 | EP32: =IF(AND(EP$3<>"",DU32<>0),HLOOKUP(EP$4,'Agency cashability'!$B$3:$U$5,2,0),0) -> 0 | EQ32: =IF(AND(EQ$3<>"",DV32<>0),HLOOKUP(EQ$4,'Agency cashability'!$B$3:$U$5,2,0),0) -> 0 | ER32: =IF(AND(ER$3<>"",DW32<>0),HLOOKUP(ER$4,'Agency cashability'!$B$3:$U$5,2,0),0) -> 0 | ES32: =IF(AND(ES$3<>"",DX32<>0),HLOOKUP(ES$4,'Agency cashability'!$B$3:$U$5,2,0),0) -> 0 | ET32: =IF(AND(ET$3<>"",DY32<>0),HLOOKUP(ET$4,'Agency cashability'!$B$3:$U$5,2,0),0) -> 0 | EU32: =IF(AND(EU$3<>"",DZ32<>0),HLOOKUP(EU$4,'Agency cashability'!$B$3:$U$5,2,0),0) -> 0 | EW32: =IF(AND(EW$3<>"",DG32<>0),HLOOKUP(EW$4,'Agency cashability'!$B$3:$U$5,3,0),0) -> 0 | EX32: =IF(AND(EX$3<>"",DH32<>0),HLOOKUP(EX$4,'Agency cashability'!$B$3:$U$5,3,0),0) -> 0 | EY32: =IF(AND(EY$3<>"",DI32<>0),HLOOKUP(EY$4,'Agency cashability'!$B$3:$U$5,3,0),0) -> 0 | EZ32: =IF(AND(EZ$3<>"",DJ32<>0),HLOOKUP(EZ$4,'Agency cashability'!$B$3:$U$5,3,0),0) -> 0 | FA32: =IF(AND(FA$3<>"",DK32<>0),HLOOKUP(FA$4,'Agency cashability'!$B$3:$U$5,3,0),0) -> 0 | FB32: =IF(AND(FB$3<>"",DL32<>0),HLOOKUP(FB$4,'Agency cashability'!$B$3:$U$5,3,0),0) -> 0 | FC32: =IF(AND(FC$3<>"",DM32<>0),HLOOKUP(FC$4,'Agency cashability'!$B$3:$U$5,3,0),0) -> 0 | FD32: =IF(AND(FD$3<>"",DN32<>0),HLOOKUP(FD$4,'Agency cashability'!$B$3:$U$5,3,0),0) -> 0 | FE32: =IF(AND(FE$3<>"",DO32<>0),HLOOKUP(FE$4,'Agency cashability'!$B$3:$U$5,3,0),0) -> 0 | FF32: =IF(AND(FF$3<>"",DP32<>0),HLOOKUP(FF$4,'Agency cashability'!$B$3:$U$5,3,0),0) -> 0 | FG32: =IF(AND(FG$3<>"",DQ32<>0),HLOOKUP(FG$4,'Agency cashability'!$B$3:$U$5,3,0),0) -> 0 | FH32: =IF(AND(FH$3<>"",DR32<>0),HLOOKUP(FH$4,'Agency cashability'!$B$3:$U$5,3,0),0) -> 0 | FI32: =IF(AND(FI$3<>"",DS32<>0),HLOOKUP(FI$4,'Agency cashability'!$B$3:$U$5,3,0),0) -> 0 | FJ32: =IF(AND(FJ$3<>"",DT32<>0),HLOOKUP(FJ$4,'Agency cashability'!$B$3:$U$5,3,0),0) -> 0 | FK32: =IF(AND(FK$3<>"",DU32<>0),HLOOKUP(FK$4,'Agency cashability'!$B$3:$U$5,3,0),0) -> 0 | FL32: =IF(AND(FL$3<>"",DV32<>0),HLOOKUP(FL$4,'Agency cashability'!$B$3:$U$5,3,0),0) -> 0 | FM32: =IF(AND(FM$3<>"",DW32<>0),HLOOKUP(FM$4,'Agency cashability'!$B$3:$U$5,3,0),0) -> 0 | FN32: =IF(AND(FN$3<>"",DX32<>0),HLOOKUP(FN$4,'Agency cashability'!$B$3:$U$5,3,0),0) -> 0 | FO32: =IF(AND(FO$3<>"",DY32<>0),HLOOKUP(FO$4,'Agency cashability'!$B$3:$U$5,3,0),0) -> 0 | FP32: =IF(AND(FP$3<>"",DZ32<>0),HLOOKUP(FP$4,'Agency cashability'!$B$3:$U$5,3,0),0) -> 0 | FR32: 0 | FS32: 0 | FT32: 0 | FU32: 0 | FV32: 0 | FW32: 0 | GM32: =IF((GM$3<>""),EB32*FR32,"") -> 0 | GN32: 0 | GO32: 0 | GP32: 0 | GQ32: 0 | GR32: 0 | HH32: =SUM(GM32:HF32)/SUM(FR32:GK32) ->  | HJ32: =IF((HJ$3<>""),EW32*FR32,"") -> 0 | HK32: 0 | HL32: 0 | HM32: 0 | HN32: 0 | HO32: 0 | IE32: =SUM(HJ32:IC32)/SUM(FR32:GK32) -> 
A33: B9r | B33: Reduced incidents of crime - commercial arson | C33: No | D33: Reduced police, other criminal justice costs, health costs per actual crime (N.B. Use multipliers to convert from recorded crime or convictions) | E33: Police, CJS, NHS | R33: 5330 | S33: 5330 | T33: 4580 | U33: 1010 | V33: 10920 | W33: 2016-17 | X33: =VLOOKUP(W33,'GDP Deflators'!$B$8:$C$76,2,0)*100/VLOOKUP('Model constants'!$B$3,'GDP Deflators'!$B$8:$C$76,2,0) -> 90.9016879 | Y33: The Economic and Social cost of Crime, Second Edition (Home Office 2018) | AA33: 0 | AB33: 0 | BE33: 0 | BF33: 0 | BG33: 0 | BH33: 0 | BI33: 0 | BJ33: 0 | BK33: 0 | BL33: 0 | BM33: 0 | BN33: 0 | CD33: 0 | CF33: 0 | CG33: 0 | CH33: 0 | CI33: 0 | CJ33: 0 | CK33: 0 | CL33: 0 | CM33: 0 | CN33: 0 | CO33: 0 | DE33: 0 | DG33: =IF(DG$3<>"",VLOOKUP($A33,'Agency percentages'!$A$5:$X$70,(3+MATCH(DG$4,'Agency percentages'!$D$4:$W$4,0)),FALSE),"") -> 0.06367041199 | DH33: =IF(DH$3<>"",VLOOKUP($A33,'Agency percentages'!$A$5:$X$70,(3+MATCH(DH$4,'Agency percentages'!$D$4:$W$4,0)),FALSE),"") -> 0 | DI33: =IF(DI$3<>"",VLOOKUP($A33,'Agency percentages'!$A$5:$X$70,(3+MATCH(DI$4,'Agency percentages'!$D$4:$W$4,0)),FALSE),"") -> 0 | DJ33: =IF(DJ$3<>"",VLOOKUP($A33,'Agency percentages'!$A$5:$X$70,(3+MATCH(DJ$4,'Agency percentages'!$D$4:$W$4,0)),FALSE),"") -> 0 | DK33: =IF(DK$3<>"",VLOOKUP($A33,'Agency percentages'!$A$5:$X$70,(3+MATCH(DK$4,'Agency percentages'!$D$4:$W$4,0)),FALSE),"") -> 0 | DL33: =IF(DL$3<>"",VLOOKUP($A33,'Agency percentages'!$A$5:$X$70,(3+MATCH(DL$4,'Agency percentages'!$D$4:$W$4,0)),FALSE),"") -> 0 | DM33: =IF(DM$3<>"",VLOOKUP($A33,'Agency percentages'!$A$5:$X$70,(3+MATCH(DM$4,'Agency percentages'!$D$4:$W$4,0)),FALSE),"") ->  | DN33: =IF(DN$3<>"",VLOOKUP($A33,'Agency percentages'!$A$5:$X$70,(3+MATCH(DN$4,'Agency percentages'!$D$4:$W$4,0)),FALSE),"") ->  | DO33: =IF(DO$3<>"",VLOOKUP($A33,'Agency percentages'!$A$5:$X$70,(3+MATCH(DO$4,'Agency percentages'!$D$4:$W$4,0)),FALSE),"") ->  | DP33: =IF(DP$3<>"",VLOOKUP($A33,'Agency percentages'!$A$5:$X$70,(3+MATCH(DP$4,'Agency percentages'!$D$4:$W$4,0)),FALSE),"") ->  | DQ33: =IF(DQ$3<>"",VLOOKUP($A33,'Agency percentages'!$A$5:$X$70,(3+MATCH(DQ$4,'Agency percentages'!$D$4:$W$4,0)),FALSE),"") ->  | DR33: =IF(DR$3<>"",VLOOKUP($A33,'Agency percentages'!$A$5:$X$70,(3+MATCH(DR$4,'Agency percentages'!$D$4:$W$4,0)),FALSE),"") ->  | DS33: =IF(DS$3<>"",VLOOKUP($A33,'Agency percentages'!$A$5:$X$70,(3+MATCH(DS$4,'Agency percentages'!$D$4:$W$4,0)),FALSE),"") ->  | DT33: =IF(DT$3<>"",VLOOKUP($A33,'Agency percentages'!$A$5:$X$70,(3+MATCH(DT$4,'Agency percentages'!$D$4:$W$4,0)),FALSE),"") ->  | DU33: =IF(DU$3<>"",VLOOKUP($A33,'Agency percentages'!$A$5:$X$70,(3+MATCH(DU$4,'Agency percentages'!$D$4:$W$4,0)),FALSE),"") ->  | DV33: =IF(DV$3<>"",VLOOKUP($A33,'Agency percentages'!$A$5:$X$70,(3+MATCH(DV$4,'Agency percentages'!$D$4:$W$4,0)),FALSE),"") ->  | DW33: =IF(DW$3<>"",VLOOKUP($A33,'Agency percentages'!$A$5:$X$70,(3+MATCH(DW$4,'Agency percentages'!$D$4:$W$4,0)),FALSE),"") ->  | DX33: =IF(DX$3<>"",VLOOKUP($A33,'Agency percentages'!$A$5:$X$70,(3+MATCH(DX$4,'Agency percentages'!$D$4:$W$4,0)),FALSE),"") ->  | DY33: =IF(DY$3<>"",VLOOKUP($A33,'Agency percentages'!$A$5:$X$70,(3+MATCH(DY$4,'Agency percentages'!$D$4:$W$4,0)),FALSE),"") ->  | DZ33: =IF(DZ$3<>"",VLOOKUP($A33,'Agency percentages'!$A$5:$X$70,(3+MATCH(DZ$4,'Agency percentages'!$D$4:$W$4,0)),FALSE),"") ->  | EB33: =IF(AND(EB$3<>"",DG33<>0),HLOOKUP(EB$4,'Agency cashability'!$B$3:$U$5,2,0),0) -> 0.2 | EC33: =IF(AND(EC$3<>"",DH33<>0),HLOOKUP(EC$4,'Agency cashability'!$B$3:$U$5,2,0),0) -> 0 | ED33: =IF(AND(ED$3<>"",DI33<>0),HLOOKUP(ED$4,'Agency cashability'!$B$3:$U$5,2,0),0) -> 0 | EE33: =IF(AND(EE$3<>"",DJ33<>0),HLOOKUP(EE$4,'Agency cashability'!$B$3:$U$5,2,0),0) -> 0 | EF33: =IF(AND(EF$3<>"",DK33<>0),HLOOKUP(EF$4,'Agency cashability'!$B$3:$U$5,2,0),0) -> 0 | EG33: =IF(AND(EG$3<>"",DL33<>0),HLOOKUP(EG$4,'Agency cashability'!$B$3:$U$5,2,0),0) -> 0 | EH33: =IF(AND(EH$3<>"",DM33<>0),HLOOKUP(EH$4,'Agency cashability'!$B$3:$U$5,2,0),0) -> 0 | EI33: =IF(AND(EI$3<>"",DN33<>0),HLOOKUP(EI$4,'Agency cashability'!$B$3:$U$5,2,0),0) -> 0 | EJ33: =IF(AND(EJ$3<>"",DO33<>0),HLOOKUP(EJ$4,'Agency cashability'!$B$3:$U$5,2,0),0) -> 0 | EK33: =IF(AND(EK$3<>"",DP33<>0),HLOOKUP(EK$4,'Agency cashability'!$B$3:$U$5,2,0),0) -> 0 | EL33: =IF(AND(EL$3<>"",DQ33<>0),HLOOKUP(EL$4,'Agency cashability'!$B$3:$U$5,2,0),0) -> 0 | EM33: =IF(AND(EM$3<>"",DR33<>0),HLOOKUP(EM$4,'Agency cashability'!$B$3:$U$5,2,0),0) -> 0 | EN33: =IF(AND(EN$3<>"",DS33<>0),HLOOKUP(EN$4,'Agency cashability'!$B$3:$U$5,2,0),0) -> 0 | EO33: =IF(AND(EO$3<>"",DT33<>0),HLOOKUP(EO$4,'Agency cashability'!$B$3:$U$5,2,0),0) -> 0 | EP33: =IF(AND(EP$3<>"",DU33<>0),HLOOKUP(EP$4,'Agency cashability'!$B$3:$U$5,2,0),0) -> 0 | EQ33: =IF(AND(EQ$3<>"",DV33<>0),HLOOKUP(EQ$4,'Agency cashability'!$B$3:$U$5,2,0),0) -> 0 | ER33: =IF(AND(ER$3<>"",DW33<>0),HLOOKUP(ER$4,'Agency cashability'!$B$3:$U$5,2,0),0) -> 0 | ES33: =IF(AND(ES$3<>"",DX33<>0),HLOOKUP(ES$4,'Agency cashability'!$B$3:$U$5,2,0),0) -> 0 | ET33: =IF(AND(ET$3<>"",DY33<>0),HLOOKUP(ET$4,'Agency cashability'!$B$3:$U$5,2,0),0) -> 0 | EU33: =IF(AND(EU$3<>"",DZ33<>0),HLOOKUP(EU$4,'Agency cashability'!$B$3:$U$5,2,0),0) -> 0 | EW33: =IF(AND(EW$3<>"",DG33<>0),HLOOKUP(EW$4,'Agency cashability'!$B$3:$U$5,3,0),0) -> 0.5 | EX33: =IF(AND(EX$3<>"",DH33<>0),HLOOKUP(EX$4,'Agency cashability'!$B$3:$U$5,3,0),0) -> 0 | EY33: =IF(AND(EY$3<>"",DI33<>0),HLOOKUP(EY$4,'Agency cashability'!$B$3:$U$5,3,0),0) -> 0 | EZ33: =IF(AND(EZ$3<>"",DJ33<>0),HLOOKUP(EZ$4,'Agency cashability'!$B$3:$U$5,3,0),0) -> 0 | FA33: =IF(AND(FA$3<>"",DK33<>0),HLOOKUP(FA$4,'Agency cashability'!$B$3:$U$5,3,0),0) -> 0 | FB33: =IF(AND(FB$3<>"",DL33<>0),HLOOKUP(FB$4,'Agency cashability'!$B$3:$U$5,3,0),0) -> 0 | FC33: =IF(AND(FC$3<>"",DM33<>0),HLOOKUP(FC$4,'Agency cashability'!$B$3:$U$5,3,0),0) -> 0 | FD33: =IF(AND(FD$3<>"",DN33<>0),HLOOKUP(FD$4,'Agency cashability'!$B$3:$U$5,3,0),0) -> 0 | FE33: =IF(AND(FE$3<>"",DO33<>0),HLOOKUP(FE$4,'Agency cashability'!$B$3:$U$5,3,0),0) -> 0 | FF33: =IF(AND(FF$3<>"",DP33<>0),HLOOKUP(FF$4,'Agency cashability'!$B$3:$U$5,3,0),0) -> 0 | FG33: =IF(AND(FG$3<>"",DQ33<>0),HLOOKUP(FG$4,'Agency cashability'!$B$3:$U$5,3,0),0) -> 0 | FH33: =IF(AND(FH$3<>"",DR33<>0),HLOOKUP(FH$4,'Agency cashability'!$B$3:$U$5,3,0),0) -> 0 | FI33: =IF(AND(FI$3<>"",DS33<>0),HLOOKUP(FI$4,'Agency cashability'!$B$3:$U$5,3,0),0) -> 0 | FJ33: =IF(AND(FJ$3<>"",DT33<>0),HLOOKUP(FJ$4,'Agency cashability'!$B$3:$U$5,3,0),0) -> 0 | FK33: =IF(AND(FK$3<>"",DU33<>0),HLOOKUP(FK$4,'Agency cashability'!$B$3:$U$5,3,0),0) -> 0 | FL33: =IF(AND(FL$3<>"",DV33<>0),HLOOKUP(FL$4,'Agency cashability'!$B$3:$U$5,3,0),0) -> 0 | FM33: =IF(AND(FM$3<>"",DW33<>0),HLOOKUP(FM$4,'Agency cashability'!$B$3:$U$5,3,0),0) -> 0 | FN33: =IF(AND(FN$3<>"",DX33<>0),HLOOKUP(FN$4,'Agency cashability'!$B$3:$U$5,3,0),0) -> 0 | FO33: =IF(AND(FO$3<>"",DY33<>0),HLOOKUP(FO$4,'Agency cashability'!$B$3:$U$5,3,0),0) -> 0 | FP33: =IF(AND(FP$3<>"",DZ33<>0),HLOOKUP(FP$4,'Agency cashability'!$B$3:$U$5,3,0),0) -> 0 | FR33: 0 | FS33: 0 | FT33: 0 | FU33: 0 | FV33: 0 | FW33: 0 | GM33: =IF((GM$3<>""),EB33*FR33,"") -> 0 | GN33: 0 | GO33: 0 | GP33: 0 | GQ33: 0 | GR33: 0 | HJ33: =IF((HJ$3<>""),EW33*FR33,"") -> 0 | HK33: 0 | HL33: 0 | HM33: 0 | HN33: 0 | HO33: 0
A34: B9s | B34: Reduced incidents of crime - commercial - other criminal damage | C34: No | D34: Reduced police, other criminal justice costs, health costs per actual crime (N.B. Use multipliers to convert from recorded crime or convictions) | E34: Police, CJS, NHS | R34: 540 | S34: 540 | T34: 810 | U34: 60 | V34: 1410 | W34: 2016-17 | X34: =VLOOKUP(W34,'GDP Deflators'!$B$8:$C$76,2,0)*100/VLOOKUP('Model constants'!$B$3,'GDP Deflators'!$B$8:$C$76,2,0) -> 90.9016879 | Y34: The Economic and Social cost of Crime, Second Edition (Home Office 2018) | AA34: 0 | AB34: 0 | BE34: 0 | BF34: 0 | BG34: 0 | BH34: 0 | BI34: 0 | BJ34: 0 | BK34: 0 | BL34: 0 | BM34: 0 | BN34: 0 | CD34: 0 | CF34: 0 | CG34: 0 | CH34: 0 | CI34: 0 | CJ34: 0 | CK34: 0 | CL34: 0 | CM34: 0 | CN34: 0 | CO34: 0 | DE34: 0 | DG34: =IF(DG$3<>"",VLOOKUP($A34,'Agency percentages'!$A$5:$X$70,(3+MATCH(DG$4,'Agency percentages'!$D$4:$W$4,0)),FALSE),"") -> 0.07272727273 | DH34: =IF(DH$3<>"",VLOOKUP($A34,'Agency percentages'!$A$5:$X$70,(3+MATCH(DH$4,'Agency percentages'!$D$4:$W$4,0)),FALSE),"") -> 0 | DI34: =IF(DI$3<>"",VLOOKUP($A34,'Agency percentages'!$A$5:$X$70,(3+MATCH(DI$4,'Agency percentages'!$D$4:$W$4,0)),FALSE),"") -> 0 | DJ34: =IF(DJ$3<>"",VLOOKUP($A34,'Agency percentages'!$A$5:$X$70,(3+MATCH(DJ$4,'Agency percentages'!$D$4:$W$4,0)),FALSE),"") -> 0 | DK34: =IF(DK$3<>"",VLOOKUP($A34,'Agency percentages'!$A$5:$X$70,(3+MATCH(DK$4,'Agency percentages'!$D$4:$W$4,0)),FALSE),"") -> 0 | DL34: =IF(DL$3<>"",VLOOKUP($A34,'Agency percentages'!$A$5:$X$70,(3+MATCH(DL$4,'Agency percentages'!$D$4:$W$4,0)),FALSE),"") -> 0 | DM34: =IF(DM$3<>"",VLOOKUP($A34,'Agency percentages'!$A$5:$X$70,(3+MATCH(DM$4,'Agency percentages'!$D$4:$W$4,0)),FALSE),"") ->  | DN34: =IF(DN$3<>"",VLOOKUP($A34,'Agency percentages'!$A$5:$X$70,(3+MATCH(DN$4,'Agency percentages'!$D$4:$W$4,0)),FALSE),"") ->  | DO34: =IF(DO$3<>"",VLOOKUP($A34,'Agency percentages'!$A$5:$X$70,(3+MATCH(DO$4,'Agency percentages'!$D$4:$W$4,0)),FALSE),"") ->  | DP34: =IF(DP$3<>"",VLOOKUP($A34,'Agency percentages'!$A$5:$X$70,(3+MATCH(DP$4,'Agency percentages'!$D$4:$W$4,0)),FALSE),"") ->  | DQ34: =IF(DQ$3<>"",VLOOKUP($A34,'Agency percentages'!$A$5:$X$70,(3+MATCH(DQ$4,'Agency percentages'!$D$4:$W$4,0)),FALSE),"") ->  | DR34: =IF(DR$3<>"",VLOOKUP($A34,'Agency percentages'!$A$5:$X$70,(3+MATCH(DR$4,'Agency percentages'!$D$4:$W$4,0)),FALSE),"") ->  | DS34: =IF(DS$3<>"",VLOOKUP($A34,'Agency percentages'!$A$5:$X$70,(3+MATCH(DS$4,'Agency percentages'!$D$4:$W$4,0)),FALSE),"") ->  | DT34: =IF(DT$3<>"",VLOOKUP($A34,'Agency percentages'!$A$5:$X$70,(3+MATCH(DT$4,'Agency percentages'!$D$4:$W$4,0)),FALSE),"") ->  | DU34: =IF(DU$3<>"",VLOOKUP($A34,'Agency percentages'!$A$5:$X$70,(3+MATCH(DU$4,'Agency percentages'!$D$4:$W$4,0)),FALSE),"") ->  | DV34: =IF(DV$3<>"",VLOOKUP($A34,'Agency percentages'!$A$5:$X$70,(3+MATCH(DV$4,'Agency percentages'!$D$4:$W$4,0)),FALSE),"") ->  | DW34: =IF(DW$3<>"",VLOOKUP($A34,'Agency percentages'!$A$5:$X$70,(3+MATCH(DW$4,'Agency percentages'!$D$4:$W$4,0)),FALSE),"") ->  | DX34: =IF(DX$3<>"",VLOOKUP($A34,'Agency percentages'!$A$5:$X$70,(3+MATCH(DX$4,'Agency percentages'!$D$4:$W$4,0)),FALSE),"") ->  | DY34: =IF(DY$3<>"",VLOOKUP($A34,'Agency percentages'!$A$5:$X$70,(3+MATCH(DY$4,'Agency percentages'!$D$4:$W$4,0)),FALSE),"") ->  | DZ34: =IF(DZ$3<>"",VLOOKUP($A34,'Agency percentages'!$A$5:$X$70,(3+MATCH(DZ$4,'Agency percentages'!$D$4:$W$4,0)),FALSE),"") ->  | EB34: =IF(AND(EB$3<>"",DG34<>0),HLOOKUP(EB$4,'Agency cashability'!$B$3:$U$5,2,0),0) -> 0.2 | EC34: =IF(AND(EC$3<>"",DH34<>0),HLOOKUP(EC$4,'Agency cashability'!$B$3:$U$5,2,0),0) -> 0 | ED34: =IF(AND(ED$3<>"",DI34<>0),HLOOKUP(ED$4,'Agency cashability'!$B$3:$U$5,2,0),0) -> 0 | EE34: =IF(AND(EE$3<>"",DJ34<>0),HLOOKUP(EE$4,'Agency cashability'!$B$3:$U$5,2,0),0) -> 0 | EF34: =IF(AND(EF$3<>"",DK34<>0),HLOOKUP(EF$4,'Agency cashability'!$B$3:$U$5,2,0),0) -> 0 | EG34: =IF(AND(EG$3<>"",DL34<>0),HLOOKUP(EG$4,'Agency cashability'!$B$3:$U$5,2,0),0) -> 0 | EH34: =IF(AND(EH$3<>"",DM34<>0),HLOOKUP(EH$4,'Agency cashability'!$B$3:$U$5,2,0),0) -> 0 | EI34: =IF(AND(EI$3<>"",DN34<>0),HLOOKUP(EI$4,'Agency cashability'!$B$3:$U$5,2,0),0) -> 0 | EJ34: =IF(AND(EJ$3<>"",DO34<>0),HLOOKUP(EJ$4,'Agency cashability'!$B$3:$U$5,2,0),0) -> 0 | EK34: =IF(AND(EK$3<>"",DP34<>0),HLOOKUP(EK$4,'Agency cashability'!$B$3:$U$5,2,0),0) -> 0 | EL34: =IF(AND(EL$3<>"",DQ34<>0),HLOOKUP(EL$4,'Agency cashability'!$B$3:$U$5,2,0),0) -> 0 | EM34: =IF(AND(EM$3<>"",DR34<>0),HLOOKUP(EM$4,'Agency cashability'!$B$3:$U$5,2,0),0) -> 0 | EN34: =IF(AND(EN$3<>"",DS34<>0),HLOOKUP(EN$4,'Agency cashability'!$B$3:$U$5,2,0),0) -> 0 | EO34: =IF(AND(EO$3<>"",DT34<>0),HLOOKUP(EO$4,'Agency cashability'!$B$3:$U$5,2,0),0) -> 0 | EP34: =IF(AND(EP$3<>"",DU34<>0),HLOOKUP(EP$4,'Agency cashability'!$B$3:$U$5,2,0),0) -> 0 | EQ34: =IF(AND(EQ$3<>"",DV34<>0),HLOOKUP(EQ$4,'Agency cashability'!$B$3:$U$5,2,0),0) -> 0 | ER34: =IF(AND(ER$3<>"",DW34<>0),HLOOKUP(ER$4,'Agency cashability'!$B$3:$U$5,2,0),0) -> 0 | ES34: =IF(AND(ES$3<>"",DX34<>0),HLOOKUP(ES$4,'Agency cashability'!$B$3:$U$5,2,0),0) -> 0 | ET34: =IF(AND(ET$3<>"",DY34<>0),HLOOKUP(ET$4,'Agency cashability'!$B$3:$U$5,2,0),0) -> 0 | EU34: =IF(AND(EU$3<>"",DZ34<>0),HLOOKUP(EU$4,'Agency cashability'!$B$3:$U$5,2,0),0) -> 0 | EW34: =IF(AND(EW$3<>"",DG34<>0),HLOOKUP(EW$4,'Agency cashability'!$B$3:$U$5,3,0),0) -> 0.5 | EX34: =IF(AND(EX$3<>"",DH34<>0),HLOOKUP(EX$4,'Agency cashability'!$B$3:$U$5,3,0),0) -> 0 | EY34: =IF(AND(EY$3<>"",DI34<>0),HLOOKUP(EY$4,'Agency cashability'!$B$3:$U$5,3,0),0) -> 0 | EZ34: =IF(AND(EZ$3<>"",DJ34<>0),HLOOKUP(EZ$4,'Agency cashability'!$B$3:$U$5,3,0),0) -> 0 | FA34: =IF(AND(FA$3<>"",DK34<>0),HLOOKUP(FA$4,'Agency cashability'!$B$3:$U$5,3,0),0) -> 0 | FB34: =IF(AND(FB$3<>"",DL34<>0),HLOOKUP(FB$4,'Agency cashability'!$B$3:$U$5,3,0),0) -> 0 | FC34: =IF(AND(FC$3<>"",DM34<>0),HLOOKUP(FC$4,'Agency cashability'!$B$3:$U$5,3,0),0) -> 0 | FD34: =IF(AND(FD$3<>"",DN34<>0),HLOOKUP(FD$4,'Agency cashability'!$B$3:$U$5,3,0),0) -> 0 | FE34: =IF(AND(FE$3<>"",DO34<>0),HLOOKUP(FE$4,'Agency cashability'!$B$3:$U$5,3,0),0) -> 0 | FF34: =IF(AND(FF$3<>"",DP34<>0),HLOOKUP(FF$4,'Agency cashability'!$B$3:$U$5,3,0),0) -> 0 | FG34: =IF(AND(FG$3<>"",DQ34<>0),HLOOKUP(FG$4,'Agency cashability'!$B$3:$U$5,3,0),0) -> 0 | FH34: =IF(AND(FH$3<>"",DR34<>0),HLOOKUP(FH$4,'Agency cashability'!$B$3:$U$5,3,0),0) -> 0 | FI34: =IF(AND(FI$3<>"",DS34<>0),HLOOKUP(FI$4,'Agency cashability'!$B$3:$U$5,3,0),0) -> 0 | FJ34: =IF(AND(FJ$3<>"",DT34<>0),HLOOKUP(FJ$4,'Agency cashability'!$B$3:$U$5,3,0),0) -> 0 | FK34: =IF(AND(FK$3<>"",DU34<>0),HLOOKUP(FK$4,'Agency cashability'!$B$3:$U$5,3,0),0) -> 0 | FL34: =IF(AND(FL$3<>"",DV34<>0),HLOOKUP(FL$4,'Agency cashability'!$B$3:$U$5,3,0),0) -> 0 | FM34: =IF(AND(FM$3<>"",DW34<>0),HLOOKUP(FM$4,'Agency cashability'!$B$3:$U$5,3,0),0) -> 0 | FN34: =IF(AND(FN$3<>"",DX34<>0),HLOOKUP(FN$4,'Agency cashability'!$B$3:$U$5,3,0),0) -> 0 | FO34: =IF(AND(FO$3<>"",DY34<>0),HLOOKUP(FO$4,'Agency cashability'!$B$3:$U$5,3,0),0) -> 0 | FP34: =IF(AND(FP$3<>"",DZ34<>0),HLOOKUP(FP$4,'Agency cashability'!$B$3:$U$5,3,0),0) -> 0 | FR34: 0 | FS34: 0 | FT34: 0 | FU34: 0 | FV34: 0 | FW34: 0 | GM34: =IF((GM$3<>""),EB34*FR34,"") -> 0 | GN34: 0 | GO34: 0 | GP34: 0 | GQ34: 0 | GR34: 0 | HJ34: =IF((HJ$3<>""),EW34*FR34,"") -> 0 | HK34: 0 | HL34: 0 | HM34: 0 | HN34: 0 | HO34: 0
A35: B9t | B35: Reduced incidents of crime - fraud | C35: No | D35: Reduced police, other criminal justice costs, health costs per actual crime (N.B. Use multipliers to convert from recorded crime or convictions) | E35: Police, CJS, NHS | R35: 300 | S35: =R35 -> 300 | T35: 780 | U35: 200 | V35: 1280 | W35: 2016-17 | X35: =VLOOKUP(W35,'GDP Deflators'!$B$8:$C$76,2,0)*100/VLOOKUP('Model constants'!$B$3,'GDP Deflators'!$B$8:$C$76,2,0) -> 90.9016879 | Y35: The Economic and Social cost of Crime, Second Edition (Home Office 2018) | AA35: =IF($C35="Yes",($H35*$J35*$L35*($N35-$P35)*R35*100*(1+$Z35)/$X35),0) -> 0 | AB35: =IF($C35="Yes",($H35*$J35*$L35*($N35-$P35)*V35*100*(1+$Z35)/$X35),0) -> 0 | BE35: =IF(BE$2<=time_frame,$AA35*AE35,"") -> 0 | BF35: =IF(BF$2<=time_frame,$AA35*AF35,"") -> 0 | BG35: =IF(BG$2<=time_frame,$AA35*AG35,"") -> 0 | BH35: =IF(BH$2<=time_frame,$AA35*AH35,"") -> 0 | BI35: =IF(BI$2<=time_frame,$AA35*AI35,"") -> 0 | BJ35: =IF(BJ$2<=time_frame,$AA35*AJ35,"") -> 0 | BK35: =IF(BK$2<=time_frame,$AA35*AK35,"") -> 0 | BL35: =IF(BL$2<=time_frame,$AA35*AL35,"") -> 0 | BM35: =IF(BM$2<=time_frame,$AA35*AM35,"") -> 0 | BN35: =IF(BN$2<=time_frame,$AA35*AN35,"") -> 0 | BO35: =IF(BO$2<=time_frame,$AA35*AO35,"") ->  | BP35: =IF(BP$2<=time_frame,$AA35*AP35,"") ->  | BQ35: =IF(BQ$2<=time_frame,$AA35*AQ35,"") ->  | BR35: =IF(BR$2<=time_frame,$AA35*AR35,"") ->  | BS35: =IF(BS$2<=time_frame,$AA35*AS35,"") ->  | BT35: =IF(BT$2<=time_frame,$AA35*AT35,"") ->  | BU35: =IF(BU$2<=time_frame,$AA35*AU35,"") ->  | BV35: =IF(BV$2<=time_frame,$AA35*AV35,"") ->  | BW35: =IF(BW$2<=time_frame,$AA35*AW35,"") ->  | BX35: =IF(BX$2<=time_frame,$AA35*AX35,"") ->  | BY35: =IF(BY$2<=time_frame,$AA35*AY35,"") ->  | BZ35: =IF(BZ$2<=time_frame,$AA35*AZ35,"") ->  | CA35: =IF(CA$2<=time_frame,$AA35*BA35,"") ->  | CB35: =IF(CB$2<=time_frame,$AA35*BB35,"") ->  | CC35: =IF(CC$2<=time_frame,$AA35*BC35,"") ->  | CD35: =SUM(BE35:CC35) -> 0 | CF35: =IF(CF$2<=time_frame,$AB35*AE35,"") -> 0 | CG35: =IF(CG$2<=time_frame,$AB35*AF35,"") -> 0 | CH35: =IF(CH$2<=time_frame,$AB35*AG35,"") -> 0 | CI35: =IF(CI$2<=time_frame,$AB35*AH35,"") -> 0 | CJ35: =IF(CJ$2<=time_frame,$AB35*AI35,"") -> 0 | CK35: =IF(CK$2<=time_frame,$AB35*AJ35,"") -> 0 | CL35: =IF(CL$2<=time_frame,$AB35*AK35,"") -> 0 | CM35: =IF(CM$2<=time_frame,$AB35*AL35,"") -> 0 | CN35: =IF(CN$2<=time_frame,$AB35*AM35,"") -> 0 | CO35: =IF(CO$2<=time_frame,$AB35*AN35,"") -> 0 | CP35: =IF(CP$2<=time_frame,$AB35*AO35,"") ->  | CQ35: =IF(CQ$2<=time_frame,$AB35*AP35,"") ->  | CR35: =IF(CR$2<=time_frame,$AB35*AQ35,"") ->  | CS35: =IF(CS$2<=time_frame,$AB35*AR35,"") ->  | CT35: =IF(CT$2<=time_frame,$AB35*AS35,"") ->  | CU35: =IF(CU$2<=time_frame,$AB35*AT35,"") ->  | CV35: =IF(CV$2<=time_frame,$AB35*AU35,"") ->  | CW35: =IF(CW$2<=time_frame,$AB35*AV35,"") ->  | CX35: =IF(CX$2<=time_frame,$AB35*AW35,"") ->  | CY35: =IF(CY$2<=time_frame,$AB35*AX35,"") ->  | CZ35: =IF(CZ$2<=time_frame,$AB35*AY35,"") ->  | DA35: =IF(DA$2<=time_frame,$AB35*AZ35,"") ->  | DB35: =IF(DB$2<=time_frame,$AB35*BA35,"") ->  | DC35: =IF(DC$2<=time_frame,$AB35*BB35,"") ->  | DD35: =IF(DD$2<=time_frame,$AB35*BC35,"") ->  | DE35: =SUM(CF35:DD35) -> 0 | DG35: =IF(DG$3<>"",VLOOKUP($A35,'Agency percentages'!$A$5:$X$70,(3+MATCH(DG$4,'Agency percentages'!$D$4:$W$4,0)),FALSE),"") -> 0.2413793103 | DH35: =IF(DH$3<>"",VLOOKUP($A35,'Agency percentages'!$A$5:$X$70,(3+MATCH(DH$4,'Agency percentages'!$D$4:$W$4,0)),FALSE),"") -> 0 | DI35: =IF(DI$3<>"",VLOOKUP($A35,'Agency percentages'!$A$5:$X$70,(3+MATCH(DI$4,'Agency percentages'!$D$4:$W$4,0)),FALSE),"") -> 0 | DJ35: =IF(DJ$3<>"",VLOOKUP($A35,'Agency percentages'!$A$5:$X$70,(3+MATCH(DJ$4,'Agency percentages'!$D$4:$W$4,0)),FALSE),"") -> 0 | DK35: =IF(DK$3<>"",VLOOKUP($A35,'Agency percentages'!$A$5:$X$70,(3+MATCH(DK$4,'Agency percentages'!$D$4:$W$4,0)),FALSE),"") -> 0 | DL35: =IF(DL$3<>"",VLOOKUP($A35,'Agency percentages'!$A$5:$X$70,(3+MATCH(DL$4,'Agency percentages'!$D$4:$W$4,0)),FALSE),"") -> 0 | DM35: =IF(DM$3<>"",VLOOKUP($A35,'Agency percentages'!$A$5:$X$70,(3+MATCH(DM$4,'Agency percentages'!$D$4:$W$4,0)),FALSE),"") ->  | DN35: =IF(DN$3<>"",VLOOKUP($A35,'Agency percentages'!$A$5:$X$70,(3+MATCH(DN$4,'Agency percentages'!$D$4:$W$4,0)),FALSE),"") ->  | DO35: =IF(DO$3<>"",VLOOKUP($A35,'Agency percentages'!$A$5:$X$70,(3+MATCH(DO$4,'Agency percentages'!$D$4:$W$4,0)),FALSE),"") ->  | DP35: =IF(DP$3<>"",VLOOKUP($A35,'Agency percentages'!$A$5:$X$70,(3+MATCH(DP$4,'Agency percentages'!$D$4:$W$4,0)),FALSE),"") ->  | DQ35: =IF(DQ$3<>"",VLOOKUP($A35,'Agency percentages'!$A$5:$X$70,(3+MATCH(DQ$4,'Agency percentages'!$D$4:$W$4,0)),FALSE),"") ->  | DR35: =IF(DR$3<>"",VLOOKUP($A35,'Agency percentages'!$A$5:$X$70,(3+MATCH(DR$4,'Agency percentages'!$D$4:$W$4,0)),FALSE),"") ->  | DS35: =IF(DS$3<>"",VLOOKUP($A35,'Agency percentages'!$A$5:$X$70,(3+MATCH(DS$4,'Agency percentages'!$D$4:$W$4,0)),FALSE),"") ->  | DT35: =IF(DT$3<>"",VLOOKUP($A35,'Agency percentages'!$A$5:$X$70,(3+MATCH(DT$4,'Agency percentages'!$D$4:$W$4,0)),FALSE),"") ->  | DU35: =IF(DU$3<>"",VLOOKUP($A35,'Agency percentages'!$A$5:$X$70,(3+MATCH(DU$4,'Agency percentages'!$D$4:$W$4,0)),FALSE),"") ->  | DV35: =IF(DV$3<>"",VLOOKUP($A35,'Agency percentages'!$A$5:$X$70,(3+MATCH(DV$4,'Agency percentages'!$D$4:$W$4,0)),FALSE),"") ->  | DW35: =IF(DW$3<>"",VLOOKUP($A35,'Agency percentages'!$A$5:$X$70,(3+MATCH(DW$4,'Agency percentages'!$D$4:$W$4,0)),FALSE),"") ->  | DX35: =IF(DX$3<>"",VLOOKUP($A35,'Agency percentages'!$A$5:$X$70,(3+MATCH(DX$4,'Agency percentages'!$D$4:$W$4,0)),FALSE),"") ->  | DY35: =IF(DY$3<>"",VLOOKUP($A35,'Agency percentages'!$A$5:$X$70,(3+MATCH(DY$4,'Agency percentages'!$D$4:$W$4,0)),FALSE),"") ->  | DZ35: =IF(DZ$3<>"",VLOOKUP($A35,'Agency percentages'!$A$5:$X$70,(3+MATCH(DZ$4,'Agency percentages'!$D$4:$W$4,0)),FALSE),"") ->  | EB35: =IF(AND(EB$3<>"",DG35<>0),HLOOKUP(EB$4,'Agency cashability'!$B$3:$U$5,2,0),0) -> 0.2 | EC35: =IF(AND(EC$3<>"",DH35<>0),HLOOKUP(EC$4,'Agency cashability'!$B$3:$U$5,2,0),0) -> 0 | ED35: =IF(AND(ED$3<>"",DI35<>0),HLOOKUP(ED$4,'Agency cashability'!$B$3:$U$5,2,0),0) -> 0 | EE35: =IF(AND(EE$3<>"",DJ35<>0),HLOOKUP(EE$4,'Agency cashability'!$B$3:$U$5,2,0),0) -> 0 | EF35: =IF(AND(EF$3<>"",DK35<>0),HLOOKUP(EF$4,'Agency cashability'!$B$3:$U$5,2,0),0) -> 0 | EG35: =IF(AND(EG$3<>"",DL35<>0),HLOOKUP(EG$4,'Agency cashability'!$B$3:$U$5,2,0),0) -> 0 | EH35: =IF(AND(EH$3<>"",DM35<>0),HLOOKUP(EH$4,'Agency cashability'!$B$3:$U$5,2,0),0) -> 0 | EI35: =IF(AND(EI$3<>"",DN35<>0),HLOOKUP(EI$4,'Agency cashability'!$B$3:$U$5,2,0),0) -> 0 | EJ35: =IF(AND(EJ$3<>"",DO35<>0),HLOOKUP(EJ$4,'Agency cashability'!$B$3:$U$5,2,0),0) -> 0 | EK35: =IF(AND(EK$3<>"",DP35<>0),HLOOKUP(EK$4,'Agency cashability'!$B$3:$U$5,2,0),0) -> 0 | EL35: =IF(AND(EL$3<>"",DQ35<>0),HLOOKUP(EL$4,'Agency cashability'!$B$3:$U$5,2,0),0) -> 0 | EM35: =IF(AND(EM$3<>"",DR35<>0),HLOOKUP(EM$4,'Agency cashability'!$B$3:$U$5,2,0),0) -> 0 | EN35: =IF(AND(EN$3<>"",DS35<>0),HLOOKUP(EN$4,'Agency cashability'!$B$3:$U$5,2,0),0) -> 0 | EO35: =IF(AND(EO$3<>"",DT35<>0),HLOOKUP(EO$4,'Agency cashability'!$B$3:$U$5,2,0),0) -> 0 | EP35: =IF(AND(EP$3<>"",DU35<>0),HLOOKUP(EP$4,'Agency cashability'!$B$3:$U$5,2,0),0) -> 0 | EQ35: =IF(AND(EQ$3<>"",DV35<>0),HLOOKUP(EQ$4,'Agency cashability'!$B$3:$U$5,2,0),0) -> 0 | ER35: =IF(AND(ER$3<>"",DW35<>0),HLOOKUP(ER$4,'Agency cashability'!$B$3:$U$5,2,0),0) -> 0 | ES35: =IF(AND(ES$3<>"",DX35<>0),HLOOKUP(ES$4,'Agency cashability'!$B$3:$U$5,2,0),0) -> 0 | ET35: =IF(AND(ET$3<>"",DY35<>0),HLOOKUP(ET$4,'Agency cashability'!$B$3:$U$5,2,0),0) -> 0 | EU35: =IF(AND(EU$3<>"",DZ35<>0),HLOOKUP(EU$4,'Agency cashability'!$B$3:$U$5,2,0),0) -> 0 | EW35: =IF(AND(EW$3<>"",DG35<>0),HLOOKUP(EW$4,'Agency cashability'!$B$3:$U$5,3,0),0) -> 0.5 | EX35: =IF(AND(EX$3<>"",DH35<>0),HLOOKUP(EX$4,'Agency cashability'!$B$3:$U$5,3,0),0) -> 0 | EY35: =IF(AND(EY$3<>"",DI35<>0),HLOOKUP(EY$4,'Agency cashability'!$B$3:$U$5,3,0),0) -> 0 | EZ35: =IF(AND(EZ$3<>"",DJ35<>0),HLOOKUP(EZ$4,'Agency cashability'!$B$3:$U$5,3,0),0) -> 0 | FA35: =IF(AND(FA$3<>"",DK35<>0),HLOOKUP(FA$4,'Agency cashability'!$B$3:$U$5,3,0),0) -> 0 | FB35: =IF(AND(FB$3<>"",DL35<>0),HLOOKUP(FB$4,'Agency cashability'!$B$3:$U$5,3,0),0) -> 0 | FC35: =IF(AND(FC$3<>"",DM35<>0),HLOOKUP(FC$4,'Agency cashability'!$B$3:$U$5,3,0),0) -> 0 | FD35: =IF(AND(FD$3<>"",DN35<>0),HLOOKUP(FD$4,'Agency cashability'!$B$3:$U$5,3,0),0) -> 0 | FE35: =IF(AND(FE$3<>"",DO35<>0),HLOOKUP(FE$4,'Agency cashability'!$B$3:$U$5,3,0),0) -> 0 | FF35: =IF(AND(FF$3<>"",DP35<>0),HLOOKUP(FF$4,'Agency cashability'!$B$3:$U$5,3,0),0) -> 0 | FG35: =IF(AND(FG$3<>"",DQ35<>0),HLOOKUP(FG$4,'Agency cashability'!$B$3:$U$5,3,0),0) -> 0 | FH35: =IF(AND(FH$3<>"",DR35<>0),HLOOKUP(FH$4,'Agency cashability'!$B$3:$U$5,3,0),0) -> 0 | FI35: =IF(AND(FI$3<>"",DS35<>0),HLOOKUP(FI$4,'Agency cashability'!$B$3:$U$5,3,0),0) -> 0 | FJ35: =IF(AND(FJ$3<>"",DT35<>0),HLOOKUP(FJ$4,'Agency cashability'!$B$3:$U$5,3,0),0) -> 0 | FK35: =IF(AND(FK$3<>"",DU35<>0),HLOOKUP(FK$4,'Agency cashability'!$B$3:$U$5,3,0),0) -> 0 | FL35: =IF(AND(FL$3<>"",DV35<>0),HLOOKUP(FL$4,'Agency cashability'!$B$3:$U$5,3,0),0) -> 0 | FM35: =IF(AND(FM$3<>"",DW35<>0),HLOOKUP(FM$4,'Agency cashability'!$B$3:$U$5,3,0),0) -> 0 | FN35: =IF(AND(FN$3<>"",DX35<>0),HLOOKUP(FN$4,'Agency cashability'!$B$3:$U$5,3,0),0) -> 0 | FO35: =IF(AND(FO$3<>"",DY35<>0),HLOOKUP(FO$4,'Agency cashability'!$B$3:$U$5,3,0),0) -> 0 | FP35: =IF(AND(FP$3<>"",DZ35<>0),HLOOKUP(FP$4,'Agency cashability'!$B$3:$U$5,3,0),0) -> 0 | FR35: =IF((FR$3<>""),DG35*$CD35,"") -> 0 | FS35: =IF((FS$3<>""),DH35*$CD35,"") -> 0 | FT35: =IF((FT$3<>""),DI35*$CD35,"") -> 0 | FU35: =IF((FU$3<>""),DJ35*$CD35,"") -> 0 | FV35: =IF((FV$3<>""),DK35*$CD35,"") -> 0 | FW35: =IF((FW$3<>""),DL35*$CD35,"") -> 0 | FX35: =IF((FX$3<>""),DM35*$CD35,"") ->  | FY35: =IF((FY$3<>""),DN35*$CD35,"") ->  | FZ35: =IF((FZ$3<>""),DO35*$CD35,"") ->  | GA35: =IF((GA$3<>""),DP35*$CD35,"") ->  | GB35: =IF((GB$3<>""),DQ35*$CD35,"") ->  | GC35: =IF((GC$3<>""),DR35*$CD35,"") ->  | GD35: =IF((GD$3<>""),DS35*$CD35,"") ->  | GE35: =IF((GE$3<>""),DT35*$CD35,"") ->  | GF35: =IF((GF$3<>""),DU35*$CD35,"") ->  | GG35: =IF((GG$3<>""),DV35*$CD35,"") ->  | GH35: =IF((GH$3<>""),DW35*$CD35,"") ->  | GI35: =IF((GI$3<>""),DX35*$CD35,"") ->  | GJ35: =IF((GJ$3<>""),DY35*$CD35,"") ->  | GK35: =IF((GK$3<>""),DZ35*$CD35,"") ->  | GM35: =IF((GM$3<>""),EB35*FR35,"") -> 0 | GN35: =IF((GN$3<>""),EC35*FS35,"") -> 0 | GO35: =IF((GO$3<>""),ED35*FT35,"") -> 0 | GP35: =IF((GP$3<>""),EE35*FU35,"") -> 0 | GQ35: =IF((GQ$3<>""),EF35*FV35,"") -> 0 | GR35: =IF((GR$3<>""),EG35*FW35,"") -> 0 | GS35: =IF((GS$3<>""),EH35*FX35,"") ->  | GT35: =IF((GT$3<>""),EI35*FY35,"") ->  | GU35: =IF((GU$3<>""),EJ35*FZ35,"") ->  | GV35: =IF((GV$3<>""),EK35*GA35,"") ->  | GW35: =IF((GW$3<>""),EL35*GB35,"") ->  | GX35: =IF((GX$3<>""),EM35*GC35,"") ->  | GY35: =IF((GY$3<>""),EN35*GD35,"") ->  | GZ35: =IF((GZ$3<>""),EO35*GE35,"") ->  | HA35: =IF((HA$3<>""),EP35*GF35,"") ->  | HB35: =IF((HB$3<>""),EQ35*GG35,"") ->  | HC35: =IF((HC$3<>""),ER35*GH35,"") ->  | HD35: =IF((HD$3<>""),ES35*GI35,"") ->  | HE35: =IF((HE$3<>""),ET35*GJ35,"") ->  | HF35: =IF((HF$3<>""),EU35*GK35,"") ->  | HH35: =SUM(GM35:HF35)/SUM(FR35:GK35) ->  | HJ35: =IF((HJ$3<>""),EW35*FR35,"") -> 0 | HK35: =IF((HK$3<>""),EX35*FS35,"") -> 0 | HL35: =IF((HL$3<>""),EY35*FT35,"") -> 0 | HM35: =IF((HM$3<>""),EZ35*FU35,"") -> 0 | HN35: =IF((HN$3<>""),FA35*FV35,"") -> 0 | HO35: =IF((HO$3<>""),FB35*FW35,"") -> 0 | HP35: =IF((HP$3<>""),FC35*FX35,"") ->  | HQ35: =IF((HQ$3<>""),FD35*FY35,"") ->  | HR35: =IF((HR$3<>""),FE35*FZ35,"") ->  | HS35: =IF((HS$3<>""),FF35*GA35,"") ->  | HT35: =IF((HT$3<>""),FG35*GB35,"") ->  | HU35: =IF((HU$3<>""),FH35*GC35,"") ->  | HV35: =IF((HV$3<>""),FI35*GD35,"") ->  | HW35: =IF((HW$3<>""),FJ35*GE35,"") ->  | HX35: =IF((HX$3<>""),FK35*GF35,"") ->  | HY35: =IF((HY$3<>""),FL35*GG35,"") ->  | HZ35: =IF((HZ$3<>""),FM35*GH35,"") ->  | IA35: =IF((IA$3<>""),FN35*GI35,"") ->  | IB35: =IF((IB$3<>""),FO35*GJ35,"") ->  | IC35: =IF((IC$3<>""),FP35*GK35,"") ->  | IE35: =SUM(HJ35:IC35)/SUM(FR35:GK35) -> 
A36: B10 | B36: Housing evictions | C36: No | D36: Reduced costs of legal proceedings and repair of property | E36: Housing Provider | R36: 6680 | S36: 6680 | V36: 6680 | W36: 2010-11 | X36: =VLOOKUP(W36,'GDP Deflators'!$B$8:$C$76,2,0)*100/VLOOKUP('Model constants'!$B$3,'GDP Deflators'!$B$8:$C$76,2,0) -> 82.71086481 | Y36: Research Briefing: Immediate costs to government of loss of home (Shelter 2012) | AA36: 0 | AB36: 0 | BE36: 0 | BF36: 0 | BG36: 0 | BH36: 0 | BI36: 0 | BJ36: 0 | BK36: 0 | BL36: 0 | BM36: 0 | BN36: 0 | CD36: 0 | CF36: 0 | CG36: 0 | CH36: 0 | CI36: 0 | CJ36: 0 | CK36: 0 | CL36: 0 | CM36: 0 | CN36: 0 | CO36: 0 | DE36: 0 | DG36: =IF(DG$3<>"",VLOOKUP($A36,'Agency percentages'!$A$5:$X$70,(3+MATCH(DG$4,'Agency percentages'!$D$4:$W$4,0)),FALSE),"") -> 0 | DH36: =IF(DH$3<>"",VLOOKUP($A36,'Agency percentages'!$A$5:$X$70,(3+MATCH(DH$4,'Agency percentages'!$D$4:$W$4,0)),FALSE),"") -> 0 | DI36: =IF(DI$3<>"",VLOOKUP($A36,'Agency percentages'!$A$5:$X$70,(3+MATCH(DI$4,'Agency percentages'!$D$4:$W$4,0)),FALSE),"") -> 0 | DJ36: =IF(DJ$3<>"",VLOOKUP($A36,'Agency percentages'!$A$5:$X$70,(3+MATCH(DJ$4,'Agency percentages'!$D$4:$W$4,0)),FALSE),"") -> 0 | DK36: =IF(DK$3<>"",VLOOKUP($A36,'Agency percentages'!$A$5:$X$70,(3+MATCH(DK$4,'Agency percentages'!$D$4:$W$4,0)),FALSE),"") -> 0 | DL36: =IF(DL$3<>"",VLOOKUP($A36,'Agency percentages'!$A$5:$X$70,(3+MATCH(DL$4,'Agency percentages'!$D$4:$W$4,0)),FALSE),"") -> 0 | DM36: =IF(DM$3<>"",VLOOKUP($A36,'Agency percentages'!$A$5:$X$70,(3+MATCH(DM$4,'Agency percentages'!$D$4:$W$4,0)),FALSE),"") ->  | DN36: =IF(DN$3<>"",VLOOKUP($A36,'Agency percentages'!$A$5:$X$70,(3+MATCH(DN$4,'Agency percentages'!$D$4:$W$4,0)),FALSE),"") ->  | DO36: =IF(DO$3<>"",VLOOKUP($A36,'Agency percentages'!$A$5:$X$70,(3+MATCH(DO$4,'Agency percentages'!$D$4:$W$4,0)),FALSE),"") ->  | DP36: =IF(DP$3<>"",VLOOKUP($A36,'Agency percentages'!$A$5:$X$70,(3+MATCH(DP$4,'Agency percentages'!$D$4:$W$4,0)),FALSE),"") ->  | DQ36: =IF(DQ$3<>"",VLOOKUP($A36,'Agency percentages'!$A$5:$X$70,(3+MATCH(DQ$4,'Agency percentages'!$D$4:$W$4,0)),FALSE),"") ->  | DR36: =IF(DR$3<>"",VLOOKUP($A36,'Agency percentages'!$A$5:$X$70,(3+MATCH(DR$4,'Agency percentages'!$D$4:$W$4,0)),FALSE),"") ->  | DS36: =IF(DS$3<>"",VLOOKUP($A36,'Agency percentages'!$A$5:$X$70,(3+MATCH(DS$4,'Agency percentages'!$D$4:$W$4,0)),FALSE),"") ->  | DT36: =IF(DT$3<>"",VLOOKUP($A36,'Agency percentages'!$A$5:$X$70,(3+MATCH(DT$4,'Agency percentages'!$D$4:$W$4,0)),FALSE),"") ->  | DU36: =IF(DU$3<>"",VLOOKUP($A36,'Agency percentages'!$A$5:$X$70,(3+MATCH(DU$4,'Agency percentages'!$D$4:$W$4,0)),FALSE),"") ->  | DV36: =IF(DV$3<>"",VLOOKUP($A36,'Agency percentages'!$A$5:$X$70,(3+MATCH(DV$4,'Agency percentages'!$D$4:$W$4,0)),FALSE),"") ->  | DW36: =IF(DW$3<>"",VLOOKUP($A36,'Agency percentages'!$A$5:$X$70,(3+MATCH(DW$4,'Agency percentages'!$D$4:$W$4,0)),FALSE),"") ->  | DX36: =IF(DX$3<>"",VLOOKUP($A36,'Agency percentages'!$A$5:$X$70,(3+MATCH(DX$4,'Agency percentages'!$D$4:$W$4,0)),FALSE),"") ->  | DY36: =IF(DY$3<>"",VLOOKUP($A36,'Agency percentages'!$A$5:$X$70,(3+MATCH(DY$4,'Agency percentages'!$D$4:$W$4,0)),FALSE),"") ->  | DZ36: =IF(DZ$3<>"",VLOOKUP($A36,'Agency percentages'!$A$5:$X$70,(3+MATCH(DZ$4,'Agency percentages'!$D$4:$W$4,0)),FALSE),"") ->  | EB36: =IF(AND(EB$3<>"",DG36<>0),HLOOKUP(EB$4,'Agency cashability'!$B$3:$U$5,2,0),0) -> 0 | EC36: =IF(AND(EC$3<>"",DH36<>0),HLOOKUP(EC$4,'Agency cashability'!$B$3:$U$5,2,0),0) -> 0 | ED36: =IF(AND(ED$3<>"",DI36<>0),HLOOKUP(ED$4,'Agency cashability'!$B$3:$U$5,2,0),0) -> 0 | EE36: =IF(AND(EE$3<>"",DJ36<>0),HLOOKUP(EE$4,'Agency cashability'!$B$3:$U$5,2,0),0) -> 0 | EF36: =IF(AND(EF$3<>"",DK36<>0),HLOOKUP(EF$4,'Agency cashability'!$B$3:$U$5,2,0),0) -> 0 | EG36: =IF(AND(EG$3<>"",DL36<>0),HLOOKUP(EG$4,'Agency cashability'!$B$3:$U$5,2,0),0) -> 0 | EH36: =IF(AND(EH$3<>"",DM36<>0),HLOOKUP(EH$4,'Agency cashability'!$B$3:$U$5,2,0),0) -> 0 | EI36: =IF(AND(EI$3<>"",DN36<>0),HLOOKUP(EI$4,'Agency cashability'!$B$3:$U$5,2,0),0) -> 0 | EJ36: =IF(AND(EJ$3<>"",DO36<>0),HLOOKUP(EJ$4,'Agency cashability'!$B$3:$U$5,2,0),0) -> 0 | EK36: =IF(AND(EK$3<>"",DP36<>0),HLOOKUP(EK$4,'Agency cashability'!$B$3:$U$5,2,0),0) -> 0 | EL36: =IF(AND(EL$3<>"",DQ36<>0),HLOOKUP(EL$4,'Agency cashability'!$B$3:$U$5,2,0),0) -> 0 | EM36: =IF(AND(EM$3<>"",DR36<>0),HLOOKUP(EM$4,'Agency cashability'!$B$3:$U$5,2,0),0) -> 0 | EN36: =IF(AND(EN$3<>"",DS36<>0),HLOOKUP(EN$4,'Agency cashability'!$B$3:$U$5,2,0),0) -> 0 | EO36: =IF(AND(EO$3<>"",DT36<>0),HLOOKUP(EO$4,'Agency cashability'!$B$3:$U$5,2,0),0) -> 0 | EP36: =IF(AND(EP$3<>"",DU36<>0),HLOOKUP(EP$4,'Agency cashability'!$B$3:$U$5,2,0),0) -> 0 | EQ36: =IF(AND(EQ$3<>"",DV36<>0),HLOOKUP(EQ$4,'Agency cashability'!$B$3:$U$5,2,0),0) -> 0 | ER36: =IF(AND(ER$3<>"",DW36<>0),HLOOKUP(ER$4,'Agency cashability'!$B$3:$U$5,2,0),0) -> 0 | ES36: =IF(AND(ES$3<>"",DX36<>0),HLOOKUP(ES$4,'Agency cashability'!$B$3:$U$5,2,0),0) -> 0 | ET36: =IF(AND(ET$3<>"",DY36<>0),HLOOKUP(ET$4,'Agency cashability'!$B$3:$U$5,2,0),0) -> 0 | EU36: =IF(AND(EU$3<>"",DZ36<>0),HLOOKUP(EU$4,'Agency cashability'!$B$3:$U$5,2,0),0) -> 0 | EW36: =IF(AND(EW$3<>"",DG36<>0),HLOOKUP(EW$4,'Agency cashability'!$B$3:$U$5,3,0),0) -> 0 | EX36: =IF(AND(EX$3<>"",DH36<>0),HLOOKUP(EX$4,'Agency cashability'!$B$3:$U$5,3,0),0) -> 0 | EY36: =IF(AND(EY$3<>"",DI36<>0),HLOOKUP(EY$4,'Agency cashability'!$B$3:$U$5,3,0),0) -> 0 | EZ36: =IF(AND(EZ$3<>"",DJ36<>0),HLOOKUP(EZ$4,'Agency cashability'!$B$3:$U$5,3,0),0) -> 0 | FA36: =IF(AND(FA$3<>"",DK36<>0),HLOOKUP(FA$4,'Agency cashability'!$B$3:$U$5,3,0),0) -> 0 | FB36: =IF(AND(FB$3<>"",DL36<>0),HLOOKUP(FB$4,'Agency cashability'!$B$3:$U$5,3,0),0) -> 0 | FC36: =IF(AND(FC$3<>"",DM36<>0),HLOOKUP(FC$4,'Agency cashability'!$B$3:$U$5,3,0),0) -> 0 | FD36: =IF(AND(FD$3<>"",DN36<>0),HLOOKUP(FD$4,'Agency cashability'!$B$3:$U$5,3,0),0) -> 0 | FE36: =IF(AND(FE$3<>"",DO36<>0),HLOOKUP(FE$4,'Agency cashability'!$B$3:$U$5,3,0),0) -> 0 | FF36: =IF(AND(FF$3<>"",DP36<>0),HLOOKUP(FF$4,'Agency cashability'!$B$3:$U$5,3,0),0) -> 0 | FG36: =IF(AND(FG$3<>"",DQ36<>0),HLOOKUP(FG$4,'Agency cashability'!$B$3:$U$5,3,0),0) -> 0 | FH36: =IF(AND(FH$3<>"",DR36<>0),HLOOKUP(FH$4,'Agency cashability'!$B$3:$U$5,3,0),0) -> 0 | FI36: =IF(AND(FI$3<>"",DS36<>0),HLOOKUP(FI$4,'Agency cashability'!$B$3:$U$5,3,0),0) -> 0 | FJ36: =IF(AND(FJ$3<>"",DT36<>0),HLOOKUP(FJ$4,'Agency cashability'!$B$3:$U$5,3,0),0) -> 0 | FK36: =IF(AND(FK$3<>"",DU36<>0),HLOOKUP(FK$4,'Agency cashability'!$B$3:$U$5,3,0),0) -> 0 | FL36: =IF(AND(FL$3<>"",DV36<>0),HLOOKUP(FL$4,'Agency cashability'!$B$3:$U$5,3,0),0) -> 0 | FM36: =IF(AND(FM$3<>"",DW36<>0),HLOOKUP(FM$4,'Agency cashability'!$B$3:$U$5,3,0),0) -> 0 | FN36: =IF(AND(FN$3<>"",DX36<>0),HLOOKUP(FN$4,'Agency cashability'!$B$3:$U$5,3,0),0) -> 0 | FO36: =IF(AND(FO$3<>"",DY36<>0),HLOOKUP(FO$4,'Agency cashability'!$B$3:$U$5,3,0),0) -> 0 | FP36: =IF(AND(FP$3<>"",DZ36<>0),HLOOKUP(FP$4,'Agency cashability'!$B$3:$U$5,3,0),0) -> 0 | FR36: 0 | FS36: 0 | FT36: 0 | FU36: 0 | FV36: 0 | FW36: 0 | GM36: =IF((GM$3<>""),EB36*FR36,"") -> 0 | GN36: 0 | GO36: 0 | GP36: 0 | GQ36: 0 | GR36: 0 | HJ36: =IF((HJ$3<>""),EW36*FR36,"") -> 0 | HK36: 0 | HL36: 0 | HM36: 0 | HN36: 0 | HO36: 0
A37: B11 | B37: Reduced statutory homelessness | C37: No | D37: Reduced costs of temporary housing etc. | E37: LAs | R37: 2501 | S37: 2501 | V37: 2501 | W37: 2010-11 | X37: =VLOOKUP(W37,'GDP Deflators'!$B$8:$C$76,2,0)*100/VLOOKUP('Model constants'!$B$3,'GDP Deflators'!$B$8:$C$76,2,0) -> 82.71086481 | Y37: Research Briefing: Immediate costs to government of loss of home (Shelter 2012) | AA37: =IF($C37="Yes",($H37*$J37*$L37*($N37-$P37)*R37*100*(1+$Z37)/$X37),0) -> 0 | AB37: 0 | BE37: 0 | BF37: 0 | BG37: 0 | BH37: 0 | BI37: 0 | BJ37: 0 | BK37: 0 | BL37: 0 | BM37: 0 | BN37: 0 | CD37: 0 | CF37: 0 | CG37: 0 | CH37: 0 | CI37: 0 | CJ37: 0 | CK37: 0 | CL37: 0 | CM37: 0 | CN37: 0 | CO37: 0 | DE37: 0 | DG37: =IF(DG$3<>"",VLOOKUP($A37,'Agency percentages'!$A$5:$X$70,(3+MATCH(DG$4,'Agency percentages'!$D$4:$W$4,0)),FALSE),"") -> 0 | DH37: =IF(DH$3<>"",VLOOKUP($A37,'Agency percentages'!$A$5:$X$70,(3+MATCH(DH$4,'Agency percentages'!$D$4:$W$4,0)),FALSE),"") -> 0 | DI37: =IF(DI$3<>"",VLOOKUP($A37,'Agency percentages'!$A$5:$X$70,(3+MATCH(DI$4,'Agency percentages'!$D$4:$W$4,0)),FALSE),"") -> 0 | DJ37: =IF(DJ$3<>"",VLOOKUP($A37,'Agency percentages'!$A$5:$X$70,(3+MATCH(DJ$4,'Agency percentages'!$D$4:$W$4,0)),FALSE),"") -> 0 | DK37: =IF(DK$3<>"",VLOOKUP($A37,'Agency percentages'!$A$5:$X$70,(3+MATCH(DK$4,'Agency percentages'!$D$4:$W$4,0)),FALSE),"") -> 0 | DL37: =IF(DL$3<>"",VLOOKUP($A37,'Agency percentages'!$A$5:$X$70,(3+MATCH(DL$4,'Agency percentages'!$D$4:$W$4,0)),FALSE),"") -> 0 | DM37: =IF(DM$3<>"",VLOOKUP($A37,'Agency percentages'!$A$5:$X$70,(3+MATCH(DM$4,'Agency percentages'!$D$4:$W$4,0)),FALSE),"") ->  | DN37: =IF(DN$3<>"",VLOOKUP($A37,'Agency percentages'!$A$5:$X$70,(3+MATCH(DN$4,'Agency percentages'!$D$4:$W$4,0)),FALSE),"") ->  | DO37: =IF(DO$3<>"",VLOOKUP($A37,'Agency percentages'!$A$5:$X$70,(3+MATCH(DO$4,'Agency percentages'!$D$4:$W$4,0)),FALSE),"") ->  | DP37: =IF(DP$3<>"",VLOOKUP($A37,'Agency percentages'!$A$5:$X$70,(3+MATCH(DP$4,'Agency percentages'!$D$4:$W$4,0)),FALSE),"") ->  | DQ37: =IF(DQ$3<>"",VLOOKUP($A37,'Agency percentages'!$A$5:$X$70,(3+MATCH(DQ$4,'Agency percentages'!$D$4:$W$4,0)),FALSE),"") ->  | DR37: =IF(DR$3<>"",VLOOKUP($A37,'Agency percentages'!$A$5:$X$70,(3+MATCH(DR$4,'Agency percentages'!$D$4:$W$4,0)),FALSE),"") ->  | DS37: =IF(DS$3<>"",VLOOKUP($A37,'Agency percentages'!$A$5:$X$70,(3+MATCH(DS$4,'Agency percentages'!$D$4:$W$4,0)),FALSE),"") ->  | DT37: =IF(DT$3<>"",VLOOKUP($A37,'Agency percentages'!$A$5:$X$70,(3+MATCH(DT$4,'Agency percentages'!$D$4:$W$4,0)),FALSE),"") ->  | DU37: =IF(DU$3<>"",VLOOKUP($A37,'Agency percentages'!$A$5:$X$70,(3+MATCH(DU$4,'Agency percentages'!$D$4:$W$4,0)),FALSE),"") ->  | DV37: =IF(DV$3<>"",VLOOKUP($A37,'Agency percentages'!$A$5:$X$70,(3+MATCH(DV$4,'Agency percentages'!$D$4:$W$4,0)),FALSE),"") ->  | DW37: =IF(DW$3<>"",VLOOKUP($A37,'Agency percentages'!$A$5:$X$70,(3+MATCH(DW$4,'Agency percentages'!$D$4:$W$4,0)),FALSE),"") ->  | DX37: =IF(DX$3<>"",VLOOKUP($A37,'Agency percentages'!$A$5:$X$70,(3+MATCH(DX$4,'Agency percentages'!$D$4:$W$4,0)),FALSE),"") ->  | DY37: =IF(DY$3<>"",VLOOKUP($A37,'Agency percentages'!$A$5:$X$70,(3+MATCH(DY$4,'Agency percentages'!$D$4:$W$4,0)),FALSE),"") ->  | DZ37: =IF(DZ$3<>"",VLOOKUP($A37,'Agency percentages'!$A$5:$X$70,(3+MATCH(DZ$4,'Agency percentages'!$D$4:$W$4,0)),FALSE),"") ->  | EB37: =IF(AND(EB$3<>"",DG37<>0),HLOOKUP(EB$4,'Agency cashability'!$B$3:$U$5,2,0),0) -> 0 | EC37: =IF(AND(EC$3<>"",DH37<>0),HLOOKUP(EC$4,'Agency cashability'!$B$3:$U$5,2,0),0) -> 0 | ED37: =IF(AND(ED$3<>"",DI37<>0),HLOOKUP(ED$4,'Agency cashability'!$B$3:$U$5,2,0),0) -> 0 | EE37: =IF(AND(EE$3<>"",DJ37<>0),HLOOKUP(EE$4,'Agency cashability'!$B$3:$U$5,2,0),0) -> 0 | EF37: =IF(AND(EF$3<>"",DK37<>0),HLOOKUP(EF$4,'Agency cashability'!$B$3:$U$5,2,0),0) -> 0 | EG37: =IF(AND(EG$3<>"",DL37<>0),HLOOKUP(EG$4,'Agency cashability'!$B$3:$U$5,2,0),0) -> 0 | EH37: =IF(AND(EH$3<>"",DM37<>0),HLOOKUP(EH$4,'Agency cashability'!$B$3:$U$5,2,0),0) -> 0 | EI37: =IF(AND(EI$3<>"",DN37<>0),HLOOKUP(EI$4,'Agency cashability'!$B$3:$U$5,2,0),0) -> 0 | EJ37: =IF(AND(EJ$3<>"",DO37<>0),HLOOKUP(EJ$4,'Agency cashability'!$B$3:$U$5,2,0),0) -> 0 | EK37: =IF(AND(EK$3<>"",DP37<>0),HLOOKUP(EK$4,'Agency cashability'!$B$3:$U$5,2,0),0) -> 0 | EL37: =IF(AND(EL$3<>"",DQ37<>0),HLOOKUP(EL$4,'Agency cashability'!$B$3:$U$5,2,0),0) -> 0 | EM37: =IF(AND(EM$3<>"",DR37<>0),HLOOKUP(EM$4,'Agency cashability'!$B$3:$U$5,2,0),0) -> 0 | EN37: =IF(AND(EN$3<>"",DS37<>0),HLOOKUP(EN$4,'Agency cashability'!$B$3:$U$5,2,0),0) -> 0 | EO37: =IF(AND(EO$3<>"",DT37<>0),HLOOKUP(EO$4,'Agency cashability'!$B$3:$U$5,2,0),0) -> 0 | EP37: =IF(AND(EP$3<>"",DU37<>0),HLOOKUP(EP$4,'Agency cashability'!$B$3:$U$5,2,0),0) -> 0 | EQ37: =IF(AND(EQ$3<>"",DV37<>0),HLOOKUP(EQ$4,'Agency cashability'!$B$3:$U$5,2,0),0) -> 0 | ER37: =IF(AND(ER$3<>"",DW37<>0),HLOOKUP(ER$4,'Agency cashability'!$B$3:$U$5,2,0),0) -> 0 | ES37: =IF(AND(ES$3<>"",DX37<>0),HLOOKUP(ES$4,'Agency cashability'!$B$3:$U$5,2,0),0) -> 0 | ET37: =IF(AND(ET$3<>"",DY37<>0),HLOOKUP(ET$4,'Agency cashability'!$B$3:$U$5,2,0),0) -> 0 | EU37: =IF(AND(EU$3<>"",DZ37<>0),HLOOKUP(EU$4,'Agency cashability'!$B$3:$U$5,2,0),0) -> 0 | EW37: =IF(AND(EW$3<>"",DG37<>0),HLOOKUP(EW$4,'Agency cashability'!$B$3:$U$5,3,0),0) -> 0 | EX37: =IF(AND(EX$3<>"",DH37<>0),HLOOKUP(EX$4,'Agency cashability'!$B$3:$U$5,3,0),0) -> 0 | EY37: =IF(AND(EY$3<>"",DI37<>0),HLOOKUP(EY$4,'Agency cashability'!$B$3:$U$5,3,0),0) -> 0 | EZ37: =IF(AND(EZ$3<>"",DJ37<>0),HLOOKUP(EZ$4,'Agency cashability'!$B$3:$U$5,3,0),0) -> 0 | FA37: =IF(AND(FA$3<>"",DK37<>0),HLOOKUP(FA$4,'Agency cashability'!$B$3:$U$5,3,0),0) -> 0 | FB37: =IF(AND(FB$3<>"",DL37<>0),HLOOKUP(FB$4,'Agency cashability'!$B$3:$U$5,3,0),0) -> 0 | FC37: =IF(AND(FC$3<>"",DM37<>0),HLOOKUP(FC$4,'Agency cashability'!$B$3:$U$5,3,0),0) -> 0 | FD37: =IF(AND(FD$3<>"",DN37<>0),HLOOKUP(FD$4,'Agency cashability'!$B$3:$U$5,3,0),0) -> 0 | FE37: =IF(AND(FE$3<>"",DO37<>0),HLOOKUP(FE$4,'Agency cashability'!$B$3:$U$5,3,0),0) -> 0 | FF37: =IF(AND(FF$3<>"",DP37<>0),HLOOKUP(FF$4,'Agency cashability'!$B$3:$U$5,3,0),0) -> 0 | FG37: =IF(AND(FG$3<>"",DQ37<>0),HLOOKUP(FG$4,'Agency cashability'!$B$3:$U$5,3,0),0) -> 0 | FH37: =IF(AND(FH$3<>"",DR37<>0),HLOOKUP(FH$4,'Agency cashability'!$B$3:$U$5,3,0),0) -> 0 | FI37: =IF(AND(FI$3<>"",DS37<>0),HLOOKUP(FI$4,'Agency cashability'!$B$3:$U$5,3,0),0) -> 0 | FJ37: =IF(AND(FJ$3<>"",DT37<>0),HLOOKUP(FJ$4,'Agency cashability'!$B$3:$U$5,3,0),0) -> 0 | FK37: =IF(AND(FK$3<>"",DU37<>0),HLOOKUP(FK$4,'Agency cashability'!$B$3:$U$5,3,0),0) -> 0 | FL37: =IF(AND(FL$3<>"",DV37<>0),HLOOKUP(FL$4,'Agency cashability'!$B$3:$U$5,3,0),0) -> 0 | FM37: =IF(AND(FM$3<>"",DW37<>0),HLOOKUP(FM$4,'Agency cashability'!$B$3:$U$5,3,0),0) -> 0 | FN37: =IF(AND(FN$3<>"",DX37<>0),HLOOKUP(FN$4,'Agency cashability'!$B$3:$U$5,3,0),0) -> 0 | FO37: =IF(AND(FO$3<>"",DY37<>0),HLOOKUP(FO$4,'Agency cashability'!$B$3:$U$5,3,0),0) -> 0 | FP37: =IF(AND(FP$3<>"",DZ37<>0),HLOOKUP(FP$4,'Agency cashability'!$B$3:$U$5,3,0),0) -> 0 | FR37: 0 | FS37: 0 | FT37: 0 | FU37: 0 | FV37: 0 | FW37: 0 | GM37: 0 | GN37: 0 | GO37: 0 | GP37: 0 | GQ37: 0 | GR37: 0 | HH37: =SUM(GM37:HF37)/SUM(FR37:GK37) ->  | HJ37: 0 | HK37: 0 | HL37: 0 | HM37: 0 | HN37: 0 | HO37: 0 | IE37: =SUM(HJ37:IC37)/SUM(FR37:GK37) -> 
A38: B12 | B38: Reduced incidences of taking children into care | C38: No | D38: Reduced cost of safeguarding | E38: Children's Services | R38: 56510 | S38: =R38 -> 56510 | V38: 56510 | W38: 2017-18 | X38: =VLOOKUP(W38,'GDP Deflators'!$B$8:$C$76,2,0)*100/VLOOKUP('Model constants'!$B$3,'GDP Deflators'!$B$8:$C$76,2,0) -> 92.73492394 | Y38: DfE Section 251 data;DfE 901 return data | AA38: 0 | AB38: 0 | BE38: =IF(BE$2<=time_frame,$AA38*AE38,"") -> 0 | BF38: =IF(BF$2<=time_frame,$AA38*AF38,"") -> 0 | BG38: =IF(BG$2<=time_frame,$AA38*AG38,"") -> 0 | BH38: =IF(BH$2<=time_frame,$AA38*AH38,"") -> 0 | BI38: =IF(BI$2<=time_frame,$AA38*AI38,"") -> 0 | BJ38: =IF(BJ$2<=time_frame,$AA38*AJ38,"") -> 0 | BK38: =IF(BK$2<=time_frame,$AA38*AK38,"") -> 0 | BL38: =IF(BL$2<=time_frame,$AA38*AL38,"") -> 0 | BM38: =IF(BM$2<=time_frame,$AA38*AM38,"") -> 0 | BN38: =IF(BN$2<=time_frame,$AA38*AN38,"") -> 0 | BO38: =IF(BO$2<=time_frame,$AA38*AO38,"") ->  | BP38: =IF(BP$2<=time_frame,$AA38*AP38,"") ->  | BQ38: =IF(BQ$2<=time_frame,$AA38*AQ38,"") ->  | BR38: =IF(BR$2<=time_frame,$AA38*AR38,"") ->  | BS38: =IF(BS$2<=time_frame,$AA38*AS38,"") ->  | BT38: =IF(BT$2<=time_frame,$AA38*AT38,"") ->  | BU38: =IF(BU$2<=time_frame,$AA38*AU38,"") ->  | BV38: =IF(BV$2<=time_frame,$AA38*AV38,"") ->  | BW38: =IF(BW$2<=time_frame,$AA38*AW38,"") ->  | BX38: =IF(BX$2<=time_frame,$AA38*AX38,"") ->  | BY38: =IF(BY$2<=time_frame,$AA38*AY38,"") ->  | BZ38: =IF(BZ$2<=time_frame,$AA38*AZ38,"") ->  | CA38: =IF(CA$2<=time_frame,$AA38*BA38,"") ->  | CB38: =IF(CB$2<=time_frame,$AA38*BB38,"") ->  | CC38: =IF(CC$2<=time_frame,$AA38*BC38,"") ->  | CD38: 0 | CF38: =IF(CF$2<=time_frame,$AB38*AE38,"") -> 0 | CG38: =IF(CG$2<=time_frame,$AB38*AF38,"") -> 0 | CH38: =IF(CH$2<=time_frame,$AB38*AG38,"") -> 0 | CI38: =IF(CI$2<=time_frame,$AB38*AH38,"") -> 0 | CJ38: =IF(CJ$2<=time_frame,$AB38*AI38,"") -> 0 | CK38: =IF(CK$2<=time_frame,$AB38*AJ38,"") -> 0 | CL38: =IF(CL$2<=time_frame,$AB38*AK38,"") -> 0 | CM38: =IF(CM$2<=time_frame,$AB38*AL38,"") -> 0 | CN38: =IF(CN$2<=time_frame,$AB38*AM38,"") -> 0 | CO38: =IF(CO$2<=time_frame,$AB38*AN38,"") -> 0 | CP38: =IF(CP$2<=time_frame,$AB38*AO38,"") ->  | CQ38: =IF(CQ$2<=time_frame,$AB38*AP38,"") ->  | CR38: =IF(CR$2<=time_frame,$AB38*AQ38,"") ->  | CS38: =IF(CS$2<=time_frame,$AB38*AR38,"") ->  | CT38: =IF(CT$2<=time_frame,$AB38*AS38,"") ->  | CU38: =IF(CU$2<=time_frame,$AB38*AT38,"") ->  | CV38: =IF(CV$2<=time_frame,$AB38*AU38,"") ->  | CW38: =IF(CW$2<=time_frame,$AB38*AV38,"") ->  | CX38: =IF(CX$2<=time_frame,$AB38*AW38,"") ->  | CY38: =IF(CY$2<=time_frame,$AB38*AX38,"") ->  | CZ38: =IF(CZ$2<=time_frame,$AB38*AY38,"") ->  | DA38: =IF(DA$2<=time_frame,$AB38*AZ38,"") ->  | DB38: =IF(DB$2<=time_frame,$AB38*BA38,"") ->  | DC38: =IF(DC$2<=time_frame,$AB38*BB38,"") ->  | DD38: =IF(DD$2<=time_frame,$AB38*BC38,"") ->  | DE38: 0 | DG38: =IF(DG$3<>"",VLOOKUP($A38,'Agency percentages'!$A$5:$X$70,(3+MATCH(DG$4,'Agency percentages'!$D$4:$W$4,0)),FALSE),"") -> 0 | DH38: =IF(DH$3<>"",VLOOKUP($A38,'Agency percentages'!$A$5:$X$70,(3+MATCH(DH$4,'Agency percentages'!$D$4:$W$4,0)),FALSE),"") -> 0 | DI38: =IF(DI$3<>"",VLOOKUP($A38,'Agency percentages'!$A$5:$X$70,(3+MATCH(DI$4,'Agency percentages'!$D$4:$W$4,0)),FALSE),"") -> 0 | DJ38: =IF(DJ$3<>"",VLOOKUP($A38,'Agency percentages'!$A$5:$X$70,(3+MATCH(DJ$4,'Agency percentages'!$D$4:$W$4,0)),FALSE),"") -> 0 | DK38: =IF(DK$3<>"",VLOOKUP($A38,'Agency percentages'!$A$5:$X$70,(3+MATCH(DK$4,'Agency percentages'!$D$4:$W$4,0)),FALSE),"") -> 0 | DL38: =IF(DL$3<>"",VLOOKUP($A38,'Agency percentages'!$A$5:$X$70,(3+MATCH(DL$4,'Agency percentages'!$D$4:$W$4,0)),FALSE),"") -> 0 | DM38: =IF(DM$3<>"",VLOOKUP($A38,'Agency percentages'!$A$5:$X$70,(3+MATCH(DM$4,'Agency percentages'!$D$4:$W$4,0)),FALSE),"") ->  | DN38: =IF(DN$3<>"",VLOOKUP($A38,'Agency percentages'!$A$5:$X$70,(3+MATCH(DN$4,'Agency percentages'!$D$4:$W$4,0)),FALSE),"") ->  | DO38: =IF(DO$3<>"",VLOOKUP($A38,'Agency percentages'!$A$5:$X$70,(3+MATCH(DO$4,'Agency percentages'!$D$4:$W$4,0)),FALSE),"") ->  | DP38: =IF(DP$3<>"",VLOOKUP($A38,'Agency percentages'!$A$5:$X$70,(3+MATCH(DP$4,'Agency percentages'!$D$4:$W$4,0)),FALSE),"") ->  | DQ38: =IF(DQ$3<>"",VLOOKUP($A38,'Agency percentages'!$A$5:$X$70,(3+MATCH(DQ$4,'Agency percentages'!$D$4:$W$4,0)),FALSE),"") ->  | DR38: =IF(DR$3<>"",VLOOKUP($A38,'Agency percentages'!$A$5:$X$70,(3+MATCH(DR$4,'Agency percentages'!$D$4:$W$4,0)),FALSE),"") ->  | DS38: =IF(DS$3<>"",VLOOKUP($A38,'Agency percentages'!$A$5:$X$70,(3+MATCH(DS$4,'Agency percentages'!$D$4:$W$4,0)),FALSE),"") ->  | DT38: =IF(DT$3<>"",VLOOKUP($A38,'Agency percentages'!$A$5:$X$70,(3+MATCH(DT$4,'Agency percentages'!$D$4:$W$4,0)),FALSE),"") ->  | DU38: =IF(DU$3<>"",VLOOKUP($A38,'Agency percentages'!$A$5:$X$70,(3+MATCH(DU$4,'Agency percentages'!$D$4:$W$4,0)),FALSE),"") ->  | DV38: =IF(DV$3<>"",VLOOKUP($A38,'Agency percentages'!$A$5:$X$70,(3+MATCH(DV$4,'Agency percentages'!$D$4:$W$4,0)),FALSE),"") ->  | DW38: =IF(DW$3<>"",VLOOKUP($A38,'Agency percentages'!$A$5:$X$70,(3+MATCH(DW$4,'Agency percentages'!$D$4:$W$4,0)),FALSE),"") ->  | DX38: =IF(DX$3<>"",VLOOKUP($A38,'Agency percentages'!$A$5:$X$70,(3+MATCH(DX$4,'Agency percentages'!$D$4:$W$4,0)),FALSE),"") ->  | DY38: =IF(DY$3<>"",VLOOKUP($A38,'Agency percentages'!$A$5:$X$70,(3+MATCH(DY$4,'Agency percentages'!$D$4:$W$4,0)),FALSE),"") ->  | DZ38: =IF(DZ$3<>"",VLOOKUP($A38,'Agency percentages'!$A$5:$X$70,(3+MATCH(DZ$4,'Agency percentages'!$D$4:$W$4,0)),FALSE),"") ->  | EB38: =IF(AND(EB$3<>"",DG38<>0),HLOOKUP(EB$4,'Agency cashability'!$B$3:$U$5,2,0),0) -> 0 | EC38: =IF(AND(EC$3<>"",DH38<>0),HLOOKUP(EC$4,'Agency cashability'!$B$3:$U$5,2,0),0) -> 0 | ED38: =IF(AND(ED$3<>"",DI38<>0),HLOOKUP(ED$4,'Agency cashability'!$B$3:$U$5,2,0),0) -> 0 | EE38: =IF(AND(EE$3<>"",DJ38<>0),HLOOKUP(EE$4,'Agency cashability'!$B$3:$U$5,2,0),0) -> 0 | EF38: =IF(AND(EF$3<>"",DK38<>0),HLOOKUP(EF$4,'Agency cashability'!$B$3:$U$5,2,0),0) -> 0 | EG38: =IF(AND(EG$3<>"",DL38<>0),HLOOKUP(EG$4,'Agency cashability'!$B$3:$U$5,2,0),0) -> 0 | EH38: =IF(AND(EH$3<>"",DM38<>0),HLOOKUP(EH$4,'Agency cashability'!$B$3:$U$5,2,0),0) -> 0 | EI38: =IF(AND(EI$3<>"",DN38<>0),HLOOKUP(EI$4,'Agency cashability'!$B$3:$U$5,2,0),0) -> 0 | EJ38: =IF(AND(EJ$3<>"",DO38<>0),HLOOKUP(EJ$4,'Agency cashability'!$B$3:$U$5,2,0),0) -> 0 | EK38: =IF(AND(EK$3<>"",DP38<>0),HLOOKUP(EK$4,'Agency cashability'!$B$3:$U$5,2,0),0) -> 0 | EL38: =IF(AND(EL$3<>"",DQ38<>0),HLOOKUP(EL$4,'Agency cashability'!$B$3:$U$5,2,0),0) -> 0 | EM38: =IF(AND(EM$3<>"",DR38<>0),HLOOKUP(EM$4,'Agency cashability'!$B$3:$U$5,2,0),0) -> 0 | EN38: =IF(AND(EN$3<>"",DS38<>0),HLOOKUP(EN$4,'Agency cashability'!$B$3:$U$5,2,0),0) -> 0 | EO38: =IF(AND(EO$3<>"",DT38<>0),HLOOKUP(EO$4,'Agency cashability'!$B$3:$U$5,2,0),0) -> 0 | EP38: =IF(AND(EP$3<>"",DU38<>0),HLOOKUP(EP$4,'Agency cashability'!$B$3:$U$5,2,0),0) -> 0 | EQ38: =IF(AND(EQ$3<>"",DV38<>0),HLOOKUP(EQ$4,'Agency cashability'!$B$3:$U$5,2,0),0) -> 0 | ER38: =IF(AND(ER$3<>"",DW38<>0),HLOOKUP(ER$4,'Agency cashability'!$B$3:$U$5,2,0),0) -> 0 | ES38: =IF(AND(ES$3<>"",DX38<>0),HLOOKUP(ES$4,'Agency cashability'!$B$3:$U$5,2,0),0) -> 0 | ET38: =IF(AND(ET$3<>"",DY38<>0),HLOOKUP(ET$4,'Agency cashability'!$B$3:$U$5,2,0),0) -> 0 | EU38: =IF(AND(EU$3<>"",DZ38<>0),HLOOKUP(EU$4,'Agency cashability'!$B$3:$U$5,2,0),0) -> 0 | EW38: =IF(AND(EW$3<>"",DG38<>0),HLOOKUP(EW$4,'Agency cashability'!$B$3:$U$5,3,0),0) -> 0 | EX38: =IF(AND(EX$3<>"",DH38<>0),HLOOKUP(EX$4,'Agency cashability'!$B$3:$U$5,3,0),0) -> 0 | EY38: =IF(AND(EY$3<>"",DI38<>0),HLOOKUP(EY$4,'Agency cashability'!$B$3:$U$5,3,0),0) -> 0 | EZ38: =IF(AND(EZ$3<>"",DJ38<>0),HLOOKUP(EZ$4,'Agency cashability'!$B$3:$U$5,3,0),0) -> 0 | FA38: =IF(AND(FA$3<>"",DK38<>0),HLOOKUP(FA$4,'Agency cashability'!$B$3:$U$5,3,0),0) -> 0 | FB38: =IF(AND(FB$3<>"",DL38<>0),HLOOKUP(FB$4,'Agency cashability'!$B$3:$U$5,3,0),0) -> 0 | FC38: =IF(AND(FC$3<>"",DM38<>0),HLOOKUP(FC$4,'Agency cashability'!$B$3:$U$5,3,0),0) -> 0 | FD38: =IF(AND(FD$3<>"",DN38<>0),HLOOKUP(FD$4,'Agency cashability'!$B$3:$U$5,3,0),0) -> 0 | FE38: =IF(AND(FE$3<>"",DO38<>0),HLOOKUP(FE$4,'Agency cashability'!$B$3:$U$5,3,0),0) -> 0 | FF38: =IF(AND(FF$3<>"",DP38<>0),HLOOKUP(FF$4,'Agency cashability'!$B$3:$U$5,3,0),0) -> 0 | FG38: =IF(AND(FG$3<>"",DQ38<>0),HLOOKUP(FG$4,'Agency cashability'!$B$3:$U$5,3,0),0) -> 0 | FH38: =IF(AND(FH$3<>"",DR38<>0),HLOOKUP(FH$4,'Agency cashability'!$B$3:$U$5,3,0),0) -> 0 | FI38: =IF(AND(FI$3<>"",DS38<>0),HLOOKUP(FI$4,'Agency cashability'!$B$3:$U$5,3,0),0) -> 0 | FJ38: =IF(AND(FJ$3<>"",DT38<>0),HLOOKUP(FJ$4,'Agency cashability'!$B$3:$U$5,3,0),0) -> 0 | FK38: =IF(AND(FK$3<>"",DU38<>0),HLOOKUP(FK$4,'Agency cashability'!$B$3:$U$5,3,0),0) -> 0 | FL38: =IF(AND(FL$3<>"",DV38<>0),HLOOKUP(FL$4,'Agency cashability'!$B$3:$U$5,3,0),0) -> 0 | FM38: =IF(AND(FM$3<>"",DW38<>0),HLOOKUP(FM$4,'Agency cashability'!$B$3:$U$5,3,0),0) -> 0 | FN38: =IF(AND(FN$3<>"",DX38<>0),HLOOKUP(FN$4,'Agency cashability'!$B$3:$U$5,3,0),0) -> 0 | FO38: =IF(AND(FO$3<>"",DY38<>0),HLOOKUP(FO$4,'Agency cashability'!$B$3:$U$5,3,0),0) -> 0 | FP38: =IF(AND(FP$3<>"",DZ38<>0),HLOOKUP(FP$4,'Agency cashability'!$B$3:$U$5,3,0),0) -> 0 | FR38: 0 | FS38: 0 | FT38: 0 | FU38: 0 | FV38: 0 | FW38: 0 | GM38: =IF((GM$3<>""),EB38*FR38,"") -> 0 | GN38: 0 | GO38: 0 | GP38: 0 | GQ38: 0 | GR38: 0 | HJ38: =IF((HJ$3<>""),EW38*FR38,"") -> 0 | HK38: 0 | HL38: 0 | HM38: 0 | HN38: 0 | HO38: 0
A39: B13 | B39: Reduced drug dependency | C39: No | D39: Reduced health and criminal justice costs | E39: NHS, Police, CJS | R39: 3614 | S39: 3614 | T39: 8954 | U39: 3814 | V39: 16382 | W39: 2013-14 | X39: =VLOOKUP(W39,'GDP Deflators'!$B$8:$C$76,2,0)*100/VLOOKUP('Model constants'!$B$3,'GDP Deflators'!$B$8:$C$76,2,0) -> 87.05356845 | Y39: Estimating the crime reduction benefits of drug treatment and recovery (National Treatment Agency for Substance Misuse, 2012), p.11; and Drug Treatment Outcomes Research Study (DTORS) (Home Office, 2009), p.13 | AA39: 0 | AB39: 0 | BE39: 0 | BF39: 0 | BG39: 0 | BH39: 0 | BI39: 0 | BJ39: 0 | BK39: 0 | BL39: 0 | BM39: 0 | BN39: 0 | CD39: 0 | CF39: 0 | CG39: 0 | CH39: 0 | CI39: 0 | CJ39: 0 | CK39: 0 | CL39: 0 | CM39: 0 | CN39: 0 | CO39: 0 | DE39: 0 | DG39: =IF(DG$3<>"",VLOOKUP($A39,'Agency percentages'!$A$5:$X$70,(3+MATCH(DG$4,'Agency percentages'!$D$4:$W$4,0)),FALSE),"") -> 0.59 | DH39: =IF(DH$3<>"",VLOOKUP($A39,'Agency percentages'!$A$5:$X$70,(3+MATCH(DH$4,'Agency percentages'!$D$4:$W$4,0)),FALSE),"") -> 0 | DI39: =IF(DI$3<>"",VLOOKUP($A39,'Agency percentages'!$A$5:$X$70,(3+MATCH(DI$4,'Agency percentages'!$D$4:$W$4,0)),FALSE),"") -> 0 | DJ39: =IF(DJ$3<>"",VLOOKUP($A39,'Agency percentages'!$A$5:$X$70,(3+MATCH(DJ$4,'Agency percentages'!$D$4:$W$4,0)),FALSE),"") -> 0 | DK39: =IF(DK$3<>"",VLOOKUP($A39,'Agency percentages'!$A$5:$X$70,(3+MATCH(DK$4,'Agency percentages'!$D$4:$W$4,0)),FALSE),"") -> 0 | DL39: =IF(DL$3<>"",VLOOKUP($A39,'Agency percentages'!$A$5:$X$70,(3+MATCH(DL$4,'Agency percentages'!$D$4:$W$4,0)),FALSE),"") -> 0 | DM39: =IF(DM$3<>"",VLOOKUP($A39,'Agency percentages'!$A$5:$X$70,(3+MATCH(DM$4,'Agency percentages'!$D$4:$W$4,0)),FALSE),"") ->  | DN39: =IF(DN$3<>"",VLOOKUP($A39,'Agency percentages'!$A$5:$X$70,(3+MATCH(DN$4,'Agency percentages'!$D$4:$W$4,0)),FALSE),"") ->  | DO39: =IF(DO$3<>"",VLOOKUP($A39,'Agency percentages'!$A$5:$X$70,(3+MATCH(DO$4,'Agency percentages'!$D$4:$W$4,0)),FALSE),"") ->  | DP39: =IF(DP$3<>"",VLOOKUP($A39,'Agency percentages'!$A$5:$X$70,(3+MATCH(DP$4,'Agency percentages'!$D$4:$W$4,0)),FALSE),"") ->  | DQ39: =IF(DQ$3<>"",VLOOKUP($A39,'Agency percentages'!$A$5:$X$70,(3+MATCH(DQ$4,'Agency percentages'!$D$4:$W$4,0)),FALSE),"") ->  | DR39: =IF(DR$3<>"",VLOOKUP($A39,'Agency percentages'!$A$5:$X$70,(3+MATCH(DR$4,'Agency percentages'!$D$4:$W$4,0)),FALSE),"") ->  | DS39: =IF(DS$3<>"",VLOOKUP($A39,'Agency percentages'!$A$5:$X$70,(3+MATCH(DS$4,'Agency percentages'!$D$4:$W$4,0)),FALSE),"") ->  | DT39: =IF(DT$3<>"",VLOOKUP($A39,'Agency percentages'!$A$5:$X$70,(3+MATCH(DT$4,'Agency percentages'!$D$4:$W$4,0)),FALSE),"") ->  | DU39: =IF(DU$3<>"",VLOOKUP($A39,'Agency percentages'!$A$5:$X$70,(3+MATCH(DU$4,'Agency percentages'!$D$4:$W$4,0)),FALSE),"") ->  | DV39: =IF(DV$3<>"",VLOOKUP($A39,'Agency percentages'!$A$5:$X$70,(3+MATCH(DV$4,'Agency percentages'!$D$4:$W$4,0)),FALSE),"") ->  | DW39: =IF(DW$3<>"",VLOOKUP($A39,'Agency percentages'!$A$5:$X$70,(3+MATCH(DW$4,'Agency percentages'!$D$4:$W$4,0)),FALSE),"") ->  | DX39: =IF(DX$3<>"",VLOOKUP($A39,'Agency percentages'!$A$5:$X$70,(3+MATCH(DX$4,'Agency percentages'!$D$4:$W$4,0)),FALSE),"") ->  | DY39: =IF(DY$3<>"",VLOOKUP($A39,'Agency percentages'!$A$5:$X$70,(3+MATCH(DY$4,'Agency percentages'!$D$4:$W$4,0)),FALSE),"") ->  | DZ39: =IF(DZ$3<>"",VLOOKUP($A39,'Agency percentages'!$A$5:$X$70,(3+MATCH(DZ$4,'Agency percentages'!$D$4:$W$4,0)),FALSE),"") ->  | EB39: =IF(AND(EB$3<>"",DG39<>0),HLOOKUP(EB$4,'Agency cashability'!$B$3:$U$5,2,0),0) -> 0.2 | EC39: =IF(AND(EC$3<>"",DH39<>0),HLOOKUP(EC$4,'Agency cashability'!$B$3:$U$5,2,0),0) -> 0 | ED39: =IF(AND(ED$3<>"",DI39<>0),HLOOKUP(ED$4,'Agency cashability'!$B$3:$U$5,2,0),0) -> 0 | EE39: =IF(AND(EE$3<>"",DJ39<>0),HLOOKUP(EE$4,'Agency cashability'!$B$3:$U$5,2,0),0) -> 0 | EF39: =IF(AND(EF$3<>"",DK39<>0),HLOOKUP(EF$4,'Agency cashability'!$B$3:$U$5,2,0),0) -> 0 | EG39: =IF(AND(EG$3<>"",DL39<>0),HLOOKUP(EG$4,'Agency cashability'!$B$3:$U$5,2,0),0) -> 0 | EH39: =IF(AND(EH$3<>"",DM39<>0),HLOOKUP(EH$4,'Agency cashability'!$B$3:$U$5,2,0),0) -> 0 | EI39: =IF(AND(EI$3<>"",DN39<>0),HLOOKUP(EI$4,'Agency cashability'!$B$3:$U$5,2,0),0) -> 0 | EJ39: =IF(AND(EJ$3<>"",DO39<>0),HLOOKUP(EJ$4,'Agency cashability'!$B$3:$U$5,2,0),0) -> 0 | EK39: =IF(AND(EK$3<>"",DP39<>0),HLOOKUP(EK$4,'Agency cashability'!$B$3:$U$5,2,0),0) -> 0 | EL39: =IF(AND(EL$3<>"",DQ39<>0),HLOOKUP(EL$4,'Agency cashability'!$B$3:$U$5,2,0),0) -> 0 | EM39: =IF(AND(EM$3<>"",DR39<>0),HLOOKUP(EM$4,'Agency cashability'!$B$3:$U$5,2,0),0) -> 0 | EN39: =IF(AND(EN$3<>"",DS39<>0),HLOOKUP(EN$4,'Agency cashability'!$B$3:$U$5,2,0),0) -> 0 | EO39: =IF(AND(EO$3<>"",DT39<>0),HLOOKUP(EO$4,'Agency cashability'!$B$3:$U$5,2,0),0) -> 0 | EP39: =IF(AND(EP$3<>"",DU39<>0),HLOOKUP(EP$4,'Agency cashability'!$B$3:$U$5,2,0),0) -> 0 | EQ39: =IF(AND(EQ$3<>"",DV39<>0),HLOOKUP(EQ$4,'Agency cashability'!$B$3:$U$5,2,0),0) -> 0 | ER39: =IF(AND(ER$3<>"",DW39<>0),HLOOKUP(ER$4,'Agency cashability'!$B$3:$U$5,2,0),0) -> 0 | ES39: =IF(AND(ES$3<>"",DX39<>0),HLOOKUP(ES$4,'Agency cashability'!$B$3:$U$5,2,0),0) -> 0 | ET39: =IF(AND(ET$3<>"",DY39<>0),HLOOKUP(ET$4,'Agency cashability'!$B$3:$U$5,2,0),0) -> 0 | EU39: =IF(AND(EU$3<>"",DZ39<>0),HLOOKUP(EU$4,'Agency cashability'!$B$3:$U$5,2,0),0) -> 0 | EW39: =IF(AND(EW$3<>"",DG39<>0),HLOOKUP(EW$4,'Agency cashability'!$B$3:$U$5,3,0),0) -> 0.5 | EX39: =IF(AND(EX$3<>"",DH39<>0),HLOOKUP(EX$4,'Agency cashability'!$B$3:$U$5,3,0),0) -> 0 | EY39: =IF(AND(EY$3<>"",DI39<>0),HLOOKUP(EY$4,'Agency cashability'!$B$3:$U$5,3,0),0) -> 0 | EZ39: =IF(AND(EZ$3<>"",DJ39<>0),HLOOKUP(EZ$4,'Agency cashability'!$B$3:$U$5,3,0),0) -> 0 | FA39: =IF(AND(FA$3<>"",DK39<>0),HLOOKUP(FA$4,'Agency cashability'!$B$3:$U$5,3,0),0) -> 0 | FB39: =IF(AND(FB$3<>"",DL39<>0),HLOOKUP(FB$4,'Agency cashability'!$B$3:$U$5,3,0),0) -> 0 | FC39: =IF(AND(FC$3<>"",DM39<>0),HLOOKUP(FC$4,'Agency cashability'!$B$3:$U$5,3,0),0) -> 0 | FD39: =IF(AND(FD$3<>"",DN39<>0),HLOOKUP(FD$4,'Agency cashability'!$B$3:$U$5,3,0),0) -> 0 | FE39: =IF(AND(FE$3<>"",DO39<>0),HLOOKUP(FE$4,'Agency cashability'!$B$3:$U$5,3,0),0) -> 0 | FF39: =IF(AND(FF$3<>"",DP39<>0),HLOOKUP(FF$4,'Agency cashability'!$B$3:$U$5,3,0),0) -> 0 | FG39: =IF(AND(FG$3<>"",DQ39<>0),HLOOKUP(FG$4,'Agency cashability'!$B$3:$U$5,3,0),0) -> 0 | FH39: =IF(AND(FH$3<>"",DR39<>0),HLOOKUP(FH$4,'Agency cashability'!$B$3:$U$5,3,0),0) -> 0 | FI39: =IF(AND(FI$3<>"",DS39<>0),HLOOKUP(FI$4,'Agency cashability'!$B$3:$U$5,3,0),0) -> 0 | FJ39: =IF(AND(FJ$3<>"",DT39<>0),HLOOKUP(FJ$4,'Agency cashability'!$B$3:$U$5,3,0),0) -> 0 | FK39: =IF(AND(FK$3<>"",DU39<>0),HLOOKUP(FK$4,'Agency cashability'!$B$3:$U$5,3,0),0) -> 0 | FL39: =IF(AND(FL$3<>"",DV39<>0),HLOOKUP(FL$4,'Agency cashability'!$B$3:$U$5,3,0),0) -> 0 | FM39: =IF(AND(FM$3<>"",DW39<>0),HLOOKUP(FM$4,'Agency cashability'!$B$3:$U$5,3,0),0) -> 0 | FN39: =IF(AND(FN$3<>"",DX39<>0),HLOOKUP(FN$4,'Agency cashability'!$B$3:$U$5,3,0),0) -> 0 | FO39: =IF(AND(FO$3<>"",DY39<>0),HLOOKUP(FO$4,'Agency cashability'!$B$3:$U$5,3,0),0) -> 0 | FP39: =IF(AND(FP$3<>"",DZ39<>0),HLOOKUP(FP$4,'Agency cashability'!$B$3:$U$5,3,0),0) -> 0 | FR39: 0 | FS39: 0 | FT39: 0 | FU39: 0 | FV39: 0 | FW39: 0 | GM39: =IF((GM$3<>""),EB39*FR39,"") -> 0 | GN39: 0 | GO39: 0 | GP39: 0 | GQ39: 0 | GR39: 0 | HJ39: =IF((HJ$3<>""),EW39*FR39,"") -> 0 | HK39: 0 | HL39: 0 | HM39: 0 | HN39: 0 | HO39: 0
A40: B14 | B40: Reduced alcohol dependency | C40: No | D40: Reduced health and criminal justice costs | E40: NHS, Police, CJS | R40: 1800 | S40: 1800 | U40: 1398 | V40: 3198 | W40: 2009-10 | X40: =VLOOKUP(W40,'GDP Deflators'!$B$8:$C$76,2,0)*100/VLOOKUP('Model constants'!$B$3,'GDP Deflators'!$B$8:$C$76,2,0) -> 81.19989113 | Y40: NICE Clinical Practice Guidance 115 | AA40: 0 | AB40: 0 | BE40: 0 | BF40: 0 | BG40: 0 | BH40: 0 | BI40: 0 | BJ40: 0 | BK40: 0 | BL40: 0 | BM40: 0 | BN40: 0 | CD40: 0 | CF40: 0 | CG40: 0 | CH40: 0 | CI40: 0 | CJ40: 0 | CK40: 0 | CL40: 0 | CM40: 0 | CN40: 0 | CO40: 0 | DE40: 0 | DG40: =IF(DG$3<>"",VLOOKUP($A40,'Agency percentages'!$A$5:$X$70,(3+MATCH(DG$4,'Agency percentages'!$D$4:$W$4,0)),FALSE),"") -> 1 | DH40: =IF(DH$3<>"",VLOOKUP($A40,'Agency percentages'!$A$5:$X$70,(3+MATCH(DH$4,'Agency percentages'!$D$4:$W$4,0)),FALSE),"") -> 0 | DI40: =IF(DI$3<>"",VLOOKUP($A40,'Agency percentages'!$A$5:$X$70,(3+MATCH(DI$4,'Agency percentages'!$D$4:$W$4,0)),FALSE),"") -> 0 | DJ40: =IF(DJ$3<>"",VLOOKUP($A40,'Agency percentages'!$A$5:$X$70,(3+MATCH(DJ$4,'Agency percentages'!$D$4:$W$4,0)),FALSE),"") -> 0 | DK40: =IF(DK$3<>"",VLOOKUP($A40,'Agency percentages'!$A$5:$X$70,(3+MATCH(DK$4,'Agency percentages'!$D$4:$W$4,0)),FALSE),"") -> 0 | DL40: =IF(DL$3<>"",VLOOKUP($A40,'Agency percentages'!$A$5:$X$70,(3+MATCH(DL$4,'Agency percentages'!$D$4:$W$4,0)),FALSE),"") -> 0 | DM40: =IF(DM$3<>"",VLOOKUP($A40,'Agency percentages'!$A$5:$X$70,(3+MATCH(DM$4,'Agency percentages'!$D$4:$W$4,0)),FALSE),"") ->  | DN40: =IF(DN$3<>"",VLOOKUP($A40,'Agency percentages'!$A$5:$X$70,(3+MATCH(DN$4,'Agency percentages'!$D$4:$W$4,0)),FALSE),"") ->  | DO40: =IF(DO$3<>"",VLOOKUP($A40,'Agency percentages'!$A$5:$X$70,(3+MATCH(DO$4,'Agency percentages'!$D$4:$W$4,0)),FALSE),"") ->  | DP40: =IF(DP$3<>"",VLOOKUP($A40,'Agency percentages'!$A$5:$X$70,(3+MATCH(DP$4,'Agency percentages'!$D$4:$W$4,0)),FALSE),"") ->  | DQ40: =IF(DQ$3<>"",VLOOKUP($A40,'Agency percentages'!$A$5:$X$70,(3+MATCH(DQ$4,'Agency percentages'!$D$4:$W$4,0)),FALSE),"") ->  | DR40: =IF(DR$3<>"",VLOOKUP($A40,'Agency percentages'!$A$5:$X$70,(3+MATCH(DR$4,'Agency percentages'!$D$4:$W$4,0)),FALSE),"") ->  | DS40: =IF(DS$3<>"",VLOOKUP($A40,'Agency percentages'!$A$5:$X$70,(3+MATCH(DS$4,'Agency percentages'!$D$4:$W$4,0)),FALSE),"") ->  | DT40: =IF(DT$3<>"",VLOOKUP($A40,'Agency percentages'!$A$5:$X$70,(3+MATCH(DT$4,'Agency percentages'!$D$4:$W$4,0)),FALSE),"") ->  | DU40: =IF(DU$3<>"",VLOOKUP($A40,'Agency percentages'!$A$5:$X$70,(3+MATCH(DU$4,'Agency percentages'!$D$4:$W$4,0)),FALSE),"") ->  | DV40: =IF(DV$3<>"",VLOOKUP($A40,'Agency percentages'!$A$5:$X$70,(3+MATCH(DV$4,'Agency percentages'!$D$4:$W$4,0)),FALSE),"") ->  | DW40: =IF(DW$3<>"",VLOOKUP($A40,'Agency percentages'!$A$5:$X$70,(3+MATCH(DW$4,'Agency percentages'!$D$4:$W$4,0)),FALSE),"") ->  | DX40: =IF(DX$3<>"",VLOOKUP($A40,'Agency percentages'!$A$5:$X$70,(3+MATCH(DX$4,'Agency percentages'!$D$4:$W$4,0)),FALSE),"") ->  | DY40: =IF(DY$3<>"",VLOOKUP($A40,'Agency percentages'!$A$5:$X$70,(3+MATCH(DY$4,'Agency percentages'!$D$4:$W$4,0)),FALSE),"") ->  | DZ40: =IF(DZ$3<>"",VLOOKUP($A40,'Agency percentages'!$A$5:$X$70,(3+MATCH(DZ$4,'Agency percentages'!$D$4:$W$4,0)),FALSE),"") ->  | EB40: =IF(AND(EB$3<>"",DG40<>0),HLOOKUP(EB$4,'Agency cashability'!$B$3:$U$5,2,0),0) -> 0.2 | EC40: =IF(AND(EC$3<>"",DH40<>0),HLOOKUP(EC$4,'Agency cashability'!$B$3:$U$5,2,0),0) -> 0 | ED40: =IF(AND(ED$3<>"",DI40<>0),HLOOKUP(ED$4,'Agency cashability'!$B$3:$U$5,2,0),0) -> 0 | EE40: =IF(AND(EE$3<>"",DJ40<>0),HLOOKUP(EE$4,'Agency cashability'!$B$3:$U$5,2,0),0) -> 0 | EF40: =IF(AND(EF$3<>"",DK40<>0),HLOOKUP(EF$4,'Agency cashability'!$B$3:$U$5,2,0),0) -> 0 | EG40: =IF(AND(EG$3<>"",DL40<>0),HLOOKUP(EG$4,'Agency cashability'!$B$3:$U$5,2,0),0) -> 0 | EH40: =IF(AND(EH$3<>"",DM40<>0),HLOOKUP(EH$4,'Agency cashability'!$B$3:$U$5,2,0),0) -> 0 | EI40: =IF(AND(EI$3<>"",DN40<>0),HLOOKUP(EI$4,'Agency cashability'!$B$3:$U$5,2,0),0) -> 0 | EJ40: =IF(AND(EJ$3<>"",DO40<>0),HLOOKUP(EJ$4,'Agency cashability'!$B$3:$U$5,2,0),0) -> 0 | EK40: =IF(AND(EK$3<>"",DP40<>0),HLOOKUP(EK$4,'Agency cashability'!$B$3:$U$5,2,0),0) -> 0 | EL40: =IF(AND(EL$3<>"",DQ40<>0),HLOOKUP(EL$4,'Agency cashability'!$B$3:$U$5,2,0),0) -> 0 | EM40: =IF(AND(EM$3<>"",DR40<>0),HLOOKUP(EM$4,'Agency cashability'!$B$3:$U$5,2,0),0) -> 0 | EN40: =IF(AND(EN$3<>"",DS40<>0),HLOOKUP(EN$4,'Agency cashability'!$B$3:$U$5,2,0),0) -> 0 | EO40: =IF(AND(EO$3<>"",DT40<>0),HLOOKUP(EO$4,'Agency cashability'!$B$3:$U$5,2,0),0) -> 0 | EP40: =IF(AND(EP$3<>"",DU40<>0),HLOOKUP(EP$4,'Agency cashability'!$B$3:$U$5,2,0),0) -> 0 | EQ40: =IF(AND(EQ$3<>"",DV40<>0),HLOOKUP(EQ$4,'Agency cashability'!$B$3:$U$5,2,0),0) -> 0 | ER40: =IF(AND(ER$3<>"",DW40<>0),HLOOKUP(ER$4,'Agency cashability'!$B$3:$U$5,2,0),0) -> 0 | ES40: =IF(AND(ES$3<>"",DX40<>0),HLOOKUP(ES$4,'Agency cashability'!$B$3:$U$5,2,0),0) -> 0 | ET40: =IF(AND(ET$3<>"",DY40<>0),HLOOKUP(ET$4,'Agency cashability'!$B$3:$U$5,2,0),0) -> 0 | EU40: =IF(AND(EU$3<>"",DZ40<>0),HLOOKUP(EU$4,'Agency cashability'!$B$3:$U$5,2,0),0) -> 0 | EW40: =IF(AND(EW$3<>"",DG40<>0),HLOOKUP(EW$4,'Agency cashability'!$B$3:$U$5,3,0),0) -> 0.5 | EX40: =IF(AND(EX$3<>"",DH40<>0),HLOOKUP(EX$4,'Agency cashability'!$B$3:$U$5,3,0),0) -> 0 | EY40: =IF(AND(EY$3<>"",DI40<>0),HLOOKUP(EY$4,'Agency cashability'!$B$3:$U$5,3,0),0) -> 0 | EZ40: =IF(AND(EZ$3<>"",DJ40<>0),HLOOKUP(EZ$4,'Agency cashability'!$B$3:$U$5,3,0),0) -> 0 | FA40: =IF(AND(FA$3<>"",DK40<>0),HLOOKUP(FA$4,'Agency cashability'!$B$3:$U$5,3,0),0) -> 0 | FB40: =IF(AND(FB$3<>"",DL40<>0),HLOOKUP(FB$4,'Agency cashability'!$B$3:$U$5,3,0),0) -> 0 | FC40: =IF(AND(FC$3<>"",DM40<>0),HLOOKUP(FC$4,'Agency cashability'!$B$3:$U$5,3,0),0) -> 0 | FD40: =IF(AND(FD$3<>"",DN40<>0),HLOOKUP(FD$4,'Agency cashability'!$B$3:$U$5,3,0),0) -> 0 | FE40: =IF(AND(FE$3<>"",DO40<>0),HLOOKUP(FE$4,'Agency cashability'!$B$3:$U$5,3,0),0) -> 0 | FF40: =IF(AND(FF$3<>"",DP40<>0),HLOOKUP(FF$4,'Agency cashability'!$B$3:$U$5,3,0),0) -> 0 | FG40: =IF(AND(FG$3<>"",DQ40<>0),HLOOKUP(FG$4,'Agency cashability'!$B$3:$U$5,3,0),0) -> 0 | FH40: =IF(AND(FH$3<>"",DR40<>0),HLOOKUP(FH$4,'Agency cashability'!$B$3:$U$5,3,0),0) -> 0 | FI40: =IF(AND(FI$3<>"",DS40<>0),HLOOKUP(FI$4,'Agency cashability'!$B$3:$U$5,3,0),0) -> 0 | FJ40: =IF(AND(FJ$3<>"",DT40<>0),HLOOKUP(FJ$4,'Agency cashability'!$B$3:$U$5,3,0),0) -> 0 | FK40: =IF(AND(FK$3<>"",DU40<>0),HLOOKUP(FK$4,'Agency cashability'!$B$3:$U$5,3,0),0) -> 0 | FL40: =IF(AND(FL$3<>"",DV40<>0),HLOOKUP(FL$4,'Agency cashability'!$B$3:$U$5,3,0),0) -> 0 | FM40: =IF(AND(FM$3<>"",DW40<>0),HLOOKUP(FM$4,'Agency cashability'!$B$3:$U$5,3,0),0) -> 0 | FN40: =IF(AND(FN$3<>"",DX40<>0),HLOOKUP(FN$4,'Agency cashability'!$B$3:$U$5,3,0),0) -> 0 | FO40: =IF(AND(FO$3<>"",DY40<>0),HLOOKUP(FO$4,'Agency cashability'!$B$3:$U$5,3,0),0) -> 0 | FP40: =IF(AND(FP$3<>"",DZ40<>0),HLOOKUP(FP$4,'Agency cashability'!$B$3:$U$5,3,0),0) -> 0 | FR40: 0 | FS40: 0 | FT40: 0 | FU40: 0 | FV40: 0 | FW40: 0 | GM40: =IF((GM$3<>""),EB40*FR40,"") -> 0 | GN40: 0 | GO40: 0 | GP40: 0 | GQ40: 0 | GR40: 0 | HJ40: =IF((HJ$3<>""),EW40*FR40,"") -> 0 | HK40: 0 | HL40: 0 | HM40: 0 | HN40: 0 | HO40: 0
A41: B15 | B41: Reduced persistent truancy (<85% attendance at school) | C41: No | D41: Improved health, reduced crime, increased earnings | E41: NHS, Police, Individual | R41: 1509 | S41: 1509 | T41: 842 | V41: 2351 | W41: 2005-06 | X41: =VLOOKUP(W41,'GDP Deflators'!$B$8:$C$76,2,0)*100/VLOOKUP('Model constants'!$B$3,'GDP Deflators'!$B$8:$C$76,2,0) -> 73.86975643 | Y41: NPC Misspent Youth report (2007) | AA41: 0 | AB41: 0 | BE41: 0 | BF41: 0 | BG41: 0 | BH41: 0 | BI41: 0 | BJ41: 0 | BK41: 0 | BL41: 0 | BM41: 0 | BN41: 0 | CD41: 0 | CF41: 0 | CG41: 0 | CH41: 0 | CI41: 0 | CJ41: 0 | CK41: 0 | CL41: 0 | CM41: 0 | CN41: 0 | CO41: 0 | DE41: 0 | DG41: =IF(DG$3<>"",VLOOKUP($A41,'Agency percentages'!$A$5:$X$70,(3+MATCH(DG$4,'Agency percentages'!$D$4:$W$4,0)),FALSE),"") -> 0.03445229682 | DH41: =IF(DH$3<>"",VLOOKUP($A41,'Agency percentages'!$A$5:$X$70,(3+MATCH(DH$4,'Agency percentages'!$D$4:$W$4,0)),FALSE),"") -> 0 | DI41: =IF(DI$3<>"",VLOOKUP($A41,'Agency percentages'!$A$5:$X$70,(3+MATCH(DI$4,'Agency percentages'!$D$4:$W$4,0)),FALSE),"") -> 0 | DJ41: =IF(DJ$3<>"",VLOOKUP($A41,'Agency percentages'!$A$5:$X$70,(3+MATCH(DJ$4,'Agency percentages'!$D$4:$W$4,0)),FALSE),"") -> 0 | DK41: =IF(DK$3<>"",VLOOKUP($A41,'Agency percentages'!$A$5:$X$70,(3+MATCH(DK$4,'Agency percentages'!$D$4:$W$4,0)),FALSE),"") -> 0 | DL41: =IF(DL$3<>"",VLOOKUP($A41,'Agency percentages'!$A$5:$X$70,(3+MATCH(DL$4,'Agency percentages'!$D$4:$W$4,0)),FALSE),"") -> 0 | DM41: =IF(DM$3<>"",VLOOKUP($A41,'Agency percentages'!$A$5:$X$70,(3+MATCH(DM$4,'Agency percentages'!$D$4:$W$4,0)),FALSE),"") ->  | DN41: =IF(DN$3<>"",VLOOKUP($A41,'Agency percentages'!$A$5:$X$70,(3+MATCH(DN$4,'Agency percentages'!$D$4:$W$4,0)),FALSE),"") ->  | DO41: =IF(DO$3<>"",VLOOKUP($A41,'Agency percentages'!$A$5:$X$70,(3+MATCH(DO$4,'Agency percentages'!$D$4:$W$4,0)),FALSE),"") ->  | DP41: =IF(DP$3<>"",VLOOKUP($A41,'Agency percentages'!$A$5:$X$70,(3+MATCH(DP$4,'Agency percentages'!$D$4:$W$4,0)),FALSE),"") ->  | DQ41: =IF(DQ$3<>"",VLOOKUP($A41,'Agency percentages'!$A$5:$X$70,(3+MATCH(DQ$4,'Agency percentages'!$D$4:$W$4,0)),FALSE),"") ->  | DR41: =IF(DR$3<>"",VLOOKUP($A41,'Agency percentages'!$A$5:$X$70,(3+MATCH(DR$4,'Agency percentages'!$D$4:$W$4,0)),FALSE),"") ->  | DS41: =IF(DS$3<>"",VLOOKUP($A41,'Agency percentages'!$A$5:$X$70,(3+MATCH(DS$4,'Agency percentages'!$D$4:$W$4,0)),FALSE),"") ->  | DT41: =IF(DT$3<>"",VLOOKUP($A41,'Agency percentages'!$A$5:$X$70,(3+MATCH(DT$4,'Agency percentages'!$D$4:$W$4,0)),FALSE),"") ->  | DU41: =IF(DU$3<>"",VLOOKUP($A41,'Agency percentages'!$A$5:$X$70,(3+MATCH(DU$4,'Agency percentages'!$D$4:$W$4,0)),FALSE),"") ->  | DV41: =IF(DV$3<>"",VLOOKUP($A41,'Agency percentages'!$A$5:$X$70,(3+MATCH(DV$4,'Agency percentages'!$D$4:$W$4,0)),FALSE),"") ->  | DW41: =IF(DW$3<>"",VLOOKUP($A41,'Agency percentages'!$A$5:$X$70,(3+MATCH(DW$4,'Agency percentages'!$D$4:$W$4,0)),FALSE),"") ->  | DX41: =IF(DX$3<>"",VLOOKUP($A41,'Agency percentages'!$A$5:$X$70,(3+MATCH(DX$4,'Agency percentages'!$D$4:$W$4,0)),FALSE),"") ->  | DY41: =IF(DY$3<>"",VLOOKUP($A41,'Agency percentages'!$A$5:$X$70,(3+MATCH(DY$4,'Agency percentages'!$D$4:$W$4,0)),FALSE),"") ->  | DZ41: =IF(DZ$3<>"",VLOOKUP($A41,'Agency percentages'!$A$5:$X$70,(3+MATCH(DZ$4,'Agency percentages'!$D$4:$W$4,0)),FALSE),"") ->  | EB41: =IF(AND(EB$3<>"",DG41<>0),HLOOKUP(EB$4,'Agency cashability'!$B$3:$U$5,2,0),0) -> 0.2 | EC41: =IF(AND(EC$3<>"",DH41<>0),HLOOKUP(EC$4,'Agency cashability'!$B$3:$U$5,2,0),0) -> 0 | ED41: =IF(AND(ED$3<>"",DI41<>0),HLOOKUP(ED$4,'Agency cashability'!$B$3:$U$5,2,0),0) -> 0 | EE41: =IF(AND(EE$3<>"",DJ41<>0),HLOOKUP(EE$4,'Agency cashability'!$B$3:$U$5,2,0),0) -> 0 | EF41: =IF(AND(EF$3<>"",DK41<>0),HLOOKUP(EF$4,'Agency cashability'!$B$3:$U$5,2,0),0) -> 0 | EG41: =IF(AND(EG$3<>"",DL41<>0),HLOOKUP(EG$4,'Agency cashability'!$B$3:$U$5,2,0),0) -> 0 | EH41: =IF(AND(EH$3<>"",DM41<>0),HLOOKUP(EH$4,'Agency cashability'!$B$3:$U$5,2,0),0) -> 0 | EI41: =IF(AND(EI$3<>"",DN41<>0),HLOOKUP(EI$4,'Agency cashability'!$B$3:$U$5,2,0),0) -> 0 | EJ41: =IF(AND(EJ$3<>"",DO41<>0),HLOOKUP(EJ$4,'Agency cashability'!$B$3:$U$5,2,0),0) -> 0 | EK41: =IF(AND(EK$3<>"",DP41<>0),HLOOKUP(EK$4,'Agency cashability'!$B$3:$U$5,2,0),0) -> 0 | EL41: =IF(AND(EL$3<>"",DQ41<>0),HLOOKUP(EL$4,'Agency cashability'!$B$3:$U$5,2,0),0) -> 0 | EM41: =IF(AND(EM$3<>"",DR41<>0),HLOOKUP(EM$4,'Agency cashability'!$B$3:$U$5,2,0),0) -> 0 | EN41: =IF(AND(EN$3<>"",DS41<>0),HLOOKUP(EN$4,'Agency cashability'!$B$3:$U$5,2,0),0) -> 0 | EO41: =IF(AND(EO$3<>"",DT41<>0),HLOOKUP(EO$4,'Agency cashability'!$B$3:$U$5,2,0),0) -> 0 | EP41: =IF(AND(EP$3<>"",DU41<>0),HLOOKUP(EP$4,'Agency cashability'!$B$3:$U$5,2,0),0) -> 0 | EQ41: =IF(AND(EQ$3<>"",DV41<>0),HLOOKUP(EQ$4,'Agency cashability'!$B$3:$U$5,2,0),0) -> 0 | ER41: =IF(AND(ER$3<>"",DW41<>0),HLOOKUP(ER$4,'Agency cashability'!$B$3:$U$5,2,0),0) -> 0 | ES41: =IF(AND(ES$3<>"",DX41<>0),HLOOKUP(ES$4,'Agency cashability'!$B$3:$U$5,2,0),0) -> 0 | ET41: =IF(AND(ET$3<>"",DY41<>0),HLOOKUP(ET$4,'Agency cashability'!$B$3:$U$5,2,0),0) -> 0 | EU41: =IF(AND(EU$3<>"",DZ41<>0),HLOOKUP(EU$4,'Agency cashability'!$B$3:$U$5,2,0),0) -> 0 | EW41: =IF(AND(EW$3<>"",DG41<>0),HLOOKUP(EW$4,'Agency cashability'!$B$3:$U$5,3,0),0) -> 0.5 | EX41: =IF(AND(EX$3<>"",DH41<>0),HLOOKUP(EX$4,'Agency cashability'!$B$3:$U$5,3,0),0) -> 0 | EY41: =IF(AND(EY$3<>"",DI41<>0),HLOOKUP(EY$4,'Agency cashability'!$B$3:$U$5,3,0),0) -> 0 | EZ41: =IF(AND(EZ$3<>"",DJ41<>0),HLOOKUP(EZ$4,'Agency cashability'!$B$3:$U$5,3,0),0) -> 0 | FA41: =IF(AND(FA$3<>"",DK41<>0),HLOOKUP(FA$4,'Agency cashability'!$B$3:$U$5,3,0),0) -> 0 | FB41: =IF(AND(FB$3<>"",DL41<>0),HLOOKUP(FB$4,'Agency cashability'!$B$3:$U$5,3,0),0) -> 0 | FC41: =IF(AND(FC$3<>"",DM41<>0),HLOOKUP(FC$4,'Agency cashability'!$B$3:$U$5,3,0),0) -> 0 | FD41: =IF(AND(FD$3<>"",DN41<>0),HLOOKUP(FD$4,'Agency cashability'!$B$3:$U$5,3,0),0) -> 0 | FE41: =IF(AND(FE$3<>"",DO41<>0),HLOOKUP(FE$4,'Agency cashability'!$B$3:$U$5,3,0),0) -> 0 | FF41: =IF(AND(FF$3<>"",DP41<>0),HLOOKUP(FF$4,'Agency cashability'!$B$3:$U$5,3,0),0) -> 0 | FG41: =IF(AND(FG$3<>"",DQ41<>0),HLOOKUP(FG$4,'Agency cashability'!$B$3:$U$5,3,0),0) -> 0 | FH41: =IF(AND(FH$3<>"",DR41<>0),HLOOKUP(FH$4,'Agency cashability'!$B$3:$U$5,3,0),0) -> 0 | FI41: =IF(AND(FI$3<>"",DS41<>0),HLOOKUP(FI$4,'Agency cashability'!$B$3:$U$5,3,0),0) -> 0 | FJ41: =IF(AND(FJ$3<>"",DT41<>0),HLOOKUP(FJ$4,'Agency cashability'!$B$3:$U$5,3,0),0) -> 0 | FK41: =IF(AND(FK$3<>"",DU41<>0),HLOOKUP(FK$4,'Agency cashability'!$B$3:$U$5,3,0),0) -> 0 | FL41: =IF(AND(FL$3<>"",DV41<>0),HLOOKUP(FL$4,'Agency cashability'!$B$3:$U$5,3,0),0) -> 0 | FM41: =IF(AND(FM$3<>"",DW41<>0),HLOOKUP(FM$4,'Agency cashability'!$B$3:$U$5,3,0),0) -> 0 | FN41: =IF(AND(FN$3<>"",DX41<>0),HLOOKUP(FN$4,'Agency cashability'!$B$3:$U$5,3,0),0) -> 0 | FO41: =IF(AND(FO$3<>"",DY41<>0),HLOOKUP(FO$4,'Agency cashability'!$B$3:$U$5,3,0),0) -> 0 | FP41: =IF(AND(FP$3<>"",DZ41<>0),HLOOKUP(FP$4,'Agency cashability'!$B$3:$U$5,3,0),0) -> 0 | FR41: 0 | FS41: 0 | FT41: 0 | FU41: 0 | FV41: 0 | FW41: 0 | GM41: =IF((GM$3<>""),EB41*FR41,"") -> 0 | GN41: 0 | GO41: 0 | GP41: 0 | GQ41: 0 | GR41: 0 | HJ41: =IF((HJ$3<>""),EW41*FR41,"") -> 0 | HK41: 0 | HL41: 0 | HM41: 0 | HN41: 0 | HO41: 0
A42: B16 | B42: Reduced exclusion from school | C42: No | D42: Improved health, reduced crime, increased earnings | E42: NHS, Police, Individual | R42: 9219 | S42: 9219 | T42: 529 | V42: 9748 | W42: 2005-06 | X42: =VLOOKUP(W42,'GDP Deflators'!$B$8:$C$76,2,0)*100/VLOOKUP('Model constants'!$B$3,'GDP Deflators'!$B$8:$C$76,2,0) -> 73.86975643 | Y42: NPC Misspent Youth report (2007) | AA42: 0 | AB42: 0 | BE42: 0 | BF42: 0 | BG42: 0 | BH42: 0 | BI42: 0 | BJ42: 0 | BK42: 0 | BL42: 0 | BM42: 0 | BN42: 0 | CD42: 0 | CF42: 0 | CG42: 0 | CH42: 0 | CI42: 0 | CJ42: 0 | CK42: 0 | CL42: 0 | CM42: 0 | CN42: 0 | CO42: 0 | DE42: 0 | DG42: =IF(DG$3<>"",VLOOKUP($A42,'Agency percentages'!$A$5:$X$70,(3+MATCH(DG$4,'Agency percentages'!$D$4:$W$4,0)),FALSE),"") -> 0.006908568252 | DH42: =IF(DH$3<>"",VLOOKUP($A42,'Agency percentages'!$A$5:$X$70,(3+MATCH(DH$4,'Agency percentages'!$D$4:$W$4,0)),FALSE),"") -> 0 | DI42: =IF(DI$3<>"",VLOOKUP($A42,'Agency percentages'!$A$5:$X$70,(3+MATCH(DI$4,'Agency percentages'!$D$4:$W$4,0)),FALSE),"") -> 0 | DJ42: =IF(DJ$3<>"",VLOOKUP($A42,'Agency percentages'!$A$5:$X$70,(3+MATCH(DJ$4,'Agency percentages'!$D$4:$W$4,0)),FALSE),"") -> 0 | DK42: =IF(DK$3<>"",VLOOKUP($A42,'Agency percentages'!$A$5:$X$70,(3+MATCH(DK$4,'Agency percentages'!$D$4:$W$4,0)),FALSE),"") -> 0 | DL42: =IF(DL$3<>"",VLOOKUP($A42,'Agency percentages'!$A$5:$X$70,(3+MATCH(DL$4,'Agency percentages'!$D$4:$W$4,0)),FALSE),"") -> 0 | DM42: =IF(DM$3<>"",VLOOKUP($A42,'Agency percentages'!$A$5:$X$70,(3+MATCH(DM$4,'Agency percentages'!$D$4:$W$4,0)),FALSE),"") ->  | DN42: =IF(DN$3<>"",VLOOKUP($A42,'Agency percentages'!$A$5:$X$70,(3+MATCH(DN$4,'Agency percentages'!$D$4:$W$4,0)),FALSE),"") ->  | DO42: =IF(DO$3<>"",VLOOKUP($A42,'Agency percentages'!$A$5:$X$70,(3+MATCH(DO$4,'Agency percentages'!$D$4:$W$4,0)),FALSE),"") ->  | DP42: =IF(DP$3<>"",VLOOKUP($A42,'Agency percentages'!$A$5:$X$70,(3+MATCH(DP$4,'Agency percentages'!$D$4:$W$4,0)),FALSE),"") ->  | DQ42: =IF(DQ$3<>"",VLOOKUP($A42,'Agency percentages'!$A$5:$X$70,(3+MATCH(DQ$4,'Agency percentages'!$D$4:$W$4,0)),FALSE),"") ->  | DR42: =IF(DR$3<>"",VLOOKUP($A42,'Agency percentages'!$A$5:$X$70,(3+MATCH(DR$4,'Agency percentages'!$D$4:$W$4,0)),FALSE),"") ->  | DS42: =IF(DS$3<>"",VLOOKUP($A42,'Agency percentages'!$A$5:$X$70,(3+MATCH(DS$4,'Agency percentages'!$D$4:$W$4,0)),FALSE),"") ->  | DT42: =IF(DT$3<>"",VLOOKUP($A42,'Agency percentages'!$A$5:$X$70,(3+MATCH(DT$4,'Agency percentages'!$D$4:$W$4,0)),FALSE),"") ->  | DU42: =IF(DU$3<>"",VLOOKUP($A42,'Agency percentages'!$A$5:$X$70,(3+MATCH(DU$4,'Agency percentages'!$D$4:$W$4,0)),FALSE),"") ->  | DV42: =IF(DV$3<>"",VLOOKUP($A42,'Agency percentages'!$A$5:$X$70,(3+MATCH(DV$4,'Agency percentages'!$D$4:$W$4,0)),FALSE),"") ->  | DW42: =IF(DW$3<>"",VLOOKUP($A42,'Agency percentages'!$A$5:$X$70,(3+MATCH(DW$4,'Agency percentages'!$D$4:$W$4,0)),FALSE),"") ->  | DX42: =IF(DX$3<>"",VLOOKUP($A42,'Agency percentages'!$A$5:$X$70,(3+MATCH(DX$4,'Agency percentages'!$D$4:$W$4,0)),FALSE),"") ->  | DY42: =IF(DY$3<>"",VLOOKUP($A42,'Agency percentages'!$A$5:$X$70,(3+MATCH(DY$4,'Agency percentages'!$D$4:$W$4,0)),FALSE),"") ->  | DZ42: =IF(DZ$3<>"",VLOOKUP($A42,'Agency percentages'!$A$5:$X$70,(3+MATCH(DZ$4,'Agency percentages'!$D$4:$W$4,0)),FALSE),"") ->  | EB42: =IF(AND(EB$3<>"",DG42<>0),HLOOKUP(EB$4,'Agency cashability'!$B$3:$U$5,2,0),0) -> 0.2 | EC42: =IF(AND(EC$3<>"",DH42<>0),HLOOKUP(EC$4,'Agency cashability'!$B$3:$U$5,2,0),0) -> 0 | ED42: =IF(AND(ED$3<>"",DI42<>0),HLOOKUP(ED$4,'Agency cashability'!$B$3:$U$5,2,0),0) -> 0 | EE42: =IF(AND(EE$3<>"",DJ42<>0),HLOOKUP(EE$4,'Agency cashability'!$B$3:$U$5,2,0),0) -> 0 | EF42: =IF(AND(EF$3<>"",DK42<>0),HLOOKUP(EF$4,'Agency cashability'!$B$3:$U$5,2,0),0) -> 0 | EG42: =IF(AND(EG$3<>"",DL42<>0),HLOOKUP(EG$4,'Agency cashability'!$B$3:$U$5,2,0),0) -> 0 | EH42: =IF(AND(EH$3<>"",DM42<>0),HLOOKUP(EH$4,'Agency cashability'!$B$3:$U$5,2,0),0) -> 0 | EI42: =IF(AND(EI$3<>"",DN42<>0),HLOOKUP(EI$4,'Agency cashability'!$B$3:$U$5,2,0),0) -> 0 | EJ42: =IF(AND(EJ$3<>"",DO42<>0),HLOOKUP(EJ$4,'Agency cashability'!$B$3:$U$5,2,0),0) -> 0 | EK42: =IF(AND(EK$3<>"",DP42<>0),HLOOKUP(EK$4,'Agency cashability'!$B$3:$U$5,2,0),0) -> 0 | EL42: =IF(AND(EL$3<>"",DQ42<>0),HLOOKUP(EL$4,'Agency cashability'!$B$3:$U$5,2,0),0) -> 0 | EM42: =IF(AND(EM$3<>"",DR42<>0),HLOOKUP(EM$4,'Agency cashability'!$B$3:$U$5,2,0),0) -> 0 | EN42: =IF(AND(EN$3<>"",DS42<>0),HLOOKUP(EN$4,'Agency cashability'!$B$3:$U$5,2,0),0) -> 0 | EO42: =IF(AND(EO$3<>"",DT42<>0),HLOOKUP(EO$4,'Agency cashability'!$B$3:$U$5,2,0),0) -> 0 | EP42: =IF(AND(EP$3<>"",DU42<>0),HLOOKUP(EP$4,'Agency cashability'!$B$3:$U$5,2,0),0) -> 0 | EQ42: =IF(AND(EQ$3<>"",DV42<>0),HLOOKUP(EQ$4,'Agency cashability'!$B$3:$U$5,2,0),0) -> 0 | ER42: =IF(AND(ER$3<>"",DW42<>0),HLOOKUP(ER$4,'Agency cashability'!$B$3:$U$5,2,0),0) -> 0 | ES42: =IF(AND(ES$3<>"",DX42<>0),HLOOKUP(ES$4,'Agency cashability'!$B$3:$U$5,2,0),0) -> 0 | ET42: =IF(AND(ET$3<>"",DY42<>0),HLOOKUP(ET$4,'Agency cashability'!$B$3:$U$5,2,0),0) -> 0 | EU42: =IF(AND(EU$3<>"",DZ42<>0),HLOOKUP(EU$4,'Agency cashability'!$B$3:$U$5,2,0),0) -> 0 | EW42: =IF(AND(EW$3<>"",DG42<>0),HLOOKUP(EW$4,'Agency cashability'!$B$3:$U$5,3,0),0) -> 0.5 | EX42: =IF(AND(EX$3<>"",DH42<>0),HLOOKUP(EX$4,'Agency cashability'!$B$3:$U$5,3,0),0) -> 0 | EY42: =IF(AND(EY$3<>"",DI42<>0),HLOOKUP(EY$4,'Agency cashability'!$B$3:$U$5,3,0),0) -> 0 | EZ42: =IF(AND(EZ$3<>"",DJ42<>0),HLOOKUP(EZ$4,'Agency cashability'!$B$3:$U$5,3,0),0) -> 0 | FA42: =IF(AND(FA$3<>"",DK42<>0),HLOOKUP(FA$4,'Agency cashability'!$B$3:$U$5,3,0),0) -> 0 | FB42: =IF(AND(FB$3<>"",DL42<>0),HLOOKUP(FB$4,'Agency cashability'!$B$3:$U$5,3,0),0) -> 0 | FC42: =IF(AND(FC$3<>"",DM42<>0),HLOOKUP(FC$4,'Agency cashability'!$B$3:$U$5,3,0),0) -> 0 | FD42: =IF(AND(FD$3<>"",DN42<>0),HLOOKUP(FD$4,'Agency cashability'!$B$3:$U$5,3,0),0) -> 0 | FE42: =IF(AND(FE$3<>"",DO42<>0),HLOOKUP(FE$4,'Agency cashability'!$B$3:$U$5,3,0),0) -> 0 | FF42: =IF(AND(FF$3<>"",DP42<>0),HLOOKUP(FF$4,'Agency cashability'!$B$3:$U$5,3,0),0) -> 0 | FG42: =IF(AND(FG$3<>"",DQ42<>0),HLOOKUP(FG$4,'Agency cashability'!$B$3:$U$5,3,0),0) -> 0 | FH42: =IF(AND(FH$3<>"",DR42<>0),HLOOKUP(FH$4,'Agency cashability'!$B$3:$U$5,3,0),0) -> 0 | FI42: =IF(AND(FI$3<>"",DS42<>0),HLOOKUP(FI$4,'Agency cashability'!$B$3:$U$5,3,0),0) -> 0 | FJ42: =IF(AND(FJ$3<>"",DT42<>0),HLOOKUP(FJ$4,'Agency cashability'!$B$3:$U$5,3,0),0) -> 0 | FK42: =IF(AND(FK$3<>"",DU42<>0),HLOOKUP(FK$4,'Agency cashability'!$B$3:$U$5,3,0),0) -> 0 | FL42: =IF(AND(FL$3<>"",DV42<>0),HLOOKUP(FL$4,'Agency cashability'!$B$3:$U$5,3,0),0) -> 0 | FM42: =IF(AND(FM$3<>"",DW42<>0),HLOOKUP(FM$4,'Agency cashability'!$B$3:$U$5,3,0),0) -> 0 | FN42: =IF(AND(FN$3<>"",DX42<>0),HLOOKUP(FN$4,'Agency cashability'!$B$3:$U$5,3,0),0) -> 0 | FO42: =IF(AND(FO$3<>"",DY42<>0),HLOOKUP(FO$4,'Agency cashability'!$B$3:$U$5,3,0),0) -> 0 | FP42: =IF(AND(FP$3<>"",DZ42<>0),HLOOKUP(FP$4,'Agency cashability'!$B$3:$U$5,3,0),0) -> 0 | FR42: 0 | FS42: 0 | FT42: 0 | FU42: 0 | FV42: 0 | FW42: 0 | GM42: =IF((GM$3<>""),EB42*FR42,"") -> 0 | GN42: 0 | GO42: 0 | GP42: 0 | GQ42: 0 | GR42: 0 | HJ42: =IF((HJ$3<>""),EW42*FR42,"") -> 0 | HK42: 0 | HL42: 0 | HM42: 0 | HN42: 0 | HO42: 0
